Workbook

Sheet Contents
A1: 80 | M1: ESC USE ONLY
D2: ESSENTIAL SERVICES COMMISSION
D3: Water Price Review
D4: Financial Model Template
B7: Table of Contents | F7: Water Business: | H7: =+N24 -> Wannon Water | I7: =+O24 -> WNW
B8: Section & Sheet Titles | F8: Regulatory Period: | H8: 2018-19 to 2022-23 (Fourth) | N8: [Decision] | O8: [Month] | P8: [Year] | Q8: [Version]
F9: Model Name: | H9: =I7&"_Price Review Template_"&O9&P9&Q9 -> WNW_Price Review Template_Mar2017- v1.2 | N9: Draft | O9: Mar | P9: 2017 | Q9: - v1.2 | R9: << Select
B10: a. | C10: =+KeyAssumptionsPriceControl_FO!B1 -> Key Assumptions Price Control | F10: Decision type: | H10: =+N9&" Decision" -> Draft Decision | N10: Draft | O10: Jan | P10: 2016 | Q10: - v1
B11: b. | C11: Expenditure Detail - Removed as it contained confidential information | N11: Final | O11: Feb | P11: 2017 | Q11: - v1.2
B12: c. | C12: =Opex_FO!B1 -> Operating Expenditure - Forecast | F12: Model Key: | O12: Mar | P12: 2018 | Q12: - v3
B13: d. | C13: =Opex_Breakdown!B1 -> Operating Expenditure - Breakdown | O13: Apr | P13: 2019 | Q13: - v3.1
B14: e. | C14: =+'Capex_FO input'!B1 -> Capital Expenditure - Forecast Input | G14: BLUE | H14: =+I7&" - DATA INPUT CELL" -> WNW - DATA INPUT CELL | O14: May | P14: 2020 | Q14: - v4
B15: f. | C15: =Capex_FO_AC!B1 -> Capital Expenditure - Asset Category Breakdown | O15: Jun | P15: 2021 | Q15: - v4.1
B16: g. | C16: =ExpSummary_FO!B1 -> Expenditure Summary | G16: YELLOW | H16: NOTES / INSTRUCTIONS | O16: Jul | Q16: - v5
B17: h. | C17: =RollForward_FO!B1 -> Rolled forward regulatory asset base (RAB) | O17: Aug | Q17: - v5.1
B18: i. | C18: =PrevPerAdj_FO!B1 -> Previous period adjustments | G18: GREY | H18: MODEL PARAMETERS / ASSUMPTIONS | O18: Sep | Q18: - v6
B19: j. | C19: =RevenuePriceCap_FO!C1 -> Revenue forecast (price caps) | O19: Oct | Q19: - v6.1
B20: k. | C20: Revenue forecast (tariff basket) | G20: WHITE | H20: FORMULA / HARDCODED VALUES | O20: Nov | Q20: - v7
B21: l. | C21: =NotPres_FO!B1 -> Non Prescribed Services | O21: Dec | Q21: - v7.1
B22: m. | C22: ='Finance&Tax_FO'!B1 -> Cash, debt and tax assumptions | G22: ORANGE | H22: FORMULA DIFFERENT TO ADJACENT CELL
B23: n. | C23: ='Rev&RAV_FO'!B1 -> Revenue requirement detail | N23: [Business]
B24: o. | C24: =Indicators_FO!B1 -> Financial indicators | G24: GREEN | H24: DATA FROM 2013 DECISION OR PERFORMANCE REPORT | N24: Wannon Water | O24: =+VLOOKUP(N24,N25:O42,2,FALSE) -> WNW
B25: p. | C25: =Outcomes!B1 -> Outcomes | N25: Barwon Water | O25: BW
B26: q. | C26: =GSL!B1 -> Guaranteed Service Levels (GSL) | G26: RED | H26: ERROR CHECK | N26: Central Highlands Water | O26: CHW
N27: City West Water | O27: CWW
N28: Coliban Water | O28: CW
N29: East Gippsland Water | O29: EGW
N30: Gippsland Water | O30: CGW
N31: Goulburn Valley Water | O31: GVW
N32: GWM Water | O32: GWMW | P32: diff model
N33: Lower Murray Water - Urban | O33: LMW-U | P33: diff model
N34: Lower Murray Water - Rural | O34: LMW-R
N35: North East Water | O35: NEW
N36: South East Water | O36: SEW
N37: South Gippsland Water | O37: SGW
N38: Southern Rural Water | O38: SRW | P38: diff model
N39: Wannon Water | O39: WNW
N40: Western Water | O40: WW
N41: Westernport Water | O41: WPW
N42: Yarra Valley Water | O42: YVW

Sheet KeyAssumptionsPriceControl_FO
A1: 80 | B1: Key Assumptions Price Control
B2: =+Contents!H7 -> Wannon Water
B3: Go to Table of Contents
L4: FIRST REG PERIOD | P4: SECOND REG PERIOD | U4: THIRD REG PERIOD | Z4: FOURTH REG PERIOD | AC4: FIFTH REG PERIOD
F6: Straight Line | K6: 2006 | L6: 2007 | M6: 2008 | N6: 2009 | O6: 2010 | P6: 2011 | Q6: 2012 | R6: 2013 | S6: 2014 | T6: 2015 | U6: 2016 | V6: 2017 | W6: 2018 | X6: 2019 | Y6: 2020 | Z6: 2021 | AA6: 2022 | AB6: 2023 | AC6: 2024 | AD6: 2025 | AE6: 2026 | AF6: 2027 | AG6: 2028
F7: Declining Balance | I7: 2003-04 | J7: 2004-05 | K7: =+CONCATENATE(K6-1,"-",RIGHT(K6,2)) -> 2005-06 | L7: =+CONCATENATE(L6-1,"-",RIGHT(L6,2)) -> 2006-07 | M7: 2007-08 | N7: 2008-09 | O7: 2009-10 | P7: 2010-11 | Q7: 2011-12 | R7: 2012-13 | S7: 2013-14 | T7: 2014-15 | U7: 2015-16 | V7: 2016-17 | W7: 2017-18 | X7: 2018-19 | Y7: 2019-20 | Z7: 2020-21 | AA7: 2021-22 | AB7: 2022-23 | AC7: 2023-24 | AD7: 2024-25 | AE7: 2025-26 | AF7: 2026-27 | AG7: 2027-28
E11: Inflation assumptions
W12: Estimate
F13: March quarter annual CPI | I13: 141.3 | J13: 144.1 | K13: 147.5 | L13: 151.9 | M13: 155.6 | N13: 162.2 | O13: 166.2 | P13: 171 | Q13: 176.7 | R13: 99.9 | S13: 102.4 | T13: 105.4 | U13: 106.8 | V13: 108.2 | W13: 110.5
F14: Inflation | J14: =+J13/I13-1 -> 0.01981599434 | K14: 0.02359472588 | L14: 0.02983050847 | M14: 0.02435813035 | N14: 0.04241645244 | O14: 0.02466091245 | P14: 0.02888086643 | Q14: 0.03333333333 | R14: 0.01584606678 | S14: =+IF(S13=0,$X$44,S13/R13-1) -> 0.02502502503 | T14: 0.029296875 | U14: 0.01328273245 | V14: 0.01310861423 | W14: 0.02125693161 | X14: 0.023 | Y14: 0.023 | Z14: 0.023 | AA14: 0.023 | AB14: 0.023 | AC14: 0.023 | AD14: 0.023 | AE14: 0.023 | AF14: 0.023 | AG14: 0.023
F15: Inflation factor | I15: 0.7871866295 | J15: 0.8027855153 | K15: 0.8217270195 | L15: 0.8462395543 | M15: 0.8668523677 | N15: 0.9036211699 | O15: 0.9259052925 | P15: 0.9526462396 | Q15: 0.9844011142 | R15: =+R13/$W$13 -> 0.9040723982 | S15: 0.9266968326 | T15: 0.9538461538 | U15: 0.9665158371 | V15: =+V13/$W$13 -> 0.9791855204 | W15: =+W13/$W$13 -> 1 | X15: =+W15*(1+X14) -> 1.023 | Y15: =+X15*(1+Y14) -> 1.046529 | Z15: 1.070599167 | AA15: 1.095222948 | AB15: 1.120413076 | AC15: 1.146182576 | AD15: 1.172544776 | AE15: 1.199513305 | AF15: 1.227102112 | AG15: 1.25532546
I16: CPI index re-referenced in 2012-13, shaded values have been hardcoded to lock in RAB value.
E21: Cost of debt - 10 year trailing average (Nominal)
V22: Estimate | W22: Estimate
E23: Cost of debt | L23: 0.06981666667 | M23: 0.07414 | N23: 0.0691525788 | O23: 0.07361870984 | P23: 0.07046784142 | Q23: 0.06308887941 | R23: 0.0526945046 | S23: 0.070525 | T23: 0.05360833333 | U23: 0.05270138413 | V23: 0.04908333333 | W23: 0.04908333333
E24: Re-financing weightings - average 10 yrs | L24: =1/10 -> 0.1 | M24: =1/10 -> 0.1 | N24: =1/10 -> 0.1 | O24: =1/10 -> 0.1 | P24: =1/10 -> 0.1 | Q24: 0.1 | R24: 0.1 | S24: 0.1 | T24: 0.1 | U24: 0.1 | V24: 0.1 | W24: 0.1 | X24: 0.1 | Y24: 0.1 | Z24: 0.1 | AA24: 0.1 | AB24: 0.1 | AC24: 0.1 | AD24: 0.1 | AE24: 0.1 | AF24: 0.1 | AG24: 0.1
E26: Cost of debt - 10 year trailing average | V26: =IF(U23<>"",SUMPRODUCT(L23:U23,L24:U24),"") -> 0.06498138982 | W26: =IF(V23<>"",SUMPRODUCT(M23:V23,M24:V24),"") -> 0.06290805649 | X26: =IF(W23<>"",SUMPRODUCT(N23:W23,N24:W24),"") -> 0.06040238982 | Y26: =IF(X23<>"",SUMPRODUCT(O23:X23,O24:X24),"") ->  | Z26: =IF(Y23<>"",SUMPRODUCT(P23:Y23,P24:Y24),"") -> 
E30: WACC assumptions (retained for historical purposes only) | U30: Regulatory Rate of Return (RRR) - Nominal
K32: 1st period | M32: 2nd period | O32: 3rd period | U32: Cost of Debt | X32: =+X26 -> 0.06040238982 | Y32: =+$X$32 -> 0.06040238982 | Z32: 0.06040238982 | AA32: 0.06040238982 | AB32: 0.06040238982 | AC32: 0.06040238982 | AD32: 0.06040238982 | AE32: 0.06040238982 | AF32: 0.06040238982 | AG32: 0.06040238982 | AI32: << Linked to Benchmark tax liability calculation (Rev&RAV_FO)
E33: Parameters
F34: Risk Free Rate (Real) | K34: =+HLOOKUP(Contents!$I$7&1,Determination_Lookup!$C$54:$BD$61,2,FALSE) -> 0.0267 | M34: =+HLOOKUP(Contents!$I$7&2,Determination_Lookup!$C$54:$BD$61,2,FALSE) -> 0.0323 | O34: =+HLOOKUP(Contents!$I$7&3,Determination_Lookup!$C$54:$BD$61,2,FALSE) -> 0.005959
F35: Debt Premium | K35: =+HLOOKUP(Contents!$I$7&1,Determination_Lookup!$C$54:$BD$61,3,FALSE) -> 0.0116 | M35: =+HLOOKUP(Contents!$I$7&2,Determination_Lookup!$C$54:$BD$61,3,FALSE) -> 0.0175 | O35: =+HLOOKUP(Contents!$I$7&3,Determination_Lookup!$C$54:$BD$61,3,FALSE) -> 0.0399
F36: Equity Premium | K36: =+HLOOKUP(Contents!$I$7&1,Determination_Lookup!$C$54:$BD$61,4,FALSE) -> 0.06 | M36: =+HLOOKUP(Contents!$I$7&2,Determination_Lookup!$C$54:$BD$61,4,FALSE) -> 0.06 | O36: =+HLOOKUP(Contents!$I$7&3,Determination_Lookup!$C$54:$BD$61,4,FALSE) -> 0.06 | U36: Regulatory Rate of Return (RRR) - Real
F37: Equity Beta | K37: =+HLOOKUP(Contents!$I$7&1,Determination_Lookup!$C$54:$BD$61,5,FALSE) -> 0.75 | M37: =+HLOOKUP(Contents!$I$7&2,Determination_Lookup!$C$54:$BD$61,5,FALSE) -> 0.65 | O37: =+HLOOKUP(Contents!$I$7&3,Determination_Lookup!$C$54:$BD$61,5,FALSE) -> 0.65
F38: Gearing (Debt/Assets) | K38: =+HLOOKUP(Contents!$I$7&1,Determination_Lookup!$C$54:$BD$61,6,FALSE) -> 0.6 | M38: =+HLOOKUP(Contents!$I$7&2,Determination_Lookup!$C$54:$BD$61,6,FALSE) -> 0.6 | O38: =+HLOOKUP(Contents!$I$7&3,Determination_Lookup!$C$54:$BD$61,6,FALSE) -> 0.6 | U38: Cost of Debt | X38: =(1+X32)/(1+X44)-1 -> 0.03656147587 | Y38: =+$X$38 -> 0.03656147587 | Z38: =+$X$38 -> 0.03656147587 | AA38: 0.03656147587 | AB38: 0.03656147587 | AC38: 0.03656147587 | AD38: 0.03656147587 | AE38: 0.03656147587 | AF38: 0.03656147587 | AG38: 0.03656147587
F39: Forecast Inflation | K39: =+HLOOKUP(Contents!$I$7&1,Determination_Lookup!$C$54:$BD$61,7,FALSE) -> 0.0255 | M39: =+HLOOKUP(Contents!$I$7&2,Determination_Lookup!$C$54:$BD$61,7,FALSE) -> 0.025 | O39: =+HLOOKUP(Contents!$I$7&3,Determination_Lookup!$C$54:$BD$61,7,FALSE) -> 0.0275
F40: Franking credit value | K40: =+HLOOKUP(Contents!$I$7&1,Determination_Lookup!$C$54:$BD$61,8,FALSE) -> 0.5 | M40: =+HLOOKUP(Contents!$I$7&2,Determination_Lookup!$C$54:$BD$61,8,FALSE) -> 0.5 | O40: =+HLOOKUP(Contents!$I$7&3,Determination_Lookup!$C$54:$BD$61,8,FALSE) -> 0.5 | U40: Return on Equity | X40: =IF(AG65<>0,(AG65/100),IF(AG63<>0,(AG63/100),(AG61/100))) -> 0.045 | Y40: =+$X$40 -> 0.045 | Z40: 0.045 | AA40: 0.045 | AB40: 0.045 | AC40: 0.045 | AD40: 0.045 | AE40: 0.045 | AF40: 0.045 | AG40: 0.045 | AI40: << Source: PREMO Assessment Matrix
E42: 'Vanilla' After Tax WACC (Real) | K42: =ROUND(((K34+K36*K37)*(1-K38))+((K34+K35)*K38),3) -> 0.052 | M42: =ROUND(((M34+M36*M37)*(1-M38))+((M34+M35)*M38),3) -> 0.058 | O42: =ROUND(((O34+O36*O37)*(1-O38))+((O34+O35)*O38),3) -> 0.045 | U42: RRR (real) | X42: =ROUND((X40*(1-X43)+X38*X43),3) -> 0.04 | Y42: 0.04 | Z42: 0.04 | AA42: 0.04 | AB42: 0.04 | AC42: 0.04 | AD42: 0.04 | AE42: 0.04 | AF42: 0.04 | AG42: 0.04
U43: Gearing | X43: 0.6 | Y43: =+X43 -> 0.6 | Z43: =+Y43 -> 0.6 | AA43: 0.6 | AB43: 0.6 | AC43: 0.6 | AD43: 0.6 | AE43: 0.6 | AF43: 0.6 | AG43: 0.6
U44: Forecast Inflation | X44: 0.023 | Y44: =+X44 -> 0.023 | Z44: 0.023 | AA44: 0.023 | AB44: 0.023 | AC44: 0.023 | AD44: 0.023 | AE44: 0.023 | AF44: 0.023 | AG44: 0.023
E46: Form of price control selected
E48: Price caps | I48: 1
U49: PREMO Graded Scoring System (for reference only) | AB49: PREMO Assessment Matrix (linked to Regulatory Rate of Return calculation above)
E50: Revenue cap / Hybrid Tariff Basket
V52: Water business | X52: ESC assessment | Z52: Difference | AD52: Water business self-assessment
V53: self-assessment | X53: of submission
AD54: Leading | AE54: Advanced | AF54: Standard | AG54: Basic
U55: Risk | V55: 2 | Z55: =IFERROR(IF(X55=0,"",X55-V55),"") ->  | AB55: ESC assessment of submission | AC55: Leading | AD55: 5.3
U56: Engagement | V56: 3.25 | Z56: =IFERROR(IF(X56=0,"",X56-V56),"") ->  | AC56: Advanced | AD56: 4.7 | AE56: 4.9
U57: Management | V57: 2.25 | Z57: =IFERROR(IF(X57=0,"",X57-V57),"") ->  | AC57: Standard | AD57: 4.1 | AE57: 4.3 | AF57: 4.5
U58: Outcomes | V58: 2.5 | Z58: =IFERROR(IF(X58=0,"",X58-V58),"") ->  | AC58: Basic | AF58: 3.9 | AG58: 4.1
U60: Total Score | V60: =SUM(V55:V58) -> 10 | X60: =SUM(X55:X58) -> 0 | Z60: =IFERROR(IF(X60=0,"",X60-V60),"") -> 
AB61: Water business self-assessment (Maximum allowable ROE) | AF61: Standard | AG61: =+VLOOKUP(AF61,$AF$72:$AG$76,2,FALSE) -> 4.5
AB63: ROE Override (Must be less than Maximum allowable ROE) | AG63: =+IF(AF63<=AG61,AF63,"CHECK") -> 0
U64: Rating | V64: =IF(V60<4,"",IF(AND(V60>=4,V60<=7.25),"Basic",IF(AND(V60>=7.5,V60<=11.25),"Standard",IF(AND(V60>=11.5,V60<=15.25),"Advanced",IF(AND(V60>=15.5,V60<=16),"Leading"))))) -> Standard | X64: =IF(X60<4,"",IF(AND(X60>=4,X60<=7.25),"Basic",IF(AND(X60>=7.5,X60<=11.25),"Standard",IF(AND(X60>=11.5,X60<=15.25),"Advanced",IF(AND(X60>=15.5,X60<=16),"Leading"))))) -> 
AB65: ESC assessment of submission | AG65: =IFERROR(IF(AF65=AF61,AG61,VLOOKUP(AF61&AF65,AF79:AG83,2,FALSE)),0) -> 0
AF67: Difference | AG67: =IFERROR(IF(AG65=0,"",AG65-AG61),"") -> 
U70: ESC USE ONLY
W71: [Select] | Y71: Rating | Z71: Aggregate score for overall PREMO rating | AF71: Business self assessment
W72: 1 | Y72: Leading | Z72: 15.5 to 16.0 | AF72: [Select]
W73: 1.25 | Y73: Advanced | Z73: 11.5 to 15.25 | AF73: Leading | AG73: =+AD55 -> 5.3
W74: 1.5 | Y74: Standard | Z74: 7.5 to 11.25 | AF74: Advanced | AG74: =+AE56 -> 4.9
W75: 1.75 | Y75: Basic | Z75: 4.0 to 7.25 | AF75: Standard | AG75: =+AF57 -> 4.5
W76: 2 | AF76: Basic | AG76: =+AG58 -> 4.1
W77: 2.25
W78: 2.5 | AF78: downgrading
W79: 2.75 | AF79: =AF54&AC58 -> StandardBasic | AG79: =+AF58 -> 3.9
W80: 3 | AF80: =+AE54&AC57 -> AdvancedStandard | AG80: =+AE57 -> 4.3
W81: 3.25 | AF81: =+AD54&AC56 -> LeadingAdvanced | AG81: =+AD56 -> 4.7
W82: 3.5 | AF82: =+AD54&AC57 -> LeadingStandard | AG82: =+AD57 -> 4.1
W83: 3.75 | AF83: =+AF61&"Basic" -> StandardBasic | AG83: CHECK
W84: 4

Sheet Opex_FO
B1: Operating Expenditure - Forecast
B2: =+Model_Name -> Wannon Water
B3: Go to Table of Contents
L4: FIRST REG PERIOD | P4: SECOND REG PERIOD | S4: THIRD REG PERIOD | X4: FOURTH REG PERIOD | AC4: FIFTH REG PERIOD
K5: 2006 | L5: 2007 | M5: 2008 | N5: 2009 | O5: 2010 | P5: 2011 | Q5: 2012 | R5: 2013 | S5: 2014 | T5: 2015 | U5: 2016 | V5: 2017 | W5: 2018 | X5: 2019 | Y5: 2020 | Z5: 2021 | AA5: 2022 | AB5: 2023 | AC5: 2024 | AD5: 2025 | AE5: 2026 | AF5: 2027 | AG5: 2028
B6: $m, 01/01/18 | K6: =+CONCATENATE(K5-1,"-",RIGHT(K5,2)) -> 2005-06 | L6: =+CONCATENATE(L5-1,"-",RIGHT(L5,2)) -> 2006-07 | M6: 2007-08 | N6: 2008-09 | O6: 2009-10 | P6: 2010-11 | Q6: 2011-12 | R6: 2012-13 | S6: 2013-14 | T6: 2014-15 | U6: 2015-16 | V6: 2016-17 | W6: 2017-18 | X6: 2018-19 | Y6: 2019-20 | Z6: 2020-21 | AA6: 2021-22 | AB6: 2022-23 | AC6: 2023-24 | AD6: 2024-25 | AE6: 2025-26 | AF6: 2026-27 | AG6: 2027-28
C9: Parameters | F9: 3rd period | H9: 4th period
D11: Cost efficiency improvement rate (% per annum) | F11: 0.01 | H11: =+SUM(X11:AB11)/5 -> 0.01 | X11: 0.01 | Y11: 0.01 | Z11: 0.01 | AA11: 0.01 | AB11: 0.01 | AC11: 0.019 | AD11: 0.019 | AE11: 0.019 | AF11: 0.019 | AG11: 0.019
D13: Customer growth forecast (% per annum) | F13: =AVERAGE(T13:W13) -> 0.006243437073 | H13: =+SUM(X13:AB13)/5 -> 0.008082741793 | T13: =IF(T15="","",T15/S15-1) -> 0.00602266235 | U13: =IF(U15="","",U15/T15-1) -> 0.004850808074 | V13: 0.007700277869 | W13: 0.0064 | X13: 0.00812137854 | Y13: 0.008079036056 | Z13: 0.008197472064 | AA13: 0.007949125596 | AB13: 0.00806669671 | AC13: 0.008024498189 | AD13: 0.008004967071 | AE13: 0.008095384751 | AF13: 0.00783398071 | AG13: 0.007881346758
E14: Net baseline opex growth | F14: =IFERROR(F13-F11,"-") -> -0.003756562927 | H14: =IFERROR(H13-H11,"-") -> -0.001917258207
D15: Water customers (No.) - Residential & Non-Residential - [BED 1] | S15: =+Determination_Lookup!BF3 -> 42008 | T15: =+Determination_Lookup!BG3 -> 42261 | U15: =+Determination_Lookup!BH3 -> 42466 | V15: 42793 | W15: =+V$15*(1+W$13) -> 43066.8752 | X15: =+W$15*(1+X$13) -> 43416.6376 | Y15: =+X$15*(1+Y$13) -> 43767.40218 | Z15: 44126.18423 | AA15: 44476.94881 | AB15: 44835.73087 | AC15: 45195.51511 | AD15: 45557.30372 | AE15: 45926.10762 | AF15: 46285.89186 | AG15: 46650.68703 | AI15: << Used as normalising metric for dashboard graphs
D17: Sewer customers (No.) - Residential & Non-Residential - [BED 2] | S17: =+Determination_Lookup!BJ3 -> 35419 | T17: =+Determination_Lookup!BK3 -> 35839 | U17: =+Determination_Lookup!BL3 -> 36146 | V17: 36492 | W17: =+V$17*(1+W$13) -> 36725.5488 | X17: =+W$17*(1+X$13) -> 37023.81088 | Y17: =+X$17*(1+Y$13) -> 37322.92759 | Z17: 37628.88124 | AA17: 37927.99795 | AB17: 38233.9516 | AC17: 38540.75988 | AD17: 38849.27739 | AE17: 39163.77724 | AF17: 39470.58551 | AG17: 39781.66689 | AI17: << Used as normalising metric for dashboard graphs
D19: Total metered volume of water delivered to customers (ML) - [BED 10] | S19: =+Determination_Lookup!BB3 -> 11360 | T19: =+Determination_Lookup!BC3 -> 11397 | U19: =+Determination_Lookup!BD3 -> 13557.5 | V19: 12225 | W19: 13027 | X19: 13146 | Y19: 13247 | Z19: 13400 | AA19: 13516 | AB19: 13634 | AC19: 13751 | AD19: 13869 | AE19: 13988 | AF19: 14093 | AG19: 14194 | AI19: << Used as normalising metric for dashboard graphs
D20: Residential, Non-Residential & Recycled (Residential & Non-Residential)
C24: Baseline Forecast
D26: Baseline year - total prescribed operating expenditure in 2016-17: | V26: =+Opex_Breakdown!V37 -> 39.47187519
D28: Less non-controllable expenditure items incurred in 2016-17:
E29: External bulk water charges (excl. temporary purchases) | V29: =+Opex_Breakdown!V29 -> 0.3391751925
E30: External temporary water purchases | V30: =+Opex_Breakdown!V30 -> 0 | X30: Comparison with approved 2016-17 total controllable opex
E31: Licence fees | V31: =+Opex_Breakdown!V31 -> 0.21 | X31: per 2013 determination model
E32: Environment Contribution | V32: =+Opex_Breakdown!V32 -> 2.611
E33: Other non-controllable | V33: =+Opex_Breakdown!V33 -> 0
V34: =SUM(V29:V33) -> 3.160175193 | Y34: 2016-17 | Z34: Difference | AA34: %
D36: Baseline year - total controllable operating expenditure in 2016-17: | V36: =+V26-V34 -> 36.3117 | Y36: =+Determination_Lookup!AX3 -> 43.61577406 | Z36: =+V52-Y36 -> -8.004074064 | AA36: =+Z36/Y36 -> -0.183513287
D38: Adjustments for non-recurring expenditure items incurred in 2016-17 and any efficiency savings to be realised from 2016-17: | X38: ($, 2017-18)
D40: 1 | E40: Capital Expenditure Write-Off - Projects not Proceeding (Abnormally high in 2016/17) | V40: 0.72
D41: 2 | E41: Comittment to Carbon Sequestion Fees - billed late and missed the 16/ 17 baseline year (usually billed April/ May) | V41: -0.03
D42: 3 | E42: Increase in Insurance premiums in 2017/ 18 - Due to Revaluation of Assets | V42: -0.04
D43: 4 | E43: Sampling Expenditure Savings, effective from 2017/ 18 | V43: 0.05
D44: 5
D45: 6
D46: 7
D47: 8
D48: 9
D49: 10
V50: =SUM(V40:V49) -> 0.7
D52: Baseline controllable operating expenditure (2016-17) | V52: =+V36-V50 -> 35.6117
D54: Adjusted Baseline controllable operating expenditure (Forecast) | W54: =+V52*(1+$W$13-$F$11) -> 35.48349788 | X54: =+$W$54*(1+X$13-X$11) -> 35.41683782 | Y54: =+X$54*(1+Y$13-Y$11) -> 35.34880335 | Z54: 35.28508615 | AA54: 35.21272087 | AB54: 35.144644 | AC54: 34.75891389 | AD54: 34.37673849 | AE54: 34.00187338 | AF54: 33.62220781 | AG54: 33.24837414
C58: Operating expenditure - reconciliation
D61: Adjusted Baseline controllable operating expenditure (Forecast) | X61: =+X54 -> 35.41683782 | Y61: 35.34880335 | Z61: 35.28508615 | AA61: 35.21272087 | AB61: 35.144644 | AC61: 34.75891389 | AD61: 34.37673849 | AE61: 34.00187338 | AF61: 33.62220781 | AG61: 33.24837414
H62: Controllable
D63: Forecast variations to baseline operating expenditure (above or below baseline) | H63: only
D65: 1 | E65: Water for Community Program (Refer Section 7.6 of Written Price Submission) | H65: Water | X65: 0.328 | Y65: 0.328 | Z65: 0.328 | AA65: 0.328 | AB65: 0.328 | AC65: 0.328 | AD65: 0.328 | AE65: 0.328 | AF65: 0.328 | AG65: 0.328
D66: =D65+1 -> 2 | E66: Community Partnerships initatives (Refer Section 7.6 of Written Price Submission) | H66: Water | X66: 0.06 | Y66: 0.06 | Z66: 0.06 | AA66: 0.06 | AB66: 0.06 | AC66: 0.06 | AD66: 0.06 | AE66: 0.06 | AF66: 0.06 | AG66: 0.06
D67: =D66+1 -> 3 | E67: Employee Costs - New Positions commencing 2017-18 (Refer Section 8.1.4 of Written Price Submission) | H67: Water | X67: 0.251 | Y67: 0.263 | Z67: 0.27 | AA67: 0.2735 | AB67: 0.2765 | AC67: 0.2795 | AD67: 0.2825 | AE67: 0.2855 | AF67: 0.289 | AG67: 0.2925
D68: 4 | E68: Employee Costs - New Positions commencing 2017-18 (Refer Section 8.1.4 of Written Price Submission) | H68: Sewerage | X68: 0.251 | Y68: 0.263 | Z68: 0.27 | AA68: 0.2735 | AB68: 0.2765 | AC68: 0.2795 | AD68: 0.2825 | AE68: 0.2855 | AF68: 0.289 | AG68: 0.2925
D69: 5 | E69: Employee Costs - New Positions commencing from 2018-19 (Refer Section 8.1.4 of Written Price Submission) | H69: Water | X69: 0 | Y69: 0 | Z69: 0 | AA69: 0 | AB69: 0 | AC69: 0 | AD69: 0 | AE69: 0 | AF69: 0 | AG69: 0
D70: 6 | E70: Employee Costs - EBA Increases greater than CPI (Refer Section 8.1.4 of Written Price Submission) | H70: Water | X70: 0.6355 | Y70: 0.8135 | Z70: 0.925 | AA70: 1.0495 | AB70: 1.1665 | AC70: 1.281 | AD70: 1.393 | AE70: 1.512 | AF70: 1.6385 | AG70: 1.763
D71: 7 | E71: Employee Costs - EBA Increases greater than CPI (Refer Section 8.1.4 of Written Price Submission) | H71: Sewerage | X71: 0.6355 | Y71: 0.8135 | Z71: 0.925 | AA71: 1.0495 | AB71: 1.1665 | AC71: 1.281 | AD71: 1.393 | AE71: 1.512 | AF71: 1.6385 | AG71: 1.763
D72: 8 | E72: Operating Costs - Capital Program (ex. Electricity) (Refer 8.1.5, 8.2.3.3 of Written Price Submission) | H72: Water | X72: -0.001 | Y72: -0.001 | Z72: 0.089 | AA72: 0.201 | AB72: 0.2335 | AC72: 0.2568 | AD72: 0.2568 | AE72: 0.2568 | AF72: 0.2568 | AG72: 0.2568
D73: 9 | E73: Operating Costs - Capital Program (ex. Electricity) (Refer 8.1.5, 8.2.3.3 of Written Price Submission) | H73: Sewerage | X73: 0.0418 | Y73: 0.0635 | Z73: 0.1067 | AA73: 0.1295 | AB73: 0.1569 | AC73: 0.2042 | AD73: 0.2289 | AE73: 0.2633 | AF73: 0.2813 | AG73: 0.3
D74: 10 | E74: Operating Costs - Warrnambool WRP Upgrade (ex. Electricity) (Refer 8.1.5, 8.2.3.1 of Written Price Submission) | H74: Sewerage | X74: 0 | Y74: 0 | Z74: 0 | AA74: 0.336 | AB74: 0.341 | AC74: 0.344 | AD74: 0.349 | AE74: 0.352 | AF74: 0.358 | AG74: 0.36
D75: 11 | E75: Proactive Maintenance - New Program | H75: Water | X75: 0.025 | Y75: 0.025 | Z75: 0.025 | AA75: 0.025 | AB75: 0.025 | AC75: 0.025 | AD75: 0.025 | AE75: 0.025 | AF75: 0.025 | AG75: 0.025
D76: 12 | E76: Proactive Maintenance - New Program | H76: Sewerage | X76: 0.025 | Y76: 0.025 | Z76: 0.025 | AA76: 0.025 | AB76: 0.025 | AC76: 0.025 | AD76: 0.025 | AE76: 0.025 | AF76: 0.025 | AG76: 0.025
D77: 13 | E77: Insurance Premiums, increase following Asset Revaluation | H77: Water | X77: 0 | Y77: 0 | Z77: 0 | AA77: 0 | AB77: 0.02 | AC77: 0.02 | AD77: 0.02 | AE77: 0.02 | AF77: 0.02 | AG77: 0.04
D78: 14 | E78: Insurance Premiums, increase following Asset Revaluation | H78: Sewerage | X78: 0 | Y78: 0 | Z78: 0 | AA78: 0 | AB78: 0.02 | AC78: 0.02 | AD78: 0.02 | AE78: 0.02 | AF78: 0.02 | AG78: 0.04
D79: 15 | E79: Operating Projects (Refer 8.1.6 of Written Price Submission) | H79: Water | X79: 0.122 | Y79: 0.569 | Z79: 0.271 | AA79: -0.258 | AB79: -0.447 | AC79: 0.062 | AD79: 0.062 | AE79: 0.062 | AF79: 0.062 | AG79: 0.062
D80: 16 | E80: Operating Projects (Refer 8.1.6 of Written Price Submission) | H80: Sewerage | X80: 0.726 | Y80: 1.258 | Z80: 0.408 | AA80: -0.103 | AB80: -0.123 | AC80: 0.396 | AD80: 0.396 | AE80: 0.396 | AF80: 0.396 | AG80: 0.396
D81: 17 | E81: Licence Costs - Increase in IT Applications (Refer 8.1.3 of Written Price Submission) | H81: Water | X81: 0.166241 | Y81: 0.166241 | Z81: 0.166241 | AA81: 0.166241 | AB81: 0.166241 | AC81: 0.166241 | AD81: 0.166241 | AE81: 0.166241 | AF81: 0.166241 | AG81: 0.166241
D82: 18 | E82: Licence Costs - Increase in IT Applications (Refer 8.1.3 of Written Price Submission) | H82: Sewerage | X82: 0.166241 | Y82: 0.166241 | Z82: 0.166241 | AA82: 0.166241 | AB82: 0.166241 | AC82: 0.166241 | AD82: 0.166241 | AE82: 0.166241 | AF82: 0.166241 | AG82: 0.166241
D83: 19 | E83: Government Efficiency Rebate - Tenant Customers (Refer 10.1 of Written Price Submission) | H83: Water | X83: 0.274389 | Y83: 0 | Z83: 0 | AA83: 0 | AB83: 0 | AC83: 0 | AD83: 0 | AE83: 0 | AF83: 0 | AG83: 0
D84: 20 | E84: Electricity Costs - Warrnambool WRP Upgrade (Refer 8.1.2, 8.2.3.1 of Written Price Submission) | H84: Sewerage | X84: 0 | Y84: 0 | Z84: 0 | AA84: 0.116 | AB84: 0.119 | AC84: 0.123 | AD84: 0.125 | AE84: 0.128 | AF84: 0.13 | AG84: 0.133
D85: 21 | E85: Electricity Costs - Consumption reduction - Renewable Energy Projects (Refer 8.1.2, 8.1.8 of Written Price Submission) | H85: Water | X85: -0.007 | Y85: -0.215 | Z85: -0.215 | AA85: -0.216 | AB85: -0.216 | AC85: -0.216 | AD85: -0.216 | AE85: -0.216 | AF85: -0.216 | AG85: -0.216
D86: 22 | E86: Electricity Costs - Consumption reduction - Renewable Energy Projects (Refer 8.1.2, 8.1.8 of Written Price Submission) | H86: Sewerage | X86: -0.003 | Y86: -0.045 | Z86: -0.045 | AA86: -0.044 | AB86: -0.044 | AC86: -0.044 | AD86: -0.044 | AE86: -0.044 | AF86: -0.044 | AG86: -0.044
D87: 23 | E87: Electricity Costs - Prices increases greater than CPI (Refer 8.1.2 of Written Price Submission) | H87: Water | X87: 0.655 | Y87: 0.535 | Z87: 0.535 | AA87: 0.535 | AB87: 0.535 | AC87: 0.56 | AD87: 0.565 | AE87: 0.57 | AF87: 0.575 | AG87: 0.58
D88: 24 | E88: Electricity Costs - Prices increases greater than CPI (Refer 8.1.2 of Written Price Submission) | H88: Sewerage | X88: 0.655 | Y88: 0.535 | Z88: 0.535 | AA88: 0.535 | AB88: 0.535 | AC88: 0.56 | AD88: 0.565 | AE88: 0.57 | AF88: 0.575 | AG88: 0.58
D89: 25 | E89: Electricity Costs - Increase at small sites due to Capital Projects (Refer 8.1.2 of Written Price Submission) | H89: Water | X89: 0 | Y89: 0 | Z89: 0.0086 | AA89: 0.019 | AB89: 0.0305 | AC89: 0.0305 | AD89: 0.0305 | AE89: 0.0305 | AF89: 0.0305 | AG89: 0.0305
D90: 26 | E90: Electricity Costs - Increase at small sites due to Capital Projects (Refer 8.1.2 of Written Price Submission) | H90: Sewerage | X90: 0 | Y90: 0 | Z90: 0.0114 | AA90: 0.011 | AB90: 0.0095 | AC90: 0.0095 | AD90: 0.0095 | AE90: 0.0095 | AF90: 0.0095 | AG90: 0.0095
D91: 27 | E91: Electricity Costs - Consumption reduction - Carbon Neutrality (Refer Section 7.5, 8.1.8 of Written Price Submission) | H91: Sewerage | X91: -0.004 | Y91: -0.009 | Z91: -0.025 | AA91: -0.041 | AB91: -0.056 | AC91: -0.057 | AD91: -0.057 | AE91: -0.057 | AF91: -0.057 | AG91: -0.057
D92: 28 | E92: New Operating Costs, implementation of Carbon Neutrality (Refer Section 7.5 of Written Price Submission) | H92: Water | X92: 0.032 | Y92: 0.047 | Z92: 0.037 | AA92: 0.037 | AB92: 0.037 | AC92: 0.037 | AD92: 0.037 | AE92: 0.037 | AF92: 0.037 | AG92: 0.037
D93: 29 | E93: New Operating Costs, implementation of Carbon Neutrality (Refer Section 7.5 of Written Price Submission) | H93: Sewerage | X93: 0.03 | Y93: 0.04 | Z93: 0.03 | AA93: 0.03 | AB93: 0.03 | AC93: 0.03 | AD93: 0.03 | AE93: 0.03 | AF93: 0.03 | AG93: 0.03
D94: 30 | E94: Natural Environment - CMA Partnership Investment (Refer Section 7.5 of Written Price Submission) | H94: Water | X94: 0.04 | Y94: 0.04 | Z94: 0.04 | AA94: 0.04 | AB94: 0.04 | AC94: 0.04 | AD94: 0.04 | AE94: 0.04 | AF94: 0.04 | AG94: 0.04
D96: Total changes required to baseline operating expenditure | X96: =SUM(X65:X95) -> 5.104671 | Y96: 5.740982 | Z96: 4.947182 | AA96: 4.743982 | AB96: 4.877882 | AC96: 6.267482 | AD96: 6.539182 | AE96: 6.833582 | AF96: 7.129582 | AG96: 7.459282
W97: % Change in baseline opex per annum | X97: =IFERROR(X96/X61,"-") -> 0.1441311905 | Y97: =IFERROR(Y96/Y61,"-") -> 0.1624095148 | Z97: 0.1402060343 | AA97: 0.1347235284 | AB97: 0.1387944633 | AC97: 0.1803129413 | AD97: 0.1902211288 | AE97: 0.2009766322 | AF97: 0.2120497869 | AG97: 0.2243502786
W98: % Change in baseline opex per reg period | AB98: =IFERROR(AVERAGE(X97:AB97),"-") -> 0.1440529463 | AG98: =IFERROR(AVERAGE(AC97:AG97),"-") -> 0.2015821535
D99: Total controllable operating expenditure | X99: =+X96+X61 -> 40.52150882 | Y99: 41.08978535 | Z99: 40.23226815 | AA99: 39.95670287 | AB99: 40.022526 | AC99: 41.02639589 | AD99: 40.91592049 | AE99: 40.83545538 | AF99: 40.75178981 | AG99: 40.70765614
W100: Controllable Opex growth from baseline to 5th year | AB100: =IFERROR(AB99-V52,"-") -> 4.410825996 | AC100: =IFERROR(AB99/V52-1,"-") -> 0.1238589002
D101: Non-controllable operating expenditure
D102: External bulk water charges (excl. temporary purchases) | X102: =+Opex_Breakdown!X29 -> 0.334 | Y102: =+Opex_Breakdown!Y29 -> 0.334 | Z102: =+Opex_Breakdown!Z29 -> 0.334 | AA102: =+Opex_Breakdown!AA29 -> 0.334 | AB102: =+Opex_Breakdown!AB29 -> 0.334 | AC102: =+Opex_Breakdown!AC29 -> 0.334 | AD102: =+Opex_Breakdown!AD29 -> 0.334 | AE102: =+Opex_Breakdown!AE29 -> 0.334 | AF102: =+Opex_Breakdown!AF29 -> 0.334 | AG102: =+Opex_Breakdown!AG29 -> 0.334
D103: External temporary water purchases | X103: =+Opex_Breakdown!X30 -> 0 | Y103: =+Opex_Breakdown!Y30 -> 0 | Z103: =+Opex_Breakdown!Z30 -> 0 | AA103: =+Opex_Breakdown!AA30 -> 0 | AB103: =+Opex_Breakdown!AB30 -> 0 | AC103: =+Opex_Breakdown!AC30 -> 0 | AD103: =+Opex_Breakdown!AD30 -> 0 | AE103: =+Opex_Breakdown!AE30 -> 0 | AF103: =+Opex_Breakdown!AF30 -> 0 | AG103: =+Opex_Breakdown!AG30 -> 0
D104: Licence fees | X104: =+Opex_Breakdown!X31 -> 0.21 | Y104: =+Opex_Breakdown!Y31 -> 0.21 | Z104: =+Opex_Breakdown!Z31 -> 0.21 | AA104: =+Opex_Breakdown!AA31 -> 0.21 | AB104: =+Opex_Breakdown!AB31 -> 0.21 | AC104: =+Opex_Breakdown!AC31 -> 0.21 | AD104: =+Opex_Breakdown!AD31 -> 0.21 | AE104: =+Opex_Breakdown!AE31 -> 0.21 | AF104: =+Opex_Breakdown!AF31 -> 0.21 | AG104: =+Opex_Breakdown!AG31 -> 0.21
D105: Environment Contribution | X105: =+Opex_Breakdown!X32 -> 3.286 | Y105: =+Opex_Breakdown!Y32 -> 3.212427 | Z105: =+Opex_Breakdown!Z32 -> 3.2748 | AA105: =+Opex_Breakdown!AA32 -> 3.20417 | AB105: =+Opex_Breakdown!AB32 -> 3.133861 | AC105: =+Opex_Breakdown!AC32 -> 3.332675 | AD105: =+Opex_Breakdown!AD32 -> 3.258968 | AE105: =+Opex_Breakdown!AE32 -> 3.186918 | AF105: =+Opex_Breakdown!AF32 -> 3.116488 | AG105: =+Opex_Breakdown!AG32 -> 3.047
D106: Other non-controllable | X106: =+Opex_Breakdown!X33 -> 0 | Y106: =+Opex_Breakdown!Y33 -> 0 | Z106: =+Opex_Breakdown!Z33 -> 0 | AA106: =+Opex_Breakdown!AA33 -> 0 | AB106: =+Opex_Breakdown!AB33 -> 0 | AC106: =+Opex_Breakdown!AC33 -> 0 | AD106: =+Opex_Breakdown!AD33 -> 0 | AE106: =+Opex_Breakdown!AE33 -> 0 | AF106: =+Opex_Breakdown!AF33 -> 0 | AG106: =+Opex_Breakdown!AG33 -> 0
D107: Total non-controllable operating expenditure | X107: =SUM(X102:X106) -> 3.83 | Y107: 3.756427 | Z107: 3.8188 | AA107: 3.74817 | AB107: 3.677861 | AC107: 3.876675 | AD107: 3.802968 | AE107: 3.730918 | AF107: 3.660488 | AG107: 3.591
W108: Non-controllable Opex growth from baseline to 5th year | AB108: =IFERROR(AB107-V34,"-") -> 0.5176858075 | AC108: =IFERROR(AB107/V34-1,"-") -> 0.1638155406
D110: Total prescribed operating expenditure | X110: =+X107+X99 -> 44.35150882 | Y110: 44.84621235 | Z110: 44.05106815 | AA110: 43.70487287 | AB110: 43.700387 | AC110: 44.90307089 | AD110: 44.71888849 | AE110: 44.56637338 | AF110: 44.41227781 | AG110: =+AG107+AG99 -> 44.29865614
W111: Prescribed Opex growth from baseline to 5th year | AB111: =IFERROR(AB110-(V52+V34),"-") -> 4.928511804 | AC111: =IFERROR((AB110/(V52+V34))-1,"-") -> 0.1271156419
W113: To reconcile to 'Opex_Breakdown' tab row 37 >> | X113: =+Opex_Breakdown!X37 -> 44.3515 | Y113: =+Opex_Breakdown!Y37 -> 44.846127 | Z113: =+Opex_Breakdown!Z37 -> 44.0511 | AA113: =+Opex_Breakdown!AA37 -> 43.70457 | AB113: =+Opex_Breakdown!AB37 -> 43.700461 | AC113: =+Opex_Breakdown!AC37 -> 44.903175 | AD113: =+Opex_Breakdown!AD37 -> 44.718368 | AE113: =+Opex_Breakdown!AE37 -> 44.565418 | AF113: =+Opex_Breakdown!AF37 -> 44.411288 | AG113: =+Opex_Breakdown!AG37 -> 44.297
W114: Difference | X114: =+X113-X110 -> -8.819407242e-06 | Y114: -8.535093092e-05 | Z114: 3.185459631e-05 | AA114: -0.0003028653916 | AB114: 7.400369917e-05 | AC114: 0.0001041075114 | AD114: -0.0005204896637 | AE114: -0.0009553829102 | AF114: -0.0009898088082 | AG114: -0.001656138938
W115: Test | X115: =ROUND(X113,2)=ROUND(X110,2) -> TRUE | Y115: =ROUND(Y113,2)=ROUND(Y110,2) -> TRUE | Z115: TRUE | AA115: TRUE | AB115: TRUE | AC115: TRUE | AD115: TRUE | AE115: TRUE | AF115: TRUE | AG115: TRUE
X154: =+X$175 -> 2018-19 | Y154: 2019-20 | Z154: 2020-21 | AA154: 2021-22 | AB154: 2022-23 | AC154: 2023-24 | AD154: 2024-25 | AE154: 2025-26 | AF154: 2026-27 | AG154: 2027-28
W155: Total controllable opex | X155: =+X99 -> 40.52150882 | Y155: 41.08978535 | Z155: 40.23226815 | AA155: 39.95670287 | AB155: 40.022526 | AC155: 41.02639589 | AD155: 40.91592049 | AE155: 40.83545538 | AF155: 40.75178981 | AG155: 40.70765614
W156: Change - $ | Y156: =+Y155-X155 -> 0.5682765315 | Z156: -0.8575172055 | AA156: -0.27556528 | AB156: 0.06582313091 | AC156: 1.003869896 | AD156: -0.1104754028 | AE156: -0.08046510675 | AF156: -0.0836655741 | AG156: -0.04413366987
W157: Change - % | Y157: =IFERROR(Y156/X155,"") -> 0.01402407137 | Z157: -0.02086935228 | AA157: -0.006849359798 | AB157: 0.001647361423 | AC157: 0.02508262213 | AD157: -0.002692788397 | AE157: -0.001966596518 | AF157: -0.00204884636 | AG157: -0.001082987277
X159: =+X$175 -> 2018-19 | Y159: 2019-20 | Z159: 2020-21 | AA159: 2021-22 | AB159: 2022-23 | AC159: 2023-24 | AD159: 2024-25 | AE159: 2025-26 | AF159: 2026-27 | AG159: 2027-28
W160: Total non-controllable opex | X160: =+X107 -> 3.83 | Y160: 3.756427 | Z160: 3.8188 | AA160: 3.74817 | AB160: 3.677861 | AC160: 3.876675 | AD160: 3.802968 | AE160: 3.730918 | AF160: 3.660488 | AG160: 3.591
W161: Change - $ | Y161: =+Y160-X160 -> -0.073573 | Z161: 0.062373 | AA161: -0.07063 | AB161: -0.070309 | AC161: 0.198814 | AD161: -0.073707 | AE161: -0.07205 | AF161: -0.07043 | AG161: -0.069488
W162: Change - % | Y162: =IFERROR(Y161/X160,"") -> -0.01920966057 | Z162: 0.01660434237 | AA162: -0.01849533885 | AB162: -0.01875822068 | AC162: 0.05405696409 | AD162: -0.01901294279 | AE162: -0.0189457287 | AF162: -0.01887739157 | AG162: -0.01898326125
X164: =+X$175 -> 2018-19 | Y164: 2019-20 | Z164: 2020-21 | AA164: 2021-22 | AB164: 2022-23 | AC164: 2023-24 | AD164: 2024-25 | AE164: 2025-26 | AF164: 2026-27 | AG164: 2027-28
W165: Total prescribed opex | X165: =+X155+X160 -> 44.35150882 | Y165: 44.84621235 | Z165: 44.05106815 | AA165: 43.70487287 | AB165: 43.700387 | AC165: 44.90307089 | AD165: 44.71888849 | AE165: 44.56637338 | AF165: 44.41227781 | AG165: 44.29865614
W166: Change - $ | Y166: =+Y165-X165 -> 0.4947035315 | Z166: -0.7951442055 | AA166: -0.34619528 | AB166: -0.004485869091 | AC166: 1.202683896 | AD166: -0.1841824028 | AE166: -0.1525151068 | AF166: -0.1540955741 | AG166: -0.1136216699
W167: Change - % | Y167: =IFERROR(Y166/X165,"") -> 0.01115415337 | Z167: -0.01773046516 | AA167: -0.007858953133 | AB167: -0.0001026400215 | AC167: 0.0275211269 | AD167: -0.004101777432 | AE167: -0.00341052991 | AF167: -0.003457664656 | AG167: -0.002558339168
W170: Controllable vs. Non-controllable opex - % | X170: =+X$175 -> 2018-19 | Y170: 2019-20 | Z170: 2020-21 | AA170: 2021-22 | AB170: 2022-23 | AC170: 2023-24 | AD170: 2024-25 | AE170: 2025-26 | AF170: 2026-27 | AG170: 2027-28
W171: Controllable opex - % | X171: =+X99/X110 -> 0.913644426 | Y171: 0.9162375861 | Z171: 0.9133097071 | AA171: 0.9142390824 | AB171: 0.9158391664 | AC171: 0.9136657043 | AD171: 0.9149583514 | AE171: 0.9162840115 | AF171: 0.9175793681 | AG171: 0.9189365928
W172: Non-controllable opex - % | X172: =+X107/X110 -> 0.08635557396 | Y172: 0.08376241388 | Z172: 0.0866902929 | AA172: 0.08576091759 | AB172: 0.08416083364 | AC172: 0.08633429569 | AD172: 0.08504164858 | AE172: 0.08371598846 | AF172: 0.08242063187 | AG172: 0.08106340718
X173: =SUM(X171:X172) -> 1 | Y173: 1 | Z173: 1 | AA173: 1 | AB173: 1 | AC173: 1 | AD173: 1 | AE173: 1 | AF173: 1 | AG173: 1
V175: =+V6 -> 2016-17 | W175: 2017-18 | X175: 2018-19 | Y175: 2019-20 | Z175: 2020-21 | AA175: 2021-22 | AB175: 2022-23 | AC175: 2023-24 | AD175: 2024-25 | AE175: 2025-26 | AF175: 2026-27 | AG175: 2027-28
U176: Third Reg period Opex | V176: =+V184-SUM(V177:V183) -> 36.3117 | W176: =+W184-SUM(W177:W183) -> 38.827995
U177: Adjusted baseline opex | X177: =+X61 -> 35.41683782 | Y177: 35.34880335 | Z177: 35.28508615 | AA177: 35.21272087 | AB177: 35.144644 | AC177: 34.75891389 | AD177: 34.37673849 | AE177: 34.00187338 | AF177: 33.62220781 | AG177: 33.24837414
U178: Forecast variations to baseline operating expenditure | X178: =+X96 -> 5.104671 | Y178: 5.740982 | Z178: 4.947182 | AA178: 4.743982 | AB178: 4.877882 | AC178: 6.267482 | AD178: 6.539182 | AE178: 6.833582 | AF178: 7.129582 | AG178: 7.459282
U179: Licence fees | V179: =+V208 -> 0.21 | W179: =+W208 -> 0.23 | X179: =+X104 -> 0.21 | Y179: 0.21 | Z179: 0.21 | AA179: 0.21 | AB179: 0.21 | AC179: 0.21 | AD179: 0.21 | AE179: 0.21 | AF179: 0.21 | AG179: 0.21
U180: Environment Contribution | V180: =+V209 -> 2.611 | W180: =+W209 -> 2.557 | X180: =+X105 -> 3.286 | Y180: 3.212427 | Z180: 3.2748 | AA180: 3.20417 | AB180: 3.133861 | AC180: 3.332675 | AD180: 3.258968 | AE180: 3.186918 | AF180: 3.116488 | AG180: 3.047
U181: External bulk water charges | V181: =+V206 -> 0.3391751925 | W181: =+W206 -> 0.3491751925 | X181: =+X102 -> 0.334 | Y181: 0.334 | Z181: 0.334 | AA181: 0.334 | AB181: 0.334 | AC181: 0.334 | AD181: 0.334 | AE181: 0.334 | AF181: 0.334 | AG181: 0.334
U182: External temporary water purchases | V182: =+V207 -> 0 | W182: =+W207 -> 0 | X182: =+X103 -> 0 | Y182: 0 | Z182: 0 | AA182: 0 | AB182: 0 | AC182: 0 | AD182: 0 | AE182: 0 | AF182: 0 | AG182: 0
U183: Other non-controllable | V183: =+V210 -> 0 | W183: =+W210 -> 0 | X183: =+X106 -> 0 | Y183: 0 | Z183: 0 | AA183: 0 | AB183: 0 | AC183: 0 | AD183: 0 | AE183: 0 | AF183: 0 | AG183: 0
U184: Total prescribed opex | V184: =+Opex_Breakdown!V37 -> 39.47187519 | W184: =+Opex_Breakdown!W37 -> 41.96417019 | X184: =SUM(X177:X183) -> 44.35150882 | Y184: 44.84621235 | Z184: 44.05106815 | AA184: 43.70487287 | AB184: 43.700387 | AC184: 44.90307089 | AD184: 44.71888849 | AE184: 44.56637338 | AF184: 44.41227781 | AG184: 44.29865614
X186: =+X$175 -> 2018-19 | Y186: 2019-20 | Z186: 2020-21 | AA186: 2021-22 | AB186: 2022-23 | AC186: 2023-24 | AD186: 2024-25 | AE186: 2025-26 | AF186: 2026-27 | AG186: 2027-28
W187: Adjusted baseline opex | X187: =+X177/X$184 -> 0.7985486574 | Y187: 0.7882227171 | Z187: 0.8010040989 | AA187: 0.8056932456 | AB187: 0.8042181411 | AC187: 0.7740876782 | AD187: 0.7687297169 | AE187: 0.7629490758 | AF187: 0.7570475884 | AG187: 0.7505504012
W188: Forecast variations to baseline operating expenditure | X188: =+X178/X$184 -> 0.1150957687 | Y188: 0.128014869 | Z188: 0.1123056082 | AA188: 0.1085458369 | AB188: 0.1116210252 | AC188: 0.1395780261 | AD188: 0.1462286345 | AE188: 0.1533349358 | AF188: 0.1605317798 | AG188: 0.1683861916
W189: Licence fees | X189: =+X179/X$184 -> 0.004734900922 | Y189: 0.004682669706 | Z189: 0.004767194278 | AA189: 0.004804956204 | AB189: 0.004805449435 | AC189: 0.004676740272 | AD189: 0.004696002228 | AE189: 0.004712072894 | AF189: 0.004728422192 | AG189: 0.004740550127
W190: Environment Contribution | X190: =+X180/X$184 -> 0.07408992586 | Y190: 0.0716320695 | Z190: 0.07434098963 | AA190: 0.07331379295 | AB190: 0.07171243129 | AC190: 0.07421931137 | AD190: 0.07287676662 | AE190: 0.07150947582 | AF190: 0.07017176677 | AG190: 0.06878312494
W191: External bulk water charges (excl. temporary purchases) | X191: =+X181/X$184 -> 0.007530747181 | Y191: 0.007447674675 | Z191: 0.007582108994 | AA191: 0.007642168438 | AB191: 0.007642952911 | AC191: 0.007438244052 | AD191: 0.007468879735 | AE191: 0.007494439746 | AF191: 0.007520442915 | AG191: 0.007539732107
W192: External temporary water purchases | X192: =+X182/X$184 -> 0 | Y192: 0 | Z192: 0 | AA192: 0 | AB192: 0 | AC192: 0 | AD192: 0 | AE192: 0 | AF192: 0 | AG192: 0
W193: Other non-controllable | X193: =+X183/X$184 -> 0 | Y193: 0 | Z193: 0 | AA193: 0 | AB193: 0 | AC193: 0 | AD193: 0 | AE193: 0 | AF193: 0 | AG193: 0
W194: Total prescribed opex | X194: =+X184/X$184 -> 1 | Y194: 1 | Z194: 1 | AA194: 1 | AB194: 1 | AC194: 1 | AD194: 1 | AE194: 1 | AF194: 1 | AG194: 1
X196: =+X$175 -> 2018-19 | Y196: 2019-20 | Z196: 2020-21 | AA196: 2021-22 | AB196: 2022-23 | AC196: 2023-24 | AD196: 2024-25 | AE196: 2025-26 | AF196: 2026-27 | AG196: 2027-28
W197: Water | X197: =+SUMIF($H$65:$H$95,$W197,X$65:X$95) -> 2.58113 | Y197: 2.630741 | Z197: 2.539841 | AA197: 2.260241 | AB197: 2.255241 | AC197: 2.930041 | AD197: 3.050041 | AE197: 3.177041 | AF197: 3.312041 | AG197: 3.465041
W198: Sewerage | X198: 2.523541 | Y198: 3.110241 | Z198: 2.407341 | AA198: 2.483741 | AB198: 2.622641 | AC198: 3.337441 | AD198: 3.489141 | AE198: 3.656541 | AF198: 3.817541 | AG198: 3.994241
W199: Recycled Water | X199: 0 | Y199: 0 | Z199: 0 | AA199: 0 | AB199: 0 | AC199: 0 | AD199: 0 | AE199: 0 | AF199: 0 | AG199: 0
W200: Rural water | X200: 0 | Y200: 0 | Z200: 0 | AA200: 0 | AB200: 0 | AC200: 0 | AD200: 0 | AE200: 0 | AF200: 0 | AG200: 0
W201: Bulk Water | X201: 0 | Y201: 0 | Z201: 0 | AA201: 0 | AB201: 0 | AC201: 0 | AD201: 0 | AE201: 0 | AF201: 0 | AG201: 0
W202: Forecast variations to baseline operating expenditure | X202: =SUM(X197:X201) -> 5.104671 | Y202: 5.740982 | Z202: 4.947182 | AA202: 4.743982 | AB202: 4.877882 | AC202: 6.267482 | AD202: 6.539182 | AE202: 6.833582 | AF202: 7.129582 | AG202: 7.459282
V205: =+V6 -> 2016-17 | W205: 2017-18 | X205: 2018-19 | Y205: 2019-20 | Z205: 2020-21 | AA205: 2021-22 | AB205: 2022-23 | AC205: 2023-24 | AD205: 2024-25 | AE205: 2025-26 | AF205: 2026-27 | AG205: 2027-28
U206: External bulk water charges (excl. temporary purchases) | V206: =+Opex_Breakdown!V29 -> 0.3391751925 | W206: =+Opex_Breakdown!W29 -> 0.3491751925 | X206: =+X102 -> 0.334 | Y206: 0.334 | Z206: 0.334 | AA206: 0.334 | AB206: 0.334 | AC206: 0.334 | AD206: 0.334 | AE206: 0.334 | AF206: 0.334 | AG206: 0.334
U207: External temporary water purchases | V207: =+Opex_Breakdown!V30 -> 0 | W207: =+Opex_Breakdown!W30 -> 0 | X207: =+X103 -> 0 | Y207: 0 | Z207: 0 | AA207: 0 | AB207: 0 | AC207: 0 | AD207: 0 | AE207: 0 | AF207: 0 | AG207: 0
U208: Licence fees | V208: =+Opex_Breakdown!V31 -> 0.21 | W208: =+Opex_Breakdown!W31 -> 0.23 | X208: =+X104 -> 0.21 | Y208: 0.21 | Z208: 0.21 | AA208: 0.21 | AB208: 0.21 | AC208: 0.21 | AD208: 0.21 | AE208: 0.21 | AF208: 0.21 | AG208: 0.21
U209: Environment Contribution | V209: =+Opex_Breakdown!V32 -> 2.611 | W209: =+Opex_Breakdown!W32 -> 2.557 | X209: =+X105 -> 3.286 | Y209: 3.212427 | Z209: 3.2748 | AA209: 3.20417 | AB209: 3.133861 | AC209: 3.332675 | AD209: 3.258968 | AE209: 3.186918 | AF209: 3.116488 | AG209: 3.047
U210: Other non-controllable | V210: =+Opex_Breakdown!V33 -> 0 | W210: =+Opex_Breakdown!W33 -> 0 | X210: =+X106 -> 0 | Y210: 0 | Z210: 0 | AA210: 0 | AB210: 0 | AC210: 0 | AD210: 0 | AE210: 0 | AF210: 0 | AG210: 0
U211: Total Non-controllable operating expenditure | V211: =+Opex_Breakdown!V34 -> 3.160175193 | W211: =+Opex_Breakdown!W34 -> 3.136175193 | X211: =SUM(X206:X210) -> 3.83 | Y211: 3.756427 | Z211: 3.8188 | AA211: 3.74817 | AB211: 3.677861 | AC211: 3.876675 | AD211: 3.802968 | AE211: 3.730918 | AF211: 3.660488 | AG211: 3.591
V213: ERROR CHECK | X213: =+X184=X110 -> FALSE | Y213: TRUE | Z213: TRUE | AA213: TRUE | AB213: TRUE | AC213: TRUE | AD213: TRUE | AE213: TRUE | AF213: TRUE | AG213: TRUE
X214: =+X202=X178 -> TRUE | Y214: TRUE | Z214: TRUE | AA214: TRUE | AB214: TRUE | AC214: TRUE | AD214: TRUE | AE214: TRUE | AF214: TRUE | AG214: TRUE
X215: =+X165=X184 -> FALSE | Y215: TRUE | Z215: TRUE | AA215: TRUE | AB215: TRUE | AC215: TRUE | AD215: TRUE | AE215: TRUE | AF215: TRUE | AG215: TRUE
X216: =+X211=X160 -> TRUE | Y216: TRUE | Z216: TRUE | AA216: TRUE | AB216: TRUE | AC216: TRUE | AD216: TRUE | AE216: TRUE | AF216: TRUE | AG216: TRUE

Sheet Opex_Breakdown
A1: 80 | B1: Operating Expenditure - Breakdown
B2: =+Contents!H7 -> Wannon Water
B3: Go to Table of Contents
L4: FIRST REG PERIOD | P4: SECOND REG PERIOD | U4: THIRD REG PERIOD | Z4: FOURTH REG PERIOD | AC4: FIFTH REG PERIOD
K6: 2006 | L6: 2007 | M6: 2008 | N6: 2009 | O6: 2010 | P6: 2011 | Q6: 2012 | R6: 2013 | S6: 2014 | T6: 2015 | U6: 2016 | V6: 2017 | W6: 2018 | X6: 2019 | Y6: 2020 | Z6: 2021 | AA6: 2022 | AB6: 2023 | AC6: 2024 | AD6: 2025 | AE6: 2026 | AF6: 2027 | AG6: 2028
B7: $m, 01/01/18 | K7: =+CONCATENATE(K6-1,"-",RIGHT(K6,2)) -> 2005-06 | L7: =+CONCATENATE(L6-1,"-",RIGHT(L6,2)) -> 2006-07 | M7: 2007-08 | N7: 2008-09 | O7: 2009-10 | P7: 2010-11 | Q7: 2011-12 | R7: 2012-13 | S7: 2013-14 | T7: 2014-15 | U7: 2015-16 | V7: 2016-17 | W7: 2017-18 | X7: =+CONCATENATE(X6-1,"-",RIGHT(X6,2)) -> 2018-19 | Y7: =+CONCATENATE(Y6-1,"-",RIGHT(Y6,2)) -> 2019-20 | Z7: =+CONCATENATE(Z6-1,"-",RIGHT(Z6,2)) -> 2020-21 | AA7: =+CONCATENATE(AA6-1,"-",RIGHT(AA6,2)) -> 2021-22 | AB7: =+CONCATENATE(AB6-1,"-",RIGHT(AB6,2)) -> 2022-23 | AC7: =+CONCATENATE(AC6-1,"-",RIGHT(AC6,2)) -> 2023-24 | AD7: 2024-25 | AE7: 2025-26 | AF7: 2026-27 | AG7: 2027-28
D10: Operating Expenditure Summary
E12: =C48 -> Water | K12: =+K57-K50-K54 -> 0 | L12: =+L57-L50-L54 -> 0 | M12: 0 | N12: 0 | O12: 0 | P12: 0 | Q12: =+Q57-Q50-Q54 -> 0 | R12: 20.75386887 | S12: 19.68712891 | T12: 19.2878179 | U12: 18.85181732 | V12: 19.3844 | W12: 21.2599235 | X12: 21.6057 | Y12: 21.8993 | Z12: 21.5137 | AA12: 21.1717 | AB12: 21.2237 | AC12: =+AC57-AC50-AC54 -> 21.7237 | AD12: 21.6643 | AE12: 21.6168 | AF12: 21.5757 | AG12: 21.5547
E13: =C59 -> Sewerage | K13: =K68-K61-K65 -> 0 | L13: =L68-L61-L65 -> 0 | M13: 0 | N13: 0 | O13: 0 | P13: 0 | Q13: 0 | R13: 16.72874875 | S13: 17.64331055 | T13: 16.65565145 | U13: 15.96499448 | V13: 16.9273 | W13: 17.5680715 | X13: 18.9158 | Y13: 19.1904 | Z13: 18.7186 | AA13: 18.7847 | AB13: 18.7989 | AC13: =AC68-AC61-AC65 -> 19.3028 | AD13: 19.2511 | AE13: 19.2177 | AF13: 19.1751 | AG13: 19.1513
E14: =C70 -> Recycled Water | K14: =K79-K72-K76 -> 0 | L14: =L79-L72-L76 -> 0 | M14: 0 | N14: 0 | O14: 0 | P14: 0 | Q14: 0 | R14: 0 | S14: 0 | T14: 0 | U14: 0 | V14: 0 | W14: 0 | X14: 0 | Y14: 0 | Z14: 0 | AA14: 0 | AB14: 0 | AC14: =AC79-AC72-AC76 -> 0 | AD14: 0 | AE14: 0 | AF14: 0 | AG14: 0
E15: =C81 -> Rural Water | K15: =K90-K83-K87 -> 0 | L15: =L90-L83-L87 -> 0 | M15: 0 | N15: 0 | O15: 0 | P15: 0 | Q15: 0 | R15: 0 | S15: 0 | T15: 0 | U15: 0 | V15: 0 | W15: 0 | X15: 0 | Y15: 0 | Z15: 0 | AA15: 0 | AB15: 0 | AC15: =AC90-AC83-AC87 -> 0 | AD15: 0 | AE15: 0 | AF15: 0 | AG15: 0
E16: Bulk Water | K16: =K100-K97 -> 0 | L16: =L100-L97 -> 0 | M16: 0 | N16: 0 | O16: 0 | P16: 0 | Q16: 0 | R16: 0 | S16: 0 | T16: 0 | U16: 0 | V16: 0 | W16: 0 | X16: 0 | Y16: 0 | Z16: 0 | AA16: 0 | AB16: 0 | AC16: =AC100-AC97 -> 0 | AD16: 0 | AE16: 0 | AF16: 0 | AG16: 0
E17: Total controllable operating expenditure | K17: =SUM(K12:K16) -> 0 | L17: 0 | M17: 0 | N17: 0 | O17: 0 | P17: 0 | Q17: 0 | R17: 37.48261762 | S17: 37.33043945 | T17: 35.94346935 | U17: 34.8168118 | V17: 36.3117 | W17: 38.827995 | X17: 40.5215 | Y17: 41.0897 | Z17: 40.2323 | AA17: 39.9564 | AB17: 40.0226 | AC17: 41.0265 | AD17: 40.9154 | AE17: 40.8345 | AF17: 40.7508 | AG17: 40.706
V18: Controllable Opex for 3rd Reg Period | W18: =SUM(S17:W17) -> 183.2304156 | AA18: Controllable Opex for 4th Reg Period | AB18: =SUM(X17:AB17) -> 201.8225
AA19: Controllable Opex growth from 3rd to 4th Reg Period | AB19: =IFERROR(AB18-W18,"-") -> 18.59208439 | AC19: =IFERROR(AB18/W18-1,"-") -> 0.1014683306
E20: Operations & Maintenance | K20: =K49+K60+K71+K82+K93 -> 0 | L20: 0 | M20: 0 | N20: 0 | O20: 0 | P20: 0 | Q20: 0 | R20: 14.39486486 | S20: 13.78444336 | T20: 13.84709677 | U20: 12.93305243 | V20: 13.3243 | W20: 15.176452 | X20: 15.8562 | Y20: 16.7546 | Z20: 15.6736 | AA20: 14.8192 | AB20: 14.6307 | AC20: 15.3813 | AD20: 15.0786 | AE20: 14.7877 | AF20: 14.4975 | AG20: 14.2089
E21: Treatment | K21: =K51+K62+K73+K84+K94 -> 0 | L21: 0 | M21: 0 | N21: 0 | O21: 0 | P21: 0 | Q21: 0 | R21: 6.440855856 | S21: 6.96128418 | T21: 8.888225806 | U21: 8.052635768 | V21: 6.7015 | W21: 6.232823 | X21: 7.1388 | Y21: 6.8726 | Z21: 6.9936 | AA21: 7.4392 | AB21: 7.5294 | AC21: 7.6132 | AD21: 7.6852 | AE21: 7.7682 | AF21: 7.8403 | AG21: 7.9113
E22: Customer Service and billing | K22: =K52+K63+K74+K85+K95 -> 0 | L22: 0 | M22: 0 | N22: 0 | O22: 0 | P22: 0 | Q22: 0 | R22: 2.61041041 | S22: 2.667539062 | T22: 2.591612903 | U22: 2.436587079 | V22: 2.5041 | W22: 2.621 | X22: 3.1448 | Y22: 2.8998 | Z22: 2.9181 | AA22: 2.9377 | AB22: 2.956 | AC22: 2.9741 | AD22: 2.9918 | AE22: 3.0106 | AF22: 3.0304 | AG22: 3.0501
E23: GSL Payments | K23: =K53+K64+K75+K86+K96 -> 0 | L23: 0 | M23: 0 | N23: 0 | O23: 0 | P23: 0 | Q23: 0 | R23: 0 | S23: 0 | T23: 0 | U23: 0 | V23: 0 | W23: 0 | X23: 0 | Y23: 0 | Z23: 0 | AA23: 0 | AB23: 0 | AC23: 0 | AD23: 0 | AE23: 0 | AF23: 0 | AG23: 0
E24: Corporate | K24: =K55+K66+K77+K88+K98 -> 0 | L24: 0 | M24: 0 | N24: 0 | O24: 0 | P24: 0 | Q24: 0 | R24: 5.700870871 | S24: 6.099082031 | T24: 5.443225806 | U24: 6.380650749 | V24: 11.3543 | W24: 11.716 | X24: 11.5801 | Y24: 11.7141 | Z24: 11.7694 | AA24: 11.8511 | AB24: 11.9678 | AC24: 12.0903 | AD24: 12.1638 | AE24: 12.2418 | AF24: 12.3245 | AG24: 12.4461
E25: Other operating expenditure | K25: =K56+K67+K78+K89+K99 -> 0 | L25: 0 | M25: 0 | N25: 0 | O25: 0 | P25: 0 | Q25: 0 | R25: 8.335615616 | S25: 7.81809082 | T25: 5.173308065 | U25: 5.013885768 | V25: 2.4275 | W25: 3.08172 | X25: 2.8016 | Y25: 2.8486 | Z25: 2.8776 | AA25: 2.9092 | AB25: 2.9387 | AC25: 2.9676 | AD25: 2.996 | AE25: 3.0262 | AF25: 3.0581 | AG25: 3.0896
E26: Total controllable operating expenditure | K26: =SUM(K20:K25) -> 0 | L26: =SUM(L20:L25) -> 0 | M26: 0 | N26: 0 | O26: 0 | P26: 0 | Q26: 0 | R26: 37.48261762 | S26: 37.33043945 | T26: 35.94346935 | U26: 34.8168118 | V26: 36.3117 | W26: 38.827995 | X26: 40.5215 | Y26: 41.0897 | Z26: 40.2323 | AA26: 39.9564 | AB26: 40.0226 | AC26: 41.0265 | AD26: 40.9154 | AE26: 40.8345 | AF26: 40.7508 | AG26: 40.706
E29: External bulk water charges (excl. temporary purchases) | K29: =K50+K61+K72+K83 -> 0 | L29: 0 | M29: 0 | N29: 0 | O29: 0 | P29: 0 | Q29: 0 | R29: 0.2274441742 | S29: 0.4025038037 | T29: 0.3236591129 | U29: 0.3383100281 | V29: 0.3391751925 | W29: 0.3491751925 | X29: =X50+X61+X72+X83 -> 0.334 | Y29: =Y50+Y61+Y72+Y83 -> 0.334 | Z29: 0.334 | AA29: 0.334 | AB29: 0.334 | AC29: 0.334 | AD29: 0.334 | AE29: 0.334 | AF29: 0.334 | AG29: 0.334
E30: External temporary water purchases | K30: =+K102 -> 0 | L30: 0 | M30: 0 | N30: 0 | O30: 0 | P30: 0 | Q30: 0 | R30: 0 | S30: 0 | T30: 0 | U30: 0 | V30: 0 | W30: 0 | X30: 0 | Y30: 0 | Z30: 0 | AA30: 0 | AB30: 0 | AC30: 0 | AD30: 0 | AE30: 0 | AF30: 0 | AG30: 0
E31: Licence fees | K31: =+K109 -> 0 | L31: 0 | M31: 0 | N31: 0 | O31: 0 | P31: 0 | Q31: 0 | R31: 0.2488738739 | S31: 0.2201367187 | T31: 0.1960483871 | U31: 0.2131367041 | V31: 0.21 | W31: 0.23 | X31: 0.21 | Y31: 0.21 | Z31: 0.21 | AA31: 0.21 | AB31: 0.21 | AC31: 0.21 | AD31: 0.21 | AE31: 0.21 | AF31: 0.21 | AG31: 0.21
E32: Environment Contribution | K32: =K111 -> 0 | L32: 0 | M32: 0 | N32: 0 | O32: 0 | P32: 0 | Q32: 0 | R32: 1.73548048 | S32: 2.662143555 | T32: 2.593709677 | U32: 2.587645131 | V32: 2.611 | W32: 2.557 | X32: 3.286 | Y32: 3.212427 | Z32: 3.2748 | AA32: 3.20417 | AB32: 3.133861 | AC32: 3.332675 | AD32: 3.258968 | AE32: 3.186918 | AF32: 3.116488 | AG32: 3.047
E33: Other non-controllable | K33: =+K124 -> 0 | L33: 0 | M33: 0 | N33: 0 | O33: 0 | P33: 0 | Q33: 0 | R33: 0 | S33: 0 | T33: 0 | U33: 0 | V33: 0 | W33: 0 | X33: 0 | Y33: 0 | Z33: 0 | AA33: 0 | AB33: 0 | AC33: 0 | AD33: 0 | AE33: 0 | AF33: 0 | AG33: =+AG124 -> 0
E34: Total non-controllable operating expenditure | K34: =SUM(K29:K33) -> 0 | L34: =SUM(L29:L33) -> 0 | M34: 0 | N34: 0 | O34: 0 | P34: 0 | Q34: 0 | R34: 2.211798529 | S34: 3.284784077 | T34: 3.113417177 | U34: 3.139091863 | V34: 3.160175193 | W34: 3.136175193 | X34: 3.83 | Y34: 3.756427 | Z34: 3.8188 | AA34: 3.74817 | AB34: 3.677861 | AC34: 3.876675 | AD34: 3.802968 | AE34: 3.730918 | AF34: 3.660488 | AG34: 3.591
V35: Non-controllable Opex for 3rd Reg Period | W35: =SUM(S34:W34) -> 15.8336435 | AA35: Non-controllable Opex for 4th Reg Period | AB35: =SUM(X34:AB34) -> 18.831258
AA36: Non-controllable Opex growth from 3rd to 4th Reg Period | AB36: =IFERROR(AB35-W35,"-") -> 2.997614497 | AC36: =IFERROR(AB35/W35-1,"-") -> 0.1893193122
E37: Total prescribed operating expenditure | K37: =+K34+K17 -> 0 | L37: 0 | M37: 0 | N37: 0 | O37: 0 | P37: 0 | Q37: 0 | R37: 39.69441615 | S37: 40.61522353 | T37: 39.05688653 | U37: 37.95590366 | V37: 39.47187519 | W37: 41.96417019 | X37: 44.3515 | Y37: 44.846127 | Z37: 44.0511 | AA37: 43.70457 | AB37: 43.700461 | AC37: 44.903175 | AD37: 44.718368 | AE37: 44.565418 | AF37: 44.411288 | AG37: 44.297
V38: Prescribed Opex for 3rd Reg Period | W38: =SUM(S37:W37) -> 199.0640591 | AA38: Prescribed Opex for 4th Reg Period | AB38: =SUM(X37:AB37) -> 220.653758
AA39: Prescribed Opex growth from 3rd to 4th Reg Period | AB39: =IFERROR(AB38-W38,"-") -> 21.58969889 | AC39: =IFERROR(AB38/W38-1,"-") -> 0.1084560367
W40: To reconcile to 'Opex_FO' tab row 123>> | X40: =+Opex_FO!X110 -> 44.35150882 | Y40: =+Opex_FO!Y110 -> 44.84621235 | Z40: =+Opex_FO!Z110 -> 44.05106815 | AA40: =+Opex_FO!AA110 -> 43.70487287 | AB40: =+Opex_FO!AB110 -> 43.700387 | AC40: =+Opex_FO!AC110 -> 44.90307089 | AD40: =+Opex_FO!AD110 -> 44.71888849 | AE40: =+Opex_FO!AE110 -> 44.56637338 | AF40: =+Opex_FO!AF110 -> 44.41227781 | AG40: =+Opex_FO!AG110 -> 44.29865614
W41: Difference | X41: =+X40-X37 -> 8.819407242e-06 | Y41: 8.535093092e-05 | Z41: -3.185459631e-05 | AA41: 0.0003028653916 | AB41: -7.400369917e-05 | AC41: -0.0001041075114 | AD41: 0.0005204896637 | AE41: 0.0009553829102 | AF41: 0.0009898088082 | AG41: 0.001656138938
W42: Test | X42: =ROUND(X40,2)=ROUND(X37,2) -> TRUE | Y42: =ROUND(Y40,2)=ROUND(Y37,2) -> TRUE | Z42: TRUE | AA42: TRUE | AB42: TRUE | AC42: TRUE | AD42: TRUE | AE42: TRUE | AF42: TRUE | AG42: TRUE
B46: Total operating expenditure
C48: Water
D49: Operations & Maintenance | R49: 8.936231231 | S49: 8.299370117 | T49: 9.322258065 | U49: 8.419934457 | V49: 7.5685 | W49: 9.229564 | X49: 9.1249 | Y49: 9.5846 | Z49: 9.0501 | AA49: 8.5431 | AB49: 8.4546 | AC49: 8.8363 | AD49: 8.6912 | AE49: 8.5524 | AF49: 8.4143 | AG49: 8.277
D50: External bulk charges (excl. temporary purchases) | R50: =+R131 -> 0.2274441742 | S50: =+S131 -> 0.4025038037 | T50: =+T131 -> 0.3236591129 | U50: 0.3383100281 | V50: 0.3391751925 | W50: 0.3491751925 | X50: 0.334 | Y50: 0.334 | Z50: 0.334 | AA50: 0.334 | AB50: 0.334 | AC50: 0.334 | AD50: 0.334 | AE50: 0.334 | AF50: 0.334 | AG50: 0.334 | AH50: see reconciliation below
D51: Treatment | R51: 3.243103103 | S51: 3.240541992 | T51: 2.724758065 | U51: 2.880449438 | V51: 3.3824 | W51: 3.211184 | X51: 3.585 | Y51: 3.4485 | Z51: 3.5446 | AA51: 3.6416 | AB51: 3.6985 | AC51: 3.7306 | AD51: 3.7551 | AE51: 3.7814 | AF51: 3.8097 | AG51: 3.838
D52: Customer Service and billing | R52: 1.352767768 | S52: 1.329453125 | T52: 1.290564516 | U52: 1.242607678 | V52: 1.2776 | W52: 1.3105 | X52: 1.5728 | Y52: 1.4503 | Z52: 1.4595 | AA52: 1.4693 | AB52: 1.4784 | AC52: 1.4875 | AD52: 1.4963 | AE52: 1.5057 | AF52: 1.5156 | AG52: 1.5255
D53: GSL Payments | R53: 0 | S53: 0 | T53: 0 | U53: 0 | V53: 0 | W53: 0 | X53: 0 | Y53: 0 | Z53: 0 | AA53: 0 | AB53: 0 | AC53: 0 | AD53: 0 | AE53: 0 | AF53: 0 | AG53: 0
D54: Licence Fees | R54: 0 | S54: 0 | T54: 0 | U54: 0 | V54: 0 | W54: 0 | X54: 0 | Y54: 0 | Z54: 0 | AA54: 0 | AB54: 0 | AC54: 0 | AD54: 0 | AE54: 0 | AF54: 0 | AG54: 0
D55: Corporate | R55: 2.951091091 | S55: 3.037670898 | T55: 2.711129032 | U55: 3.251886704 | V55: 5.8395 | W55: 5.8545 | X55: 5.7953 | Y55: 5.8625 | Z55: 5.8902 | AA55: 5.9312 | AB55: 5.9896 | AC55: 6.0509 | AD55: 6.0878 | AE55: 6.1269 | AF55: 6.1683 | AG55: 6.2292
D56: Other operating expenditure | R56: 4.270675676 | S56: 3.780092773 | T56: 3.239108223 | U56: 3.056939045 | V56: 1.3164 | W56: 1.6541755 | X56: 1.5277 | Y56: 1.5534 | Z56: 1.5693 | AA56: 1.5865 | AB56: 1.6026 | AC56: 1.6184 | AD56: 1.6339 | AE56: 1.6504 | AF56: 1.6678 | AG56: 1.685
C57: =+CONCATENATE("Total ",C48) -> Total Water | K57: =+SUM(K49:K56) -> 0 | L57: =+SUM(L49:L56) -> 0 | M57: 0 | N57: 0 | O57: 0 | P57: 0 | Q57: 0 | R57: 20.98131304 | S57: 20.08963271 | T57: 19.61147701 | U57: 19.19012735 | V57: 19.72357519 | W57: 21.60909869 | X57: 21.9397 | Y57: 22.2333 | Z57: 21.8477 | AA57: 21.5057 | AB57: 21.5577 | AC57: =+SUM(AC49:AC56) -> 22.0577 | AD57: 21.9983 | AE57: 21.9508 | AF57: 21.9097 | AG57: 21.8887
C59: Sewerage
D60: =+D49 -> Operations & Maintenance | R60: 5.458633634 | S60: 5.485073242 | T60: 4.52483871 | U60: 4.513117978 | V60: 5.7558 | W60: 5.946888 | X60: 6.7313 | Y60: 7.17 | Z60: 6.6235 | AA60: 6.2761 | AB60: 6.1761 | AC60: 6.545 | AD60: 6.3874 | AE60: 6.2353 | AF60: 6.0832 | AG60: 5.9319
D61: =+D50 -> External bulk charges (excl. temporary purchases) | R61: =+R132 -> 0 | S61: =+S132 -> 0 | T61: =+T132 -> 0 | U61: 0 | V61: 0 | W61: 0 | X61: 0 | Y61: 0 | Z61: 0 | AA61: 0 | AB61: 0 | AC61: 0 | AD61: 0 | AE61: 0 | AF61: 0 | AG61: 0 | AH61: see reconciliation below
D62: Treatment | R62: 3.197752753 | S62: 3.720742187 | T62: 6.163467742 | U62: 5.17218633 | V62: 3.3191 | W62: 3.021639 | X62: 3.5538 | Y62: 3.4241 | Z62: 3.449 | AA62: 3.7976 | AB62: 3.8309 | AC62: 3.8826 | AD62: 3.9301 | AE62: 3.9868 | AF62: 4.0306 | AG62: 4.0733
D63: Customer Service and billing | R63: 1.257642643 | S63: 1.338085938 | T63: 1.301048387 | U63: 1.193979401 | V63: 1.2265 | W63: 1.3105 | X63: 1.572 | Y63: 1.4495 | Z63: 1.4586 | AA63: 1.4684 | AB63: 1.4776 | AC63: 1.4866 | AD63: 1.4955 | AE63: 1.5049 | AF63: 1.5148 | AG63: 1.5246
D64: GSL Payments | R64: 0 | S64: 0 | T64: 0 | U64: 0 | V64: 0 | W64: 0 | X64: 0 | Y64: 0 | Z64: 0 | AA64: 0 | AB64: 0 | AC64: 0 | AD64: 0 | AE64: 0 | AF64: 0 | AG64: 0
D65: Licence Fees | R65: 0 | S65: 0 | T65: 0 | U65: 0 | V65: 0 | W65: 0 | X65: 0 | Y65: 0 | Z65: 0 | AA65: 0 | AB65: 0 | AC65: 0 | AD65: 0 | AE65: 0 | AF65: 0 | AG65: 0
D66: Corporate | R66: 2.74977978 | S66: 3.061411133 | T66: 2.732096774 | U66: 3.128764045 | V66: 5.5148 | W66: 5.8615 | X66: 5.7848 | Y66: 5.8516 | Z66: 5.8792 | AA66: 5.9199 | AB66: 5.9782 | AC66: 6.0394 | AD66: 6.076 | AE66: 6.1149 | AF66: 6.1562 | AG66: 6.2169
D67: Other operating expenditure | R67: 4.06493994 | S67: 4.037998047 | T67: 1.934199842 | U67: 1.956946723 | V67: 1.1111 | W67: 1.4275445 | X67: 1.2739 | Y67: 1.2952 | Z67: 1.3083 | AA67: 1.3227 | AB67: 1.3361 | AC67: 1.3492 | AD67: 1.3621 | AE67: 1.3758 | AF67: 1.3903 | AG67: 1.4046
C68: =+CONCATENATE("Total ",C59) -> Total Sewerage | K68: =+SUM(K60:K67) -> 0 | L68: 0 | M68: 0 | N68: 0 | O68: 0 | P68: 0 | Q68: 0 | R68: 16.72874875 | S68: 17.64331055 | T68: 16.65565145 | U68: 15.96499448 | V68: 16.9273 | W68: 17.5680715 | X68: 18.9158 | Y68: 19.1904 | Z68: 18.7186 | AA68: 18.7847 | AB68: 18.7989 | AC68: =+SUM(AC60:AC67) -> 19.3028 | AD68: 19.2511 | AE68: 19.2177 | AF68: 19.1751 | AG68: 19.1513
C70: Recycled Water
D71: =+D60 -> Operations & Maintenance
D72: =+D61 -> External bulk charges (excl. temporary purchases) | R72: =+R133 -> 0 | S72: =+S133 -> 0 | T72: =+T133 -> 0 | U72: 0 | V72: 0 | W72: 0 | X72: 0 | Y72: 0 | Z72: 0 | AA72: 0 | AB72: 0 | AC72: 0 | AD72: 0 | AE72: 0 | AF72: 0 | AG72: 0 | AH72: see reconciliation below
D73: Treatment
D74: Customer Service and billing
D75: GSL Payments
D76: Licence Fees
D77: Corporate
D78: Other operating expenditure
C79: =+CONCATENATE("Total ",C70) -> Total Recycled Water | K79: =+SUM(K71:K78) -> 0 | L79: =+SUM(L71:L78) -> 0 | M79: =+SUM(M71:M78) -> 0 | N79: =+SUM(N71:N78) -> 0 | O79: 0 | P79: 0 | Q79: 0 | R79: 0 | S79: 0 | T79: 0 | U79: 0 | V79: 0 | W79: 0 | X79: =+SUM(X71:X78) -> 0 | Y79: =+SUM(Y71:Y78) -> 0 | Z79: =+SUM(Z71:Z78) -> 0 | AA79: =+SUM(AA71:AA78) -> 0 | AB79: =+SUM(AB71:AB78) -> 0 | AC79: =+SUM(AC71:AC78) -> 0 | AD79: 0 | AE79: 0 | AF79: 0 | AG79: 0
C81: Rural Water
D82: =+D60 -> Operations & Maintenance
D83: =+D61 -> External bulk charges (excl. temporary purchases) | R83: =+R134 -> 0 | S83: =+S134 -> 0 | T83: =+T134 -> 0 | U83: 0 | V83: 0 | W83: 0 | X83: 0 | Y83: 0 | Z83: 0 | AA83: 0 | AB83: 0 | AC83: 0 | AD83: 0 | AE83: 0 | AF83: 0 | AG83: 0 | AH83: see reconciliation below
D84: Treatment
D85: Customer Service and billing
D86: GSL Payments
D87: Licence Fees
D88: Corporate
D89: Other operating expenditure
C90: =+CONCATENATE("Total ",C81) -> Total Rural Water | K90: =+SUM(K82:K89) -> 0 | L90: 0 | M90: 0 | N90: 0 | O90: 0 | P90: 0 | Q90: 0 | R90: 0 | S90: 0 | T90: 0 | U90: 0 | V90: 0 | W90: 0 | X90: =+SUM(X82:X89) -> 0 | Y90: =+SUM(Y82:Y89) -> 0 | Z90: =+SUM(Z82:Z89) -> 0 | AA90: =+SUM(AA82:AA89) -> 0 | AB90: =+SUM(AB82:AB89) -> 0 | AC90: =+SUM(AC82:AC89) -> 0 | AD90: 0 | AE90: 0 | AF90: 0 | AG90: 0
C92: Bulk Water
D93: Operations & Maintenance
D94: Treatment
D95: Customer Service and billing
D96: GSL Payments
D97: Licence Fees
D98: Corporate
D99: Other operating expenditure
C100: Total Bulk water | K100: =+SUM(K93:K99) -> 0 | L100: 0 | M100: 0 | N100: 0 | O100: 0 | P100: 0 | Q100: 0 | R100: 0 | S100: 0 | T100: 0 | U100: 0 | V100: 0 | W100: 0 | X100: 0 | Y100: 0 | Z100: 0 | AA100: 0 | AB100: 0 | AC100: =+SUM(AC93:AC99) -> 0 | AD100: 0 | AE100: 0 | AF100: 0 | AG100: 0
C102: External temporary water purchases
C105: Licence fees
D106: Essential Services Commission | R106: 0.06194194194 | S106: 0.0690625 | T106: 0.04508064516 | U106: 0.04242041199 | V106: 0.04 | W106: 0.04 | X106: 0.04 | Y106: 0.04 | Z106: 0.04 | AA106: 0.04 | AB106: 0.04 | AC106: 0.04 | AD106: 0.04 | AE106: 0.04 | AF106: 0.04 | AG106: 0.04
D107: Department of Human Services | R107: 0.02212212212 | S107: 0.02266113281 | T107: 0.02201612903 | U107: 0.02172752809 | V107: 0.02 | W107: 0.03 | X107: 0.02 | Y107: 0.02 | Z107: 0.02 | AA107: 0.02 | AB107: 0.02 | AC107: 0.02 | AD107: 0.02 | AE107: 0.02 | AF107: 0.02 | AG107: 0.02
D108: Environment Protection Authority | R108: 0.1648098098 | S108: 0.1284130859 | T108: 0.1289516129 | U108: 0.148988764 | V108: 0.15 | W108: 0.16 | X108: 0.15 | Y108: 0.15 | Z108: 0.15 | AA108: 0.15 | AB108: 0.15 | AC108: 0.15 | AD108: 0.15 | AE108: 0.15 | AF108: 0.15 | AG108: 0.15
C109: =+CONCATENATE("Total ",C105) -> Total Licence fees | K109: =+SUM(K106:K108) -> 0 | L109: =+SUM(L106:L108) -> 0 | M109: 0 | N109: 0 | O109: 0 | P109: 0 | Q109: 0 | R109: 0.2488738739 | S109: 0.2201367187 | T109: 0.1960483871 | U109: 0.2131367041 | V109: 0.21 | W109: 0.23 | X109: =+SUM(X106:X108) -> 0.21 | Y109: =+SUM(Y106:Y108) -> 0.21 | Z109: =+SUM(Z106:Z108) -> 0.21 | AA109: =+SUM(AA106:AA108) -> 0.21 | AB109: =+SUM(AB106:AB108) -> 0.21 | AC109: =+SUM(AC106:AC108) -> 0.21 | AD109: 0.21 | AE109: 0.21 | AF109: 0.21 | AG109: 0.21
C111: Environment Contribution | R111: 1.73548048 | S111: 2.662143555 | T111: 2.593709677 | U111: 2.587645131 | V111: 2.611 | W111: 2.557 | X111: 3.286 | Y111: 3.212427 | Z111: 3.2748 | AA111: 3.20417 | AB111: 3.133861 | AC111: 3.332675 | AD111: 3.258968 | AE111: 3.186918 | AF111: 3.116488 | AG111: 3.047
C113: Other non-controllable
D114: [Non-controllable 1]
D115: [Non-controllable 2]
D116: [Non-controllable 3]
D117: [Non-controllable 4]
D118: [Non-controllable 5]
D119: [Non-controllable 6]
D120: [Non-controllable 7]
D121: [Non-controllable 8]
D122: [Non-controllable 9]
D123: [Non-controllable 10]
K124: =SUM(K114:K123) -> 0 | L124: 0 | M124: 0 | N124: 0 | O124: 0 | P124: 0 | Q124: 0 | R124: 0 | S124: 0 | T124: 0 | U124: 0 | V124: 0 | W124: 0 | X124: 0 | Y124: 0 | Z124: 0 | AA124: 0 | AB124: 0 | AC124: 0 | AD124: 0 | AE124: 0 | AF124: 0 | AG124: 0
C127: External bulk charges (excl. temporary purchases)
C128: Reconciliation
C130: Service | R130: =+R7 -> 2012-13 | S130: 2013-14 | T130: 2014-15 | U130: 2015-16 | V130: 2016-17 | W130: 2017-18 | X130: 2018-19 | Y130: 2019-20 | Z130: 2020-21 | AA130: 2021-22 | AB130: 2022-23 | AC130: 2023-24 | AD130: 2024-25 | AE130: 2025-26 | AF130: 2026-27 | AG130: 2027-28
D131: Water | R131: =+SUMIF($I$138:$I$179,$D$131,R$138:R$179) -> 0.2274441742 | S131: 0.4025038037 | T131: 0.3236591129 | U131: 0.3383100281 | V131: 0.3391751925 | W131: 0.3491751925 | X131: 0.334 | Y131: 0.334 | Z131: 0.334 | AA131: 0.334 | AB131: 0.334 | AC131: 0.334 | AD131: 0.334 | AE131: 0.334 | AF131: 0.334 | AG131: 0.334
D132: Sewerage | R132: =+SUMIF($I$138:$I$179,$D$132,R$138:R$179) -> 0 | S132: 0 | T132: 0 | U132: 0 | V132: 0 | W132: 0 | X132: 0 | Y132: 0 | Z132: 0 | AA132: 0 | AB132: 0 | AC132: 0 | AD132: 0 | AE132: 0 | AF132: 0 | AG132: 0
D133: Recycled Water | R133: =+SUMIF($I$138:$I$179,$D$133,R$138:R$179) -> 0 | S133: 0 | T133: 0 | U133: 0 | V133: 0 | W133: 0 | X133: 0 | Y133: 0 | Z133: 0 | AA133: 0 | AB133: 0 | AC133: 0 | AD133: 0 | AE133: 0 | AF133: 0 | AG133: 0
D134: Rural Water | R134: =+SUMIF($I$138:$I$179,$D$134,R$138:R$179) -> 0 | S134: 0 | T134: 0 | U134: 0 | V134: 0 | W134: 0 | X134: 0 | Y134: 0 | Z134: 0 | AA134: 0 | AB134: 0 | AC134: 0 | AD134: 0 | AE134: 0 | AF134: 0 | AG134: 0
C135: Total External Bulk Charges | R135: =SUM(R131:R134) -> 0.2274441742 | S135: =SUM(S131:S134) -> 0.4025038037 | T135: =SUM(T131:T134) -> 0.3236591129 | U135: 0.3383100281 | V135: 0.3391751925 | W135: 0.3491751925 | X135: 0.334 | Y135: 0.334 | Z135: 0.334 | AA135: 0.334 | AB135: 0.334 | AC135: 0.334 | AD135: 0.334 | AE135: 0.334 | AF135: 0.334 | AG135: 0.334
C137: Description | H137: Source | I137: Service | J137: Price
B138: 1 | C138: Hamilton | H138: Goulburn-Murray Water | I138: Water | J138: Fixed | R138: 0.1786471972 | S138: 0.3090233936 | T138: 0.2555978226 | U138: 0.255516765 | V138: 0.2555593346 | W138: 0.2555593346 | X138: 0.256 | Y138: 0.256 | Z138: 0.256 | AA138: 0.256 | AB138: 0.256 | AC138: 0.256 | AD138: 0.256 | AE138: 0.256 | AF138: 0.256 | AG138: 0.256 | AJ138: ESC USE ONLY
B139: 2 | C139: Hamilton | H139: Goulburn-Murray Water | I139: Water | J139: Variable | R139: 0.001560715716 | S139: 0.01132625 | T139: 0 | U139: 0.003101863296 | V139: 0.006 | W139: 0.006 | X139: 0.006 | Y139: 0.006 | Z139: 0.006 | AA139: 0.006 | AB139: 0.006 | AC139: 0.006 | AD139: 0.006 | AE139: 0.006 | AF139: 0.006 | AG139: 0.006
B140: 3 | C140: Glenthompson | H140: Goulburn-Murray Water | I140: Water | J140: Fixed | R140: 0.01040956456 | S140: 0.01900082031 | T140: 0.01561467742 | U140: 0.01561588483 | V140: 0.01561603974 | W140: 0.01561603974 | X140: 0.015 | Y140: 0.015 | Z140: 0.015 | AA140: 0.015 | AB140: 0.015 | AC140: 0.015 | AD140: 0.015 | AE140: 0.015 | AF140: 0.015 | AG140: 0.015 | AJ140: [Service]
B141: 4 | C141: Glenthompson | H141: Goulburn-Murray Water | I141: Water | J141: Variable | R141: 0.01929491491 | S141: 0.02959004395 | T141: 0.03131008065 | U141: 0.04224348783 | V141: 0.04266666667 | W141: 0.04266666667 | X141: 0.036 | Y141: 0.036 | Z141: 0.036 | AA141: 0.036 | AB141: 0.036 | AC141: 0.036 | AD141: 0.036 | AE141: 0.036 | AF141: 0.036 | AG141: 0.036 | AJ141: Water
B142: 5 | C142: Balmoral | H142: Goulburn-Murray Water | I142: Water | J142: Fixed | R142: 0.01096040541 | S142: 0.01854112305 | T142: 0.01533580645 | U142: 0.01533032303 | V142: 0.01533315157 | W142: 0.01533315157 | X142: 0.015 | Y142: 0.015 | Z142: 0.015 | AA142: 0.015 | AB142: 0.015 | AC142: 0.015 | AD142: 0.015 | AE142: 0.015 | AF142: 0.015 | AG142: 0.015 | AJ142: Sewerage
B143: 6 | C143: Balmoral | H143: Goulburn-Murray Water | I143: Water | J143: Variable | R143: 0.006571376376 | S143: 0.01502217285 | T143: 0.005800725806 | U143: 0.00650170412 | V143: 0.004 | W143: 0.014 | X143: 0.006 | Y143: 0.006 | Z143: 0.006 | AA143: 0.006 | AB143: 0.006 | AC143: 0.006 | AD143: 0.006 | AE143: 0.006 | AF143: 0.006 | AG143: 0.006 | AJ143: Recycled Water
B144: 7 | H144: [Source] | I144: [Service] | J144: [Price] | AJ144: Rural Water
B145: 8 | H145: [Source] | I145: [Service] | J145: [Price]
B146: 9 | H146: [Source] | I146: [Service] | J146: [Price] | AJ146: [Source]
B147: 10 | H147: [Source] | I147: [Service] | J147: [Price] | AJ147: Melbourne Water
B148: 11 | H148: [Source] | I148: [Service] | J148: [Price] | AJ148: Goulburn-Murray Water
B149: 12 | H149: [Source] | I149: [Service] | J149: [Price] | AJ149: Other Sources
B150: 13 | H150: [Source] | I150: [Service] | J150: [Price]
B151: 14 | H151: [Source] | I151: [Service] | J151: [Price]
B152: 15 | H152: [Source] | I152: [Service] | J152: [Price]
B153: 16 | H153: [Source] | I153: [Service] | J153: [Price]
B154: 17 | H154: [Source] | I154: [Service] | J154: [Price]
B155: 18 | H155: [Source] | I155: [Service] | J155: [Price]
B156: 19 | H156: [Source] | I156: [Service] | J156: [Price]
B157: 20 | H157: [Source] | I157: [Service] | J157: [Price]
B158: 21 | H158: [Source] | I158: [Service] | J158: [Price]
B159: 22 | H159: [Source] | I159: [Service] | J159: [Price]
B160: 23 | H160: [Source] | I160: [Service] | J160: [Price]
B161: 24 | H161: [Source] | I161: [Service] | J161: [Price]
B162: 25 | H162: [Source] | I162: [Service] | J162: [Price]
B163: 26 | H163: [Source] | I163: [Service] | J163: [Price]
B164: 27 | H164: [Source] | I164: [Service] | J164: [Price]
B165: 28 | H165: [Source] | I165: [Service] | J165: [Price]
B166: 29 | H166: [Source] | I166: [Service] | J166: [Price]
B167: 30 | H167: [Source] | I167: [Service] | J167: [Price]
B168: 31 | H168: [Source] | I168: [Service] | J168: [Price]
B169: 32 | H169: [Source] | I169: [Service] | J169: [Price]
B170: 33 | H170: [Source] | I170: [Service] | J170: [Price]
B171: 34 | H171: [Source] | I171: [Service] | J171: [Price]
B172: 35 | H172: [Source] | I172: [Service] | J172: [Price]
B173: 36 | H173: [Source] | I173: [Service] | J173: [Price]
B174: 37 | H174: [Source] | I174: [Service] | J174: [Price]
B175: 38 | H175: [Source] | I175: [Service] | J175: [Price]
B176: 39 | H176: [Source] | I176: [Service] | J176: [Price]
B177: 40 | H177: [Source] | I177: [Service] | J177: [Price]

Sheet Capex_FO input
B1: Capital Expenditure - Forecast Input
B2: =+Contents!H7 -> Wannon Water
B3: Go to Table of Contents
C7: Input Summary | F7: FOURTH REG PERIOD | K7: FIFTH REG PERIOD
D9: =+O39 -> 2018-19 | E9: 2019-20 | F9: 2020-21 | G9: 2021-22 | H9: 2022-23 | I9: 2023-24 | J9: 2024-25 | K9: 2025-26 | L9: 2026-27 | M9: 2027-28 | P9: 4th Reg Period | S9: 5th Reg Period
C10: By Cost Driver | P10: Total | Q10: % of Total | S10: Total | T10: % of Total
C11: Net capital expenditure - Renewals | D11: =+SUMIF($F$42:$F$1079,"Renewals",AV$42:AV$1079) -> 15.60375169 | E11: 14.82782586 | F11: 13.22613418 | G11: 11.95470061 | H11: 13.15779514 | I11: 10.42016834 | J11: 11.3282941 | K11: 9.374158701 | L11: 9.299270016 | M11: 8.541251767 | P11: =SUM(D11:H11) -> 68.77020748 | Q11: =IFERROR(P11/$P$16,"-") -> 0.4393547611 | S11: =SUM(I11:M11) -> 48.96314292 | T11: =IFERROR(S11/$S$16,"-") -> 0.5197945502
C12: Net capital expenditure - Growth | D12: =+SUMIF($F$42:$F$1079,"Growth",AV$42:AV$1079) -> 3.801572712 | E12: 18.76148897 | F12: 24.63490605 | G12: 4.576439951 | H12: 0.7531658497 | I12: 2.438214869 | J12: 6.275954963 | K12: 3.029563838 | L12: 1.635332537 | M12: 0.7978451797 | P12: =SUM(D12:H12) -> 52.52757353 | Q12: =IFERROR(P12/$P$16,"-") -> 0.3355848465 | S12: =SUM(I12:M12) -> 14.17691139 | T12: =IFERROR(S12/$S$16,"-") -> 0.1505026197
C13: Net capital expenditure - Improvements / Compliance | D13: =+SUMIF($F$42:$F$1079,"Improvements / Compliance",AV$42:AV$1079) -> 4.375578462 | E13: 7.843689046 | F13: 9.42361348 | G13: 7.880801981 | H13: 0.6120191993 | I13: 4.291221303 | J13: 8.299379493 | K13: 6.862531761 | L13: 3.190951389 | M13: 3.397968852 | P13: 30.13570217 | Q13: 0.192529072 | S13: 26.0420528 | T13: 0.2764634032
C14: Government Contributions | D14: =+Z41 -> 0.0238 | E14: =+AA41 -> 0.23968 | F14: 0.2039 | G14: 0.125 | H14: 0 | I14: 0 | J14: 0 | K14: 0 | L14: 0 | M14: 0 | P14: 0.59238 | Q14: 0.003784559956 | S14: 0 | T14: 0
C15: Customer Contributions | D15: =+AK41 -> 0.9933 | E15: =+AL41 -> 0.864 | F15: 0.875 | G15: 0.8781 | H15: 0.8892 | I15: 0.8742 | J15: 0.8742 | K15: 1.5182 | L15: 0.8742 | M15: 0.8742 | P15: 4.4996 | Q15: 0.02874676049 | S15: 5.015 | T15: 0.05323942692
C16: Total prescribed capex | D16: =SUM(D11:D15) -> 24.79800286 | E16: 42.53668387 | F16: 48.36355371 | G16: 25.41504254 | H16: 15.41218019 | I16: 18.02380451 | J16: 26.77782855 | K16: 20.7844543 | L16: 14.99975394 | M16: 13.6112658 | P16: 156.5254632 | Q16: 1 | S16: 94.19710711 | T16: 1
C18: By Capital Type
C19: Top 10 Major Projects | D19: =+SUMIF($H$42:$H$1079,$C$19,O$42:O$1079) -> 3.807955474 | E19: 21.64522059 | F19: 29.11049837 | G19: 6.050857843 | H19: 0 | I19: 0 | J19: 0 | K19: 0 | L19: 0 | M19: 0 | P19: =SUM(D19:H19) -> 60.61453227 | Q19: =IFERROR(P19/$P$23,"-") -> 0.3872502981 | S19: =SUM(I19:M19) -> 0 | T19: =IFERROR(S19/$S$23,"-") -> 0
C20: Significant projects | D20: =+SUMIF($H$42:$H$1079,$C$20,O$42:O$1079) -> 0 | E20: 0 | F20: 0 | G20: 0 | H20: 0 | I20: 0 | J20: 0 | K20: 0 | L20: 0 | M20: 0 | P20: =SUM(D20:H20) -> 0 | Q20: =IFERROR(P20/$P$23,"-") -> 0 | S20: =SUM(I20:M20) -> 0 | T20: =IFERROR(S20/$S$23,"-") -> 0
C21: Capital Programs / Allocation | D21: =+SUMIF($H$42:$H$1079,$C$21,O$42:O$1079) -> 10.5258643 | E21: 11.65761615 | F21: 11.79121641 | G21: 11.44520748 | H21: 10.0914212 | I21: 11.25643288 | J21: 10.74718609 | K21: 8.77340915 | L21: 7.462719557 | M21: 9.086451767 | P21: 55.51132553 | Q21: 0.3546472529 | S21: 47.32619945 | T21: 0.5024166973
C22: Other Capital expenditure | D22: =+SUMIF($H$42:$H$1079,$C$22,O$42:O$1079) -> 10.46418309 | E22: 9.233847141 | F22: 7.46183893 | G22: 7.918977226 | H22: 5.320758987 | I22: 6.76737163 | J22: 16.03064246 | K22: 12.01104515 | L22: 7.537034385 | M22: 4.524814032 | P22: 40.39960537 | Q22: 0.258102449 | S22: 46.87090766 | T22: 0.4975833027
C23: Total prescribed capex | D23: =SUM(D19:D22) -> 24.79800286 | E23: =SUM(E19:E22) -> 42.53668387 | F23: 48.36355371 | G23: 25.41504254 | H23: 15.41218019 | I23: 18.02380451 | J23: 26.77782855 | K23: 20.7844543 | L23: 14.99975394 | M23: 13.6112658 | P23: 156.5254632 | Q23: 1 | S23: 94.19710711 | T23: 1
C25: Difference | D25: =+D23-D16 -> 0 | E25: =+E23-E16 -> 0 | F25: 0 | G25: 0 | H25: 0 | I25: 0 | J25: 0 | K25: 0 | L25: 0 | M25: 0
C26: Test | D26: =ROUND(D23,2)=ROUND(D16,2) -> TRUE | E26: =ROUND(E23,2)=ROUND(E16,2) -> TRUE | F26: TRUE | G26: TRUE | H26: TRUE | I26: TRUE | J26: TRUE | K26: TRUE | L26: TRUE | M26: TRUE
C29: Total prescribed capex | D29: =+D23 -> 24.79800286 | E29: =+E23 -> 42.53668387 | F29: 48.36355371 | G29: 25.41504254 | H29: 15.41218019 | I29: 18.02380451 | J29: 26.77782855 | K29: 20.7844543 | L29: 14.99975394 | M29: 13.6112658
C32: Regulatory Depreciation | D32: =+BG41 -> 0.6487616821 | E32: =+BH41 -> 1.942459452 | F32: 3.530853022 | G32: 5.30980065 | H32: 6.108969784 | I32: 6.161835121 | J32: 6.163759786 | K32: 6.179703396 | L32: 6.438636234 | M32: 6.746505979
B35: $m, 01/01/18
O36: Gross capital expenditure | Z36: Government contributions | AK36: Customer contributions | AV36: Net capital expenditure | BG36: Regulatory Depreciation | BR36: Accumulated capex | CC36: Gross capital expenditure | CN36: Tax Depreciation
O37: $m, 01/01/18 | Z37: $m, 01/01/18 | AK37: $m, 01/01/18 | AV37: $m, 01/01/18 | BG37: $m, 01/01/18 | BR37: $m, 01/01/18 | CC37: Nominal,$ | CN37: Nominal,$
O39: 2018-19 | P39: 2019-20 | Q39: 2020-21 | R39: 2021-22 | S39: 2022-23 | T39: 2023-24 | U39: 2024-25 | V39: 2025-26 | W39: 2026-27 | X39: 2027-28 | Z39: 2018-19 | AA39: 2019-20 | AB39: 2020-21 | AC39: 2021-22 | AD39: 2022-23 | AE39: 2023-24 | AF39: 2024-25 | AG39: 2025-26 | AH39: 2026-27 | AI39: 2027-28 | AK39: 2018-19 | AL39: 2019-20 | AM39: 2020-21 | AN39: 2021-22 | AO39: 2022-23 | AP39: 2023-24 | AQ39: 2024-25 | AR39: 2025-26 | AS39: 2026-27 | AT39: 2027-28 | AV39: 2018-19 | AW39: 2019-20 | AX39: 2020-21 | AY39: 2021-22 | AZ39: 2022-23 | BA39: 2023-24 | BB39: 2024-25 | BC39: 2025-26 | BD39: 2026-27 | BE39: 2027-28 | BG39: 2018-19 | BH39: 2019-20 | BI39: 2020-21 | BJ39: 2021-22 | BK39: 2022-23 | BL39: 2023-24 | BM39: 2024-25 | BN39: 2025-26 | BO39: 2026-27 | BP39: 2027-28 | BR39: 2018-19 | BS39: 2019-20 | BT39: 2020-21 | BU39: 2021-22 | BV39: 2022-23 | BW39: 2023-24 | BX39: 2024-25 | BY39: 2025-26 | BZ39: 2026-27 | CA39: 2027-28 | CC39: 2018-19 | CD39: 2019-20 | CE39: 2020-21 | CF39: 2021-22 | CG39: 2022-23 | CH39: 2023-24 | CI39: 2024-25 | CJ39: 2025-26 | CK39: 2026-27 | CL39: 2027-28 | CN39: 2018-19 | CO39: 2019-20 | CP39: 2020-21 | CQ39: 2021-22 | CR39: 2022-23 | CS39: 2023-24 | CT39: 2024-25 | CU39: 2025-26 | CV39: 2026-27 | CW39: 2027-28
BG40: 1 | BH40: 2 | BI40: 3 | BJ40: 4 | BK40: 5 | BL40: 6 | BM40: 7 | BN40: 8 | BO40: 9 | BP40: 10 | CN40: 1 | CO40: 2 | CP40: 3 | CQ40: 4 | CR40: 5 | CS40: 6 | CT40: 7 | CU40: 8 | CV40: 9 | CW40: 10
C41: Project/program Name | E41: Service | F41: Major cost driver | G41: Asset category | H41: Capital type | J41: Depreciation Method | K41: Year asset operational | L41: Asset life (Regulatory) | M41: Asset life (Tax) | O41: =SUM(O42:O1079) -> 24.79800286 | P41: 42.53668387 | Q41: 48.36355371 | R41: 25.41504254 | S41: 15.41218019 | T41: 18.02380451 | U41: 26.77782855 | V41: 20.7844543 | W41: 14.99975394 | X41: 13.6112658 | Z41: =SUM(Z42:Z1079) -> 0.0238 | AA41: 0.23968 | AB41: 0.2039 | AC41: 0.125 | AD41: 0 | AE41: 0 | AF41: 0 | AG41: 0 | AH41: 0 | AI41: 0 | AK41: =SUM(AK42:AK1079) -> 0.9933 | AL41: 0.864 | AM41: 0.875 | AN41: 0.8781 | AO41: 0.8892 | AP41: 0.8742 | AQ41: 0.8742 | AR41: 1.5182 | AS41: 0.8742 | AT41: 0.8742 | AV41: =SUM(AV42:AV1079) -> 23.78090286 | AW41: 41.43300387 | AX41: 47.28465371 | AY41: 24.41194254 | AZ41: 14.52298019 | BA41: 17.14960451 | BB41: 25.90362855 | BC41: 19.2662543 | BD41: 14.12555394 | BE41: 12.7370658 | BG41: =SUM(BG42:BG1079) -> 0.6487616821 | BH41: 1.942459452 | BI41: 3.530853022 | BJ41: 5.30980065 | BK41: 6.108969784 | BL41: 6.161835121 | BM41: 6.163759786 | BN41: 6.179703396 | BO41: 6.438636234 | BP41: 6.746505979 | BR41: =SUM(BR42:BR1079) -> 18.80861993 | BS41: 25.41908045 | BT41: 28.1634323 | BU41: 64.39930468 | BV41: 14.5976585 | BW41: 17.14960451 | BX41: 25.94901587 | BY41: 19.2662543 | BZ41: 14.12555394 | CA41: 12.7370658 | CC41: =SUM(CC42:CC1079) -> 25.36835693 | CD41: 44.51587324 | CE41: 51.77798031 | CF41: 27.83513782 | CG41: 17.26800821 | CH41: 20.65857069 | CI41: 31.39820297 | CJ41: 24.93122948 | CK41: 18.40622973 | CL41: 17.0865685 | CN41: =SUM(CN42:CN1079) -> 0.7337125822 | CO41: 2.269045951 | CP41: 4.209274531 | CQ41: 5.975648189 | CR41: 6.615045377 | CS41: 6.770589613 | CT41: 6.885275804 | CU41: 7.029953724 | CV41: 7.432270869 | CW41: 7.888102307
C42: Warrnambool WRP - Plant Augmentation (Section 8.2.3.1 of Writen Price Submission) | E42: Sewerage | F42: Growth | G42: Treatment | H42: Top 10 Major Projects | J42: Straight line | K42: 2021-22 | L42: 80 | M42: 80 | O42: 0.714869281 | P42: 15.31862745 | Q42: 20.4248366 | R42: 1.531862745 | AV42: =+O42-Z42-AK42 -> 0.714869281 | AW42: =+P42-AA42-AL42 -> 15.31862745 | AX42: 20.4248366 | AY42: 1.531862745 | AZ42: 0 | BA42: 0 | BB42: 0 | BC42: 0 | BD42: 0 | BE42: 0 | BG42: =IF($L42=0,0, IF($L42<=0.5,BR42, IF($J42="straight line", IF((LEFT(BG$39,4)*1)-INT($L42)<LEFT($BG$39,4)*1,0,((OFFSET(BR42,0,-INT($L42+0.5),1,1))/$L42)*(IF($L42-INT($L42)>0.5,$L42-0.5-INT($L42),IF($L42-INT($L42)<=0.5,$L42-0.5-INT($L42)+1,0)))) +BR42/$L42*0.5, IF($J42="Declining Balance",-$BG$38,0)))) -> 0 | BH42: =IF($L42=0,0, IF($L42<=0.5,BS42, IF(AND($J42="straight line",$L42<1.51),(BR42-((BR42/$L42)*0.5))+BS42/$L42*0.5, IF($J42="straight line", IF((LEFT(BH$39,4)*1)-INT($L42)<LEFT($BG$39,4)*1,0,((OFFSET(BS42,0,-INT($L42+0.5),1,1))/$L42)*(IF($L42-INT($L42)>0.5,$L42-0.5-INT($L42),IF($L42-INT($L42)<=0.5,$L42-0.5-INT($L42)+1,0)))) +BS42/$L42*0.5 +SUM(OFFSET(BS42,0,MAX(-INT($L42+(0.5-(10^-12))),-BH$40)+1,1,MIN(INT($L42+(0.5-(10^-12))),BH$40)-1))*1/$L42, IF($J42="Declining Balance",-$BG$38,0))))) -> 0 | BI42: =IF($L42=0,0, IF($L42<=0.5,BT42, IF(AND($J42="straight line",$L42<1.51),(BS42-((BS42/$L42)*0.5))+BT42/$L42*0.5, IF($J42="straight line", IF((LEFT(BI$39,4)*1)-INT($L42)<LEFT($BG$39,4)*1,0,((OFFSET(BT42,0,-INT($L42+0.5),1,1))/$L42)*(IF($L42-INT($L42)>0.5,$L42-0.5-INT($L42),IF($L42-INT($L42)<=0.5,$L42-0.5-INT($L42)+1,0)))) +BT42/$L42*0.5 +SUM(OFFSET(BT42,0,MAX(-INT($L42+(0.5-(10^-12))),-BI$40)+1,1,MIN(INT($L42+(0.5-(10^-12))),BI$40)-1))*1/$L42, IF($J42="Declining Balance",-$BG$38,0))))) -> 0 | BJ42: 0.2374387255 | BK42: 0.474877451 | BL42: 0.474877451 | BM42: 0.474877451 | BN42: 0.474877451 | BO42: 0.474877451 | BP42: 0.474877451 | BR42: =+IF($K42="Ongoing",AV42,IF(RIGHT($K42,2)=RIGHT(BR$39,2),SUM($AV42:AV42),0)+IF(RIGHT(BR$39,2)>RIGHT($K42,2),AV42,0)) -> 0 | BS42: =+IF($K42="Ongoing",AW42,IF(RIGHT($K42,2)=RIGHT(BS$39,2),SUM($AV42:AW42),0)+IF(RIGHT(BS$39,2)>RIGHT($K42,2),AW42,0)) -> 0 | BT42: =+IF($K42="Ongoing",AX42,IF(RIGHT($K42,2)=RIGHT(BT$39,2),SUM($AV42:AX42),0)+IF(RIGHT(BT$39,2)>RIGHT($K42,2),AX42,0)) -> 0 | BU42: =+IF($K42="Ongoing",AY42,IF(RIGHT($K42,2)=RIGHT(BU$39,2),SUM($AV42:AY42),0)+IF(RIGHT(BU$39,2)>RIGHT($K42,2),AY42,0)) -> 37.99019608 | BV42: =+IF($K42="Ongoing",AZ42,IF(RIGHT($K42,2)=RIGHT(BV$39,2),SUM($AV42:AZ42),0)+IF(RIGHT(BV$39,2)>RIGHT($K42,2),AZ42,0)) -> 0 | BW42: =+IF($K42="Ongoing",BA42,IF(RIGHT($K42,2)=RIGHT(BW$39,2),SUM($AV42:BA42),0)+IF(RIGHT(BW$39,2)>RIGHT($K42,2),BA42,0)) -> 0 | BX42: =+IF($K42="Ongoing",BB42,IF(RIGHT($K42,2)=RIGHT(BX$39,2),SUM($AV42:BB42),0)+IF(RIGHT(BX$39,2)>RIGHT($K42,2),BB42,0)) -> 0 | BY42: =+IF($K42="Ongoing",BC42,IF(RIGHT($K42,2)=RIGHT(BY$39,2),SUM($AV42:BC42),0)+IF(RIGHT(BY$39,2)>RIGHT($K42,2),BC42,0)) -> 0 | BZ42: =+IF($K42="Ongoing",BD42,IF(RIGHT($K42,2)=RIGHT(BZ$39,2),SUM($AV42:BD42),0)+IF(RIGHT(BZ$39,2)>RIGHT($K42,2),BD42,0)) -> 0 | CA42: =+IF($K42="Ongoing",BE42,IF(RIGHT($K42,2)=RIGHT(CA$39,2),SUM($AV42:BE42),0)+IF(RIGHT(CA$39,2)>RIGHT($K42,2),BE42,0)) -> 0 | CC42: =+O42*KeyAssumptionsPriceControl_FO!X$15 -> 0.7313112745 | CD42: =+P42*KeyAssumptionsPriceControl_FO!Y$15 -> 16.03138787 | CE42: =+Q42*KeyAssumptionsPriceControl_FO!Z$15 -> 21.86681305 | CF42: =+R42*KeyAssumptionsPriceControl_FO!AA$15 -> 1.677731231 | CG42: =+S42*KeyAssumptionsPriceControl_FO!AB$15 -> 0 | CH42: =+T42*KeyAssumptionsPriceControl_FO!AC$15 -> 0 | CI42: =+U42*KeyAssumptionsPriceControl_FO!AD$15 -> 0 | CJ42: =+V42*KeyAssumptionsPriceControl_FO!AE$15 -> 0 | CK42: =+W42*KeyAssumptionsPriceControl_FO!AF$15 -> 0 | CL42: =+X42*KeyAssumptionsPriceControl_FO!AG$15 -> 0 | CN42: =IF($M42=0,0, IF($M42<=0.5,CC42, IF($J42="straight line", IF((LEFT(CN$39,4)*1)-INT($M42)<LEFT($CN$39,4)*1,0,((OFFSET(CC42,0,-INT($M42+0.5),1,1))/$M42)*(IF($M42-INT($M42)>0.5,$M42-0.5-INT($M42),IF($M42-INT($M42)<=0.5,$M42-0.5-INT($M42)+1,0)))) +CC42/$M42*0.5, IF($J42="Declining Balance",-$CN$38,0)))) -> 0.004570695466 | CO42: =IF($M42=0,0, IF($M42<=0.5,CD42, IF(AND($J42="straight line",$M42<1.51),(CC42-((CC42/$M42)*0.5))+CD42/$M42*0.5, IF($J42="straight line", IF((LEFT(CO$39,4)*1)-INT($M42)<LEFT($CN$39,4)*1,0,((OFFSET(CD42,0,-INT($M42+0.5),1,1))/$M42)*(IF($M42-INT($M42)>0.5,$M42-0.5-INT($M42),IF($M42-INT($M42)<=0.5,$M42-0.5-INT($M42)+1,0)))) +CD42/$M42*0.5 +SUM(OFFSET(CD42,0,MAX(-INT($M42+(0.5-(10^-12))),-CO$40)+1,1,MIN(INT($M42+(0.5-(10^-12))),CO$40)-1))*1/$M42, IF($J42="Declining Balance",-$CN$38,0))))) -> 0.1093375651 | CP42: =IF($M42=0,0, IF($M42<=0.5,CE42, IF(AND($J42="straight line",$M42<1.51),(CD42-((CD42/$M42)*0.5))+CE42/$M42*0.5, IF($J42="straight line", IF((LEFT(CP$39,4)*1)-INT($M42)<LEFT($CN$39,4)*1,0,((OFFSET(CE42,0,-INT($M42+0.5),1,1))/$M42)*(IF($M42-INT($M42)>0.5,$M42-0.5-INT($M42),IF($M42-INT($M42)<=0.5,$M42-0.5-INT($M42)+1,0)))) +CE42/$M42*0.5 +SUM(OFFSET(CE42,0,MAX(-INT($M42+(0.5-(10^-12))),-CP$40)+1,1,MIN(INT($M42+(0.5-(10^-12))),CP$40)-1))*1/$M42, IF($J42="Declining Balance",-$CN$38,0))))) -> 0.3462013208 | CQ42: 0.4933547226 | CR42: 0.5038405428 | CS42: 0.5038405428 | CT42: 0.5038405428 | CU42: 0.5038405428 | CV42: 0.5038405428 | CW42: 0.5038405428
C43: Warrnambool - Wangoom Rd Water Tower and WPS (Section 8.2.3.2 of Writen Price Submission) | E43: Water | F43: Growth | G43: Headworks | H43: Top 10 Major Projects | J43: Straight line | K43: 2021-22 | L43: 40 | M43: 40 | O43: 0.2233966503 | P43: 0.5361519608 | Q43: 1.659517974 | R43: 1.914828431 | AV43: =+O43-Z43-AK43 -> 0.2233966503 | AW43: 0.5361519608 | AX43: 1.659517974 | AY43: 1.914828431 | AZ43: 0 | BA43: 0 | BB43: 0 | BC43: 0 | BD43: 0 | BE43: 0 | BG43: =IF($L43=0,0, IF($L43<=0.5,BR43, IF($J43="straight line", IF((LEFT(BG$39,4)*1)-INT($L43)<LEFT($BG$39,4)*1,0,((OFFSET(BR43,0,-INT($L43+0.5),1,1))/$L43)*(IF($L43-INT($L43)>0.5,$L43-0.5-INT($L43),IF($L43-INT($L43)<=0.5,$L43-0.5-INT($L43)+1,0)))) +BR43/$L43*0.5, IF($J43="Declining Balance",-$BG$38,0)))) -> 0 | BH43: =IF($L43=0,0, IF($L43<=0.5,BS43, IF(AND($J43="straight line",$L43<1.51),(BR43-((BR43/$L43)*0.5))+BS43/$L43*0.5, IF($J43="straight line", IF((LEFT(BH$39,4)*1)-INT($L43)<LEFT($BG$39,4)*1,0,((OFFSET(BS43,0,-INT($L43+0.5),1,1))/$L43)*(IF($L43-INT($L43)>0.5,$L43-0.5-INT($L43),IF($L43-INT($L43)<=0.5,$L43-0.5-INT($L43)+1,0)))) +BS43/$L43*0.5 +SUM(OFFSET(BS43,0,MAX(-INT($L43+(0.5-(10^-12))),-BH$40)+1,1,MIN(INT($L43+(0.5-(10^-12))),BH$40)-1))*1/$L43, IF($J43="Declining Balance",-$BG$38,0))))) -> 0 | BI43: 0 | BJ43: 0.0541736877 | BK43: 0.1083473754 | BL43: 0.1083473754 | BM43: 0.1083473754 | BN43: 0.1083473754 | BO43: 0.1083473754 | BP43: 0.1083473754 | BR43: =+IF($K43="Ongoing",AV43,IF(RIGHT($K43,2)=RIGHT(BR$39,2),SUM($AV43:AV43),0)+IF(RIGHT(BR$39,2)>RIGHT($K43,2),AV43,0)) -> 0 | BS43: =+IF($K43="Ongoing",AW43,IF(RIGHT($K43,2)=RIGHT(BS$39,2),SUM($AV43:AW43),0)+IF(RIGHT(BS$39,2)>RIGHT($K43,2),AW43,0)) -> 0 | BT43: =+IF($K43="Ongoing",AX43,IF(RIGHT($K43,2)=RIGHT(BT$39,2),SUM($AV43:AX43),0)+IF(RIGHT(BT$39,2)>RIGHT($K43,2),AX43,0)) -> 0 | BU43: =+IF($K43="Ongoing",AY43,IF(RIGHT($K43,2)=RIGHT(BU$39,2),SUM($AV43:AY43),0)+IF(RIGHT(BU$39,2)>RIGHT($K43,2),AY43,0)) -> 4.333895016 | BV43: =+IF($K43="Ongoing",AZ43,IF(RIGHT($K43,2)=RIGHT(BV$39,2),SUM($AV43:AZ43),0)+IF(RIGHT(BV$39,2)>RIGHT($K43,2),AZ43,0)) -> 0 | BW43: =+IF($K43="Ongoing",BA43,IF(RIGHT($K43,2)=RIGHT(BW$39,2),SUM($AV43:BA43),0)+IF(RIGHT(BW$39,2)>RIGHT($K43,2),BA43,0)) -> 0 | BX43: =+IF($K43="Ongoing",BB43,IF(RIGHT($K43,2)=RIGHT(BX$39,2),SUM($AV43:BB43),0)+IF(RIGHT(BX$39,2)>RIGHT($K43,2),BB43,0)) -> 0 | BY43: =+IF($K43="Ongoing",BC43,IF(RIGHT($K43,2)=RIGHT(BY$39,2),SUM($AV43:BC43),0)+IF(RIGHT(BY$39,2)>RIGHT($K43,2),BC43,0)) -> 0 | BZ43: =+IF($K43="Ongoing",BD43,IF(RIGHT($K43,2)=RIGHT(BZ$39,2),SUM($AV43:BD43),0)+IF(RIGHT(BZ$39,2)>RIGHT($K43,2),BD43,0)) -> 0 | CA43: =+IF($K43="Ongoing",BE43,IF(RIGHT($K43,2)=RIGHT(CA$39,2),SUM($AV43:BE43),0)+IF(RIGHT(CA$39,2)>RIGHT($K43,2),BE43,0)) -> 0 | CC43: =+O43*KeyAssumptionsPriceControl_FO!X$15 -> 0.2285347733 | CD43: =+P43*KeyAssumptionsPriceControl_FO!Y$15 -> 0.5610985754 | CE43: =+Q43*KeyAssumptionsPriceControl_FO!Z$15 -> 1.77667856 | CF43: =+R43*KeyAssumptionsPriceControl_FO!AA$15 -> 2.097164039 | CG43: =+S43*KeyAssumptionsPriceControl_FO!AB$15 -> 0 | CH43: =+T43*KeyAssumptionsPriceControl_FO!AC$15 -> 0 | CI43: =+U43*KeyAssumptionsPriceControl_FO!AD$15 -> 0 | CJ43: =+V43*KeyAssumptionsPriceControl_FO!AE$15 -> 0 | CK43: =+W43*KeyAssumptionsPriceControl_FO!AF$15 -> 0 | CL43: =+X43*KeyAssumptionsPriceControl_FO!AG$15 -> 0 | CN43: =IF($M43=0,0, IF($M43<=0.5,CC43, IF($J43="straight line", IF((LEFT(CN$39,4)*1)-INT($M43)<LEFT($CN$39,4)*1,0,((OFFSET(CC43,0,-INT($M43+0.5),1,1))/$M43)*(IF($M43-INT($M43)>0.5,$M43-0.5-INT($M43),IF($M43-INT($M43)<=0.5,$M43-0.5-INT($M43)+1,0)))) +CC43/$M43*0.5, IF($J43="Declining Balance",-$CN$38,0)))) -> 0.002856684666 | CO43: =IF($M43=0,0, IF($M43<=0.5,CD43, IF(AND($J43="straight line",$M43<1.51),(CC43-((CC43/$M43)*0.5))+CD43/$M43*0.5, IF($J43="straight line", IF((LEFT(CO$39,4)*1)-INT($M43)<LEFT($CN$39,4)*1,0,((OFFSET(CD43,0,-INT($M43+0.5),1,1))/$M43)*(IF($M43-INT($M43)>0.5,$M43-0.5-INT($M43),IF($M43-INT($M43)<=0.5,$M43-0.5-INT($M43)+1,0)))) +CD43/$M43*0.5 +SUM(OFFSET(CD43,0,MAX(-INT($M43+(0.5-(10^-12))),-CO$40)+1,1,MIN(INT($M43+(0.5-(10^-12))),CO$40)-1))*1/$M43, IF($J43="Declining Balance",-$CN$38,0))))) -> 0.01272710152 | CP43: 0.04194931572 | CQ43: 0.09037234822 | CR43: 0.1165868987 | CS43: 0.1165868987 | CT43: 0.1165868987 | CU43: 0.1165868987 | CV43: 0.1165868987 | CW43: 0.1165868987
C44: Hamilton - New Biosolids Drying Area (Section 8.2.3.3 of Writen Price Submission) | E44: Sewerage | F44: Growth | G44: Treatment | H44: Top 10 Major Projects | J44: Straight line | K44: 2019-20 | L44: 80 | M44: 80 | O44: 2.614379085 | P44: 0.8782679739 | AV44: 2.614379085 | AW44: 0.8782679739 | AX44: 0 | AY44: 0 | AZ44: 0 | BA44: 0 | BB44: 0 | BC44: 0 | BD44: 0 | BE44: 0 | BG44: 0 | BH44: 0.02182904412 | BI44: 0.04365808824 | BJ44: 0.04365808824 | BK44: 0.04365808824 | BL44: 0.04365808824 | BM44: 0.04365808824 | BN44: 0.04365808824 | BO44: 0.04365808824 | BP44: 0.04365808824 | BR44: =+IF($K44="Ongoing",AV44,IF(RIGHT($K44,2)=RIGHT(BR$39,2),SUM($AV44:AV44),0)+IF(RIGHT(BR$39,2)>RIGHT($K44,2),AV44,0)) -> 0 | BS44: =+IF($K44="Ongoing",AW44,IF(RIGHT($K44,2)=RIGHT(BS$39,2),SUM($AV44:AW44),0)+IF(RIGHT(BS$39,2)>RIGHT($K44,2),AW44,0)) -> 3.492647059 | BT44: =+IF($K44="Ongoing",AX44,IF(RIGHT($K44,2)=RIGHT(BT$39,2),SUM($AV44:AX44),0)+IF(RIGHT(BT$39,2)>RIGHT($K44,2),AX44,0)) -> 0 | BU44: =+IF($K44="Ongoing",AY44,IF(RIGHT($K44,2)=RIGHT(BU$39,2),SUM($AV44:AY44),0)+IF(RIGHT(BU$39,2)>RIGHT($K44,2),AY44,0)) -> 0 | BV44: =+IF($K44="Ongoing",AZ44,IF(RIGHT($K44,2)=RIGHT(BV$39,2),SUM($AV44:AZ44),0)+IF(RIGHT(BV$39,2)>RIGHT($K44,2),AZ44,0)) -> 0 | BW44: =+IF($K44="Ongoing",BA44,IF(RIGHT($K44,2)=RIGHT(BW$39,2),SUM($AV44:BA44),0)+IF(RIGHT(BW$39,2)>RIGHT($K44,2),BA44,0)) -> 0 | BX44: =+IF($K44="Ongoing",BB44,IF(RIGHT($K44,2)=RIGHT(BX$39,2),SUM($AV44:BB44),0)+IF(RIGHT(BX$39,2)>RIGHT($K44,2),BB44,0)) -> 0 | BY44: =+IF($K44="Ongoing",BC44,IF(RIGHT($K44,2)=RIGHT(BY$39,2),SUM($AV44:BC44),0)+IF(RIGHT(BY$39,2)>RIGHT($K44,2),BC44,0)) -> 0 | BZ44: =+IF($K44="Ongoing",BD44,IF(RIGHT($K44,2)=RIGHT(BZ$39,2),SUM($AV44:BD44),0)+IF(RIGHT(BZ$39,2)>RIGHT($K44,2),BD44,0)) -> 0 | CA44: =+IF($K44="Ongoing",BE44,IF(RIGHT($K44,2)=RIGHT(CA$39,2),SUM($AV44:BE44),0)+IF(RIGHT(CA$39,2)>RIGHT($K44,2),BE44,0)) -> 0 | CC44: =+O44*KeyAssumptionsPriceControl_FO!X$15 -> 2.674509804 | CD44: =+P44*KeyAssumptionsPriceControl_FO!Y$15 -> 0.9191329044 | CE44: =+Q44*KeyAssumptionsPriceControl_FO!Z$15 -> 0 | CF44: =+R44*KeyAssumptionsPriceControl_FO!AA$15 -> 0 | CG44: =+S44*KeyAssumptionsPriceControl_FO!AB$15 -> 0 | CH44: =+T44*KeyAssumptionsPriceControl_FO!AC$15 -> 0 | CI44: =+U44*KeyAssumptionsPriceControl_FO!AD$15 -> 0 | CJ44: =+V44*KeyAssumptionsPriceControl_FO!AE$15 -> 0 | CK44: =+W44*KeyAssumptionsPriceControl_FO!AF$15 -> 0 | CL44: =+X44*KeyAssumptionsPriceControl_FO!AG$15 -> 0 | CN44: 0.01671568627 | CO44: 0.0391759532 | CP44: 0.04492053385 | CQ44: 0.04492053385 | CR44: 0.04492053385 | CS44: 0.04492053385 | CT44: 0.04492053385 | CU44: 0.04492053385 | CV44: 0.04492053385 | CW44: 0.04492053385
C45: Camperdown - Refurbish Camperdown Biosolids Facility (Section 8.2.3.3 of Writen Price Submission) | E45: Sewerage | F45: Renewals | G45: Treatment | H45: Top 10 Major Projects | J45: Straight line | K45: 2020-21 | L45: 40 | M45: 40 | P45: 2.10375817 | Q45: 0.7046568627 | AV45: 0 | AW45: 2.10375817 | AX45: 0.7046568627 | AY45: 0 | AZ45: 0 | BA45: 0 | BB45: 0 | BC45: 0 | BD45: 0 | BE45: 0 | BG45: 0 | BH45: 0 | BI45: 0.03510518791 | BJ45: 0.07021037582 | BK45: 0.07021037582 | BL45: 0.07021037582 | BM45: 0.07021037582 | BN45: 0.07021037582 | BO45: 0.07021037582 | BP45: 0.07021037582 | BR45: =+IF($K45="Ongoing",AV45,IF(RIGHT($K45,2)=RIGHT(BR$39,2),SUM($AV45:AV45),0)+IF(RIGHT(BR$39,2)>RIGHT($K45,2),AV45,0)) -> 0 | BS45: =+IF($K45="Ongoing",AW45,IF(RIGHT($K45,2)=RIGHT(BS$39,2),SUM($AV45:AW45),0)+IF(RIGHT(BS$39,2)>RIGHT($K45,2),AW45,0)) -> 0 | BT45: =+IF($K45="Ongoing",AX45,IF(RIGHT($K45,2)=RIGHT(BT$39,2),SUM($AV45:AX45),0)+IF(RIGHT(BT$39,2)>RIGHT($K45,2),AX45,0)) -> 2.808415033 | BU45: =+IF($K45="Ongoing",AY45,IF(RIGHT($K45,2)=RIGHT(BU$39,2),SUM($AV45:AY45),0)+IF(RIGHT(BU$39,2)>RIGHT($K45,2),AY45,0)) -> 0 | BV45: =+IF($K45="Ongoing",AZ45,IF(RIGHT($K45,2)=RIGHT(BV$39,2),SUM($AV45:AZ45),0)+IF(RIGHT(BV$39,2)>RIGHT($K45,2),AZ45,0)) -> 0 | BW45: =+IF($K45="Ongoing",BA45,IF(RIGHT($K45,2)=RIGHT(BW$39,2),SUM($AV45:BA45),0)+IF(RIGHT(BW$39,2)>RIGHT($K45,2),BA45,0)) -> 0 | BX45: =+IF($K45="Ongoing",BB45,IF(RIGHT($K45,2)=RIGHT(BX$39,2),SUM($AV45:BB45),0)+IF(RIGHT(BX$39,2)>RIGHT($K45,2),BB45,0)) -> 0 | BY45: =+IF($K45="Ongoing",BC45,IF(RIGHT($K45,2)=RIGHT(BY$39,2),SUM($AV45:BC45),0)+IF(RIGHT(BY$39,2)>RIGHT($K45,2),BC45,0)) -> 0 | BZ45: =+IF($K45="Ongoing",BD45,IF(RIGHT($K45,2)=RIGHT(BZ$39,2),SUM($AV45:BD45),0)+IF(RIGHT(BZ$39,2)>RIGHT($K45,2),BD45,0)) -> 0 | CA45: =+IF($K45="Ongoing",BE45,IF(RIGHT($K45,2)=RIGHT(CA$39,2),SUM($AV45:BE45),0)+IF(RIGHT(CA$39,2)>RIGHT($K45,2),BE45,0)) -> 0 | CC45: =+O45*KeyAssumptionsPriceControl_FO!X$15 -> 0 | CD45: =+P45*KeyAssumptionsPriceControl_FO!Y$15 -> 2.201643934 | CE45: =+Q45*KeyAssumptionsPriceControl_FO!Z$15 -> 0.7544050503 | CF45: =+R45*KeyAssumptionsPriceControl_FO!AA$15 -> 0 | CG45: =+S45*KeyAssumptionsPriceControl_FO!AB$15 -> 0 | CH45: =+T45*KeyAssumptionsPriceControl_FO!AC$15 -> 0 | CI45: =+U45*KeyAssumptionsPriceControl_FO!AD$15 -> 0 | CJ45: =+V45*KeyAssumptionsPriceControl_FO!AE$15 -> 0 | CK45: =+W45*KeyAssumptionsPriceControl_FO!AF$15 -> 0 | CL45: =+X45*KeyAssumptionsPriceControl_FO!AG$15 -> 0 | CN45: 0 | CO45: 0.02752054917 | CP45: 0.06447116147 | CQ45: 0.0739012246 | CR45: 0.0739012246 | CS45: 0.0739012246 | CT45: 0.0739012246 | CU45: 0.0739012246 | CV45: 0.0739012246 | CW45: 0.0739012246
C46: Warrnambool WTP – Install UV | E46: Water | F46: Improvements / Compliance | G46: Treatment | H46: Top 10 Major Projects | J46: Straight line | K46: 2020-21 | L46: 40 | M46: 40 | P46: 0.204248366 | Q46: 2.58374183 | AV46: 0 | AW46: 0.204248366 | AX46: 2.58374183 | AY46: 0 | AZ46: 0 | BA46: 0 | BB46: 0 | BC46: 0 | BD46: 0 | BE46: 0 | BG46: 0 | BH46: 0 | BI46: 0.03484987745 | BJ46: 0.0696997549 | BK46: 0.0696997549 | BL46: 0.0696997549 | BM46: 0.0696997549 | BN46: 0.0696997549 | BO46: 0.0696997549 | BP46: 0.0696997549 | BR46: =+IF($K46="Ongoing",AV46,IF(RIGHT($K46,2)=RIGHT(BR$39,2),SUM($AV46:AV46),0)+IF(RIGHT(BR$39,2)>RIGHT($K46,2),AV46,0)) -> 0 | BS46: =+IF($K46="Ongoing",AW46,IF(RIGHT($K46,2)=RIGHT(BS$39,2),SUM($AV46:AW46),0)+IF(RIGHT(BS$39,2)>RIGHT($K46,2),AW46,0)) -> 0 | BT46: =+IF($K46="Ongoing",AX46,IF(RIGHT($K46,2)=RIGHT(BT$39,2),SUM($AV46:AX46),0)+IF(RIGHT(BT$39,2)>RIGHT($K46,2),AX46,0)) -> 2.787990196 | BU46: =+IF($K46="Ongoing",AY46,IF(RIGHT($K46,2)=RIGHT(BU$39,2),SUM($AV46:AY46),0)+IF(RIGHT(BU$39,2)>RIGHT($K46,2),AY46,0)) -> 0 | BV46: =+IF($K46="Ongoing",AZ46,IF(RIGHT($K46,2)=RIGHT(BV$39,2),SUM($AV46:AZ46),0)+IF(RIGHT(BV$39,2)>RIGHT($K46,2),AZ46,0)) -> 0 | BW46: =+IF($K46="Ongoing",BA46,IF(RIGHT($K46,2)=RIGHT(BW$39,2),SUM($AV46:BA46),0)+IF(RIGHT(BW$39,2)>RIGHT($K46,2),BA46,0)) -> 0 | BX46: =+IF($K46="Ongoing",BB46,IF(RIGHT($K46,2)=RIGHT(BX$39,2),SUM($AV46:BB46),0)+IF(RIGHT(BX$39,2)>RIGHT($K46,2),BB46,0)) -> 0 | BY46: =+IF($K46="Ongoing",BC46,IF(RIGHT($K46,2)=RIGHT(BY$39,2),SUM($AV46:BC46),0)+IF(RIGHT(BY$39,2)>RIGHT($K46,2),BC46,0)) -> 0 | BZ46: =+IF($K46="Ongoing",BD46,IF(RIGHT($K46,2)=RIGHT(BZ$39,2),SUM($AV46:BD46),0)+IF(RIGHT(BZ$39,2)>RIGHT($K46,2),BD46,0)) -> 0 | CA46: =+IF($K46="Ongoing",BE46,IF(RIGHT($K46,2)=RIGHT(CA$39,2),SUM($AV46:BE46),0)+IF(RIGHT(CA$39,2)>RIGHT($K46,2),BE46,0)) -> 0 | CC46: =+O46*KeyAssumptionsPriceControl_FO!X$15 -> 0 | CD46: =+P46*KeyAssumptionsPriceControl_FO!Y$15 -> 0.2137518382 | CE46: =+Q46*KeyAssumptionsPriceControl_FO!Z$15 -> 2.766151851 | CF46: =+R46*KeyAssumptionsPriceControl_FO!AA$15 -> 0 | CG46: =+S46*KeyAssumptionsPriceControl_FO!AB$15 -> 0 | CH46: =+T46*KeyAssumptionsPriceControl_FO!AC$15 -> 0 | CI46: =+U46*KeyAssumptionsPriceControl_FO!AD$15 -> 0 | CJ46: =+V46*KeyAssumptionsPriceControl_FO!AE$15 -> 0 | CK46: =+W46*KeyAssumptionsPriceControl_FO!AF$15 -> 0 | CL46: =+X46*KeyAssumptionsPriceControl_FO!AG$15 -> 0 | CN46: 0 | CO46: 0.002671897978 | CP46: 0.03992069409 | CQ46: 0.07449759223 | CR46: 0.07449759223 | CS46: 0.07449759223 | CT46: 0.07449759223 | CU46: 0.07449759223 | CV46: 0.07449759223 | CW46: 0.07449759223
C47: Warrnambool - Wollaston Road Tower and WPS (Section 8.2.3.2 of Writen Price Submission) | E47: Water | F47: Growth | G47: Headworks | H47: Top 10 Major Projects | J47: Straight line | K47: 2020-21 | L47: 40 | M47: 40 | P47: 0.408496732 | Q47: 2.144607843 | AV47: 0 | AW47: 0.408496732 | AX47: 2.144607843 | AY47: 0 | AZ47: 0 | BA47: 0 | BB47: 0 | BC47: 0 | BD47: 0 | BE47: 0 | BG47: 0 | BH47: 0 | BI47: 0.03191380719 | BJ47: 0.06382761438 | BK47: 0.06382761438 | BL47: 0.06382761438 | BM47: 0.06382761438 | BN47: 0.06382761438 | BO47: 0.06382761438 | BP47: 0.06382761438 | BR47: =+IF($K47="Ongoing",AV47,IF(RIGHT($K47,2)=RIGHT(BR$39,2),SUM($AV47:AV47),0)+IF(RIGHT(BR$39,2)>RIGHT($K47,2),AV47,0)) -> 0 | BS47: =+IF($K47="Ongoing",AW47,IF(RIGHT($K47,2)=RIGHT(BS$39,2),SUM($AV47:AW47),0)+IF(RIGHT(BS$39,2)>RIGHT($K47,2),AW47,0)) -> 0 | BT47: =+IF($K47="Ongoing",AX47,IF(RIGHT($K47,2)=RIGHT(BT$39,2),SUM($AV47:AX47),0)+IF(RIGHT(BT$39,2)>RIGHT($K47,2),AX47,0)) -> 2.553104575 | BU47: =+IF($K47="Ongoing",AY47,IF(RIGHT($K47,2)=RIGHT(BU$39,2),SUM($AV47:AY47),0)+IF(RIGHT(BU$39,2)>RIGHT($K47,2),AY47,0)) -> 0 | BV47: =+IF($K47="Ongoing",AZ47,IF(RIGHT($K47,2)=RIGHT(BV$39,2),SUM($AV47:AZ47),0)+IF(RIGHT(BV$39,2)>RIGHT($K47,2),AZ47,0)) -> 0 | BW47: =+IF($K47="Ongoing",BA47,IF(RIGHT($K47,2)=RIGHT(BW$39,2),SUM($AV47:BA47),0)+IF(RIGHT(BW$39,2)>RIGHT($K47,2),BA47,0)) -> 0 | BX47: =+IF($K47="Ongoing",BB47,IF(RIGHT($K47,2)=RIGHT(BX$39,2),SUM($AV47:BB47),0)+IF(RIGHT(BX$39,2)>RIGHT($K47,2),BB47,0)) -> 0 | BY47: =+IF($K47="Ongoing",BC47,IF(RIGHT($K47,2)=RIGHT(BY$39,2),SUM($AV47:BC47),0)+IF(RIGHT(BY$39,2)>RIGHT($K47,2),BC47,0)) -> 0 | BZ47: =+IF($K47="Ongoing",BD47,IF(RIGHT($K47,2)=RIGHT(BZ$39,2),SUM($AV47:BD47),0)+IF(RIGHT(BZ$39,2)>RIGHT($K47,2),BD47,0)) -> 0 | CA47: =+IF($K47="Ongoing",BE47,IF(RIGHT($K47,2)=RIGHT(CA$39,2),SUM($AV47:BE47),0)+IF(RIGHT(CA$39,2)>RIGHT($K47,2),BE47,0)) -> 0 | CC47: =+O47*KeyAssumptionsPriceControl_FO!X$15 -> 0 | CD47: =+P47*KeyAssumptionsPriceControl_FO!Y$15 -> 0.4275036765 | CE47: =+Q47*KeyAssumptionsPriceControl_FO!Z$15 -> 2.29601537 | CF47: =+R47*KeyAssumptionsPriceControl_FO!AA$15 -> 0 | CG47: =+S47*KeyAssumptionsPriceControl_FO!AB$15 -> 0 | CH47: =+T47*KeyAssumptionsPriceControl_FO!AC$15 -> 0 | CI47: =+U47*KeyAssumptionsPriceControl_FO!AD$15 -> 0 | CJ47: =+V47*KeyAssumptionsPriceControl_FO!AE$15 -> 0 | CK47: =+W47*KeyAssumptionsPriceControl_FO!AF$15 -> 0 | CL47: =+X47*KeyAssumptionsPriceControl_FO!AG$15 -> 0 | CN47: 0 | CO47: 0.005343795956 | CP47: 0.03938778404 | CQ47: 0.06808797617 | CR47: 0.06808797617 | CS47: 0.06808797617 | CT47: 0.06808797617 | CU47: 0.06808797617 | CV47: 0.06808797617 | CW47: 0.06808797617
C48: Port Campbell - Second Bore (Section 7.3 of Writen Price Submission) | E48: Water | F48: Improvements / Compliance | G48: Headworks | H48: Top 10 Major Projects | J48: Straight line | K48: 2021-22 | L48: 40 | M48: 40 | Q48: 0.1531862745 | R48: 1.787173203 | AV48: 0 | AW48: 0 | AX48: 0.1531862745 | AY48: 1.787173203 | AZ48: 0 | BA48: 0 | BB48: 0 | BC48: 0 | BD48: 0 | BE48: 0 | BG48: 0 | BH48: 0 | BI48: 0 | BJ48: 0.02425449346 | BK48: 0.04850898693 | BL48: 0.04850898693 | BM48: 0.04850898693 | BN48: 0.04850898693 | BO48: 0.04850898693 | BP48: 0.04850898693 | BR48: =+IF($K48="Ongoing",AV48,IF(RIGHT($K48,2)=RIGHT(BR$39,2),SUM($AV48:AV48),0)+IF(RIGHT(BR$39,2)>RIGHT($K48,2),AV48,0)) -> 0 | BS48: =+IF($K48="Ongoing",AW48,IF(RIGHT($K48,2)=RIGHT(BS$39,2),SUM($AV48:AW48),0)+IF(RIGHT(BS$39,2)>RIGHT($K48,2),AW48,0)) -> 0 | BT48: =+IF($K48="Ongoing",AX48,IF(RIGHT($K48,2)=RIGHT(BT$39,2),SUM($AV48:AX48),0)+IF(RIGHT(BT$39,2)>RIGHT($K48,2),AX48,0)) -> 0 | BU48: =+IF($K48="Ongoing",AY48,IF(RIGHT($K48,2)=RIGHT(BU$39,2),SUM($AV48:AY48),0)+IF(RIGHT(BU$39,2)>RIGHT($K48,2),AY48,0)) -> 1.940359477 | BV48: =+IF($K48="Ongoing",AZ48,IF(RIGHT($K48,2)=RIGHT(BV$39,2),SUM($AV48:AZ48),0)+IF(RIGHT(BV$39,2)>RIGHT($K48,2),AZ48,0)) -> 0 | BW48: =+IF($K48="Ongoing",BA48,IF(RIGHT($K48,2)=RIGHT(BW$39,2),SUM($AV48:BA48),0)+IF(RIGHT(BW$39,2)>RIGHT($K48,2),BA48,0)) -> 0 | BX48: =+IF($K48="Ongoing",BB48,IF(RIGHT($K48,2)=RIGHT(BX$39,2),SUM($AV48:BB48),0)+IF(RIGHT(BX$39,2)>RIGHT($K48,2),BB48,0)) -> 0 | BY48: =+IF($K48="Ongoing",BC48,IF(RIGHT($K48,2)=RIGHT(BY$39,2),SUM($AV48:BC48),0)+IF(RIGHT(BY$39,2)>RIGHT($K48,2),BC48,0)) -> 0 | BZ48: =+IF($K48="Ongoing",BD48,IF(RIGHT($K48,2)=RIGHT(BZ$39,2),SUM($AV48:BD48),0)+IF(RIGHT(BZ$39,2)>RIGHT($K48,2),BD48,0)) -> 0 | CA48: =+IF($K48="Ongoing",BE48,IF(RIGHT($K48,2)=RIGHT(CA$39,2),SUM($AV48:BE48),0)+IF(RIGHT(CA$39,2)>RIGHT($K48,2),BE48,0)) -> 0 | CC48: =+O48*KeyAssumptionsPriceControl_FO!X$15 -> 0 | CD48: =+P48*KeyAssumptionsPriceControl_FO!Y$15 -> 0 | CE48: =+Q48*KeyAssumptionsPriceControl_FO!Z$15 -> 0.1640010979 | CF48: =+R48*KeyAssumptionsPriceControl_FO!AA$15 -> 1.957353103 | CG48: =+S48*KeyAssumptionsPriceControl_FO!AB$15 -> 0 | CH48: =+T48*KeyAssumptionsPriceControl_FO!AC$15 -> 0 | CI48: =+U48*KeyAssumptionsPriceControl_FO!AD$15 -> 0 | CJ48: =+V48*KeyAssumptionsPriceControl_FO!AE$15 -> 0 | CK48: =+W48*KeyAssumptionsPriceControl_FO!AF$15 -> 0 | CL48: =+X48*KeyAssumptionsPriceControl_FO!AG$15 -> 0 | CN48: 0 | CO48: 0 | CP48: 0.002050013724 | CQ48: 0.02856694124 | CR48: 0.05303385503 | CS48: 0.05303385503 | CT48: 0.05303385503 | CU48: 0.05303385503 | CV48: 0.05303385503 | CW48: 0.05303385503
C49: Gellibrand River - Substitution works to improve summer flows (Section 7.5 of Writen Price Submission) | E49: Water | F49: Improvements / Compliance | G49: Headworks | H49: Top 10 Major Projects | J49: Straight line | K49: 2021-22 | L49: 40 | M49: 40 | O49: 0.1531862745 | P49: 0.8169934641 | Q49: 0.0612745098 | R49: 0.8169934641 | AV49: 0.1531862745 | AW49: 0.8169934641 | AX49: 0.0612745098 | AY49: 0.8169934641 | AZ49: 0 | BA49: 0 | BB49: 0 | BC49: 0 | BD49: 0 | BE49: 0 | BG49: 0 | BH49: 0 | BI49: 0 | BJ49: 0.02310559641 | BK49: 0.04621119281 | BL49: 0.04621119281 | BM49: 0.04621119281 | BN49: 0.04621119281 | BO49: 0.04621119281 | BP49: 0.04621119281 | BR49: =+IF($K49="Ongoing",AV49,IF(RIGHT($K49,2)=RIGHT(BR$39,2),SUM($AV49:AV49),0)+IF(RIGHT(BR$39,2)>RIGHT($K49,2),AV49,0)) -> 0 | BS49: =+IF($K49="Ongoing",AW49,IF(RIGHT($K49,2)=RIGHT(BS$39,2),SUM($AV49:AW49),0)+IF(RIGHT(BS$39,2)>RIGHT($K49,2),AW49,0)) -> 0 | BT49: =+IF($K49="Ongoing",AX49,IF(RIGHT($K49,2)=RIGHT(BT$39,2),SUM($AV49:AX49),0)+IF(RIGHT(BT$39,2)>RIGHT($K49,2),AX49,0)) -> 0 | BU49: =+IF($K49="Ongoing",AY49,IF(RIGHT($K49,2)=RIGHT(BU$39,2),SUM($AV49:AY49),0)+IF(RIGHT(BU$39,2)>RIGHT($K49,2),AY49,0)) -> 1.848447712 | BV49: =+IF($K49="Ongoing",AZ49,IF(RIGHT($K49,2)=RIGHT(BV$39,2),SUM($AV49:AZ49),0)+IF(RIGHT(BV$39,2)>RIGHT($K49,2),AZ49,0)) -> 0 | BW49: =+IF($K49="Ongoing",BA49,IF(RIGHT($K49,2)=RIGHT(BW$39,2),SUM($AV49:BA49),0)+IF(RIGHT(BW$39,2)>RIGHT($K49,2),BA49,0)) -> 0 | BX49: =+IF($K49="Ongoing",BB49,IF(RIGHT($K49,2)=RIGHT(BX$39,2),SUM($AV49:BB49),0)+IF(RIGHT(BX$39,2)>RIGHT($K49,2),BB49,0)) -> 0 | BY49: =+IF($K49="Ongoing",BC49,IF(RIGHT($K49,2)=RIGHT(BY$39,2),SUM($AV49:BC49),0)+IF(RIGHT(BY$39,2)>RIGHT($K49,2),BC49,0)) -> 0 | BZ49: =+IF($K49="Ongoing",BD49,IF(RIGHT($K49,2)=RIGHT(BZ$39,2),SUM($AV49:BD49),0)+IF(RIGHT(BZ$39,2)>RIGHT($K49,2),BD49,0)) -> 0 | CA49: =+IF($K49="Ongoing",BE49,IF(RIGHT($K49,2)=RIGHT(CA$39,2),SUM($AV49:BE49),0)+IF(RIGHT(CA$39,2)>RIGHT($K49,2),BE49,0)) -> 0 | CC49: =+O49*KeyAssumptionsPriceControl_FO!X$15 -> 0.1567095588 | CD49: =+P49*KeyAssumptionsPriceControl_FO!Y$15 -> 0.8550073529 | CE49: =+Q49*KeyAssumptionsPriceControl_FO!Z$15 -> 0.06560043915 | CF49: =+R49*KeyAssumptionsPriceControl_FO!AA$15 -> 0.8947899901 | CG49: =+S49*KeyAssumptionsPriceControl_FO!AB$15 -> 0 | CH49: =+T49*KeyAssumptionsPriceControl_FO!AC$15 -> 0 | CI49: =+U49*KeyAssumptionsPriceControl_FO!AD$15 -> 0 | CJ49: =+V49*KeyAssumptionsPriceControl_FO!AE$15 -> 0 | CK49: =+W49*KeyAssumptionsPriceControl_FO!AF$15 -> 0 | CL49: =+X49*KeyAssumptionsPriceControl_FO!AG$15 -> 0 | CN49: 0.001958869485 | CO49: 0.01460533088 | CP49: 0.02611292828 | CQ49: 0.03811780865 | CR49: 0.04930268352 | CS49: 0.04930268352 | CT49: 0.04930268352 | CU49: 0.04930268352 | CV49: 0.04930268352 | CW49: 0.04930268352
C50: Hamilton WRP - Effluent Reuse Upgrade | E50: Sewerage | F50: Improvements / Compliance | G50: Treatment | H50: Top 10 Major Projects | J50: Straight line | K50: 2020-21 | L50: 80 | M50: 80 | P50: 0.1531862745 | Q50: 1.378676471 | AV50: 0 | AW50: 0.1531862745 | AX50: 1.378676471 | AY50: 0 | AZ50: 0 | BA50: 0 | BB50: 0 | BC50: 0 | BD50: 0 | BE50: 0 | BG50: 0 | BH50: 0 | BI50: 0.009574142157 | BJ50: 0.01914828431 | BK50: 0.01914828431 | BL50: 0.01914828431 | BM50: 0.01914828431 | BN50: 0.01914828431 | BO50: 0.01914828431 | BP50: 0.01914828431 | BR50: =+IF($K50="Ongoing",AV50,IF(RIGHT($K50,2)=RIGHT(BR$39,2),SUM($AV50:AV50),0)+IF(RIGHT(BR$39,2)>RIGHT($K50,2),AV50,0)) -> 0 | BS50: =+IF($K50="Ongoing",AW50,IF(RIGHT($K50,2)=RIGHT(BS$39,2),SUM($AV50:AW50),0)+IF(RIGHT(BS$39,2)>RIGHT($K50,2),AW50,0)) -> 0 | BT50: =+IF($K50="Ongoing",AX50,IF(RIGHT($K50,2)=RIGHT(BT$39,2),SUM($AV50:AX50),0)+IF(RIGHT(BT$39,2)>RIGHT($K50,2),AX50,0)) -> 1.531862745 | BU50: =+IF($K50="Ongoing",AY50,IF(RIGHT($K50,2)=RIGHT(BU$39,2),SUM($AV50:AY50),0)+IF(RIGHT(BU$39,2)>RIGHT($K50,2),AY50,0)) -> 0 | BV50: =+IF($K50="Ongoing",AZ50,IF(RIGHT($K50,2)=RIGHT(BV$39,2),SUM($AV50:AZ50),0)+IF(RIGHT(BV$39,2)>RIGHT($K50,2),AZ50,0)) -> 0 | BW50: =+IF($K50="Ongoing",BA50,IF(RIGHT($K50,2)=RIGHT(BW$39,2),SUM($AV50:BA50),0)+IF(RIGHT(BW$39,2)>RIGHT($K50,2),BA50,0)) -> 0 | BX50: =+IF($K50="Ongoing",BB50,IF(RIGHT($K50,2)=RIGHT(BX$39,2),SUM($AV50:BB50),0)+IF(RIGHT(BX$39,2)>RIGHT($K50,2),BB50,0)) -> 0 | BY50: =+IF($K50="Ongoing",BC50,IF(RIGHT($K50,2)=RIGHT(BY$39,2),SUM($AV50:BC50),0)+IF(RIGHT(BY$39,2)>RIGHT($K50,2),BC50,0)) -> 0 | BZ50: =+IF($K50="Ongoing",BD50,IF(RIGHT($K50,2)=RIGHT(BZ$39,2),SUM($AV50:BD50),0)+IF(RIGHT(BZ$39,2)>RIGHT($K50,2),BD50,0)) -> 0 | CA50: =+IF($K50="Ongoing",BE50,IF(RIGHT($K50,2)=RIGHT(CA$39,2),SUM($AV50:BE50),0)+IF(RIGHT(CA$39,2)>RIGHT($K50,2),BE50,0)) -> 0 | CC50: =+O50*KeyAssumptionsPriceControl_FO!X$15 -> 0 | CD50: =+P50*KeyAssumptionsPriceControl_FO!Y$15 -> 0.1603138787 | CE50: =+Q50*KeyAssumptionsPriceControl_FO!Z$15 -> 1.476009881 | CF50: =+R50*KeyAssumptionsPriceControl_FO!AA$15 -> 0 | CG50: =+S50*KeyAssumptionsPriceControl_FO!AB$15 -> 0 | CH50: =+T50*KeyAssumptionsPriceControl_FO!AC$15 -> 0 | CI50: =+U50*KeyAssumptionsPriceControl_FO!AD$15 -> 0 | CJ50: =+V50*KeyAssumptionsPriceControl_FO!AE$15 -> 0 | CK50: =+W50*KeyAssumptionsPriceControl_FO!AF$15 -> 0 | CL50: =+X50*KeyAssumptionsPriceControl_FO!AG$15 -> 0 | CN50: 0 | CO50: 0.001001961742 | CP50: 0.01122898524 | CQ50: 0.020454047 | CR50: 0.020454047 | CS50: 0.020454047 | CT50: 0.020454047 | CU50: 0.020454047 | CV50: 0.020454047 | CW50: 0.020454047
C51: Hamilton WTP - Clear Water Storage | E51: Water | F51: Improvements / Compliance | G51: Headworks | H51: Top 10 Major Projects | J51: Straight line | K51: 2019-20 | L51: 40 | M51: 40 | O51: 0.102124183 | P51: 1.225490196 | AV51: 0.102124183 | AW51: 1.225490196 | AX51: 0 | AY51: 0 | AZ51: 0 | BA51: 0 | BB51: 0 | BC51: 0 | BD51: 0 | BE51: 0 | BG51: 0 | BH51: 0.01659517974 | BI51: 0.03319035948 | BJ51: 0.03319035948 | BK51: 0.03319035948 | BL51: 0.03319035948 | BM51: 0.03319035948 | BN51: 0.03319035948 | BO51: 0.03319035948 | BP51: 0.03319035948 | BR51: =+IF($K51="Ongoing",AV51,IF(RIGHT($K51,2)=RIGHT(BR$39,2),SUM($AV51:AV51),0)+IF(RIGHT(BR$39,2)>RIGHT($K51,2),AV51,0)) -> 0 | BS51: =+IF($K51="Ongoing",AW51,IF(RIGHT($K51,2)=RIGHT(BS$39,2),SUM($AV51:AW51),0)+IF(RIGHT(BS$39,2)>RIGHT($K51,2),AW51,0)) -> 1.327614379 | BT51: =+IF($K51="Ongoing",AX51,IF(RIGHT($K51,2)=RIGHT(BT$39,2),SUM($AV51:AX51),0)+IF(RIGHT(BT$39,2)>RIGHT($K51,2),AX51,0)) -> 0 | BU51: =+IF($K51="Ongoing",AY51,IF(RIGHT($K51,2)=RIGHT(BU$39,2),SUM($AV51:AY51),0)+IF(RIGHT(BU$39,2)>RIGHT($K51,2),AY51,0)) -> 0 | BV51: =+IF($K51="Ongoing",AZ51,IF(RIGHT($K51,2)=RIGHT(BV$39,2),SUM($AV51:AZ51),0)+IF(RIGHT(BV$39,2)>RIGHT($K51,2),AZ51,0)) -> 0 | BW51: =+IF($K51="Ongoing",BA51,IF(RIGHT($K51,2)=RIGHT(BW$39,2),SUM($AV51:BA51),0)+IF(RIGHT(BW$39,2)>RIGHT($K51,2),BA51,0)) -> 0 | BX51: =+IF($K51="Ongoing",BB51,IF(RIGHT($K51,2)=RIGHT(BX$39,2),SUM($AV51:BB51),0)+IF(RIGHT(BX$39,2)>RIGHT($K51,2),BB51,0)) -> 0 | BY51: =+IF($K51="Ongoing",BC51,IF(RIGHT($K51,2)=RIGHT(BY$39,2),SUM($AV51:BC51),0)+IF(RIGHT(BY$39,2)>RIGHT($K51,2),BC51,0)) -> 0 | BZ51: =+IF($K51="Ongoing",BD51,IF(RIGHT($K51,2)=RIGHT(BZ$39,2),SUM($AV51:BD51),0)+IF(RIGHT(BZ$39,2)>RIGHT($K51,2),BD51,0)) -> 0 | CA51: =+IF($K51="Ongoing",BE51,IF(RIGHT($K51,2)=RIGHT(CA$39,2),SUM($AV51:BE51),0)+IF(RIGHT(CA$39,2)>RIGHT($K51,2),BE51,0)) -> 0 | CC51: =+O51*KeyAssumptionsPriceControl_FO!X$15 -> 0.1044730392 | CD51: =+P51*KeyAssumptionsPriceControl_FO!Y$15 -> 1.282511029 | CE51: =+Q51*KeyAssumptionsPriceControl_FO!Z$15 -> 0 | CF51: =+R51*KeyAssumptionsPriceControl_FO!AA$15 -> 0 | CG51: =+S51*KeyAssumptionsPriceControl_FO!AB$15 -> 0 | CH51: =+T51*KeyAssumptionsPriceControl_FO!AC$15 -> 0 | CI51: =+U51*KeyAssumptionsPriceControl_FO!AD$15 -> 0 | CJ51: =+V51*KeyAssumptionsPriceControl_FO!AE$15 -> 0 | CK51: =+W51*KeyAssumptionsPriceControl_FO!AF$15 -> 0 | CL51: =+X51*KeyAssumptionsPriceControl_FO!AG$15 -> 0 | CN51: 0.00130591299 | CO51: 0.01864321385 | CP51: 0.03467460172 | CQ51: 0.03467460172 | CR51: 0.03467460172 | CS51: 0.03467460172 | CT51: 0.03467460172 | CU51: 0.03467460172 | CV51: 0.03467460172 | CW51: 0.03467460172
C53: Bores | E53: Water | F53: Renewals | G53: Headworks | H53: Capital Programs / Allocation | J53: Straight line | K53: Ongoing | L53: 40 | M53: 40 | O53: 0.04882646038 | P53: 0.06149912173 | Q53: 0.07122234477 | R53: 0.07358213848 | S53: 0.06325281863 | T53: 0.05833209763 | U53: 0.05935980392 | V53: 0.05401701389 | W53: 0.06911893382 | X53: 0.08484621119 | AV53: 0.04882646038 | AW53: 0.06149912173 | AX53: 0.07122234477 | AY53: 0.07358213848 | AZ53: 0.06325281863 | BA53: 0.05833209763 | BB53: 0.05935980392 | BC53: 0.05401701389 | BD53: 0.06911893382 | BE53: 0.08484621119 | BG53: 0.0006103307547 | BH53: 0.001989400531 | BI53: 0.003648418862 | BJ53: 0.005458474903 | BK53: 0.007168911867 | BL53: 0.00868872332 | BM53: 0.01015987209 | BN53: 0.01157708231 | BO53: 0.01311628166 | BP53: 0.01504084597 | BR53: =+IF($K53="Ongoing",AV53,IF(RIGHT($K53,2)=RIGHT(BR$39,2),SUM($AV53:AV53),0)+IF(RIGHT(BR$39,2)>RIGHT($K53,2),AV53,0)) -> 0.04882646038 | BS53: =+IF($K53="Ongoing",AW53,IF(RIGHT($K53,2)=RIGHT(BS$39,2),SUM($AV53:AW53),0)+IF(RIGHT(BS$39,2)>RIGHT($K53,2),AW53,0)) -> 0.06149912173 | BT53: =+IF($K53="Ongoing",AX53,IF(RIGHT($K53,2)=RIGHT(BT$39,2),SUM($AV53:AX53),0)+IF(RIGHT(BT$39,2)>RIGHT($K53,2),AX53,0)) -> 0.07122234477 | BU53: =+IF($K53="Ongoing",AY53,IF(RIGHT($K53,2)=RIGHT(BU$39,2),SUM($AV53:AY53),0)+IF(RIGHT(BU$39,2)>RIGHT($K53,2),AY53,0)) -> 0.07358213848 | BV53: =+IF($K53="Ongoing",AZ53,IF(RIGHT($K53,2)=RIGHT(BV$39,2),SUM($AV53:AZ53),0)+IF(RIGHT(BV$39,2)>RIGHT($K53,2),AZ53,0)) -> 0.06325281863 | BW53: =+IF($K53="Ongoing",BA53,IF(RIGHT($K53,2)=RIGHT(BW$39,2),SUM($AV53:BA53),0)+IF(RIGHT(BW$39,2)>RIGHT($K53,2),BA53,0)) -> 0.05833209763 | BX53: =+IF($K53="Ongoing",BB53,IF(RIGHT($K53,2)=RIGHT(BX$39,2),SUM($AV53:BB53),0)+IF(RIGHT(BX$39,2)>RIGHT($K53,2),BB53,0)) -> 0.05935980392 | BY53: =+IF($K53="Ongoing",BC53,IF(RIGHT($K53,2)=RIGHT(BY$39,2),SUM($AV53:BC53),0)+IF(RIGHT(BY$39,2)>RIGHT($K53,2),BC53,0)) -> 0.05401701389 | BZ53: =+IF($K53="Ongoing",BD53,IF(RIGHT($K53,2)=RIGHT(BZ$39,2),SUM($AV53:BD53),0)+IF(RIGHT(BZ$39,2)>RIGHT($K53,2),BD53,0)) -> 0.06911893382 | CA53: =+IF($K53="Ongoing",BE53,IF(RIGHT($K53,2)=RIGHT(CA$39,2),SUM($AV53:BE53),0)+IF(RIGHT(CA$39,2)>RIGHT($K53,2),BE53,0)) -> 0.08484621119 | CC53: =+O53*KeyAssumptionsPriceControl_FO!X$15 -> 0.04994946896 | CD53: =+P53*KeyAssumptionsPriceControl_FO!Y$15 -> 0.06436061437 | CE53: =+Q53*KeyAssumptionsPriceControl_FO!Z$15 -> 0.07625058298 | CF53: =+R53*KeyAssumptionsPriceControl_FO!AA$15 -> 0.08058884661 | CG53: =+S53*KeyAssumptionsPriceControl_FO!AB$15 -> 0.07086928506 | CH53: =+T53*KeyAssumptionsPriceControl_FO!AC$15 -> 0.06685923395 | CI53: =+U53*KeyAssumptionsPriceControl_FO!AD$15 -> 0.06960202797 | CJ53: =+V53*KeyAssumptionsPriceControl_FO!AE$15 -> 0.06479412688 | CK53: =+W53*KeyAssumptionsPriceControl_FO!AF$15 -> 0.08481598964 | CL53: =+X53*KeyAssumptionsPriceControl_FO!AG$15 -> 0.1065096091 | CN53: 0.0006243683621 | CO53: 0.002053244404 | CP53: 0.003810884371 | CQ53: 0.005771377241 | CR53: 0.007664603887 | CS53: 0.009386210374 | CT53: 0.01109197615 | CU53: 0.01277192808 | CV53: 0.01464205454 | CW53: 0.01703362452
C54: Computer Equipment | E54: Water | F54: Renewals | G54: Corporate | H54: Capital Programs / Allocation | J54: Straight line | K54: Ongoing | L54: 4 | M54: 4 | O54: 0.9575 | P54: 0.584 | Q54: 0.4565 | R54: 0.0955 | S54: 0.364 | T54: 0.9385 | U54: 0.5905 | V54: 0.4565 | W54: 0.0575 | X54: 0.8105 | AV54: 0.9575 | AW54: 0.584 | AX54: 0.4565 | AY54: 0.0955 | AZ54: 0.364 | BA54: 0.9385 | BB54: 0.5905 | BC54: 0.4565 | BD54: 0.0575 | BE54: 0.8105 | BG54: 0.1196875 | BH54: 0.312375 | BI54: 0.4424375 | BJ54: 0.5114375 | BK54: 0.4491875 | BL54: 0.4193125 | BM54: 0.480375 | BN54: 0.54225 | BO54: 0.5490625 | BP54: 0.49475 | BR54: =+IF($K54="Ongoing",AV54,IF(RIGHT($K54,2)=RIGHT(BR$39,2),SUM($AV54:AV54),0)+IF(RIGHT(BR$39,2)>RIGHT($K54,2),AV54,0)) -> 0.9575 | BS54: =+IF($K54="Ongoing",AW54,IF(RIGHT($K54,2)=RIGHT(BS$39,2),SUM($AV54:AW54),0)+IF(RIGHT(BS$39,2)>RIGHT($K54,2),AW54,0)) -> 0.584 | BT54: =+IF($K54="Ongoing",AX54,IF(RIGHT($K54,2)=RIGHT(BT$39,2),SUM($AV54:AX54),0)+IF(RIGHT(BT$39,2)>RIGHT($K54,2),AX54,0)) -> 0.4565 | BU54: =+IF($K54="Ongoing",AY54,IF(RIGHT($K54,2)=RIGHT(BU$39,2),SUM($AV54:AY54),0)+IF(RIGHT(BU$39,2)>RIGHT($K54,2),AY54,0)) -> 0.0955 | BV54: =+IF($K54="Ongoing",AZ54,IF(RIGHT($K54,2)=RIGHT(BV$39,2),SUM($AV54:AZ54),0)+IF(RIGHT(BV$39,2)>RIGHT($K54,2),AZ54,0)) -> 0.364 | BW54: =+IF($K54="Ongoing",BA54,IF(RIGHT($K54,2)=RIGHT(BW$39,2),SUM($AV54:BA54),0)+IF(RIGHT(BW$39,2)>RIGHT($K54,2),BA54,0)) -> 0.9385 | BX54: =+IF($K54="Ongoing",BB54,IF(RIGHT($K54,2)=RIGHT(BX$39,2),SUM($AV54:BB54),0)+IF(RIGHT(BX$39,2)>RIGHT($K54,2),BB54,0)) -> 0.5905 | BY54: =+IF($K54="Ongoing",BC54,IF(RIGHT($K54,2)=RIGHT(BY$39,2),SUM($AV54:BC54),0)+IF(RIGHT(BY$39,2)>RIGHT($K54,2),BC54,0)) -> 0.4565 | BZ54: =+IF($K54="Ongoing",BD54,IF(RIGHT($K54,2)=RIGHT(BZ$39,2),SUM($AV54:BD54),0)+IF(RIGHT(BZ$39,2)>RIGHT($K54,2),BD54,0)) -> 0.0575 | CA54: =+IF($K54="Ongoing",BE54,IF(RIGHT($K54,2)=RIGHT(CA$39,2),SUM($AV54:BE54),0)+IF(RIGHT(CA$39,2)>RIGHT($K54,2),BE54,0)) -> 0.8105 | CC54: =+O54*KeyAssumptionsPriceControl_FO!X$15 -> 0.9795225 | CD54: =+P54*KeyAssumptionsPriceControl_FO!Y$15 -> 0.611172936 | CE54: =+Q54*KeyAssumptionsPriceControl_FO!Z$15 -> 0.4887285197 | CF54: =+R54*KeyAssumptionsPriceControl_FO!AA$15 -> 0.1045937915 | CG54: =+S54*KeyAssumptionsPriceControl_FO!AB$15 -> 0.4078303595 | CH54: =+T54*KeyAssumptionsPriceControl_FO!AC$15 -> 1.075692348 | CI54: =+U54*KeyAssumptionsPriceControl_FO!AD$15 -> 0.69238769 | CJ54: =+V54*KeyAssumptionsPriceControl_FO!AE$15 -> 0.547577824 | CK54: =+W54*KeyAssumptionsPriceControl_FO!AF$15 -> 0.07055837141 | CL54: =+X54*KeyAssumptionsPriceControl_FO!AG$15 -> 1.017441285 | CN54: 0.1224403125 | CO54: 0.321277242 | CP54: 0.458764924 | CQ54: 0.5329302129 | CR54: 0.4745429193 | CS54: 0.4611463282 | CT54: 0.544668651 | CU54: 0.6254990513 | CV54: 0.6387130568 | CW54: 0.5892726755
C55: Computer Equipment | E55: Sewerage | F55: Renewals | G55: Corporate | H55: Capital Programs / Allocation | J55: Straight line | K55: Ongoing | L55: 4 | M55: 4 | O55: 0.9575 | P55: 0.584 | Q55: 0.4565 | R55: 0.0955 | S55: 0.364 | T55: 0.9385 | U55: 0.5905 | V55: 0.4565 | W55: 0.0575 | X55: 0.8105 | AV55: 0.9575 | AW55: 0.584 | AX55: 0.4565 | AY55: 0.0955 | AZ55: 0.364 | BA55: 0.9385 | BB55: 0.5905 | BC55: 0.4565 | BD55: 0.0575 | BE55: 0.8105 | BG55: 0.1196875 | BH55: 0.312375 | BI55: 0.4424375 | BJ55: 0.5114375 | BK55: 0.4491875 | BL55: 0.4193125 | BM55: 0.480375 | BN55: 0.54225 | BO55: 0.5490625 | BP55: 0.49475 | BR55: =+IF($K55="Ongoing",AV55,IF(RIGHT($K55,2)=RIGHT(BR$39,2),SUM($AV55:AV55),0)+IF(RIGHT(BR$39,2)>RIGHT($K55,2),AV55,0)) -> 0.9575 | BS55: =+IF($K55="Ongoing",AW55,IF(RIGHT($K55,2)=RIGHT(BS$39,2),SUM($AV55:AW55),0)+IF(RIGHT(BS$39,2)>RIGHT($K55,2),AW55,0)) -> 0.584 | BT55: =+IF($K55="Ongoing",AX55,IF(RIGHT($K55,2)=RIGHT(BT$39,2),SUM($AV55:AX55),0)+IF(RIGHT(BT$39,2)>RIGHT($K55,2),AX55,0)) -> 0.4565 | BU55: =+IF($K55="Ongoing",AY55,IF(RIGHT($K55,2)=RIGHT(BU$39,2),SUM($AV55:AY55),0)+IF(RIGHT(BU$39,2)>RIGHT($K55,2),AY55,0)) -> 0.0955 | BV55: =+IF($K55="Ongoing",AZ55,IF(RIGHT($K55,2)=RIGHT(BV$39,2),SUM($AV55:AZ55),0)+IF(RIGHT(BV$39,2)>RIGHT($K55,2),AZ55,0)) -> 0.364 | BW55: =+IF($K55="Ongoing",BA55,IF(RIGHT($K55,2)=RIGHT(BW$39,2),SUM($AV55:BA55),0)+IF(RIGHT(BW$39,2)>RIGHT($K55,2),BA55,0)) -> 0.9385 | BX55: =+IF($K55="Ongoing",BB55,IF(RIGHT($K55,2)=RIGHT(BX$39,2),SUM($AV55:BB55),0)+IF(RIGHT(BX$39,2)>RIGHT($K55,2),BB55,0)) -> 0.5905 | BY55: =+IF($K55="Ongoing",BC55,IF(RIGHT($K55,2)=RIGHT(BY$39,2),SUM($AV55:BC55),0)+IF(RIGHT(BY$39,2)>RIGHT($K55,2),BC55,0)) -> 0.4565 | BZ55: =+IF($K55="Ongoing",BD55,IF(RIGHT($K55,2)=RIGHT(BZ$39,2),SUM($AV55:BD55),0)+IF(RIGHT(BZ$39,2)>RIGHT($K55,2),BD55,0)) -> 0.0575 | CA55: =+IF($K55="Ongoing",BE55,IF(RIGHT($K55,2)=RIGHT(CA$39,2),SUM($AV55:BE55),0)+IF(RIGHT(CA$39,2)>RIGHT($K55,2),BE55,0)) -> 0.8105 | CC55: =+O55*KeyAssumptionsPriceControl_FO!X$15 -> 0.9795225 | CD55: =+P55*KeyAssumptionsPriceControl_FO!Y$15 -> 0.611172936 | CE55: =+Q55*KeyAssumptionsPriceControl_FO!Z$15 -> 0.4887285197 | CF55: =+R55*KeyAssumptionsPriceControl_FO!AA$15 -> 0.1045937915 | CG55: =+S55*KeyAssumptionsPriceControl_FO!AB$15 -> 0.4078303595 | CH55: =+T55*KeyAssumptionsPriceControl_FO!AC$15 -> 1.075692348 | CI55: =+U55*KeyAssumptionsPriceControl_FO!AD$15 -> 0.69238769 | CJ55: =+V55*KeyAssumptionsPriceControl_FO!AE$15 -> 0.547577824 | CK55: =+W55*KeyAssumptionsPriceControl_FO!AF$15 -> 0.07055837141 | CL55: =+X55*KeyAssumptionsPriceControl_FO!AG$15 -> 1.017441285 | CN55: 0.1224403125 | CO55: 0.321277242 | CP55: 0.458764924 | CQ55: 0.5329302129 | CR55: 0.4745429193 | CS55: 0.4611463282 | CT55: 0.544668651 | CU55: 0.6254990513 | CV55: 0.6387130568 | CW55: 0.5892726755
C56: Distribution Network | E56: Water | F56: Improvements / Compliance | G56: Pipelines/network | H56: Capital Programs / Allocation | J56: Straight line | K56: 2023-24 | L56: 80 | M56: 80 | T56: 0.01276552288 | U56: 0.06255106209 | V56: 0.06255106209 | W56: 0.02680759804 | X56: 0 | AV56: 0 | AW56: 0 | AX56: 0 | AY56: 0 | AZ56: 0 | BA56: 0.01276552288 | BB56: 0.06255106209 | BC56: 0.06255106209 | BD56: 0.02680759804 | BE56: 0 | BG56: 0 | BH56: 0 | BI56: 0 | BJ56: 0 | BK56: 0 | BL56: 7.978451797e-05 | BM56: 0.000550513174 | BN56: 0.00133240145 | BO56: 0.001890893076 | BP56: 0.002058440564 | BR56: =+IF($K56="Ongoing",AV56,IF(RIGHT($K56,2)=RIGHT(BR$39,2),SUM($AV56:AV56),0)+IF(RIGHT(BR$39,2)>RIGHT($K56,2),AV56,0)) -> 0 | BS56: =+IF($K56="Ongoing",AW56,IF(RIGHT($K56,2)=RIGHT(BS$39,2),SUM($AV56:AW56),0)+IF(RIGHT(BS$39,2)>RIGHT($K56,2),AW56,0)) -> 0 | BT56: =+IF($K56="Ongoing",AX56,IF(RIGHT($K56,2)=RIGHT(BT$39,2),SUM($AV56:AX56),0)+IF(RIGHT(BT$39,2)>RIGHT($K56,2),AX56,0)) -> 0 | BU56: =+IF($K56="Ongoing",AY56,IF(RIGHT($K56,2)=RIGHT(BU$39,2),SUM($AV56:AY56),0)+IF(RIGHT(BU$39,2)>RIGHT($K56,2),AY56,0)) -> 0 | BV56: =+IF($K56="Ongoing",AZ56,IF(RIGHT($K56,2)=RIGHT(BV$39,2),SUM($AV56:AZ56),0)+IF(RIGHT(BV$39,2)>RIGHT($K56,2),AZ56,0)) -> 0 | BW56: =+IF($K56="Ongoing",BA56,IF(RIGHT($K56,2)=RIGHT(BW$39,2),SUM($AV56:BA56),0)+IF(RIGHT(BW$39,2)>RIGHT($K56,2),BA56,0)) -> 0.01276552288 | BX56: =+IF($K56="Ongoing",BB56,IF(RIGHT($K56,2)=RIGHT(BX$39,2),SUM($AV56:BB56),0)+IF(RIGHT(BX$39,2)>RIGHT($K56,2),BB56,0)) -> 0.06255106209 | BY56: =+IF($K56="Ongoing",BC56,IF(RIGHT($K56,2)=RIGHT(BY$39,2),SUM($AV56:BC56),0)+IF(RIGHT(BY$39,2)>RIGHT($K56,2),BC56,0)) -> 0.06255106209 | BZ56: =+IF($K56="Ongoing",BD56,IF(RIGHT($K56,2)=RIGHT(BZ$39,2),SUM($AV56:BD56),0)+IF(RIGHT(BZ$39,2)>RIGHT($K56,2),BD56,0)) -> 0.02680759804 | CA56: =+IF($K56="Ongoing",BE56,IF(RIGHT($K56,2)=RIGHT(CA$39,2),SUM($AV56:BE56),0)+IF(RIGHT(CA$39,2)>RIGHT($K56,2),BE56,0)) -> 0 | CC56: =+O56*KeyAssumptionsPriceControl_FO!X$15 -> 0 | CD56: =+P56*KeyAssumptionsPriceControl_FO!Y$15 -> 0 | CE56: =+Q56*KeyAssumptionsPriceControl_FO!Z$15 -> 0 | CF56: =+R56*KeyAssumptionsPriceControl_FO!AA$15 -> 0 | CG56: =+S56*KeyAssumptionsPriceControl_FO!AB$15 -> 0 | CH56: =+T56*KeyAssumptionsPriceControl_FO!AC$15 -> 0.0146316199 | CI56: =+U56*KeyAssumptionsPriceControl_FO!AD$15 -> 0.07334392107 | CJ56: =+V56*KeyAssumptionsPriceControl_FO!AE$15 -> 0.07503083125 | CK56: =+W56*KeyAssumptionsPriceControl_FO!AF$15 -> 0.03289566016 | CL56: =+X56*KeyAssumptionsPriceControl_FO!AG$15 -> 0 | CN56: 0 | CO56: 0 | CP56: 0 | CQ56: 0 | CR56: 0 | CS56: 9.144762437e-05 | CT56: 0.0006412947554 | CU56: 0.001568636957 | CV56: 0.002243177529 | CW56: 0.002448775405
C57: Dosing System | E57: Water | F57: Improvements / Compliance | G57: Treatment | H57: Capital Programs / Allocation | J57: Straight line | K57: 2019-20 | L57: 20 | M57: 20 | O57: 0.102124183 | P57: 0.102124183 | R57: 0.0510620915 | S57: 0.0510620915 | AV57: 0.102124183 | AW57: 0.102124183 | AX57: 0 | AY57: 0.0510620915 | AZ57: 0.0510620915 | BA57: 0 | BB57: 0 | BC57: 0 | BD57: 0 | BE57: 0 | BG57: 0 | BH57: 0.00510620915 | BI57: 0.0102124183 | BJ57: 0.01148897059 | BK57: 0.01404207516 | BL57: 0.01531862745 | BM57: 0.01531862745 | BN57: 0.01531862745 | BO57: 0.01531862745 | BP57: 0.01531862745 | BR57: =+IF($K57="Ongoing",AV57,IF(RIGHT($K57,2)=RIGHT(BR$39,2),SUM($AV57:AV57),0)+IF(RIGHT(BR$39,2)>RIGHT($K57,2),AV57,0)) -> 0 | BS57: =+IF($K57="Ongoing",AW57,IF(RIGHT($K57,2)=RIGHT(BS$39,2),SUM($AV57:AW57),0)+IF(RIGHT(BS$39,2)>RIGHT($K57,2),AW57,0)) -> 0.204248366 | BT57: =+IF($K57="Ongoing",AX57,IF(RIGHT($K57,2)=RIGHT(BT$39,2),SUM($AV57:AX57),0)+IF(RIGHT(BT$39,2)>RIGHT($K57,2),AX57,0)) -> 0 | BU57: =+IF($K57="Ongoing",AY57,IF(RIGHT($K57,2)=RIGHT(BU$39,2),SUM($AV57:AY57),0)+IF(RIGHT(BU$39,2)>RIGHT($K57,2),AY57,0)) -> 0.0510620915 | BV57: =+IF($K57="Ongoing",AZ57,IF(RIGHT($K57,2)=RIGHT(BV$39,2),SUM($AV57:AZ57),0)+IF(RIGHT(BV$39,2)>RIGHT($K57,2),AZ57,0)) -> 0.0510620915 | BW57: =+IF($K57="Ongoing",BA57,IF(RIGHT($K57,2)=RIGHT(BW$39,2),SUM($AV57:BA57),0)+IF(RIGHT(BW$39,2)>RIGHT($K57,2),BA57,0)) -> 0 | BX57: =+IF($K57="Ongoing",BB57,IF(RIGHT($K57,2)=RIGHT(BX$39,2),SUM($AV57:BB57),0)+IF(RIGHT(BX$39,2)>RIGHT($K57,2),BB57,0)) -> 0 | BY57: =+IF($K57="Ongoing",BC57,IF(RIGHT($K57,2)=RIGHT(BY$39,2),SUM($AV57:BC57),0)+IF(RIGHT(BY$39,2)>RIGHT($K57,2),BC57,0)) -> 0 | BZ57: =+IF($K57="Ongoing",BD57,IF(RIGHT($K57,2)=RIGHT(BZ$39,2),SUM($AV57:BD57),0)+IF(RIGHT(BZ$39,2)>RIGHT($K57,2),BD57,0)) -> 0 | CA57: =+IF($K57="Ongoing",BE57,IF(RIGHT($K57,2)=RIGHT(CA$39,2),SUM($AV57:BE57),0)+IF(RIGHT(CA$39,2)>RIGHT($K57,2),BE57,0)) -> 0 | CC57: =+O57*KeyAssumptionsPriceControl_FO!X$15 -> 0.1044730392 | CD57: =+P57*KeyAssumptionsPriceControl_FO!Y$15 -> 0.1068759191 | CE57: =+Q57*KeyAssumptionsPriceControl_FO!Z$15 -> 0 | CF57: =+R57*KeyAssumptionsPriceControl_FO!AA$15 -> 0.05592437438 | CG57: =+S57*KeyAssumptionsPriceControl_FO!AB$15 -> 0.05721063499 | CH57: =+T57*KeyAssumptionsPriceControl_FO!AC$15 -> 0 | CI57: =+U57*KeyAssumptionsPriceControl_FO!AD$15 -> 0 | CJ57: =+V57*KeyAssumptionsPriceControl_FO!AE$15 -> 0 | CK57: =+W57*KeyAssumptionsPriceControl_FO!AF$15 -> 0 | CL57: =+X57*KeyAssumptionsPriceControl_FO!AG$15 -> 0 | CN57: 0.00261182598 | CO57: 0.007895549939 | CP57: 0.01056744792 | CQ57: 0.01196555728 | CR57: 0.01479393251 | CS57: 0.01622419839 | CT57: 0.01622419839 | CU57: 0.01622419839 | CV57: 0.01622419839 | CW57: 0.01622419839
C58: Electrical Equipment | E58: Water | F58: Improvements / Compliance | G58: Corporate | H58: Capital Programs / Allocation | J58: Straight line | K58: 2019-20 | L58: 15 | M58: 15 | O58: 0.2785 | P58: 0.6715 | Q58: 0.033 | R58: 0.0385 | S58: 0.033 | T58: 0.4045 | U58: 0.4045 | Z58: 0.0119 | AA58: 0.11984 | AB58: 0.10195 | AC58: 0.0625 | AV58: 0.2666 | AW58: 0.55166 | AX58: -0.06895 | AY58: -0.024 | AZ58: 0.033 | BA58: 0.4045 | BB58: 0.4045 | BC58: 0 | BD58: 0 | BE58: 0 | BG58: 0 | BH58: 0.02727533333 | BI58: 0.05225233333 | BJ58: 0.049154 | BK58: 0.049454 | BL58: 0.06403733333 | BM58: 0.091004 | BN58: 0.1044873333 | BO58: 0.1044873333 | BP58: 0.1044873333 | BR58: =+IF($K58="Ongoing",AV58,IF(RIGHT($K58,2)=RIGHT(BR$39,2),SUM($AV58:AV58),0)+IF(RIGHT(BR$39,2)>RIGHT($K58,2),AV58,0)) -> 0 | BS58: =+IF($K58="Ongoing",AW58,IF(RIGHT($K58,2)=RIGHT(BS$39,2),SUM($AV58:AW58),0)+IF(RIGHT(BS$39,2)>RIGHT($K58,2),AW58,0)) -> 0.81826 | BT58: =+IF($K58="Ongoing",AX58,IF(RIGHT($K58,2)=RIGHT(BT$39,2),SUM($AV58:AX58),0)+IF(RIGHT(BT$39,2)>RIGHT($K58,2),AX58,0)) -> -0.06895 | BU58: =+IF($K58="Ongoing",AY58,IF(RIGHT($K58,2)=RIGHT(BU$39,2),SUM($AV58:AY58),0)+IF(RIGHT(BU$39,2)>RIGHT($K58,2),AY58,0)) -> -0.024 | BV58: =+IF($K58="Ongoing",AZ58,IF(RIGHT($K58,2)=RIGHT(BV$39,2),SUM($AV58:AZ58),0)+IF(RIGHT(BV$39,2)>RIGHT($K58,2),AZ58,0)) -> 0.033 | BW58: =+IF($K58="Ongoing",BA58,IF(RIGHT($K58,2)=RIGHT(BW$39,2),SUM($AV58:BA58),0)+IF(RIGHT(BW$39,2)>RIGHT($K58,2),BA58,0)) -> 0.4045 | BX58: =+IF($K58="Ongoing",BB58,IF(RIGHT($K58,2)=RIGHT(BX$39,2),SUM($AV58:BB58),0)+IF(RIGHT(BX$39,2)>RIGHT($K58,2),BB58,0)) -> 0.4045 | BY58: =+IF($K58="Ongoing",BC58,IF(RIGHT($K58,2)=RIGHT(BY$39,2),SUM($AV58:BC58),0)+IF(RIGHT(BY$39,2)>RIGHT($K58,2),BC58,0)) -> 0 | BZ58: =+IF($K58="Ongoing",BD58,IF(RIGHT($K58,2)=RIGHT(BZ$39,2),SUM($AV58:BD58),0)+IF(RIGHT(BZ$39,2)>RIGHT($K58,2),BD58,0)) -> 0 | CA58: =+IF($K58="Ongoing",BE58,IF(RIGHT($K58,2)=RIGHT(CA$39,2),SUM($AV58:BE58),0)+IF(RIGHT(CA$39,2)>RIGHT($K58,2),BE58,0)) -> 0 | CC58: =+O58*KeyAssumptionsPriceControl_FO!X$15 -> 0.2849055 | CD58: =+P58*KeyAssumptionsPriceControl_FO!Y$15 -> 0.7027442235 | CE58: =+Q58*KeyAssumptionsPriceControl_FO!Z$15 -> 0.03532977251 | CF58: =+R58*KeyAssumptionsPriceControl_FO!AA$15 -> 0.04216608349 | CG58: =+S58*KeyAssumptionsPriceControl_FO!AB$15 -> 0.0369736315 | CH58: =+T58*KeyAssumptionsPriceControl_FO!AC$15 -> 0.4636308521 | CI58: =+U58*KeyAssumptionsPriceControl_FO!AD$15 -> 0.4742943617 | CJ58: =+V58*KeyAssumptionsPriceControl_FO!AE$15 -> 0 | CK58: =+W58*KeyAssumptionsPriceControl_FO!AF$15 -> 0 | CL58: =+X58*KeyAssumptionsPriceControl_FO!AG$15 -> 0 | CN58: 0.00949685 | CO58: 0.04241850745 | CP58: 0.06702097398 | CQ58: 0.06960416918 | CR58: 0.07224215968 | CS58: 0.0889289758 | CT58: 0.1201931496 | CU58: 0.1360029617 | CV58: 0.1360029617 | CW58: 0.1360029617
C59: Electrical Equipment | E59: Sewerage | F59: Improvements / Compliance | G59: Corporate | H59: Capital Programs / Allocation | J59: Straight line | K59: 2019-20 | L59: 15 | M59: 15 | O59: 0.2785 | P59: 0.6715 | Q59: 0.033 | R59: 0.0385 | S59: 0.033 | T59: 0.4045 | U59: 0.4045 | Z59: 0.0119 | AA59: 0.11984 | AB59: 0.10195 | AC59: 0.0625 | AV59: 0.2666 | AW59: 0.55166 | AX59: -0.06895 | AY59: -0.024 | AZ59: 0.033 | BA59: 0.4045 | BB59: 0.4045 | BC59: 0 | BD59: 0 | BE59: 0 | BG59: 0 | BH59: 0.02727533333 | BI59: 0.05225233333 | BJ59: 0.049154 | BK59: 0.049454 | BL59: 0.06403733333 | BM59: 0.091004 | BN59: 0.1044873333 | BO59: 0.1044873333 | BP59: 0.1044873333 | BR59: =+IF($K59="Ongoing",AV59,IF(RIGHT($K59,2)=RIGHT(BR$39,2),SUM($AV59:AV59),0)+IF(RIGHT(BR$39,2)>RIGHT($K59,2),AV59,0)) -> 0 | BS59: =+IF($K59="Ongoing",AW59,IF(RIGHT($K59,2)=RIGHT(BS$39,2),SUM($AV59:AW59),0)+IF(RIGHT(BS$39,2)>RIGHT($K59,2),AW59,0)) -> 0.81826 | BT59: =+IF($K59="Ongoing",AX59,IF(RIGHT($K59,2)=RIGHT(BT$39,2),SUM($AV59:AX59),0)+IF(RIGHT(BT$39,2)>RIGHT($K59,2),AX59,0)) -> -0.06895 | BU59: =+IF($K59="Ongoing",AY59,IF(RIGHT($K59,2)=RIGHT(BU$39,2),SUM($AV59:AY59),0)+IF(RIGHT(BU$39,2)>RIGHT($K59,2),AY59,0)) -> -0.024 | BV59: =+IF($K59="Ongoing",AZ59,IF(RIGHT($K59,2)=RIGHT(BV$39,2),SUM($AV59:AZ59),0)+IF(RIGHT(BV$39,2)>RIGHT($K59,2),AZ59,0)) -> 0.033 | BW59: =+IF($K59="Ongoing",BA59,IF(RIGHT($K59,2)=RIGHT(BW$39,2),SUM($AV59:BA59),0)+IF(RIGHT(BW$39,2)>RIGHT($K59,2),BA59,0)) -> 0.4045 | BX59: =+IF($K59="Ongoing",BB59,IF(RIGHT($K59,2)=RIGHT(BX$39,2),SUM($AV59:BB59),0)+IF(RIGHT(BX$39,2)>RIGHT($K59,2),BB59,0)) -> 0.4045 | BY59: =+IF($K59="Ongoing",BC59,IF(RIGHT($K59,2)=RIGHT(BY$39,2),SUM($AV59:BC59),0)+IF(RIGHT(BY$39,2)>RIGHT($K59,2),BC59,0)) -> 0 | BZ59: =+IF($K59="Ongoing",BD59,IF(RIGHT($K59,2)=RIGHT(BZ$39,2),SUM($AV59:BD59),0)+IF(RIGHT(BZ$39,2)>RIGHT($K59,2),BD59,0)) -> 0 | CA59: =+IF($K59="Ongoing",BE59,IF(RIGHT($K59,2)=RIGHT(CA$39,2),SUM($AV59:BE59),0)+IF(RIGHT(CA$39,2)>RIGHT($K59,2),BE59,0)) -> 0 | CC59: =+O59*KeyAssumptionsPriceControl_FO!X$15 -> 0.2849055 | CD59: =+P59*KeyAssumptionsPriceControl_FO!Y$15 -> 0.7027442235 | CE59: =+Q59*KeyAssumptionsPriceControl_FO!Z$15 -> 0.03532977251 | CF59: =+R59*KeyAssumptionsPriceControl_FO!AA$15 -> 0.04216608349 | CG59: =+S59*KeyAssumptionsPriceControl_FO!AB$15 -> 0.0369736315 | CH59: =+T59*KeyAssumptionsPriceControl_FO!AC$15 -> 0.4636308521 | CI59: =+U59*KeyAssumptionsPriceControl_FO!AD$15 -> 0.4742943617 | CJ59: =+V59*KeyAssumptionsPriceControl_FO!AE$15 -> 0 | CK59: =+W59*KeyAssumptionsPriceControl_FO!AF$15 -> 0 | CL59: =+X59*KeyAssumptionsPriceControl_FO!AG$15 -> 0 | CN59: 0.00949685 | CO59: 0.04241850745 | CP59: 0.06702097398 | CQ59: 0.06960416918 | CR59: 0.07224215968 | CS59: 0.0889289758 | CT59: 0.1201931496 | CU59: 0.1360029617 | CV59: 0.1360029617 | CW59: 0.1360029617
C60: Instrumentation | E60: Sewerage | F60: Improvements / Compliance | G60: Corporate | H60: Capital Programs / Allocation | J60: Straight line | K60: 2020-21 | L60: 15 | M60: 15 | Q60: 0.0510620915 | AV60: 0 | AW60: 0 | AX60: 0.0510620915 | AY60: 0 | AZ60: 0 | BA60: 0 | BB60: 0 | BC60: 0 | BD60: 0 | BE60: 0 | BG60: 0 | BH60: 0 | BI60: 0.001702069717 | BJ60: 0.003404139434 | BK60: 0.003404139434 | BL60: 0.003404139434 | BM60: 0.003404139434 | BN60: 0.003404139434 | BO60: 0.003404139434 | BP60: 0.003404139434 | BR60: =+IF($K60="Ongoing",AV60,IF(RIGHT($K60,2)=RIGHT(BR$39,2),SUM($AV60:AV60),0)+IF(RIGHT(BR$39,2)>RIGHT($K60,2),AV60,0)) -> 0 | BS60: =+IF($K60="Ongoing",AW60,IF(RIGHT($K60,2)=RIGHT(BS$39,2),SUM($AV60:AW60),0)+IF(RIGHT(BS$39,2)>RIGHT($K60,2),AW60,0)) -> 0 | BT60: =+IF($K60="Ongoing",AX60,IF(RIGHT($K60,2)=RIGHT(BT$39,2),SUM($AV60:AX60),0)+IF(RIGHT(BT$39,2)>RIGHT($K60,2),AX60,0)) -> 0.0510620915 | BU60: =+IF($K60="Ongoing",AY60,IF(RIGHT($K60,2)=RIGHT(BU$39,2),SUM($AV60:AY60),0)+IF(RIGHT(BU$39,2)>RIGHT($K60,2),AY60,0)) -> 0 | BV60: =+IF($K60="Ongoing",AZ60,IF(RIGHT($K60,2)=RIGHT(BV$39,2),SUM($AV60:AZ60),0)+IF(RIGHT(BV$39,2)>RIGHT($K60,2),AZ60,0)) -> 0 | BW60: =+IF($K60="Ongoing",BA60,IF(RIGHT($K60,2)=RIGHT(BW$39,2),SUM($AV60:BA60),0)+IF(RIGHT(BW$39,2)>RIGHT($K60,2),BA60,0)) -> 0 | BX60: =+IF($K60="Ongoing",BB60,IF(RIGHT($K60,2)=RIGHT(BX$39,2),SUM($AV60:BB60),0)+IF(RIGHT(BX$39,2)>RIGHT($K60,2),BB60,0)) -> 0 | BY60: =+IF($K60="Ongoing",BC60,IF(RIGHT($K60,2)=RIGHT(BY$39,2),SUM($AV60:BC60),0)+IF(RIGHT(BY$39,2)>RIGHT($K60,2),BC60,0)) -> 0 | BZ60: =+IF($K60="Ongoing",BD60,IF(RIGHT($K60,2)=RIGHT(BZ$39,2),SUM($AV60:BD60),0)+IF(RIGHT(BZ$39,2)>RIGHT($K60,2),BD60,0)) -> 0 | CA60: =+IF($K60="Ongoing",BE60,IF(RIGHT($K60,2)=RIGHT(CA$39,2),SUM($AV60:BE60),0)+IF(RIGHT(CA$39,2)>RIGHT($K60,2),BE60,0)) -> 0 | CC60: =+O60*KeyAssumptionsPriceControl_FO!X$15 -> 0 | CD60: =+P60*KeyAssumptionsPriceControl_FO!Y$15 -> 0 | CE60: =+Q60*KeyAssumptionsPriceControl_FO!Z$15 -> 0.05466703263 | CF60: =+R60*KeyAssumptionsPriceControl_FO!AA$15 -> 0 | CG60: =+S60*KeyAssumptionsPriceControl_FO!AB$15 -> 0 | CH60: =+T60*KeyAssumptionsPriceControl_FO!AC$15 -> 0 | CI60: =+U60*KeyAssumptionsPriceControl_FO!AD$15 -> 0 | CJ60: =+V60*KeyAssumptionsPriceControl_FO!AE$15 -> 0 | CK60: =+W60*KeyAssumptionsPriceControl_FO!AF$15 -> 0 | CL60: =+X60*KeyAssumptionsPriceControl_FO!AG$15 -> 0 | CN60: 0 | CO60: 0 | CP60: 0.001822234421 | CQ60: 0.003644468842 | CR60: 0.003644468842 | CS60: 0.003644468842 | CT60: 0.003644468842 | CU60: 0.003644468842 | CV60: 0.003644468842 | CW60: 0.003644468842
C61: Instrumentation | E61: Water | F61: Improvements / Compliance | G61: Corporate | H61: Capital Programs / Allocation | J61: Straight line | K61: 2021-22 | L61: 15 | M61: 15 | R61: 0.1531862745 | T61: 0.04595588235 | AV61: 0 | AW61: 0 | AX61: 0 | AY61: 0.1531862745 | AZ61: 0 | BA61: 0.04595588235 | BB61: 0 | BC61: 0 | BD61: 0 | BE61: 0 | BG61: 0 | BH61: 0 | BI61: 0 | BJ61: 0.00510620915 | BK61: 0.0102124183 | BL61: 0.01174428105 | BM61: 0.01327614379 | BN61: 0.01327614379 | BO61: 0.01327614379 | BP61: 0.01327614379 | BR61: =+IF($K61="Ongoing",AV61,IF(RIGHT($K61,2)=RIGHT(BR$39,2),SUM($AV61:AV61),0)+IF(RIGHT(BR$39,2)>RIGHT($K61,2),AV61,0)) -> 0 | BS61: =+IF($K61="Ongoing",AW61,IF(RIGHT($K61,2)=RIGHT(BS$39,2),SUM($AV61:AW61),0)+IF(RIGHT(BS$39,2)>RIGHT($K61,2),AW61,0)) -> 0 | BT61: =+IF($K61="Ongoing",AX61,IF(RIGHT($K61,2)=RIGHT(BT$39,2),SUM($AV61:AX61),0)+IF(RIGHT(BT$39,2)>RIGHT($K61,2),AX61,0)) -> 0 | BU61: =+IF($K61="Ongoing",AY61,IF(RIGHT($K61,2)=RIGHT(BU$39,2),SUM($AV61:AY61),0)+IF(RIGHT(BU$39,2)>RIGHT($K61,2),AY61,0)) -> 0.1531862745 | BV61: =+IF($K61="Ongoing",AZ61,IF(RIGHT($K61,2)=RIGHT(BV$39,2),SUM($AV61:AZ61),0)+IF(RIGHT(BV$39,2)>RIGHT($K61,2),AZ61,0)) -> 0 | BW61: =+IF($K61="Ongoing",BA61,IF(RIGHT($K61,2)=RIGHT(BW$39,2),SUM($AV61:BA61),0)+IF(RIGHT(BW$39,2)>RIGHT($K61,2),BA61,0)) -> 0.04595588235 | BX61: =+IF($K61="Ongoing",BB61,IF(RIGHT($K61,2)=RIGHT(BX$39,2),SUM($AV61:BB61),0)+IF(RIGHT(BX$39,2)>RIGHT($K61,2),BB61,0)) -> 0 | BY61: =+IF($K61="Ongoing",BC61,IF(RIGHT($K61,2)=RIGHT(BY$39,2),SUM($AV61:BC61),0)+IF(RIGHT(BY$39,2)>RIGHT($K61,2),BC61,0)) -> 0 | BZ61: =+IF($K61="Ongoing",BD61,IF(RIGHT($K61,2)=RIGHT(BZ$39,2),SUM($AV61:BD61),0)+IF(RIGHT(BZ$39,2)>RIGHT($K61,2),BD61,0)) -> 0 | CA61: =+IF($K61="Ongoing",BE61,IF(RIGHT($K61,2)=RIGHT(CA$39,2),SUM($AV61:BE61),0)+IF(RIGHT(CA$39,2)>RIGHT($K61,2),BE61,0)) -> 0 | CC61: =+O61*KeyAssumptionsPriceControl_FO!X$15 -> 0 | CD61: =+P61*KeyAssumptionsPriceControl_FO!Y$15 -> 0 | CE61: =+Q61*KeyAssumptionsPriceControl_FO!Z$15 -> 0 | CF61: =+R61*KeyAssumptionsPriceControl_FO!AA$15 -> 0.1677731231 | CG61: =+S61*KeyAssumptionsPriceControl_FO!AB$15 -> 0 | CH61: =+T61*KeyAssumptionsPriceControl_FO!AC$15 -> 0.05267383164 | CI61: =+U61*KeyAssumptionsPriceControl_FO!AD$15 -> 0 | CJ61: =+V61*KeyAssumptionsPriceControl_FO!AE$15 -> 0 | CK61: =+W61*KeyAssumptionsPriceControl_FO!AF$15 -> 0 | CL61: =+X61*KeyAssumptionsPriceControl_FO!AG$15 -> 0 | CN61: 0 | CO61: 0 | CP61: 0 | CQ61: 0.005592437438 | CR61: 0.01118487488 | CS61: 0.01294066926 | CT61: 0.01469646365 | CU61: 0.01469646365 | CV61: 0.01469646365 | CW61: 0.01469646365
C62: Mainlines | E62: Water | F62: Renewals | G62: Pipelines/network | H62: Capital Programs / Allocation | J62: Straight line | K62: 2022-23 | L62: 100 | M62: 100 | S62: 0.06382761438 | AV62: 0 | AW62: 0 | AX62: 0 | AY62: 0 | AZ62: 0.06382761438 | BA62: 0 | BB62: 0 | BC62: 0 | BD62: 0 | BE62: 0 | BG62: 0 | BH62: 0 | BI62: 0 | BJ62: 0 | BK62: 0.0003191380719 | BL62: 0.0006382761438 | BM62: 0.0006382761438 | BN62: 0.0006382761438 | BO62: 0.0006382761438 | BP62: 0.0006382761438 | BR62: =+IF($K62="Ongoing",AV62,IF(RIGHT($K62,2)=RIGHT(BR$39,2),SUM($AV62:AV62),0)+IF(RIGHT(BR$39,2)>RIGHT($K62,2),AV62,0)) -> 0 | BS62: =+IF($K62="Ongoing",AW62,IF(RIGHT($K62,2)=RIGHT(BS$39,2),SUM($AV62:AW62),0)+IF(RIGHT(BS$39,2)>RIGHT($K62,2),AW62,0)) -> 0 | BT62: =+IF($K62="Ongoing",AX62,IF(RIGHT($K62,2)=RIGHT(BT$39,2),SUM($AV62:AX62),0)+IF(RIGHT(BT$39,2)>RIGHT($K62,2),AX62,0)) -> 0 | BU62: =+IF($K62="Ongoing",AY62,IF(RIGHT($K62,2)=RIGHT(BU$39,2),SUM($AV62:AY62),0)+IF(RIGHT(BU$39,2)>RIGHT($K62,2),AY62,0)) -> 0 | BV62: =+IF($K62="Ongoing",AZ62,IF(RIGHT($K62,2)=RIGHT(BV$39,2),SUM($AV62:AZ62),0)+IF(RIGHT(BV$39,2)>RIGHT($K62,2),AZ62,0)) -> 0.06382761438 | BW62: =+IF($K62="Ongoing",BA62,IF(RIGHT($K62,2)=RIGHT(BW$39,2),SUM($AV62:BA62),0)+IF(RIGHT(BW$39,2)>RIGHT($K62,2),BA62,0)) -> 0 | BX62: =+IF($K62="Ongoing",BB62,IF(RIGHT($K62,2)=RIGHT(BX$39,2),SUM($AV62:BB62),0)+IF(RIGHT(BX$39,2)>RIGHT($K62,2),BB62,0)) -> 0 | BY62: =+IF($K62="Ongoing",BC62,IF(RIGHT($K62,2)=RIGHT(BY$39,2),SUM($AV62:BC62),0)+IF(RIGHT(BY$39,2)>RIGHT($K62,2),BC62,0)) -> 0 | BZ62: =+IF($K62="Ongoing",BD62,IF(RIGHT($K62,2)=RIGHT(BZ$39,2),SUM($AV62:BD62),0)+IF(RIGHT(BZ$39,2)>RIGHT($K62,2),BD62,0)) -> 0 | CA62: =+IF($K62="Ongoing",BE62,IF(RIGHT($K62,2)=RIGHT(CA$39,2),SUM($AV62:BE62),0)+IF(RIGHT(CA$39,2)>RIGHT($K62,2),BE62,0)) -> 0 | CC62: =+O62*KeyAssumptionsPriceControl_FO!X$15 -> 0 | CD62: =+P62*KeyAssumptionsPriceControl_FO!Y$15 -> 0 | CE62: =+Q62*KeyAssumptionsPriceControl_FO!Z$15 -> 0 | CF62: =+R62*KeyAssumptionsPriceControl_FO!AA$15 -> 0 | CG62: =+S62*KeyAssumptionsPriceControl_FO!AB$15 -> 0.07151329374 | CH62: =+T62*KeyAssumptionsPriceControl_FO!AC$15 -> 0 | CI62: =+U62*KeyAssumptionsPriceControl_FO!AD$15 -> 0 | CJ62: =+V62*KeyAssumptionsPriceControl_FO!AE$15 -> 0 | CK62: =+W62*KeyAssumptionsPriceControl_FO!AF$15 -> 0 | CL62: =+X62*KeyAssumptionsPriceControl_FO!AG$15 -> 0 | CN62: 0 | CO62: 0 | CP62: 0 | CQ62: 0 | CR62: 0.0003575664687 | CS62: 0.0007151329374 | CT62: 0.0007151329374 | CU62: 0.0007151329374 | CV62: 0.0007151329374 | CW62: 0.0007151329374
C63: Multiple Facilities | E63: Sewerage | F63: Renewals | G63: Treatment | H63: Capital Programs / Allocation | J63: Straight line | K63: Ongoing | L63: 40 | M63: 40 | O63: 0.06358911356 | P63: 0.09475231822 | Q63: 0.1302495813 | R63: 0.1522910743 | S63: 0.1432218444 | T63: 0.1249517974 | U63: 0.1082645527 | V63: 0.08638374183 | W63: 0.08511547181 | X63: 0.07736991422 | AV63: 0.06358911356 | AW63: 0.09475231822 | AX63: 0.1302495813 | AY63: 0.1522910743 | AZ63: 0.1432218444 | BA63: 0.1249517974 | BB63: 0.1082645527 | BC63: 0.08638374183 | BD63: 0.08511547181 | BE63: 0.07736991422 | BG63: 0.0007948639195 | BH63: 0.002774131817 | BI63: 0.005586655561 | BJ63: 0.009118413756 | BK63: 0.01281232524 | BL63: 0.01616449576 | BM63: 0.01907970014 | BN63: 0.02151280382 | BO63: 0.02365654399 | BP63: 0.02568761132 | BR63: =+IF($K63="Ongoing",AV63,IF(RIGHT($K63,2)=RIGHT(BR$39,2),SUM($AV63:AV63),0)+IF(RIGHT(BR$39,2)>RIGHT($K63,2),AV63,0)) -> 0.06358911356 | BS63: =+IF($K63="Ongoing",AW63,IF(RIGHT($K63,2)=RIGHT(BS$39,2),SUM($AV63:AW63),0)+IF(RIGHT(BS$39,2)>RIGHT($K63,2),AW63,0)) -> 0.09475231822 | BT63: =+IF($K63="Ongoing",AX63,IF(RIGHT($K63,2)=RIGHT(BT$39,2),SUM($AV63:AX63),0)+IF(RIGHT(BT$39,2)>RIGHT($K63,2),AX63,0)) -> 0.1302495813 | BU63: =+IF($K63="Ongoing",AY63,IF(RIGHT($K63,2)=RIGHT(BU$39,2),SUM($AV63:AY63),0)+IF(RIGHT(BU$39,2)>RIGHT($K63,2),AY63,0)) -> 0.1522910743 | BV63: =+IF($K63="Ongoing",AZ63,IF(RIGHT($K63,2)=RIGHT(BV$39,2),SUM($AV63:AZ63),0)+IF(RIGHT(BV$39,2)>RIGHT($K63,2),AZ63,0)) -> 0.1432218444 | BW63: =+IF($K63="Ongoing",BA63,IF(RIGHT($K63,2)=RIGHT(BW$39,2),SUM($AV63:BA63),0)+IF(RIGHT(BW$39,2)>RIGHT($K63,2),BA63,0)) -> 0.1249517974 | BX63: =+IF($K63="Ongoing",BB63,IF(RIGHT($K63,2)=RIGHT(BX$39,2),SUM($AV63:BB63),0)+IF(RIGHT(BX$39,2)>RIGHT($K63,2),BB63,0)) -> 0.1082645527 | BY63: =+IF($K63="Ongoing",BC63,IF(RIGHT($K63,2)=RIGHT(BY$39,2),SUM($AV63:BC63),0)+IF(RIGHT(BY$39,2)>RIGHT($K63,2),BC63,0)) -> 0.08638374183 | BZ63: =+IF($K63="Ongoing",BD63,IF(RIGHT($K63,2)=RIGHT(BZ$39,2),SUM($AV63:BD63),0)+IF(RIGHT(BZ$39,2)>RIGHT($K63,2),BD63,0)) -> 0.08511547181 | CA63: =+IF($K63="Ongoing",BE63,IF(RIGHT($K63,2)=RIGHT(CA$39,2),SUM($AV63:BE63),0)+IF(RIGHT(CA$39,2)>RIGHT($K63,2),BE63,0)) -> 0.07736991422 | CC63: =+O63*KeyAssumptionsPriceControl_FO!X$15 -> 0.06505166317 | CD63: =+P63*KeyAssumptionsPriceControl_FO!Y$15 -> 0.09916104883 | CE63: =+Q63*KeyAssumptionsPriceControl_FO!Z$15 -> 0.1394450932 | CF63: =+R63*KeyAssumptionsPriceControl_FO!AA$15 -> 0.1667926794 | CG63: =+S63*KeyAssumptionsPriceControl_FO!AB$15 -> 0.1604676271 | CH63: =+T63*KeyAssumptionsPriceControl_FO!AC$15 -> 0.1432175731 | CI63: =+U63*KeyAssumptionsPriceControl_FO!AD$15 -> 0.1269450357 | CJ63: =+V63*KeyAssumptionsPriceControl_FO!AE$15 -> 0.1036184477 | CK63: =+W63*KeyAssumptionsPriceControl_FO!AF$15 -> 0.1044453752 | CL63: =+X63*KeyAssumptionsPriceControl_FO!AG$15 -> 0.09712442316 | CN63: 0.0008131457897 | CO63: 0.00286580469 | CP63: 0.005848381466 | CQ63: 0.009676353623 | CR63: 0.01376710745 | CS63: 0.01756317246 | CT63: 0.02094020507 | CU63: 0.02382224861 | CV63: 0.02642304639 | CW63: 0.02894266887
C64: Multiple Facilities | E64: Water | F64: Renewals | G64: Headworks | H64: Capital Programs / Allocation | J64: Straight line | K64: Ongoing | L64: 40 | M64: 40 | O64: 0.05330777165 | P64: 0.06761324551 | Q64: 0.09450295139 | R64: 0.1216965891 | S64: 0.1179404616 | T64: 0.1002049122 | U64: 0.080857404 | V64: 0.05159376021 | W64: 0.04652561275 | X64: 0.02813392565 | AV64: 0.05330777165 | AW64: 0.06761324551 | AX64: 0.09450295139 | AY64: 0.1216965891 | AZ64: 0.1179404616 | BA64: 0.1002049122 | BB64: 0.080857404 | BC64: 0.05159376021 | BD64: 0.04652561275 | BE64: 0.02813392565 | BG64: 0.0006663471456 | BH64: 0.00217785986 | BI64: 0.004204312321 | BJ64: 0.006906806577 | BK64: 0.00990226971 | BL64: 0.01262908688 | BM64: 0.01489236583 | BN64: 0.01654800539 | BO64: 0.01777449755 | BP64: 0.01870774178 | BR64: =+IF($K64="Ongoing",AV64,IF(RIGHT($K64,2)=RIGHT(BR$39,2),SUM($AV64:AV64),0)+IF(RIGHT(BR$39,2)>RIGHT($K64,2),AV64,0)) -> 0.05330777165 | BS64: =+IF($K64="Ongoing",AW64,IF(RIGHT($K64,2)=RIGHT(BS$39,2),SUM($AV64:AW64),0)+IF(RIGHT(BS$39,2)>RIGHT($K64,2),AW64,0)) -> 0.06761324551 | BT64: =+IF($K64="Ongoing",AX64,IF(RIGHT($K64,2)=RIGHT(BT$39,2),SUM($AV64:AX64),0)+IF(RIGHT(BT$39,2)>RIGHT($K64,2),AX64,0)) -> 0.09450295139 | BU64: =+IF($K64="Ongoing",AY64,IF(RIGHT($K64,2)=RIGHT(BU$39,2),SUM($AV64:AY64),0)+IF(RIGHT(BU$39,2)>RIGHT($K64,2),AY64,0)) -> 0.1216965891 | BV64: =+IF($K64="Ongoing",AZ64,IF(RIGHT($K64,2)=RIGHT(BV$39,2),SUM($AV64:AZ64),0)+IF(RIGHT(BV$39,2)>RIGHT($K64,2),AZ64,0)) -> 0.1179404616 | BW64: =+IF($K64="Ongoing",BA64,IF(RIGHT($K64,2)=RIGHT(BW$39,2),SUM($AV64:BA64),0)+IF(RIGHT(BW$39,2)>RIGHT($K64,2),BA64,0)) -> 0.1002049122 | BX64: =+IF($K64="Ongoing",BB64,IF(RIGHT($K64,2)=RIGHT(BX$39,2),SUM($AV64:BB64),0)+IF(RIGHT(BX$39,2)>RIGHT($K64,2),BB64,0)) -> 0.080857404 | BY64: =+IF($K64="Ongoing",BC64,IF(RIGHT($K64,2)=RIGHT(BY$39,2),SUM($AV64:BC64),0)+IF(RIGHT(BY$39,2)>RIGHT($K64,2),BC64,0)) -> 0.05159376021 | BZ64: =+IF($K64="Ongoing",BD64,IF(RIGHT($K64,2)=RIGHT(BZ$39,2),SUM($AV64:BD64),0)+IF(RIGHT(BZ$39,2)>RIGHT($K64,2),BD64,0)) -> 0.04652561275 | CA64: =+IF($K64="Ongoing",BE64,IF(RIGHT($K64,2)=RIGHT(CA$39,2),SUM($AV64:BE64),0)+IF(RIGHT(CA$39,2)>RIGHT($K64,2),BE64,0)) -> 0.02813392565 | CC64: =+O64*KeyAssumptionsPriceControl_FO!X$15 -> 0.0545338504 | CD64: =+P64*KeyAssumptionsPriceControl_FO!Y$15 -> 0.07075922221 | CE64: =+Q64*KeyAssumptionsPriceControl_FO!Z$15 -> 0.101174781 | CF64: =+R64*KeyAssumptionsPriceControl_FO!AA$15 -> 0.133284897 | CG64: =+S64*KeyAssumptionsPriceControl_FO!AB$15 -> 0.1321420353 | CH64: =+T64*KeyAssumptionsPriceControl_FO!AC$15 -> 0.1148531244 | CI64: =+U64*KeyAssumptionsPriceControl_FO!AD$15 -> 0.09480892664 | CJ64: =+V64*KeyAssumptionsPriceControl_FO!AE$15 -> 0.06188740185 | CK64: =+W64*KeyAssumptionsPriceControl_FO!AF$15 -> 0.05709167764 | CL64: =+X64*KeyAssumptionsPriceControl_FO!AG$15 -> 0.03531723316 | CN64: 0.00068167313 | CO64: 0.002247836538 | CP64: 0.004397011578 | CQ64: 0.007327757554 | CR64: 0.01064559421 | CS64: 0.0137330337 | CT64: 0.01635380934 | CU64: 0.01831251345 | CV64: 0.01979975194 | CW64: 0.02095486333
C65: Multiple Facilities | E65: Water | F65: Renewals | G65: Pipelines/network | H65: Capital Programs / Allocation | J65: Straight line | K65: Ongoing | L65: 40 | M65: 40 | O65: 0.3150844261 | P65: 0.3570523284 | Q65: 0.3936949449 | R65: 0.4294878064 | S65: 0.3926952104 | T65: 0.359383844 | U65: 0.3312957721 | V65: 0.2358588644 | W65: 0.2227171977 | X65: 0.1430398182 | AV65: 0.3150844261 | AW65: 0.3570523284 | AX65: 0.3936949449 | AY65: 0.4294878064 | AZ65: 0.3926952104 | BA65: 0.359383844 | BB65: 0.3312957721 | BC65: 0.2358588644 | BD65: 0.2227171977 | BE65: 0.1430398182 | BG65: 0.003938555326 | BH65: 0.01234026476 | BI65: 0.02172460567 | BJ65: 0.03201439006 | BK65: 0.04229167777 | BL65: 0.05169266595 | BM65: 0.06032616115 | BN65: 0.06741559411 | BO65: 0.07314779488 | BP65: 0.07771975758 | BR65: =+IF($K65="Ongoing",AV65,IF(RIGHT($K65,2)=RIGHT(BR$39,2),SUM($AV65:AV65),0)+IF(RIGHT(BR$39,2)>RIGHT($K65,2),AV65,0)) -> 0.3150844261 | BS65: =+IF($K65="Ongoing",AW65,IF(RIGHT($K65,2)=RIGHT(BS$39,2),SUM($AV65:AW65),0)+IF(RIGHT(BS$39,2)>RIGHT($K65,2),AW65,0)) -> 0.3570523284 | BT65: =+IF($K65="Ongoing",AX65,IF(RIGHT($K65,2)=RIGHT(BT$39,2),SUM($AV65:AX65),0)+IF(RIGHT(BT$39,2)>RIGHT($K65,2),AX65,0)) -> 0.3936949449 | BU65: =+IF($K65="Ongoing",AY65,IF(RIGHT($K65,2)=RIGHT(BU$39,2),SUM($AV65:AY65),0)+IF(RIGHT(BU$39,2)>RIGHT($K65,2),AY65,0)) -> 0.4294878064 | BV65: =+IF($K65="Ongoing",AZ65,IF(RIGHT($K65,2)=RIGHT(BV$39,2),SUM($AV65:AZ65),0)+IF(RIGHT(BV$39,2)>RIGHT($K65,2),AZ65,0)) -> 0.3926952104 | BW65: =+IF($K65="Ongoing",BA65,IF(RIGHT($K65,2)=RIGHT(BW$39,2),SUM($AV65:BA65),0)+IF(RIGHT(BW$39,2)>RIGHT($K65,2),BA65,0)) -> 0.359383844 | BX65: =+IF($K65="Ongoing",BB65,IF(RIGHT($K65,2)=RIGHT(BX$39,2),SUM($AV65:BB65),0)+IF(RIGHT(BX$39,2)>RIGHT($K65,2),BB65,0)) -> 0.3312957721 | BY65: =+IF($K65="Ongoing",BC65,IF(RIGHT($K65,2)=RIGHT(BY$39,2),SUM($AV65:BC65),0)+IF(RIGHT(BY$39,2)>RIGHT($K65,2),BC65,0)) -> 0.2358588644 | BZ65: =+IF($K65="Ongoing",BD65,IF(RIGHT($K65,2)=RIGHT(BZ$39,2),SUM($AV65:BD65),0)+IF(RIGHT(BZ$39,2)>RIGHT($K65,2),BD65,0)) -> 0.2227171977 | CA65: =+IF($K65="Ongoing",BE65,IF(RIGHT($K65,2)=RIGHT(CA$39,2),SUM($AV65:BE65),0)+IF(RIGHT(CA$39,2)>RIGHT($K65,2),BE65,0)) -> 0.1430398182 | CC65: =+O65*KeyAssumptionsPriceControl_FO!X$15 -> 0.3223313679 | CD65: =+P65*KeyAssumptionsPriceControl_FO!Y$15 -> 0.3736656162 | CE65: =+Q65*KeyAssumptionsPriceControl_FO!Z$15 -> 0.42148948 | CF65: =+R65*KeyAssumptionsPriceControl_FO!AA$15 -> 0.4703849014 | CG65: =+S65*KeyAssumptionsPriceControl_FO!AB$15 -> 0.4399808484 | CH65: =+T65*KeyAssumptionsPriceControl_FO!AC$15 -> 0.4119195002 | CI65: =+U65*KeyAssumptionsPriceControl_FO!AD$15 -> 0.3884591267 | CJ65: =+V65*KeyAssumptionsPriceControl_FO!AE$15 -> 0.282915846 | CK65: =+W65*KeyAssumptionsPriceControl_FO!AF$15 -> 0.2732967436 | CL65: =+X65*KeyAssumptionsPriceControl_FO!AG$15 -> 0.1795615256 | CN65: 0.004029142098 | CO65: 0.0127291044 | CP65: 0.0226685431 | CQ65: 0.03381697287 | CR65: 0.04519654474 | CS65: 0.0558452991 | CT65: 0.06585003194 | CU65: 0.0742422191 | CV65: 0.08119487647 | CW65: 0.08685560483
C66: Multiple Facilities | E66: Water | F66: Renewals | G66: Treatment | H66: Capital Programs / Allocation | J66: Straight line | K66: Ongoing | L66: 40 | M66: 40 | O66: 0.01757750204 | P66: 0.02314032884 | Q66: 0.02841329657 | R66: 0.03037671569 | S66: 0.02542128268 | T66: 0.02043867443 | U66: 0.01781104984 | V66: 0.01382423407 | W66: 0.01493093342 | X66: 0.01355429943 | AV66: 0.01757750204 | AW66: 0.02314032884 | AX66: 0.02841329657 | AY66: 0.03037671569 | AZ66: 0.02542128268 | BA66: 0.02043867443 | BB66: 0.01781104984 | BC66: 0.01382423407 | BD66: 0.01493093342 | BE66: 0.01355429943 | BG66: 0.0002197187755 | BH66: 0.0007286916616 | BI66: 0.001373111979 | BJ66: 0.002107987132 | BK66: 0.002805462112 | BL66: 0.003378711576 | BM66: 0.003856833129 | BN66: 0.004252274178 | BO66: 0.004611713771 | BP66: 0.004967779182 | BR66: =+IF($K66="Ongoing",AV66,IF(RIGHT($K66,2)=RIGHT(BR$39,2),SUM($AV66:AV66),0)+IF(RIGHT(BR$39,2)>RIGHT($K66,2),AV66,0)) -> 0.01757750204 | BS66: =+IF($K66="Ongoing",AW66,IF(RIGHT($K66,2)=RIGHT(BS$39,2),SUM($AV66:AW66),0)+IF(RIGHT(BS$39,2)>RIGHT($K66,2),AW66,0)) -> 0.02314032884 | BT66: =+IF($K66="Ongoing",AX66,IF(RIGHT($K66,2)=RIGHT(BT$39,2),SUM($AV66:AX66),0)+IF(RIGHT(BT$39,2)>RIGHT($K66,2),AX66,0)) -> 0.02841329657 | BU66: =+IF($K66="Ongoing",AY66,IF(RIGHT($K66,2)=RIGHT(BU$39,2),SUM($AV66:AY66),0)+IF(RIGHT(BU$39,2)>RIGHT($K66,2),AY66,0)) -> 0.03037671569 | BV66: =+IF($K66="Ongoing",AZ66,IF(RIGHT($K66,2)=RIGHT(BV$39,2),SUM($AV66:AZ66),0)+IF(RIGHT(BV$39,2)>RIGHT($K66,2),AZ66,0)) -> 0.02542128268 | BW66: =+IF($K66="Ongoing",BA66,IF(RIGHT($K66,2)=RIGHT(BW$39,2),SUM($AV66:BA66),0)+IF(RIGHT(BW$39,2)>RIGHT($K66,2),BA66,0)) -> 0.02043867443 | BX66: =+IF($K66="Ongoing",BB66,IF(RIGHT($K66,2)=RIGHT(BX$39,2),SUM($AV66:BB66),0)+IF(RIGHT(BX$39,2)>RIGHT($K66,2),BB66,0)) -> 0.01781104984 | BY66: =+IF($K66="Ongoing",BC66,IF(RIGHT($K66,2)=RIGHT(BY$39,2),SUM($AV66:BC66),0)+IF(RIGHT(BY$39,2)>RIGHT($K66,2),BC66,0)) -> 0.01382423407 | BZ66: =+IF($K66="Ongoing",BD66,IF(RIGHT($K66,2)=RIGHT(BZ$39,2),SUM($AV66:BD66),0)+IF(RIGHT(BZ$39,2)>RIGHT($K66,2),BD66,0)) -> 0.01493093342 | CA66: =+IF($K66="Ongoing",BE66,IF(RIGHT($K66,2)=RIGHT(CA$39,2),SUM($AV66:BE66),0)+IF(RIGHT(CA$39,2)>RIGHT($K66,2),BE66,0)) -> 0.01355429943 | CC66: =+O66*KeyAssumptionsPriceControl_FO!X$15 -> 0.01798178459 | CD66: =+P66*KeyAssumptionsPriceControl_FO!Y$15 -> 0.0242170252 | CE66: =+Q66*KeyAssumptionsPriceControl_FO!Z$15 -> 0.03041925164 | CF66: =+R66*KeyAssumptionsPriceControl_FO!AA$15 -> 0.0332692761 | CG66: =+S66*KeyAssumptionsPriceControl_FO!AB$15 -> 0.02848233751 | CH66: =+T66*KeyAssumptionsPriceControl_FO!AC$15 -> 0.02342645251 | CI66: =+U66*KeyAssumptionsPriceControl_FO!AD$15 -> 0.02088425343 | CJ66: =+V66*KeyAssumptionsPriceControl_FO!AE$15 -> 0.0165823527 | CK66: =+W66*KeyAssumptionsPriceControl_FO!AF$15 -> 0.01832177992 | CL66: =+X66*KeyAssumptionsPriceControl_FO!AG$15 -> 0.01701505717 | CN66: 0.0002247723074 | CO66: 0.0007522574297 | CP66: 0.00143521089 | CQ66: 0.002231317487 | CR66: 0.003003212657 | CS66: 0.003652072532 | CT66: 0.004205956357 | CU66: 0.004674288934 | CV66: 0.005110590591 | CW66: 0.005552301055
C67: Office Equipment | E67: Sewerage | F67: Renewals | G67: Corporate | H67: Capital Programs / Allocation | J67: Straight line | K67: Ongoing | L67: 10 | M67: 10 | O67: 0.0105 | P67: 0.0105 | Q67: 0.0105 | R67: 0.0105 | S67: 0.0105 | T67: 0.0105 | U67: 0.0105 | V67: 0.0105 | W67: 0.0105 | X67: 0.0105 | AV67: 0.0105 | AW67: 0.0105 | AX67: 0.0105 | AY67: 0.0105 | AZ67: 0.0105 | BA67: 0.0105 | BB67: 0.0105 | BC67: 0.0105 | BD67: 0.0105 | BE67: 0.0105 | BG67: 0.000525 | BH67: 0.001575 | BI67: 0.002625 | BJ67: 0.003675 | BK67: 0.004725 | BL67: 0.005775 | BM67: 0.006825 | BN67: 0.007875 | BO67: 0.008925 | BP67: 0.009975 | BR67: =+IF($K67="Ongoing",AV67,IF(RIGHT($K67,2)=RIGHT(BR$39,2),SUM($AV67:AV67),0)+IF(RIGHT(BR$39,2)>RIGHT($K67,2),AV67,0)) -> 0.0105 | BS67: =+IF($K67="Ongoing",AW67,IF(RIGHT($K67,2)=RIGHT(BS$39,2),SUM($AV67:AW67),0)+IF(RIGHT(BS$39,2)>RIGHT($K67,2),AW67,0)) -> 0.0105 | BT67: =+IF($K67="Ongoing",AX67,IF(RIGHT($K67,2)=RIGHT(BT$39,2),SUM($AV67:AX67),0)+IF(RIGHT(BT$39,2)>RIGHT($K67,2),AX67,0)) -> 0.0105 | BU67: =+IF($K67="Ongoing",AY67,IF(RIGHT($K67,2)=RIGHT(BU$39,2),SUM($AV67:AY67),0)+IF(RIGHT(BU$39,2)>RIGHT($K67,2),AY67,0)) -> 0.0105 | BV67: =+IF($K67="Ongoing",AZ67,IF(RIGHT($K67,2)=RIGHT(BV$39,2),SUM($AV67:AZ67),0)+IF(RIGHT(BV$39,2)>RIGHT($K67,2),AZ67,0)) -> 0.0105 | BW67: =+IF($K67="Ongoing",BA67,IF(RIGHT($K67,2)=RIGHT(BW$39,2),SUM($AV67:BA67),0)+IF(RIGHT(BW$39,2)>RIGHT($K67,2),BA67,0)) -> 0.0105 | BX67: =+IF($K67="Ongoing",BB67,IF(RIGHT($K67,2)=RIGHT(BX$39,2),SUM($AV67:BB67),0)+IF(RIGHT(BX$39,2)>RIGHT($K67,2),BB67,0)) -> 0.0105 | BY67: =+IF($K67="Ongoing",BC67,IF(RIGHT($K67,2)=RIGHT(BY$39,2),SUM($AV67:BC67),0)+IF(RIGHT(BY$39,2)>RIGHT($K67,2),BC67,0)) -> 0.0105 | BZ67: =+IF($K67="Ongoing",BD67,IF(RIGHT($K67,2)=RIGHT(BZ$39,2),SUM($AV67:BD67),0)+IF(RIGHT(BZ$39,2)>RIGHT($K67,2),BD67,0)) -> 0.0105 | CA67: =+IF($K67="Ongoing",BE67,IF(RIGHT($K67,2)=RIGHT(CA$39,2),SUM($AV67:BE67),0)+IF(RIGHT(CA$39,2)>RIGHT($K67,2),BE67,0)) -> 0.0105 | CC67: =+O67*KeyAssumptionsPriceControl_FO!X$15 -> 0.0107415 | CD67: =+P67*KeyAssumptionsPriceControl_FO!Y$15 -> 0.0109885545 | CE67: =+Q67*KeyAssumptionsPriceControl_FO!Z$15 -> 0.01124129125 | CF67: =+R67*KeyAssumptionsPriceControl_FO!AA$15 -> 0.01149984095 | CG67: =+S67*KeyAssumptionsPriceControl_FO!AB$15 -> 0.01176433729 | CH67: =+T67*KeyAssumptionsPriceControl_FO!AC$15 -> 0.01203491705 | CI67: =+U67*KeyAssumptionsPriceControl_FO!AD$15 -> 0.01231172014 | CJ67: =+V67*KeyAssumptionsPriceControl_FO!AE$15 -> 0.01259488971 | CK67: =+W67*KeyAssumptionsPriceControl_FO!AF$15 -> 0.01288457217 | CL67: =+X67*KeyAssumptionsPriceControl_FO!AG$15 -> 0.01318091733 | CN67: 0.000537075 | CO67: 0.001623577725 | CP67: 0.002735070013 | CQ67: 0.003872126623 | CR67: 0.005035335535 | CS67: 0.006225298253 | CT67: 0.007442630112 | CU67: 0.008687960605 | CV67: 0.009961933699 | CW67: 0.01126520817
C68: Office Equipment | E68: Water | F68: Renewals | G68: Corporate | H68: Capital Programs / Allocation | J68: Straight line | K68: Ongoing | L68: 10 | M68: 10 | O68: 0.0105 | P68: 0.0105 | Q68: 0.0105 | R68: 0.0105 | S68: 0.0105 | T68: 0.0105 | U68: 0.0105 | V68: 0.0105 | W68: 0.0105 | X68: 0.0105 | AV68: 0.0105 | AW68: 0.0105 | AX68: 0.0105 | AY68: 0.0105 | AZ68: 0.0105 | BA68: 0.0105 | BB68: 0.0105 | BC68: 0.0105 | BD68: 0.0105 | BE68: 0.0105 | BG68: 0.000525 | BH68: 0.001575 | BI68: 0.002625 | BJ68: 0.003675 | BK68: 0.004725 | BL68: 0.005775 | BM68: 0.006825 | BN68: 0.007875 | BO68: 0.008925 | BP68: 0.009975 | BR68: =+IF($K68="Ongoing",AV68,IF(RIGHT($K68,2)=RIGHT(BR$39,2),SUM($AV68:AV68),0)+IF(RIGHT(BR$39,2)>RIGHT($K68,2),AV68,0)) -> 0.0105 | BS68: =+IF($K68="Ongoing",AW68,IF(RIGHT($K68,2)=RIGHT(BS$39,2),SUM($AV68:AW68),0)+IF(RIGHT(BS$39,2)>RIGHT($K68,2),AW68,0)) -> 0.0105 | BT68: =+IF($K68="Ongoing",AX68,IF(RIGHT($K68,2)=RIGHT(BT$39,2),SUM($AV68:AX68),0)+IF(RIGHT(BT$39,2)>RIGHT($K68,2),AX68,0)) -> 0.0105 | BU68: =+IF($K68="Ongoing",AY68,IF(RIGHT($K68,2)=RIGHT(BU$39,2),SUM($AV68:AY68),0)+IF(RIGHT(BU$39,2)>RIGHT($K68,2),AY68,0)) -> 0.0105 | BV68: =+IF($K68="Ongoing",AZ68,IF(RIGHT($K68,2)=RIGHT(BV$39,2),SUM($AV68:AZ68),0)+IF(RIGHT(BV$39,2)>RIGHT($K68,2),AZ68,0)) -> 0.0105 | BW68: =+IF($K68="Ongoing",BA68,IF(RIGHT($K68,2)=RIGHT(BW$39,2),SUM($AV68:BA68),0)+IF(RIGHT(BW$39,2)>RIGHT($K68,2),BA68,0)) -> 0.0105 | BX68: =+IF($K68="Ongoing",BB68,IF(RIGHT($K68,2)=RIGHT(BX$39,2),SUM($AV68:BB68),0)+IF(RIGHT(BX$39,2)>RIGHT($K68,2),BB68,0)) -> 0.0105 | BY68: =+IF($K68="Ongoing",BC68,IF(RIGHT($K68,2)=RIGHT(BY$39,2),SUM($AV68:BC68),0)+IF(RIGHT(BY$39,2)>RIGHT($K68,2),BC68,0)) -> 0.0105 | BZ68: =+IF($K68="Ongoing",BD68,IF(RIGHT($K68,2)=RIGHT(BZ$39,2),SUM($AV68:BD68),0)+IF(RIGHT(BZ$39,2)>RIGHT($K68,2),BD68,0)) -> 0.0105 | CA68: =+IF($K68="Ongoing",BE68,IF(RIGHT($K68,2)=RIGHT(CA$39,2),SUM($AV68:BE68),0)+IF(RIGHT(CA$39,2)>RIGHT($K68,2),BE68,0)) -> 0.0105 | CC68: =+O68*KeyAssumptionsPriceControl_FO!X$15 -> 0.0107415 | CD68: =+P68*KeyAssumptionsPriceControl_FO!Y$15 -> 0.0109885545 | CE68: =+Q68*KeyAssumptionsPriceControl_FO!Z$15 -> 0.01124129125 | CF68: =+R68*KeyAssumptionsPriceControl_FO!AA$15 -> 0.01149984095 | CG68: =+S68*KeyAssumptionsPriceControl_FO!AB$15 -> 0.01176433729 | CH68: =+T68*KeyAssumptionsPriceControl_FO!AC$15 -> 0.01203491705 | CI68: =+U68*KeyAssumptionsPriceControl_FO!AD$15 -> 0.01231172014 | CJ68: =+V68*KeyAssumptionsPriceControl_FO!AE$15 -> 0.01259488971 | CK68: =+W68*KeyAssumptionsPriceControl_FO!AF$15 -> 0.01288457217 | CL68: =+X68*KeyAssumptionsPriceControl_FO!AG$15 -> 0.01318091733 | CN68: 0.000537075 | CO68: 0.001623577725 | CP68: 0.002735070013 | CQ68: 0.003872126623 | CR68: 0.005035335535 | CS68: 0.006225298253 | CT68: 0.007442630112 | CU68: 0.008687960605 | CV68: 0.009961933699 | CW68: 0.01126520817
C69: Plant and Equipment | E69: Sewerage | F69: Renewals | G69: Corporate | H69: Capital Programs / Allocation | J69: Straight line | K69: Ongoing | L69: 20 | M69: 20 | O69: 0.6425 | P69: 0.654 | Q69: 0.733 | R69: 0.65 | S69: 0.586 | T69: 0.543 | U69: 0.7765 | V69: 0.623 | W69: 0.5275 | X69: 0.649 | AV69: 0.6425 | AW69: 0.654 | AX69: 0.733 | AY69: 0.65 | AZ69: 0.586 | BA69: 0.543 | BB69: 0.7765 | BC69: 0.623 | BD69: 0.5275 | BE69: 0.649 | BG69: 0.0160625 | BH69: 0.048475 | BI69: 0.08315 | BJ69: 0.117725 | BK69: 0.148625 | BL69: 0.17685 | BM69: 0.2098375 | BN69: 0.244825 | BO69: 0.2735875 | BP69: 0.303 | BR69: =+IF($K69="Ongoing",AV69,IF(RIGHT($K69,2)=RIGHT(BR$39,2),SUM($AV69:AV69),0)+IF(RIGHT(BR$39,2)>RIGHT($K69,2),AV69,0)) -> 0.6425 | BS69: =+IF($K69="Ongoing",AW69,IF(RIGHT($K69,2)=RIGHT(BS$39,2),SUM($AV69:AW69),0)+IF(RIGHT(BS$39,2)>RIGHT($K69,2),AW69,0)) -> 0.654 | BT69: =+IF($K69="Ongoing",AX69,IF(RIGHT($K69,2)=RIGHT(BT$39,2),SUM($AV69:AX69),0)+IF(RIGHT(BT$39,2)>RIGHT($K69,2),AX69,0)) -> 0.733 | BU69: =+IF($K69="Ongoing",AY69,IF(RIGHT($K69,2)=RIGHT(BU$39,2),SUM($AV69:AY69),0)+IF(RIGHT(BU$39,2)>RIGHT($K69,2),AY69,0)) -> 0.65 | BV69: =+IF($K69="Ongoing",AZ69,IF(RIGHT($K69,2)=RIGHT(BV$39,2),SUM($AV69:AZ69),0)+IF(RIGHT(BV$39,2)>RIGHT($K69,2),AZ69,0)) -> 0.586 | BW69: =+IF($K69="Ongoing",BA69,IF(RIGHT($K69,2)=RIGHT(BW$39,2),SUM($AV69:BA69),0)+IF(RIGHT(BW$39,2)>RIGHT($K69,2),BA69,0)) -> 0.543 | BX69: =+IF($K69="Ongoing",BB69,IF(RIGHT($K69,2)=RIGHT(BX$39,2),SUM($AV69:BB69),0)+IF(RIGHT(BX$39,2)>RIGHT($K69,2),BB69,0)) -> 0.7765 | BY69: =+IF($K69="Ongoing",BC69,IF(RIGHT($K69,2)=RIGHT(BY$39,2),SUM($AV69:BC69),0)+IF(RIGHT(BY$39,2)>RIGHT($K69,2),BC69,0)) -> 0.623 | BZ69: =+IF($K69="Ongoing",BD69,IF(RIGHT($K69,2)=RIGHT(BZ$39,2),SUM($AV69:BD69),0)+IF(RIGHT(BZ$39,2)>RIGHT($K69,2),BD69,0)) -> 0.5275 | CA69: =+IF($K69="Ongoing",BE69,IF(RIGHT($K69,2)=RIGHT(CA$39,2),SUM($AV69:BE69),0)+IF(RIGHT(CA$39,2)>RIGHT($K69,2),BE69,0)) -> 0.649 | CC69: =+O69*KeyAssumptionsPriceControl_FO!X$15 -> 0.6572775 | CD69: =+P69*KeyAssumptionsPriceControl_FO!Y$15 -> 0.684429966 | CE69: =+Q69*KeyAssumptionsPriceControl_FO!Z$15 -> 0.7847491894 | CF69: =+R69*KeyAssumptionsPriceControl_FO!AA$15 -> 0.7118949161 | CG69: =+S69*KeyAssumptionsPriceControl_FO!AB$15 -> 0.6565620623 | CH69: =+T69*KeyAssumptionsPriceControl_FO!AC$15 -> 0.622377139 | CI69: =+U69*KeyAssumptionsPriceControl_FO!AD$15 -> 0.9104810183 | CJ69: =+V69*KeyAssumptionsPriceControl_FO!AE$15 -> 0.7472967893 | CK69: =+W69*KeyAssumptionsPriceControl_FO!AF$15 -> 0.6472963638 | CL69: =+X69*KeyAssumptionsPriceControl_FO!AG$15 -> 0.8147062236 | CN69: 0.0164319375 | CO69: 0.04997462415 | CP69: 0.08670410304 | CQ69: 0.1241202057 | CR69: 0.1583316301 | CS69: 0.1903051102 | CT69: 0.2286265641 | CU69: 0.2700710093 | CV69: 0.3049358381 | CW69: 0.3414859028
C70: Plant and Equipment | E70: Water | F70: Renewals | G70: Corporate | H70: Capital Programs / Allocation | J70: Straight line | K70: Ongoing | L70: 20 | M70: 20 | O70: 0.6425 | P70: 0.654 | Q70: 0.733 | R70: 0.65 | S70: 0.586 | T70: 0.543 | U70: 0.7765 | V70: 0.623 | W70: 0.5275 | X70: 0.649 | AV70: 0.6425 | AW70: 0.654 | AX70: 0.733 | AY70: 0.65 | AZ70: 0.586 | BA70: 0.543 | BB70: 0.7765 | BC70: 0.623 | BD70: 0.5275 | BE70: 0.649 | BG70: 0.0160625 | BH70: 0.048475 | BI70: 0.08315 | BJ70: 0.117725 | BK70: 0.148625 | BL70: 0.17685 | BM70: 0.2098375 | BN70: 0.244825 | BO70: 0.2735875 | BP70: 0.303 | BR70: =+IF($K70="Ongoing",AV70,IF(RIGHT($K70,2)=RIGHT(BR$39,2),SUM($AV70:AV70),0)+IF(RIGHT(BR$39,2)>RIGHT($K70,2),AV70,0)) -> 0.6425 | BS70: =+IF($K70="Ongoing",AW70,IF(RIGHT($K70,2)=RIGHT(BS$39,2),SUM($AV70:AW70),0)+IF(RIGHT(BS$39,2)>RIGHT($K70,2),AW70,0)) -> 0.654 | BT70: =+IF($K70="Ongoing",AX70,IF(RIGHT($K70,2)=RIGHT(BT$39,2),SUM($AV70:AX70),0)+IF(RIGHT(BT$39,2)>RIGHT($K70,2),AX70,0)) -> 0.733 | BU70: =+IF($K70="Ongoing",AY70,IF(RIGHT($K70,2)=RIGHT(BU$39,2),SUM($AV70:AY70),0)+IF(RIGHT(BU$39,2)>RIGHT($K70,2),AY70,0)) -> 0.65 | BV70: =+IF($K70="Ongoing",AZ70,IF(RIGHT($K70,2)=RIGHT(BV$39,2),SUM($AV70:AZ70),0)+IF(RIGHT(BV$39,2)>RIGHT($K70,2),AZ70,0)) -> 0.586 | BW70: =+IF($K70="Ongoing",BA70,IF(RIGHT($K70,2)=RIGHT(BW$39,2),SUM($AV70:BA70),0)+IF(RIGHT(BW$39,2)>RIGHT($K70,2),BA70,0)) -> 0.543 | BX70: =+IF($K70="Ongoing",BB70,IF(RIGHT($K70,2)=RIGHT(BX$39,2),SUM($AV70:BB70),0)+IF(RIGHT(BX$39,2)>RIGHT($K70,2),BB70,0)) -> 0.7765 | BY70: =+IF($K70="Ongoing",BC70,IF(RIGHT($K70,2)=RIGHT(BY$39,2),SUM($AV70:BC70),0)+IF(RIGHT(BY$39,2)>RIGHT($K70,2),BC70,0)) -> 0.623 | BZ70: =+IF($K70="Ongoing",BD70,IF(RIGHT($K70,2)=RIGHT(BZ$39,2),SUM($AV70:BD70),0)+IF(RIGHT(BZ$39,2)>RIGHT($K70,2),BD70,0)) -> 0.5275 | CA70: =+IF($K70="Ongoing",BE70,IF(RIGHT($K70,2)=RIGHT(CA$39,2),SUM($AV70:BE70),0)+IF(RIGHT(CA$39,2)>RIGHT($K70,2),BE70,0)) -> 0.649 | CC70: =+O70*KeyAssumptionsPriceControl_FO!X$15 -> 0.6572775 | CD70: =+P70*KeyAssumptionsPriceControl_FO!Y$15 -> 0.684429966 | CE70: =+Q70*KeyAssumptionsPriceControl_FO!Z$15 -> 0.7847491894 | CF70: =+R70*KeyAssumptionsPriceControl_FO!AA$15 -> 0.7118949161 | CG70: =+S70*KeyAssumptionsPriceControl_FO!AB$15 -> 0.6565620623 | CH70: =+T70*KeyAssumptionsPriceControl_FO!AC$15 -> 0.622377139 | CI70: =+U70*KeyAssumptionsPriceControl_FO!AD$15 -> 0.9104810183 | CJ70: =+V70*KeyAssumptionsPriceControl_FO!AE$15 -> 0.7472967893 | CK70: =+W70*KeyAssumptionsPriceControl_FO!AF$15 -> 0.6472963638 | CL70: =+X70*KeyAssumptionsPriceControl_FO!AG$15 -> 0.8147062236 | CN70: 0.0164319375 | CO70: 0.04997462415 | CP70: 0.08670410304 | CQ70: 0.1241202057 | CR70: 0.1583316301 | CS70: 0.1903051102 | CT70: 0.2286265641 | CU70: 0.2700710093 | CV70: 0.3049358381 | CW70: 0.3414859028
C71: Pumping Stations | E71: Sewerage | F71: Renewals | G71: Pipelines/network | H71: Capital Programs / Allocation | J71: Straight line | K71: Ongoing | L71: 40 | M71: 40 | O71: 0.2985080678 | P71: 0.3533431985 | Q71: 0.3717462316 | R71: 0.3827617341 | S71: 0.3807607435 | T71: 0.4111448121 | U71: 0.4502477328 | V71: 0.4429103554 | W71: 0.4994819342 | X71: 0.5589371119 | AV71: 0.2985080678 | AW71: 0.3533431985 | AX71: 0.3717462316 | AY71: 0.3827617341 | AZ71: 0.3807607435 | BA71: 0.4111448121 | BB71: 0.4502477328 | BC71: 0.4429103554 | BD71: 0.4994819342 | BE71: 0.5589371119 | BG71: 0.003731350848 | BH71: 0.01187949168 | BI71: 0.02094310955 | BJ71: 0.03037445912 | BK71: 0.03991849009 | BL71: 0.04981730954 | BM71: 0.06058471635 | BN71: 0.07174919245 | BO71: 0.08352909607 | BP71: 0.09675933415 | BR71: =+IF($K71="Ongoing",AV71,IF(RIGHT($K71,2)=RIGHT(BR$39,2),SUM($AV71:AV71),0)+IF(RIGHT(BR$39,2)>RIGHT($K71,2),AV71,0)) -> 0.2985080678 | BS71: =+IF($K71="Ongoing",AW71,IF(RIGHT($K71,2)=RIGHT(BS$39,2),SUM($AV71:AW71),0)+IF(RIGHT(BS$39,2)>RIGHT($K71,2),AW71,0)) -> 0.3533431985 | BT71: =+IF($K71="Ongoing",AX71,IF(RIGHT($K71,2)=RIGHT(BT$39,2),SUM($AV71:AX71),0)+IF(RIGHT(BT$39,2)>RIGHT($K71,2),AX71,0)) -> 0.3717462316 | BU71: =+IF($K71="Ongoing",AY71,IF(RIGHT($K71,2)=RIGHT(BU$39,2),SUM($AV71:AY71),0)+IF(RIGHT(BU$39,2)>RIGHT($K71,2),AY71,0)) -> 0.3827617341 | BV71: =+IF($K71="Ongoing",AZ71,IF(RIGHT($K71,2)=RIGHT(BV$39,2),SUM($AV71:AZ71),0)+IF(RIGHT(BV$39,2)>RIGHT($K71,2),AZ71,0)) -> 0.3807607435 | BW71: =+IF($K71="Ongoing",BA71,IF(RIGHT($K71,2)=RIGHT(BW$39,2),SUM($AV71:BA71),0)+IF(RIGHT(BW$39,2)>RIGHT($K71,2),BA71,0)) -> 0.4111448121 | BX71: =+IF($K71="Ongoing",BB71,IF(RIGHT($K71,2)=RIGHT(BX$39,2),SUM($AV71:BB71),0)+IF(RIGHT(BX$39,2)>RIGHT($K71,2),BB71,0)) -> 0.4502477328 | BY71: =+IF($K71="Ongoing",BC71,IF(RIGHT($K71,2)=RIGHT(BY$39,2),SUM($AV71:BC71),0)+IF(RIGHT(BY$39,2)>RIGHT($K71,2),BC71,0)) -> 0.4429103554 | BZ71: =+IF($K71="Ongoing",BD71,IF(RIGHT($K71,2)=RIGHT(BZ$39,2),SUM($AV71:BD71),0)+IF(RIGHT(BZ$39,2)>RIGHT($K71,2),BD71,0)) -> 0.4994819342 | CA71: =+IF($K71="Ongoing",BE71,IF(RIGHT($K71,2)=RIGHT(CA$39,2),SUM($AV71:BE71),0)+IF(RIGHT(CA$39,2)>RIGHT($K71,2),BE71,0)) -> 0.5589371119 | CC71: =+O71*KeyAssumptionsPriceControl_FO!X$15 -> 0.3053737534 | CD71: =+P71*KeyAssumptionsPriceControl_FO!Y$15 -> 0.3697839042 | CE71: =+Q71*KeyAssumptionsPriceControl_FO!Z$15 -> 0.3979912059 | CF71: =+R71*KeyAssumptionsPriceControl_FO!AA$15 -> 0.4192094347 | CG71: =+S71*KeyAssumptionsPriceControl_FO!AB$15 -> 0.4266093157 | CH71: =+T71*KeyAssumptionsPriceControl_FO!AC$15 -> 0.47124702 | CI71: =+U71*KeyAssumptionsPriceControl_FO!AD$15 -> 0.5279356269 | CJ71: =+V71*KeyAssumptionsPriceControl_FO!AE$15 -> 0.5312768644 | CK71: =+W71*KeyAssumptionsPriceControl_FO!AF$15 -> 0.6129153362 | CL71: =+X71*KeyAssumptionsPriceControl_FO!AG$15 -> 0.7016479872 | CN71: 0.003817171917 | CO71: 0.01225664264 | CP71: 0.02185383151 | CQ71: 0.03206883952 | CR71: 0.0426415739 | CS71: 0.0538647781 | CT71: 0.06635456118 | CU71: 0.07959471732 | CV71: 0.09389711983 | CW71: 0.1103291614
C72: Pumping Stations | E72: Water | F72: Renewals | G72: Pipelines/network | H72: Capital Programs / Allocation | J72: Straight line | K72: Ongoing | L72: 40 | M72: 40 | O72: 0.2644497038 | P72: 0.2987842116 | Q72: 0.3590527063 | R72: 0.4250516748 | S72: 0.4135321385 | T72: 0.409743127 | U72: 0.4228088848 | V72: 0.3753664318 | W72: 0.4136321385 | X72: 0.3790975694 | AV72: 0.2644497038 | AW72: 0.2987842116 | AX72: 0.3590527063 | AY72: 0.4250516748 | AZ72: 0.4135321385 | BA72: 0.409743127 | BB72: 0.4228088848 | BC72: 0.3753664318 | BD72: 0.4136321385 | BE72: 0.3790975694 | BG72: 0.003305621298 | BH72: 0.01034604524 | BI72: 0.01856900671 | BJ72: 0.02837031148 | BK72: 0.03885260915 | BL72: 0.04914354996 | BM72: 0.05955045011 | BN72: 0.06952764157 | BO72: 0.0793901237 | BP72: 0.08929924505 | BR72: =+IF($K72="Ongoing",AV72,IF(RIGHT($K72,2)=RIGHT(BR$39,2),SUM($AV72:AV72),0)+IF(RIGHT(BR$39,2)>RIGHT($K72,2),AV72,0)) -> 0.2644497038 | BS72: =+IF($K72="Ongoing",AW72,IF(RIGHT($K72,2)=RIGHT(BS$39,2),SUM($AV72:AW72),0)+IF(RIGHT(BS$39,2)>RIGHT($K72,2),AW72,0)) -> 0.2987842116 | BT72: =+IF($K72="Ongoing",AX72,IF(RIGHT($K72,2)=RIGHT(BT$39,2),SUM($AV72:AX72),0)+IF(RIGHT(BT$39,2)>RIGHT($K72,2),AX72,0)) -> 0.3590527063 | BU72: =+IF($K72="Ongoing",AY72,IF(RIGHT($K72,2)=RIGHT(BU$39,2),SUM($AV72:AY72),0)+IF(RIGHT(BU$39,2)>RIGHT($K72,2),AY72,0)) -> 0.4250516748 | BV72: =+IF($K72="Ongoing",AZ72,IF(RIGHT($K72,2)=RIGHT(BV$39,2),SUM($AV72:AZ72),0)+IF(RIGHT(BV$39,2)>RIGHT($K72,2),AZ72,0)) -> 0.4135321385 | BW72: =+IF($K72="Ongoing",BA72,IF(RIGHT($K72,2)=RIGHT(BW$39,2),SUM($AV72:BA72),0)+IF(RIGHT(BW$39,2)>RIGHT($K72,2),BA72,0)) -> 0.409743127 | BX72: =+IF($K72="Ongoing",BB72,IF(RIGHT($K72,2)=RIGHT(BX$39,2),SUM($AV72:BB72),0)+IF(RIGHT(BX$39,2)>RIGHT($K72,2),BB72,0)) -> 0.4228088848 | BY72: =+IF($K72="Ongoing",BC72,IF(RIGHT($K72,2)=RIGHT(BY$39,2),SUM($AV72:BC72),0)+IF(RIGHT(BY$39,2)>RIGHT($K72,2),BC72,0)) -> 0.3753664318 | BZ72: =+IF($K72="Ongoing",BD72,IF(RIGHT($K72,2)=RIGHT(BZ$39,2),SUM($AV72:BD72),0)+IF(RIGHT(BZ$39,2)>RIGHT($K72,2),BD72,0)) -> 0.4136321385 | CA72: =+IF($K72="Ongoing",BE72,IF(RIGHT($K72,2)=RIGHT(CA$39,2),SUM($AV72:BE72),0)+IF(RIGHT(CA$39,2)>RIGHT($K72,2),BE72,0)) -> 0.3790975694 | CC72: =+O72*KeyAssumptionsPriceControl_FO!X$15 -> 0.270532047 | CD72: =+P72*KeyAssumptionsPriceControl_FO!Y$15 -> 0.3126863422 | CE72: =+Q72*KeyAssumptionsPriceControl_FO!Z$15 -> 0.3844015283 | CF72: =+R72*KeyAssumptionsPriceControl_FO!AA$15 -> 0.4655263483 | CG72: =+S72*KeyAssumptionsPriceControl_FO!AB$15 -> 0.4633268152 | CH72: =+T72*KeyAssumptionsPriceControl_FO!AC$15 -> 0.469640433 | CI72: =+U72*KeyAssumptionsPriceControl_FO!AD$15 -> 0.495762349 | CJ72: =+V72*KeyAssumptionsPriceControl_FO!AE$15 -> 0.4502570294 | CK72: =+W72*KeyAssumptionsPriceControl_FO!AF$15 -> 0.5075688705 | CL72: =+X72*KeyAssumptionsPriceControl_FO!AG$15 -> 0.4758908308 | CN72: 0.003381650588 | CO72: 0.01067188045 | CP72: 0.01938547883 | CQ72: 0.03000957729 | CR72: 0.04162024183 | CS72: 0.05328233244 | CT72: 0.06534986721 | CU72: 0.07717510944 | CV72: 0.08914793319 | CW72: 0.1014411795
C73: Reticulation Network | E73: Sewerage | F73: Improvements / Compliance | G73: Pipelines/network | H73: Capital Programs / Allocation | J73: Straight line | K73: Ongoing | L73: 80 | M73: 80 | O73: 0.1531862745 | P73: 0.102124183 | Q73: 0.1531862745 | R73: 0.0510620915 | S73: 0.0510620915 | AV73: 0.1531862745 | AW73: 0.102124183 | AX73: 0.1531862745 | AY73: 0.0510620915 | AZ73: 0.0510620915 | BA73: 0 | BB73: 0 | BC73: 0 | BD73: 0 | BE73: 0 | BG73: 0.0009574142157 | BH73: 0.002553104575 | BI73: 0.004148794935 | BJ73: 0.005425347222 | BK73: 0.006063623366 | BL73: 0.006382761438 | BM73: 0.006382761438 | BN73: 0.006382761438 | BO73: 0.006382761438 | BP73: 0.006382761438 | BR73: =+IF($K73="Ongoing",AV73,IF(RIGHT($K73,2)=RIGHT(BR$39,2),SUM($AV73:AV73),0)+IF(RIGHT(BR$39,2)>RIGHT($K73,2),AV73,0)) -> 0.1531862745 | BS73: =+IF($K73="Ongoing",AW73,IF(RIGHT($K73,2)=RIGHT(BS$39,2),SUM($AV73:AW73),0)+IF(RIGHT(BS$39,2)>RIGHT($K73,2),AW73,0)) -> 0.102124183 | BT73: =+IF($K73="Ongoing",AX73,IF(RIGHT($K73,2)=RIGHT(BT$39,2),SUM($AV73:AX73),0)+IF(RIGHT(BT$39,2)>RIGHT($K73,2),AX73,0)) -> 0.1531862745 | BU73: =+IF($K73="Ongoing",AY73,IF(RIGHT($K73,2)=RIGHT(BU$39,2),SUM($AV73:AY73),0)+IF(RIGHT(BU$39,2)>RIGHT($K73,2),AY73,0)) -> 0.0510620915 | BV73: =+IF($K73="Ongoing",AZ73,IF(RIGHT($K73,2)=RIGHT(BV$39,2),SUM($AV73:AZ73),0)+IF(RIGHT(BV$39,2)>RIGHT($K73,2),AZ73,0)) -> 0.0510620915 | BW73: =+IF($K73="Ongoing",BA73,IF(RIGHT($K73,2)=RIGHT(BW$39,2),SUM($AV73:BA73),0)+IF(RIGHT(BW$39,2)>RIGHT($K73,2),BA73,0)) -> 0 | BX73: =+IF($K73="Ongoing",BB73,IF(RIGHT($K73,2)=RIGHT(BX$39,2),SUM($AV73:BB73),0)+IF(RIGHT(BX$39,2)>RIGHT($K73,2),BB73,0)) -> 0 | BY73: =+IF($K73="Ongoing",BC73,IF(RIGHT($K73,2)=RIGHT(BY$39,2),SUM($AV73:BC73),0)+IF(RIGHT(BY$39,2)>RIGHT($K73,2),BC73,0)) -> 0 | BZ73: =+IF($K73="Ongoing",BD73,IF(RIGHT($K73,2)=RIGHT(BZ$39,2),SUM($AV73:BD73),0)+IF(RIGHT(BZ$39,2)>RIGHT($K73,2),BD73,0)) -> 0 | CA73: =+IF($K73="Ongoing",BE73,IF(RIGHT($K73,2)=RIGHT(CA$39,2),SUM($AV73:BE73),0)+IF(RIGHT(CA$39,2)>RIGHT($K73,2),BE73,0)) -> 0 | CC73: =+O73*KeyAssumptionsPriceControl_FO!X$15 -> 0.1567095588 | CD73: =+P73*KeyAssumptionsPriceControl_FO!Y$15 -> 0.1068759191 | CE73: =+Q73*KeyAssumptionsPriceControl_FO!Z$15 -> 0.1640010979 | CF73: =+R73*KeyAssumptionsPriceControl_FO!AA$15 -> 0.05592437438 | CG73: =+S73*KeyAssumptionsPriceControl_FO!AB$15 -> 0.05721063499 | CH73: =+T73*KeyAssumptionsPriceControl_FO!AC$15 -> 0 | CI73: =+U73*KeyAssumptionsPriceControl_FO!AD$15 -> 0 | CJ73: =+V73*KeyAssumptionsPriceControl_FO!AE$15 -> 0 | CK73: =+W73*KeyAssumptionsPriceControl_FO!AF$15 -> 0 | CL73: =+X73*KeyAssumptionsPriceControl_FO!AG$15 -> 0 | CN73: 0.0009794347426 | CO73: 0.00262684398 | CP73: 0.004319825336 | CQ73: 0.005694359538 | CR73: 0.006401453346 | CS73: 0.006759019815 | CT73: 0.006759019815 | CU73: 0.006759019815 | CV73: 0.006759019815 | CW73: 0.006759019815
C74: Reticulation Network | E74: Sewerage | F74: Renewals | G74: Pipelines/network | H74: Capital Programs / Allocation | J74: Straight line | K74: Ongoing | L74: 80 | M74: 80 | O74: 2.177761949 | P74: 2.244010835 | Q74: 2.332564624 | R74: 2.33566252 | S74: 2.319177471 | T74: 2.101325 | U74: 1.879060999 | V74: 1.698432915 | W74: 1.451481362 | X74: 1.400479391 | AK74: 0.2457 | AL74: 0.2475 | AM74: 0.2492 | AN74: 0.2501 | AO74: 0.2519 | AP74: 0.2519 | AQ74: 0.2519 | AR74: 0.2519 | AS74: 0.2519 | AT74: 0.2519 | AV74: 1.932061949 | AW74: 1.996510835 | AX74: 2.083364624 | AY74: 2.08556252 | AZ74: 2.067277471 | BA74: 1.849425 | BB74: 1.627160999 | BC74: 1.446532915 | BD74: 1.199581362 | BE74: 1.148579391 | BG74: 0.01207538718 | BH74: 0.03662896708 | BI74: 0.0621281887 | BJ74: 0.08818398335 | BK74: 0.1141392333 | BL74: 0.1386186237 | BM74: 0.1603472862 | BN74: 0.1795578732 | BO74: 0.1960960874 | BP74: 0.2107720921 | BR74: =+IF($K74="Ongoing",AV74,IF(RIGHT($K74,2)=RIGHT(BR$39,2),SUM($AV74:AV74),0)+IF(RIGHT(BR$39,2)>RIGHT($K74,2),AV74,0)) -> 1.932061949 | BS74: =+IF($K74="Ongoing",AW74,IF(RIGHT($K74,2)=RIGHT(BS$39,2),SUM($AV74:AW74),0)+IF(RIGHT(BS$39,2)>RIGHT($K74,2),AW74,0)) -> 1.996510835 | BT74: =+IF($K74="Ongoing",AX74,IF(RIGHT($K74,2)=RIGHT(BT$39,2),SUM($AV74:AX74),0)+IF(RIGHT(BT$39,2)>RIGHT($K74,2),AX74,0)) -> 2.083364624 | BU74: =+IF($K74="Ongoing",AY74,IF(RIGHT($K74,2)=RIGHT(BU$39,2),SUM($AV74:AY74),0)+IF(RIGHT(BU$39,2)>RIGHT($K74,2),AY74,0)) -> 2.08556252 | BV74: =+IF($K74="Ongoing",AZ74,IF(RIGHT($K74,2)=RIGHT(BV$39,2),SUM($AV74:AZ74),0)+IF(RIGHT(BV$39,2)>RIGHT($K74,2),AZ74,0)) -> 2.067277471 | BW74: =+IF($K74="Ongoing",BA74,IF(RIGHT($K74,2)=RIGHT(BW$39,2),SUM($AV74:BA74),0)+IF(RIGHT(BW$39,2)>RIGHT($K74,2),BA74,0)) -> 1.849425 | BX74: =+IF($K74="Ongoing",BB74,IF(RIGHT($K74,2)=RIGHT(BX$39,2),SUM($AV74:BB74),0)+IF(RIGHT(BX$39,2)>RIGHT($K74,2),BB74,0)) -> 1.627160999 | BY74: =+IF($K74="Ongoing",BC74,IF(RIGHT($K74,2)=RIGHT(BY$39,2),SUM($AV74:BC74),0)+IF(RIGHT(BY$39,2)>RIGHT($K74,2),BC74,0)) -> 1.446532915 | BZ74: =+IF($K74="Ongoing",BD74,IF(RIGHT($K74,2)=RIGHT(BZ$39,2),SUM($AV74:BD74),0)+IF(RIGHT(BZ$39,2)>RIGHT($K74,2),BD74,0)) -> 1.199581362 | CA74: =+IF($K74="Ongoing",BE74,IF(RIGHT($K74,2)=RIGHT(CA$39,2),SUM($AV74:BE74),0)+IF(RIGHT(CA$39,2)>RIGHT($K74,2),BE74,0)) -> 1.148579391 | CC74: =+O74*KeyAssumptionsPriceControl_FO!X$15 -> 2.227850473 | CD74: =+P74*KeyAssumptionsPriceControl_FO!Y$15 -> 2.348422416 | CE74: =+Q74*KeyAssumptionsPriceControl_FO!Z$15 -> 2.497241744 | CF74: =+R74*KeyAssumptionsPriceControl_FO!AA$15 -> 2.558071191 | CG74: =+S74*KeyAssumptionsPriceControl_FO!AB$15 -> 2.598436764 | CH74: =+T74*KeyAssumptionsPriceControl_FO!AC$15 -> 2.408502102 | CI74: =+U74*KeyAssumptionsPriceControl_FO!AD$15 -> 2.203283157 | CJ74: =+V74*KeyAssumptionsPriceControl_FO!AE$15 -> 2.03729288 | CK74: =+W74*KeyAssumptionsPriceControl_FO!AF$15 -> 1.781115845 | CL74: =+X74*KeyAssumptionsPriceControl_FO!AG$15 -> 1.758057436 | CN74: 0.01392406546 | CO74: 0.04252577101 | CP74: 0.07281117201 | CQ74: 0.1044068778 | CR74: 0.1366350526 | CS74: 0.1679284205 | CT74: 0.1967520783 | CU74: 0.2232556786 | CV74: 0.2471207331 | CW74: 0.2692405661
C75: Reticulation Network | E75: Water | F75: Renewals | G75: Pipelines/network | H75: Capital Programs / Allocation | J75: Straight line | K75: Ongoing | L75: 80 | M75: 80 | O75: 1.228611152 | P75: 1.234312817 | Q75: 1.272793648 | R75: 1.310694996 | S75: 1.354049612 | T75: 1.231903186 | U75: 1.115690533 | V75: 1.042069853 | W75: 0.9851304841 | X75: 0.9961269199 | AK75: 0.5946 | AL75: 0.6015 | AM75: 0.6108 | AN75: 0.613 | AO75: 0.6223 | AP75: 0.6223 | AQ75: 0.6223 | AR75: 0.6223 | AS75: 0.6223 | AT75: 0.6223 | AV75: 0.634011152 | AW75: 0.6328128166 | AX75: 0.6619936479 | AY75: 0.6976949959 | AZ75: 0.7317496119 | BA75: 0.6096031863 | BB75: 0.4933905331 | BC75: 0.4197698529 | BD75: 0.3628304841 | BE75: 0.3738269199 | BG75: 0.0039625697 | BH75: 0.0118802195 | BI75: 0.01997275991 | BJ75: 0.02847081393 | BK75: 0.03740484273 | BL75: 0.04578829772 | BM75: 0.05268200846 | BN75: 0.05838926088 | BO75: 0.06328051298 | BP75: 0.06788462176 | BR75: =+IF($K75="Ongoing",AV75,IF(RIGHT($K75,2)=RIGHT(BR$39,2),SUM($AV75:AV75),0)+IF(RIGHT(BR$39,2)>RIGHT($K75,2),AV75,0)) -> 0.634011152 | BS75: =+IF($K75="Ongoing",AW75,IF(RIGHT($K75,2)=RIGHT(BS$39,2),SUM($AV75:AW75),0)+IF(RIGHT(BS$39,2)>RIGHT($K75,2),AW75,0)) -> 0.6328128166 | BT75: =+IF($K75="Ongoing",AX75,IF(RIGHT($K75,2)=RIGHT(BT$39,2),SUM($AV75:AX75),0)+IF(RIGHT(BT$39,2)>RIGHT($K75,2),AX75,0)) -> 0.6619936479 | BU75: =+IF($K75="Ongoing",AY75,IF(RIGHT($K75,2)=RIGHT(BU$39,2),SUM($AV75:AY75),0)+IF(RIGHT(BU$39,2)>RIGHT($K75,2),AY75,0)) -> 0.6976949959 | BV75: =+IF($K75="Ongoing",AZ75,IF(RIGHT($K75,2)=RIGHT(BV$39,2),SUM($AV75:AZ75),0)+IF(RIGHT(BV$39,2)>RIGHT($K75,2),AZ75,0)) -> 0.7317496119 | BW75: =+IF($K75="Ongoing",BA75,IF(RIGHT($K75,2)=RIGHT(BW$39,2),SUM($AV75:BA75),0)+IF(RIGHT(BW$39,2)>RIGHT($K75,2),BA75,0)) -> 0.6096031863 | BX75: =+IF($K75="Ongoing",BB75,IF(RIGHT($K75,2)=RIGHT(BX$39,2),SUM($AV75:BB75),0)+IF(RIGHT(BX$39,2)>RIGHT($K75,2),BB75,0)) -> 0.4933905331 | BY75: =+IF($K75="Ongoing",BC75,IF(RIGHT($K75,2)=RIGHT(BY$39,2),SUM($AV75:BC75),0)+IF(RIGHT(BY$39,2)>RIGHT($K75,2),BC75,0)) -> 0.4197698529 | BZ75: =+IF($K75="Ongoing",BD75,IF(RIGHT($K75,2)=RIGHT(BZ$39,2),SUM($AV75:BD75),0)+IF(RIGHT(BZ$39,2)>RIGHT($K75,2),BD75,0)) -> 0.3628304841 | CA75: =+IF($K75="Ongoing",BE75,IF(RIGHT($K75,2)=RIGHT(CA$39,2),SUM($AV75:BE75),0)+IF(RIGHT(CA$39,2)>RIGHT($K75,2),BE75,0)) -> 0.3738269199 | CC75: =+O75*KeyAssumptionsPriceControl_FO!X$15 -> 1.256869208 | CD75: =+P75*KeyAssumptionsPriceControl_FO!Y$15 -> 1.291744158 | CE75: =+Q75*KeyAssumptionsPriceControl_FO!Z$15 -> 1.362651819 | CF75: =+R75*KeyAssumptionsPriceControl_FO!AA$15 -> 1.435503237 | CG75: =+S75*KeyAssumptionsPriceControl_FO!AB$15 -> 1.51709489 | CH75: =+T75*KeyAssumptionsPriceControl_FO!AC$15 -> 1.411985968 | CI75: =+U75*KeyAssumptionsPriceControl_FO!AD$15 -> 1.308197106 | CJ75: =+V75*KeyAssumptionsPriceControl_FO!AE$15 -> 1.249976654 | CK75: =+W75*KeyAssumptionsPriceControl_FO!AF$15 -> 1.208855697 | CL75: =+X75*KeyAssumptionsPriceControl_FO!AG$15 -> 1.250463484 | CN75: 0.007855432553 | CO75: 0.02378426609 | CP75: 0.04037424095 | CQ75: 0.05786271005 | CR75: 0.07631644834 | CS75: 0.09462320371 | CT75: 0.1116243479 | CU75: 0.1276129339 | CV75: 0.1429806361 | CW75: 0.158351381
C76: Safety Equipment | E76: Sewerage | F76: Improvements / Compliance | G76: Corporate | H76: Capital Programs / Allocation | J76: Straight line | K76: 2018-19 | L76: 20 | M76: 20 | O76: 0.087 | AV76: 0.087 | AW76: 0 | AX76: 0 | AY76: 0 | AZ76: 0 | BA76: 0 | BB76: 0 | BC76: 0 | BD76: 0 | BE76: 0 | BG76: 0.002175 | BH76: 0.00435 | BI76: 0.00435 | BJ76: 0.00435 | BK76: 0.00435 | BL76: 0.00435 | BM76: 0.00435 | BN76: 0.00435 | BO76: 0.00435 | BP76: 0.00435 | BR76: =+IF($K76="Ongoing",AV76,IF(RIGHT($K76,2)=RIGHT(BR$39,2),SUM($AV76:AV76),0)+IF(RIGHT(BR$39,2)>RIGHT($K76,2),AV76,0)) -> 0.087 | BS76: =+IF($K76="Ongoing",AW76,IF(RIGHT($K76,2)=RIGHT(BS$39,2),SUM($AV76:AW76),0)+IF(RIGHT(BS$39,2)>RIGHT($K76,2),AW76,0)) -> 0 | BT76: =+IF($K76="Ongoing",AX76,IF(RIGHT($K76,2)=RIGHT(BT$39,2),SUM($AV76:AX76),0)+IF(RIGHT(BT$39,2)>RIGHT($K76,2),AX76,0)) -> 0 | BU76: =+IF($K76="Ongoing",AY76,IF(RIGHT($K76,2)=RIGHT(BU$39,2),SUM($AV76:AY76),0)+IF(RIGHT(BU$39,2)>RIGHT($K76,2),AY76,0)) -> 0 | BV76: =+IF($K76="Ongoing",AZ76,IF(RIGHT($K76,2)=RIGHT(BV$39,2),SUM($AV76:AZ76),0)+IF(RIGHT(BV$39,2)>RIGHT($K76,2),AZ76,0)) -> 0 | BW76: =+IF($K76="Ongoing",BA76,IF(RIGHT($K76,2)=RIGHT(BW$39,2),SUM($AV76:BA76),0)+IF(RIGHT(BW$39,2)>RIGHT($K76,2),BA76,0)) -> 0 | BX76: =+IF($K76="Ongoing",BB76,IF(RIGHT($K76,2)=RIGHT(BX$39,2),SUM($AV76:BB76),0)+IF(RIGHT(BX$39,2)>RIGHT($K76,2),BB76,0)) -> 0 | BY76: =+IF($K76="Ongoing",BC76,IF(RIGHT($K76,2)=RIGHT(BY$39,2),SUM($AV76:BC76),0)+IF(RIGHT(BY$39,2)>RIGHT($K76,2),BC76,0)) -> 0 | BZ76: =+IF($K76="Ongoing",BD76,IF(RIGHT($K76,2)=RIGHT(BZ$39,2),SUM($AV76:BD76),0)+IF(RIGHT(BZ$39,2)>RIGHT($K76,2),BD76,0)) -> 0 | CA76: =+IF($K76="Ongoing",BE76,IF(RIGHT($K76,2)=RIGHT(CA$39,2),SUM($AV76:BE76),0)+IF(RIGHT(CA$39,2)>RIGHT($K76,2),BE76,0)) -> 0 | CC76: =+O76*KeyAssumptionsPriceControl_FO!X$15 -> 0.089001 | CD76: =+P76*KeyAssumptionsPriceControl_FO!Y$15 -> 0 | CE76: =+Q76*KeyAssumptionsPriceControl_FO!Z$15 -> 0 | CF76: =+R76*KeyAssumptionsPriceControl_FO!AA$15 -> 0 | CG76: =+S76*KeyAssumptionsPriceControl_FO!AB$15 -> 0 | CH76: =+T76*KeyAssumptionsPriceControl_FO!AC$15 -> 0 | CI76: =+U76*KeyAssumptionsPriceControl_FO!AD$15 -> 0 | CJ76: =+V76*KeyAssumptionsPriceControl_FO!AE$15 -> 0 | CK76: =+W76*KeyAssumptionsPriceControl_FO!AF$15 -> 0 | CL76: =+X76*KeyAssumptionsPriceControl_FO!AG$15 -> 0 | CN76: 0.002225025 | CO76: 0.00445005 | CP76: 0.00445005 | CQ76: 0.00445005 | CR76: 0.00445005 | CS76: 0.00445005 | CT76: 0.00445005 | CU76: 0.00445005 | CV76: 0.00445005 | CW76: 0.00445005
C77: Safety Equipment | E77: Water | F77: Improvements / Compliance | G77: Corporate | H77: Capital Programs / Allocation | J77: Straight line | K77: 2018-19 | L77: 20 | M77: 20 | O77: 0.087 | AV77: 0.087 | AW77: 0 | AX77: 0 | AY77: 0 | AZ77: 0 | BA77: 0 | BB77: 0 | BC77: 0 | BD77: 0 | BE77: 0 | BG77: 0.002175 | BH77: 0.00435 | BI77: 0.00435 | BJ77: 0.00435 | BK77: 0.00435 | BL77: 0.00435 | BM77: 0.00435 | BN77: 0.00435 | BO77: 0.00435 | BP77: 0.00435 | BR77: =+IF($K77="Ongoing",AV77,IF(RIGHT($K77,2)=RIGHT(BR$39,2),SUM($AV77:AV77),0)+IF(RIGHT(BR$39,2)>RIGHT($K77,2),AV77,0)) -> 0.087 | BS77: =+IF($K77="Ongoing",AW77,IF(RIGHT($K77,2)=RIGHT(BS$39,2),SUM($AV77:AW77),0)+IF(RIGHT(BS$39,2)>RIGHT($K77,2),AW77,0)) -> 0 | BT77: =+IF($K77="Ongoing",AX77,IF(RIGHT($K77,2)=RIGHT(BT$39,2),SUM($AV77:AX77),0)+IF(RIGHT(BT$39,2)>RIGHT($K77,2),AX77,0)) -> 0 | BU77: =+IF($K77="Ongoing",AY77,IF(RIGHT($K77,2)=RIGHT(BU$39,2),SUM($AV77:AY77),0)+IF(RIGHT(BU$39,2)>RIGHT($K77,2),AY77,0)) -> 0 | BV77: =+IF($K77="Ongoing",AZ77,IF(RIGHT($K77,2)=RIGHT(BV$39,2),SUM($AV77:AZ77),0)+IF(RIGHT(BV$39,2)>RIGHT($K77,2),AZ77,0)) -> 0 | BW77: =+IF($K77="Ongoing",BA77,IF(RIGHT($K77,2)=RIGHT(BW$39,2),SUM($AV77:BA77),0)+IF(RIGHT(BW$39,2)>RIGHT($K77,2),BA77,0)) -> 0 | BX77: =+IF($K77="Ongoing",BB77,IF(RIGHT($K77,2)=RIGHT(BX$39,2),SUM($AV77:BB77),0)+IF(RIGHT(BX$39,2)>RIGHT($K77,2),BB77,0)) -> 0 | BY77: =+IF($K77="Ongoing",BC77,IF(RIGHT($K77,2)=RIGHT(BY$39,2),SUM($AV77:BC77),0)+IF(RIGHT(BY$39,2)>RIGHT($K77,2),BC77,0)) -> 0 | BZ77: =+IF($K77="Ongoing",BD77,IF(RIGHT($K77,2)=RIGHT(BZ$39,2),SUM($AV77:BD77),0)+IF(RIGHT(BZ$39,2)>RIGHT($K77,2),BD77,0)) -> 0 | CA77: =+IF($K77="Ongoing",BE77,IF(RIGHT($K77,2)=RIGHT(CA$39,2),SUM($AV77:BE77),0)+IF(RIGHT(CA$39,2)>RIGHT($K77,2),BE77,0)) -> 0 | CC77: =+O77*KeyAssumptionsPriceControl_FO!X$15 -> 0.089001 | CD77: =+P77*KeyAssumptionsPriceControl_FO!Y$15 -> 0 | CE77: =+Q77*KeyAssumptionsPriceControl_FO!Z$15 -> 0 | CF77: =+R77*KeyAssumptionsPriceControl_FO!AA$15 -> 0 | CG77: =+S77*KeyAssumptionsPriceControl_FO!AB$15 -> 0 | CH77: =+T77*KeyAssumptionsPriceControl_FO!AC$15 -> 0 | CI77: =+U77*KeyAssumptionsPriceControl_FO!AD$15 -> 0 | CJ77: =+V77*KeyAssumptionsPriceControl_FO!AE$15 -> 0 | CK77: =+W77*KeyAssumptionsPriceControl_FO!AF$15 -> 0 | CL77: =+X77*KeyAssumptionsPriceControl_FO!AG$15 -> 0 | CN77: 0.002225025 | CO77: 0.00445005 | CP77: 0.00445005 | CQ77: 0.00445005 | CR77: 0.00445005 | CS77: 0.00445005 | CT77: 0.00445005 | CU77: 0.00445005 | CV77: 0.00445005 | CW77: 0.00445005
C78: SCADA Software | E78: Sewerage | F78: Improvements / Compliance | G78: Corporate | H78: Capital Programs / Allocation | J78: Straight line | K78: Ongoing | L78: 4 | M78: 4 | P78: 0.2555 | Q78: 0.83 | R78: 0.766 | AV78: 0 | AW78: 0.2555 | AX78: 0.83 | AY78: 0.766 | AZ78: 0 | BA78: 0 | BB78: 0 | BC78: 0 | BD78: 0 | BE78: 0 | BG78: 0 | BH78: 0.0319375 | BI78: 0.167625 | BJ78: 0.367125 | BK78: 0.462875 | BL78: 0.4309375 | BM78: 0.29525 | BN78: 0.09575 | BO78: 0 | BP78: 0 | BR78: =+IF($K78="Ongoing",AV78,IF(RIGHT($K78,2)=RIGHT(BR$39,2),SUM($AV78:AV78),0)+IF(RIGHT(BR$39,2)>RIGHT($K78,2),AV78,0)) -> 0 | BS78: =+IF($K78="Ongoing",AW78,IF(RIGHT($K78,2)=RIGHT(BS$39,2),SUM($AV78:AW78),0)+IF(RIGHT(BS$39,2)>RIGHT($K78,2),AW78,0)) -> 0.2555 | BT78: =+IF($K78="Ongoing",AX78,IF(RIGHT($K78,2)=RIGHT(BT$39,2),SUM($AV78:AX78),0)+IF(RIGHT(BT$39,2)>RIGHT($K78,2),AX78,0)) -> 0.83 | BU78: =+IF($K78="Ongoing",AY78,IF(RIGHT($K78,2)=RIGHT(BU$39,2),SUM($AV78:AY78),0)+IF(RIGHT(BU$39,2)>RIGHT($K78,2),AY78,0)) -> 0.766 | BV78: =+IF($K78="Ongoing",AZ78,IF(RIGHT($K78,2)=RIGHT(BV$39,2),SUM($AV78:AZ78),0)+IF(RIGHT(BV$39,2)>RIGHT($K78,2),AZ78,0)) -> 0 | BW78: =+IF($K78="Ongoing",BA78,IF(RIGHT($K78,2)=RIGHT(BW$39,2),SUM($AV78:BA78),0)+IF(RIGHT(BW$39,2)>RIGHT($K78,2),BA78,0)) -> 0 | BX78: =+IF($K78="Ongoing",BB78,IF(RIGHT($K78,2)=RIGHT(BX$39,2),SUM($AV78:BB78),0)+IF(RIGHT(BX$39,2)>RIGHT($K78,2),BB78,0)) -> 0 | BY78: =+IF($K78="Ongoing",BC78,IF(RIGHT($K78,2)=RIGHT(BY$39,2),SUM($AV78:BC78),0)+IF(RIGHT(BY$39,2)>RIGHT($K78,2),BC78,0)) -> 0 | BZ78: =+IF($K78="Ongoing",BD78,IF(RIGHT($K78,2)=RIGHT(BZ$39,2),SUM($AV78:BD78),0)+IF(RIGHT(BZ$39,2)>RIGHT($K78,2),BD78,0)) -> 0 | CA78: =+IF($K78="Ongoing",BE78,IF(RIGHT($K78,2)=RIGHT(CA$39,2),SUM($AV78:BE78),0)+IF(RIGHT(CA$39,2)>RIGHT($K78,2),BE78,0)) -> 0 | CC78: =+O78*KeyAssumptionsPriceControl_FO!X$15 -> 0 | CD78: =+P78*KeyAssumptionsPriceControl_FO!Y$15 -> 0.2673881595 | CE78: =+Q78*KeyAssumptionsPriceControl_FO!Z$15 -> 0.8885973086 | CF78: =+R78*KeyAssumptionsPriceControl_FO!AA$15 -> 0.838940778 | CG78: =+S78*KeyAssumptionsPriceControl_FO!AB$15 -> 0 | CH78: =+T78*KeyAssumptionsPriceControl_FO!AC$15 -> 0 | CI78: =+U78*KeyAssumptionsPriceControl_FO!AD$15 -> 0 | CJ78: =+V78*KeyAssumptionsPriceControl_FO!AE$15 -> 0 | CK78: =+W78*KeyAssumptionsPriceControl_FO!AF$15 -> 0 | CL78: =+X78*KeyAssumptionsPriceControl_FO!AG$15 -> 0 | CN78: 0 | CO78: 0.03342351994 | CP78: 0.1779217035 | CQ78: 0.3938639643 | CR78: 0.4987315615 | CS78: 0.4653080416 | CT78: 0.3208098581 | CU78: 0.1048675973 | CV78: 0 | CW78: 0
C79: SCADA Software | E79: Water | F79: Improvements / Compliance | G79: Corporate | H79: Capital Programs / Allocation | J79: Straight line | K79: Ongoing | L79: 4 | M79: 4 | P79: 0.2555 | Q79: 0.83 | R79: 0.766 | AV79: 0 | AW79: 0.2555 | AX79: 0.83 | AY79: 0.766 | AZ79: 0 | BA79: 0 | BB79: 0 | BC79: 0 | BD79: 0 | BE79: 0 | BG79: 0 | BH79: 0.0319375 | BI79: 0.167625 | BJ79: 0.367125 | BK79: 0.462875 | BL79: 0.4309375 | BM79: 0.29525 | BN79: 0.09575 | BO79: 0 | BP79: 0 | BR79: =+IF($K79="Ongoing",AV79,IF(RIGHT($K79,2)=RIGHT(BR$39,2),SUM($AV79:AV79),0)+IF(RIGHT(BR$39,2)>RIGHT($K79,2),AV79,0)) -> 0 | BS79: =+IF($K79="Ongoing",AW79,IF(RIGHT($K79,2)=RIGHT(BS$39,2),SUM($AV79:AW79),0)+IF(RIGHT(BS$39,2)>RIGHT($K79,2),AW79,0)) -> 0.2555 | BT79: =+IF($K79="Ongoing",AX79,IF(RIGHT($K79,2)=RIGHT(BT$39,2),SUM($AV79:AX79),0)+IF(RIGHT(BT$39,2)>RIGHT($K79,2),AX79,0)) -> 0.83 | BU79: =+IF($K79="Ongoing",AY79,IF(RIGHT($K79,2)=RIGHT(BU$39,2),SUM($AV79:AY79),0)+IF(RIGHT(BU$39,2)>RIGHT($K79,2),AY79,0)) -> 0.766 | BV79: =+IF($K79="Ongoing",AZ79,IF(RIGHT($K79,2)=RIGHT(BV$39,2),SUM($AV79:AZ79),0)+IF(RIGHT(BV$39,2)>RIGHT($K79,2),AZ79,0)) -> 0 | BW79: =+IF($K79="Ongoing",BA79,IF(RIGHT($K79,2)=RIGHT(BW$39,2),SUM($AV79:BA79),0)+IF(RIGHT(BW$39,2)>RIGHT($K79,2),BA79,0)) -> 0 | BX79: =+IF($K79="Ongoing",BB79,IF(RIGHT($K79,2)=RIGHT(BX$39,2),SUM($AV79:BB79),0)+IF(RIGHT(BX$39,2)>RIGHT($K79,2),BB79,0)) -> 0 | BY79: =+IF($K79="Ongoing",BC79,IF(RIGHT($K79,2)=RIGHT(BY$39,2),SUM($AV79:BC79),0)+IF(RIGHT(BY$39,2)>RIGHT($K79,2),BC79,0)) -> 0 | BZ79: =+IF($K79="Ongoing",BD79,IF(RIGHT($K79,2)=RIGHT(BZ$39,2),SUM($AV79:BD79),0)+IF(RIGHT(BZ$39,2)>RIGHT($K79,2),BD79,0)) -> 0 | CA79: =+IF($K79="Ongoing",BE79,IF(RIGHT($K79,2)=RIGHT(CA$39,2),SUM($AV79:BE79),0)+IF(RIGHT(CA$39,2)>RIGHT($K79,2),BE79,0)) -> 0 | CC79: =+O79*KeyAssumptionsPriceControl_FO!X$15 -> 0 | CD79: =+P79*KeyAssumptionsPriceControl_FO!Y$15 -> 0.2673881595 | CE79: =+Q79*KeyAssumptionsPriceControl_FO!Z$15 -> 0.8885973086 | CF79: =+R79*KeyAssumptionsPriceControl_FO!AA$15 -> 0.838940778 | CG79: =+S79*KeyAssumptionsPriceControl_FO!AB$15 -> 0 | CH79: =+T79*KeyAssumptionsPriceControl_FO!AC$15 -> 0 | CI79: =+U79*KeyAssumptionsPriceControl_FO!AD$15 -> 0 | CJ79: =+V79*KeyAssumptionsPriceControl_FO!AE$15 -> 0 | CK79: =+W79*KeyAssumptionsPriceControl_FO!AF$15 -> 0 | CL79: =+X79*KeyAssumptionsPriceControl_FO!AG$15 -> 0 | CN79: 0 | CO79: 0.03342351994 | CP79: 0.1779217035 | CQ79: 0.3938639643 | CR79: 0.4987315615 | CS79: 0.4653080416 | CT79: 0.3208098581 | CU79: 0.1048675973 | CV79: 0 | CW79: 0
C80: Sewer Main | E80: Water | F80: Renewals | G80: Pipelines/network | H80: Capital Programs / Allocation | J80: Straight line | K80: Ongoing | L80: 100 | M80: 100 | O80: 0.06156302083 | P80: 0.06345260417 | Q80: 0.06676488971 | R80: 0.09560014297 | S80: 0.1077208333 | T80: 0.1088425041 | U80: 0.1148834355 | V80: 0.1239212112 | W80: 0.1398654718 | X80: 0.1066623775 | AV80: 0.06156302083 | AW80: 0.06345260417 | AX80: 0.06676488971 | AY80: 0.09560014297 | AZ80: 0.1077208333 | BA80: 0.1088425041 | BB80: 0.1148834355 | BC80: 0.1239212112 | BD80: 0.1398654718 | BE80: 0.1066623775 | BG80: 0.0003078151042 | BH80: 0.0009328932292 | BI80: 0.001583980699 | BJ80: 0.002395805862 | BK80: 0.003412410743 | BL80: 0.004495227431 | BM80: 0.005613857128 | BN80: 0.006807880362 | BO80: 0.008126813777 | BP80: 0.009359453023 | BR80: =+IF($K80="Ongoing",AV80,IF(RIGHT($K80,2)=RIGHT(BR$39,2),SUM($AV80:AV80),0)+IF(RIGHT(BR$39,2)>RIGHT($K80,2),AV80,0)) -> 0.06156302083 | BS80: =+IF($K80="Ongoing",AW80,IF(RIGHT($K80,2)=RIGHT(BS$39,2),SUM($AV80:AW80),0)+IF(RIGHT(BS$39,2)>RIGHT($K80,2),AW80,0)) -> 0.06345260417 | BT80: =+IF($K80="Ongoing",AX80,IF(RIGHT($K80,2)=RIGHT(BT$39,2),SUM($AV80:AX80),0)+IF(RIGHT(BT$39,2)>RIGHT($K80,2),AX80,0)) -> 0.06676488971 | BU80: =+IF($K80="Ongoing",AY80,IF(RIGHT($K80,2)=RIGHT(BU$39,2),SUM($AV80:AY80),0)+IF(RIGHT(BU$39,2)>RIGHT($K80,2),AY80,0)) -> 0.09560014297 | BV80: =+IF($K80="Ongoing",AZ80,IF(RIGHT($K80,2)=RIGHT(BV$39,2),SUM($AV80:AZ80),0)+IF(RIGHT(BV$39,2)>RIGHT($K80,2),AZ80,0)) -> 0.1077208333 | BW80: =+IF($K80="Ongoing",BA80,IF(RIGHT($K80,2)=RIGHT(BW$39,2),SUM($AV80:BA80),0)+IF(RIGHT(BW$39,2)>RIGHT($K80,2),BA80,0)) -> 0.1088425041 | BX80: =+IF($K80="Ongoing",BB80,IF(RIGHT($K80,2)=RIGHT(BX$39,2),SUM($AV80:BB80),0)+IF(RIGHT(BX$39,2)>RIGHT($K80,2),BB80,0)) -> 0.1148834355 | BY80: =+IF($K80="Ongoing",BC80,IF(RIGHT($K80,2)=RIGHT(BY$39,2),SUM($AV80:BC80),0)+IF(RIGHT(BY$39,2)>RIGHT($K80,2),BC80,0)) -> 0.1239212112 | BZ80: =+IF($K80="Ongoing",BD80,IF(RIGHT($K80,2)=RIGHT(BZ$39,2),SUM($AV80:BD80),0)+IF(RIGHT(BZ$39,2)>RIGHT($K80,2),BD80,0)) -> 0.1398654718 | CA80: =+IF($K80="Ongoing",BE80,IF(RIGHT($K80,2)=RIGHT(CA$39,2),SUM($AV80:BE80),0)+IF(RIGHT(CA$39,2)>RIGHT($K80,2),BE80,0)) -> 0.1066623775 | CC80: =+O80*KeyAssumptionsPriceControl_FO!X$15 -> 0.06297897031 | CD80: =+P80*KeyAssumptionsPriceControl_FO!Y$15 -> 0.06640499039 | CE80: =+Q80*KeyAssumptionsPriceControl_FO!Z$15 -> 0.0714784353 | CF80: =+R80*KeyAssumptionsPriceControl_FO!AA$15 -> 0.1047034704 | CG80: =+S80*KeyAssumptionsPriceControl_FO!AB$15 -> 0.1206918302 | CH80: =+T80*KeyAssumptionsPriceControl_FO!AC$15 -> 0.1247533818 | CI80: =+U80*KeyAssumptionsPriceControl_FO!AD$15 -> 0.1347059721 | CJ80: =+V80*KeyAssumptionsPriceControl_FO!AE$15 -> 0.1486451417 | CK80: =+W80*KeyAssumptionsPriceControl_FO!AF$15 -> 0.1716292158 | CL80: =+X80*KeyAssumptionsPriceControl_FO!AG$15 -> 0.133895998 | CN80: 0.0003148948516 | CO80: 0.0009618146551 | CP80: 0.001651231784 | CQ80: 0.002532141312 | CR80: 0.003659117815 | CS80: 0.004886343875 | CT80: 0.006183640644 | CU80: 0.007600396212 | CV80: 0.009201767999 | CW80: 0.01072939407
C81: Treatment Plants | E81: Sewerage | F81: Renewals | G81: Treatment | H81: Capital Programs / Allocation | J81: Straight line | K81: Ongoing | L81: 80 | M81: 80 | O81: 1.033003013 | P81: 1.067456127 | Q81: 1.162274888 | R81: 1.290818352 | S81: 1.265397825 | T81: 1.237256117 | U81: 1.192901307 | V81: 0.9492872141 | W81: 0.9206503268 | X81: 0.7834571998 | AV81: 1.033003013 | AW81: 1.067456127 | AX81: 1.162274888 | AY81: 1.290818352 | AZ81: 1.265397825 | BA81: 1.237256117 | BB81: 1.192901307 | BC81: 0.9492872141 | BD81: 0.9206503268 | BE81: 0.7834571998 | BG81: 0.006456268829 | BH81: 0.01958413845 | BI81: 0.0335199573 | BJ81: 0.04885179005 | BK81: 0.06482814115 | BL81: 0.08046972829 | BM81: 0.09565821219 | BN81: 0.1090468904 | BO81: 0.1207340001 | BP81: 0.1313846721 | BR81: =+IF($K81="Ongoing",AV81,IF(RIGHT($K81,2)=RIGHT(BR$39,2),SUM($AV81:AV81),0)+IF(RIGHT(BR$39,2)>RIGHT($K81,2),AV81,0)) -> 1.033003013 | BS81: =+IF($K81="Ongoing",AW81,IF(RIGHT($K81,2)=RIGHT(BS$39,2),SUM($AV81:AW81),0)+IF(RIGHT(BS$39,2)>RIGHT($K81,2),AW81,0)) -> 1.067456127 | BT81: =+IF($K81="Ongoing",AX81,IF(RIGHT($K81,2)=RIGHT(BT$39,2),SUM($AV81:AX81),0)+IF(RIGHT(BT$39,2)>RIGHT($K81,2),AX81,0)) -> 1.162274888 | BU81: =+IF($K81="Ongoing",AY81,IF(RIGHT($K81,2)=RIGHT(BU$39,2),SUM($AV81:AY81),0)+IF(RIGHT(BU$39,2)>RIGHT($K81,2),AY81,0)) -> 1.290818352 | BV81: =+IF($K81="Ongoing",AZ81,IF(RIGHT($K81,2)=RIGHT(BV$39,2),SUM($AV81:AZ81),0)+IF(RIGHT(BV$39,2)>RIGHT($K81,2),AZ81,0)) -> 1.265397825 | BW81: =+IF($K81="Ongoing",BA81,IF(RIGHT($K81,2)=RIGHT(BW$39,2),SUM($AV81:BA81),0)+IF(RIGHT(BW$39,2)>RIGHT($K81,2),BA81,0)) -> 1.237256117 | BX81: =+IF($K81="Ongoing",BB81,IF(RIGHT($K81,2)=RIGHT(BX$39,2),SUM($AV81:BB81),0)+IF(RIGHT(BX$39,2)>RIGHT($K81,2),BB81,0)) -> 1.192901307 | BY81: =+IF($K81="Ongoing",BC81,IF(RIGHT($K81,2)=RIGHT(BY$39,2),SUM($AV81:BC81),0)+IF(RIGHT(BY$39,2)>RIGHT($K81,2),BC81,0)) -> 0.9492872141 | BZ81: =+IF($K81="Ongoing",BD81,IF(RIGHT($K81,2)=RIGHT(BZ$39,2),SUM($AV81:BD81),0)+IF(RIGHT(BZ$39,2)>RIGHT($K81,2),BD81,0)) -> 0.9206503268 | CA81: =+IF($K81="Ongoing",BE81,IF(RIGHT($K81,2)=RIGHT(CA$39,2),SUM($AV81:BE81),0)+IF(RIGHT(CA$39,2)>RIGHT($K81,2),BE81,0)) -> 0.7834571998 | CC81: =+O81*KeyAssumptionsPriceControl_FO!X$15 -> 1.056762082 | CD81: =+P81*KeyAssumptionsPriceControl_FO!Y$15 -> 1.117123794 | CE81: =+Q81*KeyAssumptionsPriceControl_FO!Z$15 -> 1.244330527 | CF81: =+R81*KeyAssumptionsPriceControl_FO!AA$15 -> 1.41373388 | CG81: =+S81*KeyAssumptionsPriceControl_FO!AB$15 -> 1.417768269 | CH81: =+T81*KeyAssumptionsPriceControl_FO!AC$15 -> 1.418121404 | CI81: =+U81*KeyAssumptionsPriceControl_FO!AD$15 -> 1.398730196 | CJ81: =+V81*KeyAssumptionsPriceControl_FO!AE$15 -> 1.138682644 | CK81: =+W81*KeyAssumptionsPriceControl_FO!AF$15 -> 1.12973196 | CL81: =+X81*KeyAssumptionsPriceControl_FO!AG$15 -> 0.9834937697 | CN81: 0.006604763012 | CO81: 0.02019154973 | CP81: 0.03495063924 | CQ81: 0.05156354178 | CR81: 0.06926043021 | CS81: 0.08698474067 | CT81: 0.1045900632 | CU81: 0.1204488934 | CV81: 0.1346264847 | CW81: 0.1478341455
C82: Treatment Plants | E82: Water | F82: Renewals | G82: Treatment | H82: Capital Programs / Allocation | J82: Straight line | K82: Ongoing | L82: 80 | M82: 80 | O82: 0.3051436377 | P82: 0.4224558517 | Q82: 0.5020387255 | R82: 0.5094377349 | S82: 0.4489008885 | T82: 0.4440565462 | U82: 0.4986159212 | V82: 0.5200006127 | W82: 0.5676323734 | X82: 0.5677596303 | AV82: 0.3051436377 | AW82: =+P82-AA82-AL82 -> 0.4224558517 | AX82: 0.5020387255 | AY82: 0.5094377349 | AZ82: 0.4489008885 | BA82: 0.4440565462 | BB82: 0.4986159212 | BC82: 0.5200006127 | BD82: 0.5676323734 | BE82: 0.5677596303 | BG82: 0.001907147735 | BH82: 0.006454644544 | BI82: 0.01223273565 | BJ82: 0.01855446353 | BK82: 0.02454407992 | BL82: 0.03012506389 | BM82: 0.03601676681 | BN82: 0.04238312015 | BO82: 0.04918082631 | BP82: 0.05627702634 | BR82: =+IF($K82="Ongoing",AV82,IF(RIGHT($K82,2)=RIGHT(BR$39,2),SUM($AV82:AV82),0)+IF(RIGHT(BR$39,2)>RIGHT($K82,2),AV82,0)) -> 0.3051436377 | BS82: =+IF($K82="Ongoing",AW82,IF(RIGHT($K82,2)=RIGHT(BS$39,2),SUM($AV82:AW82),0)+IF(RIGHT(BS$39,2)>RIGHT($K82,2),AW82,0)) -> 0.4224558517 | BT82: =+IF($K82="Ongoing",AX82,IF(RIGHT($K82,2)=RIGHT(BT$39,2),SUM($AV82:AX82),0)+IF(RIGHT(BT$39,2)>RIGHT($K82,2),AX82,0)) -> 0.5020387255 | BU82: =+IF($K82="Ongoing",AY82,IF(RIGHT($K82,2)=RIGHT(BU$39,2),SUM($AV82:AY82),0)+IF(RIGHT(BU$39,2)>RIGHT($K82,2),AY82,0)) -> 0.5094377349 | BV82: =+IF($K82="Ongoing",AZ82,IF(RIGHT($K82,2)=RIGHT(BV$39,2),SUM($AV82:AZ82),0)+IF(RIGHT(BV$39,2)>RIGHT($K82,2),AZ82,0)) -> 0.4489008885 | BW82: =+IF($K82="Ongoing",BA82,IF(RIGHT($K82,2)=RIGHT(BW$39,2),SUM($AV82:BA82),0)+IF(RIGHT(BW$39,2)>RIGHT($K82,2),BA82,0)) -> 0.4440565462 | BX82: =+IF($K82="Ongoing",BB82,IF(RIGHT($K82,2)=RIGHT(BX$39,2),SUM($AV82:BB82),0)+IF(RIGHT(BX$39,2)>RIGHT($K82,2),BB82,0)) -> 0.4986159212 | BY82: =+IF($K82="Ongoing",BC82,IF(RIGHT($K82,2)=RIGHT(BY$39,2),SUM($AV82:BC82),0)+IF(RIGHT(BY$39,2)>RIGHT($K82,2),BC82,0)) -> 0.5200006127 | BZ82: =+IF($K82="Ongoing",BD82,IF(RIGHT($K82,2)=RIGHT(BZ$39,2),SUM($AV82:BD82),0)+IF(RIGHT(BZ$39,2)>RIGHT($K82,2),BD82,0)) -> 0.5676323734 | CA82: =+IF($K82="Ongoing",BE82,IF(RIGHT($K82,2)=RIGHT(CA$39,2),SUM($AV82:BE82),0)+IF(RIGHT(CA$39,2)>RIGHT($K82,2),BE82,0)) -> 0.5677596303 | CC82: =+O82*KeyAssumptionsPriceControl_FO!X$15 -> 0.3121619413 | CD82: =+P82*KeyAssumptionsPriceControl_FO!Y$15 -> 0.4421123 | CE82: =+Q82*KeyAssumptionsPriceControl_FO!Z$15 -> 0.5374822413 | CF82: =+R82*KeyAssumptionsPriceControl_FO!AA$15 -> 0.5579478977 | CG82: =+S82*KeyAssumptionsPriceControl_FO!AB$15 -> 0.5029544251 | CH82: =+T82*KeyAssumptionsPriceControl_FO!AC$15 -> 0.5089698761 | CI82: =+U82*KeyAssumptionsPriceControl_FO!AD$15 -> 0.5846494934 | CJ82: =+V82*KeyAssumptionsPriceControl_FO!AE$15 -> 0.6237476538 | CK82: =+W82*KeyAssumptionsPriceControl_FO!AF$15 -> 0.6965428839 | CL82: =+X82*KeyAssumptionsPriceControl_FO!AG$15 -> 0.7127231191 | CN82: 0.001951012133 | CO82: 0.006665226142 | CP82: 0.01278769203 | CQ82: 0.01963413039 | CR82: 0.02626476991 | CS82: 0.0325892968 | CT82: 0.03942441785 | CU82: 0.04697690003 | CV82: 0.05522871589 | CW82: 0.06403662841
C83: Water Meter | E83: Water | F83: Renewals | G83: Pipelines/network | H83: Capital Programs / Allocation | J83: Straight line | K83: Ongoing | L83: 20 | M83: 20 | O83: 0.01531862745 | P83: 0.08169934641 | Q83: 0.1378676471 | R83: 0.3012663399 | S83: 0.3319035948 | T83: 0.2399918301 | U83: 0.2910539216 | V83: 0.4799836601 | W83: 0.3370098039 | X83: 0.5821078431 | AV83: =+O83-Z83-AK83 -> 0.01531862745 | AW83: 0.08169934641 | AX83: 0.1378676471 | AY83: 0.3012663399 | AZ83: 0.3319035948 | BA83: 0.2399918301 | BB83: 0.2910539216 | BC83: 0.4799836601 | BD83: 0.3370098039 | BE83: 0.5821078431 | BG83: 0.0003829656863 | BH83: 0.002808415033 | BI83: 0.008297589869 | BJ83: 0.01927593954 | BK83: 0.03510518791 | BL83: 0.04940257353 | BM83: 0.06267871732 | BN83: 0.08195465686 | BO83: 0.1023794935 | BP83: 0.1253574346 | BR83: =+IF($K83="Ongoing",AV83,IF(RIGHT($K83,2)=RIGHT(BR$39,2),SUM($AV83:AV83),0)+IF(RIGHT(BR$39,2)>RIGHT($K83,2),AV83,0)) -> 0.01531862745 | BS83: =+IF($K83="Ongoing",AW83,IF(RIGHT($K83,2)=RIGHT(BS$39,2),SUM($AV83:AW83),0)+IF(RIGHT(BS$39,2)>RIGHT($K83,2),AW83,0)) -> 0.08169934641 | BT83: =+IF($K83="Ongoing",AX83,IF(RIGHT($K83,2)=RIGHT(BT$39,2),SUM($AV83:AX83),0)+IF(RIGHT(BT$39,2)>RIGHT($K83,2),AX83,0)) -> 0.1378676471 | BU83: =+IF($K83="Ongoing",AY83,IF(RIGHT($K83,2)=RIGHT(BU$39,2),SUM($AV83:AY83),0)+IF(RIGHT(BU$39,2)>RIGHT($K83,2),AY83,0)) -> 0.3012663399 | BV83: =+IF($K83="Ongoing",AZ83,IF(RIGHT($K83,2)=RIGHT(BV$39,2),SUM($AV83:AZ83),0)+IF(RIGHT(BV$39,2)>RIGHT($K83,2),AZ83,0)) -> 0.3319035948 | BW83: =+IF($K83="Ongoing",BA83,IF(RIGHT($K83,2)=RIGHT(BW$39,2),SUM($AV83:BA83),0)+IF(RIGHT(BW$39,2)>RIGHT($K83,2),BA83,0)) -> 0.2399918301 | BX83: =+IF($K83="Ongoing",BB83,IF(RIGHT($K83,2)=RIGHT(BX$39,2),SUM($AV83:BB83),0)+IF(RIGHT(BX$39,2)>RIGHT($K83,2),BB83,0)) -> 0.2910539216 | BY83: =+IF($K83="Ongoing",BC83,IF(RIGHT($K83,2)=RIGHT(BY$39,2),SUM($AV83:BC83),0)+IF(RIGHT(BY$39,2)>RIGHT($K83,2),BC83,0)) -> 0.4799836601 | BZ83: =+IF($K83="Ongoing",BD83,IF(RIGHT($K83,2)=RIGHT(BZ$39,2),SUM($AV83:BD83),0)+IF(RIGHT(BZ$39,2)>RIGHT($K83,2),BD83,0)) -> 0.3370098039 | CA83: =+IF($K83="Ongoing",BE83,IF(RIGHT($K83,2)=RIGHT(CA$39,2),SUM($AV83:BE83),0)+IF(RIGHT(CA$39,2)>RIGHT($K83,2),BE83,0)) -> 0.5821078431 | CC83: =+O83*KeyAssumptionsPriceControl_FO!X$15 -> 0.01567095588 | CD83: =+P83*KeyAssumptionsPriceControl_FO!Y$15 -> 0.08550073529 | CE83: =+Q83*KeyAssumptionsPriceControl_FO!Z$15 -> 0.1476009881 | CF83: =+R83*KeyAssumptionsPriceControl_FO!AA$15 -> 0.3299538088 | CG83: =+S83*KeyAssumptionsPriceControl_FO!AB$15 -> 0.3718691274 | CH83: =+T83*KeyAssumptionsPriceControl_FO!AC$15 -> 0.2750744541 | CI83: =+U83*KeyAssumptionsPriceControl_FO!AD$15 -> 0.3412737552 | CJ83: =+V83*KeyAssumptionsPriceControl_FO!AE$15 -> 0.5757467867 | CK83: =+W83*KeyAssumptionsPriceControl_FO!AF$15 -> 0.413545442 | CL83: =+X83*KeyAssumptionsPriceControl_FO!AG$15 -> 0.730734796 | CN83: 0.0003917738971 | CO83: 0.002921066176 | CP83: 0.008748609261 | CQ83: 0.02068747918 | CR83: 0.03823305259 | CS83: 0.05440664213 | CT83: 0.06981534736 | CU83: 0.09274086091 | CV83: 0.1174731666 | CW83: 0.1460801726
C84: Water Towers | E84: Water | F84: Improvements / Compliance | G84: Headworks | H84: Capital Programs / Allocation | J84: Straight line | K84: 2019-20 | L84: 40 | M84: 40 | P84: 0.2553104575 | AV84: 0 | AW84: 0.2553104575 | AX84: 0 | AY84: 0 | AZ84: 0 | BA84: 0 | BB84: 0 | BC84: 0 | BD84: 0 | BE84: 0 | BG84: 0 | BH84: 0.003191380719 | BI84: 0.006382761438 | BJ84: 0.006382761438 | BK84: 0.006382761438 | BL84: 0.006382761438 | BM84: 0.006382761438 | BN84: 0.006382761438 | BO84: =IF($L84=0,0, IF($L84<=0.5,BZ84, IF(AND($J84="straight line",$L84<1.51),(BY84-((BY84/$L84)*0.5))+BZ84/$L84*0.5, IF($J84="straight line", IF((LEFT(BO$39,4)*1)-INT($L84)<LEFT($BG$39,4)*1,0,((OFFSET(BZ84,0,-INT($L84+0.5),1,1))/$L84)*(IF($L84-INT($L84)>0.5,$L84-0.5-INT($L84),IF($L84-INT($L84)<=0.5,$L84-0.5-INT($L84)+1,0)))) +BZ84/$L84*0.5 +SUM(OFFSET(BZ84,0,MAX(-INT($L84+(0.5-(10^-12))),-BO$40)+1,1,MIN(INT($L84+(0.5-(10^-12))),BO$40)-1))*1/$L84, IF($J84="Declining Balance",-$BG$38,0))))) -> 0.006382761438 | BP84: 0.006382761438 | BR84: =+IF($K84="Ongoing",AV84,IF(RIGHT($K84,2)=RIGHT(BR$39,2),SUM($AV84:AV84),0)+IF(RIGHT(BR$39,2)>RIGHT($K84,2),AV84,0)) -> 0 | BS84: =+IF($K84="Ongoing",AW84,IF(RIGHT($K84,2)=RIGHT(BS$39,2),SUM($AV84:AW84),0)+IF(RIGHT(BS$39,2)>RIGHT($K84,2),AW84,0)) -> 0.2553104575 | BT84: =+IF($K84="Ongoing",AX84,IF(RIGHT($K84,2)=RIGHT(BT$39,2),SUM($AV84:AX84),0)+IF(RIGHT(BT$39,2)>RIGHT($K84,2),AX84,0)) -> 0 | BU84: =+IF($K84="Ongoing",AY84,IF(RIGHT($K84,2)=RIGHT(BU$39,2),SUM($AV84:AY84),0)+IF(RIGHT(BU$39,2)>RIGHT($K84,2),AY84,0)) -> 0 | BV84: =+IF($K84="Ongoing",AZ84,IF(RIGHT($K84,2)=RIGHT(BV$39,2),SUM($AV84:AZ84),0)+IF(RIGHT(BV$39,2)>RIGHT($K84,2),AZ84,0)) -> 0 | BW84: =+IF($K84="Ongoing",BA84,IF(RIGHT($K84,2)=RIGHT(BW$39,2),SUM($AV84:BA84),0)+IF(RIGHT(BW$39,2)>RIGHT($K84,2),BA84,0)) -> 0 | BX84: =+IF($K84="Ongoing",BB84,IF(RIGHT($K84,2)=RIGHT(BX$39,2),SUM($AV84:BB84),0)+IF(RIGHT(BX$39,2)>RIGHT($K84,2),BB84,0)) -> 0 | BY84: =+IF($K84="Ongoing",BC84,IF(RIGHT($K84,2)=RIGHT(BY$39,2),SUM($AV84:BC84),0)+IF(RIGHT(BY$39,2)>RIGHT($K84,2),BC84,0)) -> 0 | BZ84: =+IF($K84="Ongoing",BD84,IF(RIGHT($K84,2)=RIGHT(BZ$39,2),SUM($AV84:BD84),0)+IF(RIGHT(BZ$39,2)>RIGHT($K84,2),BD84,0)) -> 0 | CA84: =+IF($K84="Ongoing",BE84,IF(RIGHT($K84,2)=RIGHT(CA$39,2),SUM($AV84:BE84),0)+IF(RIGHT(CA$39,2)>RIGHT($K84,2),BE84,0)) -> 0 | CC84: =+O84*KeyAssumptionsPriceControl_FO!X$15 -> 0 | CD84: =+P84*KeyAssumptionsPriceControl_FO!Y$15 -> 0.2671897978 | CE84: =+Q84*KeyAssumptionsPriceControl_FO!Z$15 -> 0 | CF84: =+R84*KeyAssumptionsPriceControl_FO!AA$15 -> 0 | CG84: =+S84*KeyAssumptionsPriceControl_FO!AB$15 -> 0 | CH84: =+T84*KeyAssumptionsPriceControl_FO!AC$15 -> 0 | CI84: =+U84*KeyAssumptionsPriceControl_FO!AD$15 -> 0 | CJ84: =+V84*KeyAssumptionsPriceControl_FO!AE$15 -> 0 | CK84: =+W84*KeyAssumptionsPriceControl_FO!AF$15 -> 0 | CL84: =+X84*KeyAssumptionsPriceControl_FO!AG$15 -> 0 | CN84: 0 | CO84: 0.003339872472 | CP84: 0.006679744945 | CQ84: 0.006679744945 | CR84: 0.006679744945 | CS84: 0.006679744945 | CT84: 0.006679744945 | CU84: 0.006679744945 | CV84: =IF($M84=0,0, IF($M84<=0.5,CK84, IF(AND($J84="straight line",$M84<1.51),(CJ84-((CJ84/$M84)*0.5))+CK84/$M84*0.5, IF($J84="straight line", IF((LEFT(CV$39,4)*1)-INT($M84)<LEFT($CN$39,4)*1,0,((OFFSET(CK84,0,-INT($M84+0.5),1,1))/$M84)*(IF($M84-INT($M84)>0.5,$M84-0.5-INT($M84),IF($M84-INT($M84)<=0.5,$M84-0.5-INT($M84)+1,0)))) +CK84/$M84*0.5 +SUM(OFFSET(CK84,0,MAX(-INT($M84+(0.5-(10^-12))),-CV$40)+1,1,MIN(INT($M84+(0.5-(10^-12))),CV$40)-1))*1/$M84, IF($J84="Declining Balance",-$CN$38,0))))) -> 0.006679744945 | CW84: 0.006679744945
C85: Water Towers | E85: Water | F85: Renewals | G85: Headworks | H85: Capital Programs / Allocation | J85: Straight line | K85: Ongoing | L85: 40 | M85: 40 | O85: 0.4358093954 | P85: 0.4774849877 | Q85: 0.5377815666 | R85: 0.6101691993 | S85: 0.5744946793 | T85: 0.5571370302 | U85: 0.5577837112 | V85: 0.457208221 | W85: 0.4916199142 | X85: 0.4248795547 | AV85: 0.4358093954 | AW85: 0.4774849877 | AX85: 0.5377815666 | AY85: 0.6101691993 | AZ85: 0.5744946793 | BA85: 0.5571370302 | BB85: 0.5577837112 | BC85: 0.457208221 | BD85: 0.4916199142 | BE85: 0.4248795547 | BG85: 0.005447617443 | BH85: =IF($L85=0,0, IF($L85<=0.5,BS85, IF(AND($J85="straight line",$L85<1.51),(BR85-((BR85/$L85)*0.5))+BS85/$L85*0.5, IF($J85="straight line", IF((LEFT(BH$39,4)*1)-INT($L85)<LEFT($BG$39,4)*1,0,((OFFSET(BS85,0,-INT($L85+0.5),1,1))/$L85)*(IF($L85-INT($L85)>0.5,$L85-0.5-INT($L85),IF($L85-INT($L85)<=0.5,$L85-0.5-INT($L85)+1,0)))) +BS85/$L85*0.5 +SUM(OFFSET(BS85,0,MAX(-INT($L85+(0.5-(10^-12))),-BH$40)+1,1,MIN(INT($L85+(0.5-(10^-12))),BH$40)-1))*1/$L85, IF($J85="Declining Balance",-$BG$38,0))))) -> 0.01686379723 | BI85: 0.02955462916 | BJ85: 0.04390401374 | BK85: 0.05871231222 | BL85: 0.07285770859 | BM85: 0.08679421786 | BN85: 0.09948161701 | BO85: 0.1113419687 | BP85: 0.1227982121 | BR85: =+IF($K85="Ongoing",AV85,IF(RIGHT($K85,2)=RIGHT(BR$39,2),SUM($AV85:AV85),0)+IF(RIGHT(BR$39,2)>RIGHT($K85,2),AV85,0)) -> 0.4358093954 | BS85: =+IF($K85="Ongoing",AW85,IF(RIGHT($K85,2)=RIGHT(BS$39,2),SUM($AV85:AW85),0)+IF(RIGHT(BS$39,2)>RIGHT($K85,2),AW85,0)) -> 0.4774849877 | BT85: =+IF($K85="Ongoing",AX85,IF(RIGHT($K85,2)=RIGHT(BT$39,2),SUM($AV85:AX85),0)+IF(RIGHT(BT$39,2)>RIGHT($K85,2),AX85,0)) -> 0.5377815666 | BU85: =+IF($K85="Ongoing",AY85,IF(RIGHT($K85,2)=RIGHT(BU$39,2),SUM($AV85:AY85),0)+IF(RIGHT(BU$39,2)>RIGHT($K85,2),AY85,0)) -> 0.6101691993 | BV85: =+IF($K85="Ongoing",AZ85,IF(RIGHT($K85,2)=RIGHT(BV$39,2),SUM($AV85:AZ85),0)+IF(RIGHT(BV$39,2)>RIGHT($K85,2),AZ85,0)) -> 0.5744946793 | BW85: =+IF($K85="Ongoing",BA85,IF(RIGHT($K85,2)=RIGHT(BW$39,2),SUM($AV85:BA85),0)+IF(RIGHT(BW$39,2)>RIGHT($K85,2),BA85,0)) -> 0.5571370302 | BX85: =+IF($K85="Ongoing",BB85,IF(RIGHT($K85,2)=RIGHT(BX$39,2),SUM($AV85:BB85),0)+IF(RIGHT(BX$39,2)>RIGHT($K85,2),BB85,0)) -> 0.5577837112 | BY85: =+IF($K85="Ongoing",BC85,IF(RIGHT($K85,2)=RIGHT(BY$39,2),SUM($AV85:BC85),0)+IF(RIGHT(BY$39,2)>RIGHT($K85,2),BC85,0)) -> 0.457208221 | BZ85: =+IF($K85="Ongoing",BD85,IF(RIGHT($K85,2)=RIGHT(BZ$39,2),SUM($AV85:BD85),0)+IF(RIGHT(BZ$39,2)>RIGHT($K85,2),BD85,0)) -> 0.4916199142 | CA85: =+IF($K85="Ongoing",BE85,IF(RIGHT($K85,2)=RIGHT(CA$39,2),SUM($AV85:BE85),0)+IF(RIGHT(CA$39,2)>RIGHT($K85,2),BE85,0)) -> 0.4248795547 | CC85: =+O85*KeyAssumptionsPriceControl_FO!X$15 -> 0.4458330115 | CD85: =+P85*KeyAssumptionsPriceControl_FO!Y$15 -> 0.4997018867 | CE85: =+Q85*KeyAssumptionsPriceControl_FO!Z$15 -> 0.5757484972 | CF85: =+R85*KeyAssumptionsPriceControl_FO!AA$15 -> 0.6682713092 | CG85: =+S85*KeyAssumptionsPriceControl_FO!AB$15 -> 0.6436713506 | CH85: =+T85*KeyAssumptionsPriceControl_FO!AC$15 -> 0.6385807567 | CI85: =+U85*KeyAssumptionsPriceControl_FO!AD$15 -> 0.6540263765 | CJ85: =+V85*KeyAssumptionsPriceControl_FO!AE$15 -> 0.5484273445 | CK85: =+W85*KeyAssumptionsPriceControl_FO!AF$15 -> 0.6032678348 | CL85: =+X85*KeyAssumptionsPriceControl_FO!AG$15 -> 0.5333621225 | CN85: 0.005572912644 | CO85: =IF($M85=0,0, IF($M85<=0.5,CD85, IF(AND($J85="straight line",$M85<1.51),(CC85-((CC85/$M85)*0.5))+CD85/$M85*0.5, IF($J85="straight line", IF((LEFT(CO$39,4)*1)-INT($M85)<LEFT($CN$39,4)*1,0,((OFFSET(CD85,0,-INT($M85+0.5),1,1))/$M85)*(IF($M85-INT($M85)>0.5,$M85-0.5-INT($M85),IF($M85-INT($M85)<=0.5,$M85-0.5-INT($M85)+1,0)))) +CD85/$M85*0.5 +SUM(OFFSET(CD85,0,MAX(-INT($M85+(0.5-(10^-12))),-CO$40)+1,1,MIN(INT($M85+(0.5-(10^-12))),CO$40)-1))*1/$M85, IF($J85="Declining Balance",-$CN$38,0))))) -> 0.01739209887 | CP85: 0.03083522867 | CQ85: 0.04638547625 | CR85: 0.0627847595 | CS85: 0.07881291084 | CT85: 0.09497050001 | CU85: 0.1100011715 | CV85: 0.1243973613 | CW85: 0.1386052357
C86: Actuated Valve | E86: Water | F86: Renewals | G86: Treatment | H86: Other Capital expenditure | J86: Straight line | K86: 2023-24 | L86: 20 | M86: 20 | T86: 0.04467933007 | AV86: 0 | AW86: 0 | AX86: 0 | AY86: 0 | AZ86: 0 | BA86: 0.04467933007 | BB86: 0 | BC86: 0 | BD86: 0 | BE86: 0 | BG86: 0 | BH86: 0 | BI86: 0 | BJ86: 0 | BK86: 0 | BL86: 0.001116983252 | BM86: 0.002233966503 | BN86: 0.002233966503 | BO86: 0.002233966503 | BP86: 0.002233966503 | BR86: =+IF($K86="Ongoing",AV86,IF(RIGHT($K86,2)=RIGHT(BR$39,2),SUM($AV86:AV86),0)+IF(RIGHT(BR$39,2)>RIGHT($K86,2),AV86,0)) -> 0 | BS86: =+IF($K86="Ongoing",AW86,IF(RIGHT($K86,2)=RIGHT(BS$39,2),SUM($AV86:AW86),0)+IF(RIGHT(BS$39,2)>RIGHT($K86,2),AW86,0)) -> 0 | BT86: =+IF($K86="Ongoing",AX86,IF(RIGHT($K86,2)=RIGHT(BT$39,2),SUM($AV86:AX86),0)+IF(RIGHT(BT$39,2)>RIGHT($K86,2),AX86,0)) -> 0 | BU86: =+IF($K86="Ongoing",AY86,IF(RIGHT($K86,2)=RIGHT(BU$39,2),SUM($AV86:AY86),0)+IF(RIGHT(BU$39,2)>RIGHT($K86,2),AY86,0)) -> 0 | BV86: =+IF($K86="Ongoing",AZ86,IF(RIGHT($K86,2)=RIGHT(BV$39,2),SUM($AV86:AZ86),0)+IF(RIGHT(BV$39,2)>RIGHT($K86,2),AZ86,0)) -> 0 | BW86: =+IF($K86="Ongoing",BA86,IF(RIGHT($K86,2)=RIGHT(BW$39,2),SUM($AV86:BA86),0)+IF(RIGHT(BW$39,2)>RIGHT($K86,2),BA86,0)) -> 0.04467933007 | BX86: =+IF($K86="Ongoing",BB86,IF(RIGHT($K86,2)=RIGHT(BX$39,2),SUM($AV86:BB86),0)+IF(RIGHT(BX$39,2)>RIGHT($K86,2),BB86,0)) -> 0 | BY86: =+IF($K86="Ongoing",BC86,IF(RIGHT($K86,2)=RIGHT(BY$39,2),SUM($AV86:BC86),0)+IF(RIGHT(BY$39,2)>RIGHT($K86,2),BC86,0)) -> 0 | BZ86: =+IF($K86="Ongoing",BD86,IF(RIGHT($K86,2)=RIGHT(BZ$39,2),SUM($AV86:BD86),0)+IF(RIGHT(BZ$39,2)>RIGHT($K86,2),BD86,0)) -> 0 | CA86: =+IF($K86="Ongoing",BE86,IF(RIGHT($K86,2)=RIGHT(CA$39,2),SUM($AV86:BE86),0)+IF(RIGHT(CA$39,2)>RIGHT($K86,2),BE86,0)) -> 0 | CC86: =+O86*KeyAssumptionsPriceControl_FO!X$15 -> 0 | CD86: =+P86*KeyAssumptionsPriceControl_FO!Y$15 -> 0 | CE86: =+Q86*KeyAssumptionsPriceControl_FO!Z$15 -> 0 | CF86: =+R86*KeyAssumptionsPriceControl_FO!AA$15 -> 0 | CG86: =+S86*KeyAssumptionsPriceControl_FO!AB$15 -> 0 | CH86: =+T86*KeyAssumptionsPriceControl_FO!AC$15 -> 0.05121066965 | CI86: =+U86*KeyAssumptionsPriceControl_FO!AD$15 -> 0 | CJ86: =+V86*KeyAssumptionsPriceControl_FO!AE$15 -> 0 | CK86: =+W86*KeyAssumptionsPriceControl_FO!AF$15 -> 0 | CL86: =+X86*KeyAssumptionsPriceControl_FO!AG$15 -> 0 | CN86: 0 | CO86: 0 | CP86: 0 | CQ86: 0 | CR86: 0 | CS86: 0.001280266741 | CT86: 0.002560533482 | CU86: 0.002560533482 | CV86: 0.002560533482 | CW86: 0.002560533482
C87: Bores | E87: Water | F87: Renewals | G87: Headworks | H87: Other Capital expenditure | J87: Straight line | K87: 2018-19 | L87: 40 | M87: 40 | O87: 0.04512612337 | S87: 0.01276552288 | AV87: 0.04512612337 | AW87: 0 | AX87: 0 | AY87: 0 | AZ87: 0.01276552288 | BA87: 0 | BB87: 0 | BC87: 0 | BD87: 0 | BE87: 0 | BG87: 0.0005640765421 | BH87: 0.001128153084 | BI87: 0.001128153084 | BJ87: 0.001128153084 | BK87: 0.00128772212 | BL87: 0.001447291156 | BM87: 0.001447291156 | BN87: 0.001447291156 | BO87: 0.001447291156 | BP87: 0.001447291156 | BR87: =+IF($K87="Ongoing",AV87,IF(RIGHT($K87,2)=RIGHT(BR$39,2),SUM($AV87:AV87),0)+IF(RIGHT(BR$39,2)>RIGHT($K87,2),AV87,0)) -> 0.04512612337 | BS87: =+IF($K87="Ongoing",AW87,IF(RIGHT($K87,2)=RIGHT(BS$39,2),SUM($AV87:AW87),0)+IF(RIGHT(BS$39,2)>RIGHT($K87,2),AW87,0)) -> 0 | BT87: =+IF($K87="Ongoing",AX87,IF(RIGHT($K87,2)=RIGHT(BT$39,2),SUM($AV87:AX87),0)+IF(RIGHT(BT$39,2)>RIGHT($K87,2),AX87,0)) -> 0 | BU87: =+IF($K87="Ongoing",AY87,IF(RIGHT($K87,2)=RIGHT(BU$39,2),SUM($AV87:AY87),0)+IF(RIGHT(BU$39,2)>RIGHT($K87,2),AY87,0)) -> 0 | BV87: =+IF($K87="Ongoing",AZ87,IF(RIGHT($K87,2)=RIGHT(BV$39,2),SUM($AV87:AZ87),0)+IF(RIGHT(BV$39,2)>RIGHT($K87,2),AZ87,0)) -> 0.01276552288 | BW87: =+IF($K87="Ongoing",BA87,IF(RIGHT($K87,2)=RIGHT(BW$39,2),SUM($AV87:BA87),0)+IF(RIGHT(BW$39,2)>RIGHT($K87,2),BA87,0)) -> 0 | BX87: =+IF($K87="Ongoing",BB87,IF(RIGHT($K87,2)=RIGHT(BX$39,2),SUM($AV87:BB87),0)+IF(RIGHT(BX$39,2)>RIGHT($K87,2),BB87,0)) -> 0 | BY87: =+IF($K87="Ongoing",BC87,IF(RIGHT($K87,2)=RIGHT(BY$39,2),SUM($AV87:BC87),0)+IF(RIGHT(BY$39,2)>RIGHT($K87,2),BC87,0)) -> 0 | BZ87: =+IF($K87="Ongoing",BD87,IF(RIGHT($K87,2)=RIGHT(BZ$39,2),SUM($AV87:BD87),0)+IF(RIGHT(BZ$39,2)>RIGHT($K87,2),BD87,0)) -> 0 | CA87: =+IF($K87="Ongoing",BE87,IF(RIGHT($K87,2)=RIGHT(CA$39,2),SUM($AV87:BE87),0)+IF(RIGHT(CA$39,2)>RIGHT($K87,2),BE87,0)) -> 0 | CC87: =+O87*KeyAssumptionsPriceControl_FO!X$15 -> 0.0461640242 | CD87: =+P87*KeyAssumptionsPriceControl_FO!Y$15 -> 0 | CE87: =+Q87*KeyAssumptionsPriceControl_FO!Z$15 -> 0 | CF87: =+R87*KeyAssumptionsPriceControl_FO!AA$15 -> 0 | CG87: =+S87*KeyAssumptionsPriceControl_FO!AB$15 -> 0.01430265875 | CH87: =+T87*KeyAssumptionsPriceControl_FO!AC$15 -> 0 | CI87: =+U87*KeyAssumptionsPriceControl_FO!AD$15 -> 0 | CJ87: =+V87*KeyAssumptionsPriceControl_FO!AE$15 -> 0 | CK87: =+W87*KeyAssumptionsPriceControl_FO!AF$15 -> 0 | CL87: =+X87*KeyAssumptionsPriceControl_FO!AG$15 -> 0 | CN87: 0.0005770503025 | CO87: 0.001154100605 | CP87: 0.001154100605 | CQ87: 0.001154100605 | CR87: 0.001332883839 | CS87: 0.001511667074 | CT87: 0.001511667074 | CU87: 0.001511667074 | CV87: 0.001511667074 | CW87: 0.001511667074
C88: Buildings | E88: Water | F88: Improvements / Compliance | G88: Corporate | H88: Other Capital expenditure | J88: Straight line | K88: Ongoing | L88: 40 | M88: 40 | O88: 0.05121527778 | P88: 0.01547181373 | Q88: 0.01547181373 | R88: 0.01547181373 | S88: 0.01547181373 | T88: 0.01547181373 | U88: 0.01547181373 | V88: 0.01547181373 | W88: 0.01547181373 | X88: 0.01547181373 | AV88: 0.05121527778 | AW88: 0.01547181373 | AX88: 0.01547181373 | AY88: 0.01547181373 | AZ88: 0.01547181373 | BA88: 0.01547181373 | BB88: 0.01547181373 | BC88: 0.01547181373 | BD88: 0.01547181373 | BE88: 0.01547181373 | BG88: 0.0006401909722 | BH88: 0.001473779616 | BI88: 0.001860574959 | BJ88: 0.002247370302 | BK88: 0.002634165645 | BL88: 0.003020960989 | BM88: 0.003407756332 | BN88: 0.003794551675 | BO88: 0.004181347018 | BP88: 0.004568142361 | BR88: =+IF($K88="Ongoing",AV88,IF(RIGHT($K88,2)=RIGHT(BR$39,2),SUM($AV88:AV88),0)+IF(RIGHT(BR$39,2)>RIGHT($K88,2),AV88,0)) -> 0.05121527778 | BS88: =+IF($K88="Ongoing",AW88,IF(RIGHT($K88,2)=RIGHT(BS$39,2),SUM($AV88:AW88),0)+IF(RIGHT(BS$39,2)>RIGHT($K88,2),AW88,0)) -> 0.01547181373 | BT88: =+IF($K88="Ongoing",AX88,IF(RIGHT($K88,2)=RIGHT(BT$39,2),SUM($AV88:AX88),0)+IF(RIGHT(BT$39,2)>RIGHT($K88,2),AX88,0)) -> 0.01547181373 | BU88: =+IF($K88="Ongoing",AY88,IF(RIGHT($K88,2)=RIGHT(BU$39,2),SUM($AV88:AY88),0)+IF(RIGHT(BU$39,2)>RIGHT($K88,2),AY88,0)) -> 0.01547181373 | BV88: =+IF($K88="Ongoing",AZ88,IF(RIGHT($K88,2)=RIGHT(BV$39,2),SUM($AV88:AZ88),0)+IF(RIGHT(BV$39,2)>RIGHT($K88,2),AZ88,0)) -> 0.01547181373 | BW88: =+IF($K88="Ongoing",BA88,IF(RIGHT($K88,2)=RIGHT(BW$39,2),SUM($AV88:BA88),0)+IF(RIGHT(BW$39,2)>RIGHT($K88,2),BA88,0)) -> 0.01547181373 | BX88: =+IF($K88="Ongoing",BB88,IF(RIGHT($K88,2)=RIGHT(BX$39,2),SUM($AV88:BB88),0)+IF(RIGHT(BX$39,2)>RIGHT($K88,2),BB88,0)) -> 0.01547181373 | BY88: =+IF($K88="Ongoing",BC88,IF(RIGHT($K88,2)=RIGHT(BY$39,2),SUM($AV88:BC88),0)+IF(RIGHT(BY$39,2)>RIGHT($K88,2),BC88,0)) -> 0.01547181373 | BZ88: =+IF($K88="Ongoing",BD88,IF(RIGHT($K88,2)=RIGHT(BZ$39,2),SUM($AV88:BD88),0)+IF(RIGHT(BZ$39,2)>RIGHT($K88,2),BD88,0)) -> 0.01547181373 | CA88: =+IF($K88="Ongoing",BE88,IF(RIGHT($K88,2)=RIGHT(CA$39,2),SUM($AV88:BE88),0)+IF(RIGHT(CA$39,2)>RIGHT($K88,2),BE88,0)) -> 0.01547181373 | CC88: =+O88*KeyAssumptionsPriceControl_FO!X$15 -> 0.05239322917 | CD88: =+P88*KeyAssumptionsPriceControl_FO!Y$15 -> 0.01619170175 | CE88: =+Q88*KeyAssumptionsPriceControl_FO!Z$15 -> 0.01656411089 | CF88: =+R88*KeyAssumptionsPriceControl_FO!AA$15 -> 0.01694508544 | CG88: =+S88*KeyAssumptionsPriceControl_FO!AB$15 -> 0.0173348224 | CH88: =+T88*KeyAssumptionsPriceControl_FO!AC$15 -> 0.01773352332 | CI88: =+U88*KeyAssumptionsPriceControl_FO!AD$15 -> 0.01814139435 | CJ88: =+V88*KeyAssumptionsPriceControl_FO!AE$15 -> 0.01855864642 | CK88: =+W88*KeyAssumptionsPriceControl_FO!AF$15 -> 0.01898549529 | CL88: =+X88*KeyAssumptionsPriceControl_FO!AG$15 -> 0.01942216168 | CN88: 0.0006549153646 | CO88: 0.001512227001 | CP88: 0.001921674659 | CQ88: 0.002340539613 | CR88: 0.002769038461 | CS88: 0.003207392782 | CT88: 0.003655829253 | CU88: 0.004114579763 | CV88: 0.004583881534 | CW88: 0.005063977247
C89: Buildings | E89: Sewerage | F89: Improvements / Compliance | G89: Corporate | H89: Other Capital expenditure | J89: Straight line | K89: Ongoing | L89: 40 | M89: 40 | O89: 0.05121527778 | P89: 0.01547181373 | Q89: 0.01547181373 | R89: 0.01547181373 | S89: 0.01547181373 | T89: 0.01547181373 | U89: 0.01547181373 | V89: 0.01547181373 | W89: 0.01547181373 | X89: 0.01547181373 | AV89: 0.05121527778 | AW89: 0.01547181373 | AX89: 0.01547181373 | AY89: 0.01547181373 | AZ89: 0.01547181373 | BA89: 0.01547181373 | BB89: 0.01547181373 | BC89: 0.01547181373 | BD89: 0.01547181373 | BE89: 0.01547181373 | BG89: 0.0006401909722 | BH89: 0.001473779616 | BI89: 0.001860574959 | BJ89: 0.002247370302 | BK89: 0.002634165645 | BL89: 0.003020960989 | BM89: 0.003407756332 | BN89: 0.003794551675 | BO89: 0.004181347018 | BP89: 0.004568142361 | BR89: =+IF($K89="Ongoing",AV89,IF(RIGHT($K89,2)=RIGHT(BR$39,2),SUM($AV89:AV89),0)+IF(RIGHT(BR$39,2)>RIGHT($K89,2),AV89,0)) -> 0.05121527778 | BS89: =+IF($K89="Ongoing",AW89,IF(RIGHT($K89,2)=RIGHT(BS$39,2),SUM($AV89:AW89),0)+IF(RIGHT(BS$39,2)>RIGHT($K89,2),AW89,0)) -> 0.01547181373 | BT89: =+IF($K89="Ongoing",AX89,IF(RIGHT($K89,2)=RIGHT(BT$39,2),SUM($AV89:AX89),0)+IF(RIGHT(BT$39,2)>RIGHT($K89,2),AX89,0)) -> 0.01547181373 | BU89: =+IF($K89="Ongoing",AY89,IF(RIGHT($K89,2)=RIGHT(BU$39,2),SUM($AV89:AY89),0)+IF(RIGHT(BU$39,2)>RIGHT($K89,2),AY89,0)) -> 0.01547181373 | BV89: =+IF($K89="Ongoing",AZ89,IF(RIGHT($K89,2)=RIGHT(BV$39,2),SUM($AV89:AZ89),0)+IF(RIGHT(BV$39,2)>RIGHT($K89,2),AZ89,0)) -> 0.01547181373 | BW89: =+IF($K89="Ongoing",BA89,IF(RIGHT($K89,2)=RIGHT(BW$39,2),SUM($AV89:BA89),0)+IF(RIGHT(BW$39,2)>RIGHT($K89,2),BA89,0)) -> 0.01547181373 | BX89: =+IF($K89="Ongoing",BB89,IF(RIGHT($K89,2)=RIGHT(BX$39,2),SUM($AV89:BB89),0)+IF(RIGHT(BX$39,2)>RIGHT($K89,2),BB89,0)) -> 0.01547181373 | BY89: =+IF($K89="Ongoing",BC89,IF(RIGHT($K89,2)=RIGHT(BY$39,2),SUM($AV89:BC89),0)+IF(RIGHT(BY$39,2)>RIGHT($K89,2),BC89,0)) -> 0.01547181373 | BZ89: =+IF($K89="Ongoing",BD89,IF(RIGHT($K89,2)=RIGHT(BZ$39,2),SUM($AV89:BD89),0)+IF(RIGHT(BZ$39,2)>RIGHT($K89,2),BD89,0)) -> 0.01547181373 | CA89: =+IF($K89="Ongoing",BE89,IF(RIGHT($K89,2)=RIGHT(CA$39,2),SUM($AV89:BE89),0)+IF(RIGHT(CA$39,2)>RIGHT($K89,2),BE89,0)) -> 0.01547181373 | CC89: =+O89*KeyAssumptionsPriceControl_FO!X$15 -> 0.05239322917 | CD89: =+P89*KeyAssumptionsPriceControl_FO!Y$15 -> 0.01619170175 | CE89: =+Q89*KeyAssumptionsPriceControl_FO!Z$15 -> 0.01656411089 | CF89: =+R89*KeyAssumptionsPriceControl_FO!AA$15 -> 0.01694508544 | CG89: =+S89*KeyAssumptionsPriceControl_FO!AB$15 -> 0.0173348224 | CH89: =+T89*KeyAssumptionsPriceControl_FO!AC$15 -> 0.01773352332 | CI89: =+U89*KeyAssumptionsPriceControl_FO!AD$15 -> 0.01814139435 | CJ89: =+V89*KeyAssumptionsPriceControl_FO!AE$15 -> 0.01855864642 | CK89: =+W89*KeyAssumptionsPriceControl_FO!AF$15 -> 0.01898549529 | CL89: =+X89*KeyAssumptionsPriceControl_FO!AG$15 -> 0.01942216168 | CN89: 0.0006549153646 | CO89: 0.001512227001 | CP89: 0.001921674659 | CQ89: 0.002340539613 | CR89: 0.002769038461 | CS89: 0.003207392782 | CT89: 0.003655829253 | CU89: 0.004114579763 | CV89: 0.004583881534 | CW89: 0.005063977247
C90: Buildings | E90: Sewerage | F90: Renewals | G90: Corporate | H90: Other Capital expenditure | J90: Straight line | K90: 2022-23 | L90: 40 | M90: 40 | S90: 0.06459354575 | AV90: 0 | AW90: 0 | AX90: 0 | AY90: 0 | AZ90: 0.06459354575 | BA90: 0 | BB90: 0 | BC90: 0 | BD90: 0 | BE90: 0 | BG90: 0 | BH90: 0 | BI90: 0 | BJ90: 0 | BK90: 0.0008074193219 | BL90: 0.001614838644 | BM90: 0.001614838644 | BN90: 0.001614838644 | BO90: 0.001614838644 | BP90: 0.001614838644 | BR90: =+IF($K90="Ongoing",AV90,IF(RIGHT($K90,2)=RIGHT(BR$39,2),SUM($AV90:AV90),0)+IF(RIGHT(BR$39,2)>RIGHT($K90,2),AV90,0)) -> 0 | BS90: =+IF($K90="Ongoing",AW90,IF(RIGHT($K90,2)=RIGHT(BS$39,2),SUM($AV90:AW90),0)+IF(RIGHT(BS$39,2)>RIGHT($K90,2),AW90,0)) -> 0 | BT90: =+IF($K90="Ongoing",AX90,IF(RIGHT($K90,2)=RIGHT(BT$39,2),SUM($AV90:AX90),0)+IF(RIGHT(BT$39,2)>RIGHT($K90,2),AX90,0)) -> 0 | BU90: =+IF($K90="Ongoing",AY90,IF(RIGHT($K90,2)=RIGHT(BU$39,2),SUM($AV90:AY90),0)+IF(RIGHT(BU$39,2)>RIGHT($K90,2),AY90,0)) -> 0 | BV90: =+IF($K90="Ongoing",AZ90,IF(RIGHT($K90,2)=RIGHT(BV$39,2),SUM($AV90:AZ90),0)+IF(RIGHT(BV$39,2)>RIGHT($K90,2),AZ90,0)) -> 0.06459354575 | BW90: =+IF($K90="Ongoing",BA90,IF(RIGHT($K90,2)=RIGHT(BW$39,2),SUM($AV90:BA90),0)+IF(RIGHT(BW$39,2)>RIGHT($K90,2),BA90,0)) -> 0 | BX90: =+IF($K90="Ongoing",BB90,IF(RIGHT($K90,2)=RIGHT(BX$39,2),SUM($AV90:BB90),0)+IF(RIGHT(BX$39,2)>RIGHT($K90,2),BB90,0)) -> 0 | BY90: =+IF($K90="Ongoing",BC90,IF(RIGHT($K90,2)=RIGHT(BY$39,2),SUM($AV90:BC90),0)+IF(RIGHT(BY$39,2)>RIGHT($K90,2),BC90,0)) -> 0 | BZ90: =+IF($K90="Ongoing",BD90,IF(RIGHT($K90,2)=RIGHT(BZ$39,2),SUM($AV90:BD90),0)+IF(RIGHT(BZ$39,2)>RIGHT($K90,2),BD90,0)) -> 0 | CA90: =+IF($K90="Ongoing",BE90,IF(RIGHT($K90,2)=RIGHT(CA$39,2),SUM($AV90:BE90),0)+IF(RIGHT(CA$39,2)>RIGHT($K90,2),BE90,0)) -> 0 | CC90: =+O90*KeyAssumptionsPriceControl_FO!X$15 -> 0 | CD90: =+P90*KeyAssumptionsPriceControl_FO!Y$15 -> 0 | CE90: =+Q90*KeyAssumptionsPriceControl_FO!Z$15 -> 0 | CF90: =+R90*KeyAssumptionsPriceControl_FO!AA$15 -> 0 | CG90: =+S90*KeyAssumptionsPriceControl_FO!AB$15 -> 0.07237145326 | CH90: =+T90*KeyAssumptionsPriceControl_FO!AC$15 -> 0 | CI90: =+U90*KeyAssumptionsPriceControl_FO!AD$15 -> 0 | CJ90: =+V90*KeyAssumptionsPriceControl_FO!AE$15 -> 0 | CK90: =+W90*KeyAssumptionsPriceControl_FO!AF$15 -> 0 | CL90: =+X90*KeyAssumptionsPriceControl_FO!AG$15 -> 0 | CN90: 0 | CO90: 0 | CP90: 0 | CQ90: 0 | CR90: 0.0009046431658 | CS90: 0.001809286332 | CT90: 0.001809286332 | CU90: 0.001809286332 | CV90: 0.001809286332 | CW90: 0.001809286332
C91: Cathodic Protection | E91: Water | F91: Improvements / Compliance | G91: Pipelines/network | H91: Other Capital expenditure | J91: Straight line | K91: 2018-19 | L91: 100 | M91: 100 | O91: 0.568065768 | Q91: 0.1148897059 | AV91: 0.568065768 | AW91: 0 | AX91: 0.1148897059 | AY91: 0 | AZ91: 0 | BA91: 0 | BB91: 0 | BC91: 0 | BD91: 0 | BE91: 0 | BG91: 0.00284032884 | BH91: 0.00568065768 | BI91: 0.006255106209 | BJ91: 0.006829554739 | BK91: 0.006829554739 | BL91: 0.006829554739 | BM91: 0.006829554739 | BN91: 0.006829554739 | BO91: 0.006829554739 | BP91: 0.006829554739 | BR91: =+IF($K91="Ongoing",AV91,IF(RIGHT($K91,2)=RIGHT(BR$39,2),SUM($AV91:AV91),0)+IF(RIGHT(BR$39,2)>RIGHT($K91,2),AV91,0)) -> 0.568065768 | BS91: =+IF($K91="Ongoing",AW91,IF(RIGHT($K91,2)=RIGHT(BS$39,2),SUM($AV91:AW91),0)+IF(RIGHT(BS$39,2)>RIGHT($K91,2),AW91,0)) -> 0 | BT91: =+IF($K91="Ongoing",AX91,IF(RIGHT($K91,2)=RIGHT(BT$39,2),SUM($AV91:AX91),0)+IF(RIGHT(BT$39,2)>RIGHT($K91,2),AX91,0)) -> 0.1148897059 | BU91: =+IF($K91="Ongoing",AY91,IF(RIGHT($K91,2)=RIGHT(BU$39,2),SUM($AV91:AY91),0)+IF(RIGHT(BU$39,2)>RIGHT($K91,2),AY91,0)) -> 0 | BV91: =+IF($K91="Ongoing",AZ91,IF(RIGHT($K91,2)=RIGHT(BV$39,2),SUM($AV91:AZ91),0)+IF(RIGHT(BV$39,2)>RIGHT($K91,2),AZ91,0)) -> 0 | BW91: =+IF($K91="Ongoing",BA91,IF(RIGHT($K91,2)=RIGHT(BW$39,2),SUM($AV91:BA91),0)+IF(RIGHT(BW$39,2)>RIGHT($K91,2),BA91,0)) -> 0 | BX91: =+IF($K91="Ongoing",BB91,IF(RIGHT($K91,2)=RIGHT(BX$39,2),SUM($AV91:BB91),0)+IF(RIGHT(BX$39,2)>RIGHT($K91,2),BB91,0)) -> 0 | BY91: =+IF($K91="Ongoing",BC91,IF(RIGHT($K91,2)=RIGHT(BY$39,2),SUM($AV91:BC91),0)+IF(RIGHT(BY$39,2)>RIGHT($K91,2),BC91,0)) -> 0 | BZ91: =+IF($K91="Ongoing",BD91,IF(RIGHT($K91,2)=RIGHT(BZ$39,2),SUM($AV91:BD91),0)+IF(RIGHT(BZ$39,2)>RIGHT($K91,2),BD91,0)) -> 0 | CA91: =+IF($K91="Ongoing",BE91,IF(RIGHT($K91,2)=RIGHT(CA$39,2),SUM($AV91:BE91),0)+IF(RIGHT(CA$39,2)>RIGHT($K91,2),BE91,0)) -> 0 | CC91: =+O91*KeyAssumptionsPriceControl_FO!X$15 -> 0.5811312806 | CD91: =+P91*KeyAssumptionsPriceControl_FO!Y$15 -> 0 | CE91: =+Q91*KeyAssumptionsPriceControl_FO!Z$15 -> 0.1230008234 | CF91: =+R91*KeyAssumptionsPriceControl_FO!AA$15 -> 0 | CG91: =+S91*KeyAssumptionsPriceControl_FO!AB$15 -> 0 | CH91: =+T91*KeyAssumptionsPriceControl_FO!AC$15 -> 0 | CI91: =+U91*KeyAssumptionsPriceControl_FO!AD$15 -> 0 | CJ91: =+V91*KeyAssumptionsPriceControl_FO!AE$15 -> 0 | CK91: =+W91*KeyAssumptionsPriceControl_FO!AF$15 -> 0 | CL91: =+X91*KeyAssumptionsPriceControl_FO!AG$15 -> 0 | CN91: 0.002905656403 | CO91: 0.005811312806 | CP91: 0.006426316923 | CQ91: 0.007041321041 | CR91: 0.007041321041 | CS91: 0.007041321041 | CT91: 0.007041321041 | CU91: 0.007041321041 | CV91: 0.007041321041 | CW91: 0.007041321041
C92: Coagulation | E92: Water | F92: Renewals | G92: Treatment | H92: Other Capital expenditure | J92: Straight line | K92: 2020-21 | L92: 20 | M92: 20 | Q92: 0.1531862745 | AV92: 0 | AW92: 0 | AX92: 0.1531862745 | AY92: 0 | AZ92: 0 | BA92: 0 | BB92: 0 | BC92: 0 | BD92: 0 | BE92: 0 | BG92: 0 | BH92: 0 | BI92: 0.003829656863 | BJ92: 0.007659313725 | BK92: 0.007659313725 | BL92: 0.007659313725 | BM92: 0.007659313725 | BN92: 0.007659313725 | BO92: 0.007659313725 | BP92: 0.007659313725 | BR92: =+IF($K92="Ongoing",AV92,IF(RIGHT($K92,2)=RIGHT(BR$39,2),SUM($AV92:AV92),0)+IF(RIGHT(BR$39,2)>RIGHT($K92,2),AV92,0)) -> 0 | BS92: =+IF($K92="Ongoing",AW92,IF(RIGHT($K92,2)=RIGHT(BS$39,2),SUM($AV92:AW92),0)+IF(RIGHT(BS$39,2)>RIGHT($K92,2),AW92,0)) -> 0 | BT92: =+IF($K92="Ongoing",AX92,IF(RIGHT($K92,2)=RIGHT(BT$39,2),SUM($AV92:AX92),0)+IF(RIGHT(BT$39,2)>RIGHT($K92,2),AX92,0)) -> 0.1531862745 | BU92: =+IF($K92="Ongoing",AY92,IF(RIGHT($K92,2)=RIGHT(BU$39,2),SUM($AV92:AY92),0)+IF(RIGHT(BU$39,2)>RIGHT($K92,2),AY92,0)) -> 0 | BV92: =+IF($K92="Ongoing",AZ92,IF(RIGHT($K92,2)=RIGHT(BV$39,2),SUM($AV92:AZ92),0)+IF(RIGHT(BV$39,2)>RIGHT($K92,2),AZ92,0)) -> 0 | BW92: =+IF($K92="Ongoing",BA92,IF(RIGHT($K92,2)=RIGHT(BW$39,2),SUM($AV92:BA92),0)+IF(RIGHT(BW$39,2)>RIGHT($K92,2),BA92,0)) -> 0 | BX92: =+IF($K92="Ongoing",BB92,IF(RIGHT($K92,2)=RIGHT(BX$39,2),SUM($AV92:BB92),0)+IF(RIGHT(BX$39,2)>RIGHT($K92,2),BB92,0)) -> 0 | BY92: =+IF($K92="Ongoing",BC92,IF(RIGHT($K92,2)=RIGHT(BY$39,2),SUM($AV92:BC92),0)+IF(RIGHT(BY$39,2)>RIGHT($K92,2),BC92,0)) -> 0 | BZ92: =+IF($K92="Ongoing",BD92,IF(RIGHT($K92,2)=RIGHT(BZ$39,2),SUM($AV92:BD92),0)+IF(RIGHT(BZ$39,2)>RIGHT($K92,2),BD92,0)) -> 0 | CA92: =+IF($K92="Ongoing",BE92,IF(RIGHT($K92,2)=RIGHT(CA$39,2),SUM($AV92:BE92),0)+IF(RIGHT(CA$39,2)>RIGHT($K92,2),BE92,0)) -> 0 | CC92: =+O92*KeyAssumptionsPriceControl_FO!X$15 -> 0 | CD92: =+P92*KeyAssumptionsPriceControl_FO!Y$15 -> 0 | CE92: =+Q92*KeyAssumptionsPriceControl_FO!Z$15 -> 0.1640010979 | CF92: =+R92*KeyAssumptionsPriceControl_FO!AA$15 -> 0 | CG92: =+S92*KeyAssumptionsPriceControl_FO!AB$15 -> 0 | CH92: =+T92*KeyAssumptionsPriceControl_FO!AC$15 -> 0 | CI92: =+U92*KeyAssumptionsPriceControl_FO!AD$15 -> 0 | CJ92: =+V92*KeyAssumptionsPriceControl_FO!AE$15 -> 0 | CK92: =+W92*KeyAssumptionsPriceControl_FO!AF$15 -> 0 | CL92: =+X92*KeyAssumptionsPriceControl_FO!AG$15 -> 0 | CN92: 0 | CO92: 0 | CP92: 0.004100027447 | CQ92: 0.008200054894 | CR92: 0.008200054894 | CS92: 0.008200054894 | CT92: 0.008200054894 | CU92: 0.008200054894 | CV92: 0.008200054894 | CW92: 0.008200054894
C93: Computer Equipment | E93: Water | F93: Improvements / Compliance | G93: Corporate | H93: Other Capital expenditure | J93: Straight line | K93: Ongoing | L93: 4 | M93: 4 | O93: 0.3191380719 | P93: 0.07978451797 | Q93: 0.1914828431 | R93: 0.1978656046 | AV93: 0.3191380719 | AW93: 0.07978451797 | AX93: 0.1914828431 | AY93: 0.1978656046 | AZ93: 0 | BA93: 0 | BB93: 0 | BC93: 0 | BD93: 0 | BE93: 0 | BG93: 0.03989225899 | BH93: 0.08975758272 | BI93: 0.1236660029 | BJ93: 0.1723345588 | BK93: 0.1571755004 | BL93: 0.1073101767 | BM93: 0.07340175654 | BN93: 0.02473320057 | BO93: 0 | BP93: 0 | BR93: =+IF($K93="Ongoing",AV93,IF(RIGHT($K93,2)=RIGHT(BR$39,2),SUM($AV93:AV93),0)+IF(RIGHT(BR$39,2)>RIGHT($K93,2),AV93,0)) -> 0.3191380719 | BS93: =+IF($K93="Ongoing",AW93,IF(RIGHT($K93,2)=RIGHT(BS$39,2),SUM($AV93:AW93),0)+IF(RIGHT(BS$39,2)>RIGHT($K93,2),AW93,0)) -> 0.07978451797 | BT93: =+IF($K93="Ongoing",AX93,IF(RIGHT($K93,2)=RIGHT(BT$39,2),SUM($AV93:AX93),0)+IF(RIGHT(BT$39,2)>RIGHT($K93,2),AX93,0)) -> 0.1914828431 | BU93: =+IF($K93="Ongoing",AY93,IF(RIGHT($K93,2)=RIGHT(BU$39,2),SUM($AV93:AY93),0)+IF(RIGHT(BU$39,2)>RIGHT($K93,2),AY93,0)) -> 0.1978656046 | BV93: =+IF($K93="Ongoing",AZ93,IF(RIGHT($K93,2)=RIGHT(BV$39,2),SUM($AV93:AZ93),0)+IF(RIGHT(BV$39,2)>RIGHT($K93,2),AZ93,0)) -> 0 | BW93: =+IF($K93="Ongoing",BA93,IF(RIGHT($K93,2)=RIGHT(BW$39,2),SUM($AV93:BA93),0)+IF(RIGHT(BW$39,2)>RIGHT($K93,2),BA93,0)) -> 0 | BX93: =+IF($K93="Ongoing",BB93,IF(RIGHT($K93,2)=RIGHT(BX$39,2),SUM($AV93:BB93),0)+IF(RIGHT(BX$39,2)>RIGHT($K93,2),BB93,0)) -> 0 | BY93: =+IF($K93="Ongoing",BC93,IF(RIGHT($K93,2)=RIGHT(BY$39,2),SUM($AV93:BC93),0)+IF(RIGHT(BY$39,2)>RIGHT($K93,2),BC93,0)) -> 0 | BZ93: =+IF($K93="Ongoing",BD93,IF(RIGHT($K93,2)=RIGHT(BZ$39,2),SUM($AV93:BD93),0)+IF(RIGHT(BZ$39,2)>RIGHT($K93,2),BD93,0)) -> 0 | CA93: =+IF($K93="Ongoing",BE93,IF(RIGHT($K93,2)=RIGHT(CA$39,2),SUM($AV93:BE93),0)+IF(RIGHT(CA$39,2)>RIGHT($K93,2),BE93,0)) -> 0 | CC93: =+O93*KeyAssumptionsPriceControl_FO!X$15 -> 0.3264782475 | CD93: =+P93*KeyAssumptionsPriceControl_FO!Y$15 -> 0.08349681181 | CE93: =+Q93*KeyAssumptionsPriceControl_FO!Z$15 -> 0.2050013724 | CF93: =+R93*KeyAssumptionsPriceControl_FO!AA$15 -> 0.2167069507 | CG93: =+S93*KeyAssumptionsPriceControl_FO!AB$15 -> 0 | CH93: =+T93*KeyAssumptionsPriceControl_FO!AC$15 -> 0 | CI93: =+U93*KeyAssumptionsPriceControl_FO!AD$15 -> 0 | CJ93: =+V93*KeyAssumptionsPriceControl_FO!AE$15 -> 0 | CK93: =+W93*KeyAssumptionsPriceControl_FO!AF$15 -> 0 | CL93: =+X93*KeyAssumptionsPriceControl_FO!AG$15 -> 0 | CN93: 0.04080978094 | CO93: 0.09205666336 | CP93: 0.1281189364 | CQ93: 0.1808324768 | CR93: 0.1671110647 | CS93: 0.1158641822 | CT93: 0.07980190922 | CU93: 0.02708836884 | CV93: 0 | CW93: 0
C94: Computer Equipment | E94: Sewerage | F94: Improvements / Compliance | G94: Corporate | H94: Other Capital expenditure | J94: Straight line | K94: Ongoing | L94: 4 | M94: 4 | O94: 0.3191380719 | P94: 0.07978451797 | Q94: 0.1914828431 | R94: 0.1978656046 | AV94: 0.3191380719 | AW94: 0.07978451797 | AX94: 0.1914828431 | AY94: 0.1978656046 | AZ94: 0 | BA94: 0 | BB94: 0 | BC94: 0 | BD94: 0 | BE94: 0 | BG94: 0.03989225899 | BH94: 0.08975758272 | BI94: 0.1236660029 | BJ94: 0.1723345588 | BK94: 0.1571755004 | BL94: 0.1073101767 | BM94: 0.07340175654 | BN94: 0.02473320057 | BO94: 0 | BP94: 0 | BR94: =+IF($K94="Ongoing",AV94,IF(RIGHT($K94,2)=RIGHT(BR$39,2),SUM($AV94:AV94),0)+IF(RIGHT(BR$39,2)>RIGHT($K94,2),AV94,0)) -> 0.3191380719 | BS94: =+IF($K94="Ongoing",AW94,IF(RIGHT($K94,2)=RIGHT(BS$39,2),SUM($AV94:AW94),0)+IF(RIGHT(BS$39,2)>RIGHT($K94,2),AW94,0)) -> 0.07978451797 | BT94: =+IF($K94="Ongoing",AX94,IF(RIGHT($K94,2)=RIGHT(BT$39,2),SUM($AV94:AX94),0)+IF(RIGHT(BT$39,2)>RIGHT($K94,2),AX94,0)) -> 0.1914828431 | BU94: =+IF($K94="Ongoing",AY94,IF(RIGHT($K94,2)=RIGHT(BU$39,2),SUM($AV94:AY94),0)+IF(RIGHT(BU$39,2)>RIGHT($K94,2),AY94,0)) -> 0.1978656046 | BV94: =+IF($K94="Ongoing",AZ94,IF(RIGHT($K94,2)=RIGHT(BV$39,2),SUM($AV94:AZ94),0)+IF(RIGHT(BV$39,2)>RIGHT($K94,2),AZ94,0)) -> 0 | BW94: =+IF($K94="Ongoing",BA94,IF(RIGHT($K94,2)=RIGHT(BW$39,2),SUM($AV94:BA94),0)+IF(RIGHT(BW$39,2)>RIGHT($K94,2),BA94,0)) -> 0 | BX94: =+IF($K94="Ongoing",BB94,IF(RIGHT($K94,2)=RIGHT(BX$39,2),SUM($AV94:BB94),0)+IF(RIGHT(BX$39,2)>RIGHT($K94,2),BB94,0)) -> 0 | BY94: =+IF($K94="Ongoing",BC94,IF(RIGHT($K94,2)=RIGHT(BY$39,2),SUM($AV94:BC94),0)+IF(RIGHT(BY$39,2)>RIGHT($K94,2),BC94,0)) -> 0 | BZ94: =+IF($K94="Ongoing",BD94,IF(RIGHT($K94,2)=RIGHT(BZ$39,2),SUM($AV94:BD94),0)+IF(RIGHT(BZ$39,2)>RIGHT($K94,2),BD94,0)) -> 0 | CA94: =+IF($K94="Ongoing",BE94,IF(RIGHT($K94,2)=RIGHT(CA$39,2),SUM($AV94:BE94),0)+IF(RIGHT(CA$39,2)>RIGHT($K94,2),BE94,0)) -> 0 | CC94: =+O94*KeyAssumptionsPriceControl_FO!X$15 -> 0.3264782475 | CD94: =+P94*KeyAssumptionsPriceControl_FO!Y$15 -> 0.08349681181 | CE94: =+Q94*KeyAssumptionsPriceControl_FO!Z$15 -> 0.2050013724 | CF94: =+R94*KeyAssumptionsPriceControl_FO!AA$15 -> 0.2167069507 | CG94: =+S94*KeyAssumptionsPriceControl_FO!AB$15 -> 0 | CH94: =+T94*KeyAssumptionsPriceControl_FO!AC$15 -> 0 | CI94: =+U94*KeyAssumptionsPriceControl_FO!AD$15 -> 0 | CJ94: =+V94*KeyAssumptionsPriceControl_FO!AE$15 -> 0 | CK94: =+W94*KeyAssumptionsPriceControl_FO!AF$15 -> 0 | CL94: =+X94*KeyAssumptionsPriceControl_FO!AG$15 -> 0 | CN94: 0.04080978094 | CO94: 0.09205666336 | CP94: 0.1281189364 | CQ94: 0.1808324768 | CR94: 0.1671110647 | CS94: 0.1158641822 | CT94: 0.07980190922 | CU94: 0.02708836884 | CV94: 0 | CW94: 0
C95: Computer Equipment | E95: Water | F95: Renewals | G95: Corporate | H95: Other Capital expenditure | J95: Straight line | K95: Ongoing | L95: 4 | M95: 4 | O95: 0.534620098 | P95: 0.3622855392 | Q95: 0.6112132353 | R95: 0.2025 | S95: 0.7455 | T95: 0.1005 | U95: 0.656 | V95: 0.6365 | W95: 0.9815 | X95: 0.1645 | AV95: 0.534620098 | AW95: 0.3622855392 | AX95: 0.6112132353 | AY95: 0.2025 | AZ95: 0.7455 | BA95: 0.1005 | BB95: 0.656 | BC95: 0.6365 | BD95: 0.9815 | BE95: 0.1645 | BG95: 0.06682751225 | BH95: 0.1789407169 | BI95: 0.3006280637 | BJ95: 0.4023422181 | BK95: 0.4540147059 | BL95: 0.4476515012 | BM95: 0.4205266544 | BN95: 0.480375 | BO95: 0.564125 | BP95: 0.601625 | BR95: =+IF($K95="Ongoing",AV95,IF(RIGHT($K95,2)=RIGHT(BR$39,2),SUM($AV95:AV95),0)+IF(RIGHT(BR$39,2)>RIGHT($K95,2),AV95,0)) -> 0.534620098 | BS95: =+IF($K95="Ongoing",AW95,IF(RIGHT($K95,2)=RIGHT(BS$39,2),SUM($AV95:AW95),0)+IF(RIGHT(BS$39,2)>RIGHT($K95,2),AW95,0)) -> 0.3622855392 | BT95: =+IF($K95="Ongoing",AX95,IF(RIGHT($K95,2)=RIGHT(BT$39,2),SUM($AV95:AX95),0)+IF(RIGHT(BT$39,2)>RIGHT($K95,2),AX95,0)) -> 0.6112132353 | BU95: =+IF($K95="Ongoing",AY95,IF(RIGHT($K95,2)=RIGHT(BU$39,2),SUM($AV95:AY95),0)+IF(RIGHT(BU$39,2)>RIGHT($K95,2),AY95,0)) -> 0.2025 | BV95: =+IF($K95="Ongoing",AZ95,IF(RIGHT($K95,2)=RIGHT(BV$39,2),SUM($AV95:AZ95),0)+IF(RIGHT(BV$39,2)>RIGHT($K95,2),AZ95,0)) -> 0.7455 | BW95: =+IF($K95="Ongoing",BA95,IF(RIGHT($K95,2)=RIGHT(BW$39,2),SUM($AV95:BA95),0)+IF(RIGHT(BW$39,2)>RIGHT($K95,2),BA95,0)) -> 0.1005 | BX95: =+IF($K95="Ongoing",BB95,IF(RIGHT($K95,2)=RIGHT(BX$39,2),SUM($AV95:BB95),0)+IF(RIGHT(BX$39,2)>RIGHT($K95,2),BB95,0)) -> 0.656 | BY95: =+IF($K95="Ongoing",BC95,IF(RIGHT($K95,2)=RIGHT(BY$39,2),SUM($AV95:BC95),0)+IF(RIGHT(BY$39,2)>RIGHT($K95,2),BC95,0)) -> 0.6365 | BZ95: =+IF($K95="Ongoing",BD95,IF(RIGHT($K95,2)=RIGHT(BZ$39,2),SUM($AV95:BD95),0)+IF(RIGHT(BZ$39,2)>RIGHT($K95,2),BD95,0)) -> 0.9815 | CA95: =+IF($K95="Ongoing",BE95,IF(RIGHT($K95,2)=RIGHT(CA$39,2),SUM($AV95:BE95),0)+IF(RIGHT(CA$39,2)>RIGHT($K95,2),BE95,0)) -> 0.1645 | CC95: =+O95*KeyAssumptionsPriceControl_FO!X$15 -> 0.5469163603 | CD95: =+P95*KeyAssumptionsPriceControl_FO!Y$15 -> 0.3791423231 | CE95: =+Q95*KeyAssumptionsPriceControl_FO!Z$15 -> 0.6543643806 | CF95: =+R95*KeyAssumptionsPriceControl_FO!AA$15 -> 0.2217826469 | CG95: =+S95*KeyAssumptionsPriceControl_FO!AB$15 -> 0.8352679479 | CH95: =+T95*KeyAssumptionsPriceControl_FO!AC$15 -> 0.1151913489 | CI95: =+U95*KeyAssumptionsPriceControl_FO!AD$15 -> 0.7691893728 | CJ95: =+V95*KeyAssumptionsPriceControl_FO!AE$15 -> 0.7634902189 | CK95: =+W95*KeyAssumptionsPriceControl_FO!AF$15 -> 1.204400722 | CL95: =+X95*KeyAssumptionsPriceControl_FO!AG$15 -> 0.2065010382 | CN95: 0.06836454504 | CO95: 0.1841218805 | CP95: 0.3133102184 | CQ95: 0.4228285968 | CR95: 0.4865953762 | CS95: 0.4896454528 | CT95: 0.4710047051 | CU95: 0.5530712756 | CV95: 0.666926319 | CW95: 0.7244816269
C96: Computer Equipment | E96: Sewerage | F96: Renewals | G96: Corporate | H96: Other Capital expenditure | J96: Straight line | K96: Ongoing | L96: 4 | M96: 4 | O96: 0.534620098 | P96: 0.3622855392 | Q96: 0.6112132353 | R96: 0.2025 | S96: 0.7455 | T96: 0.1005 | U96: 0.656 | V96: 0.6365 | W96: 0.9815 | X96: 0.1645 | AV96: 0.534620098 | AW96: 0.3622855392 | AX96: 0.6112132353 | AY96: 0.2025 | AZ96: 0.7455 | BA96: 0.1005 | BB96: 0.656 | BC96: 0.6365 | BD96: 0.9815 | BE96: 0.1645 | BG96: 0.06682751225 | BH96: 0.1789407169 | BI96: 0.3006280637 | BJ96: 0.4023422181 | BK96: 0.4540147059 | BL96: 0.4476515012 | BM96: 0.4205266544 | BN96: 0.480375 | BO96: 0.564125 | BP96: 0.601625 | BR96: =+IF($K96="Ongoing",AV96,IF(RIGHT($K96,2)=RIGHT(BR$39,2),SUM($AV96:AV96),0)+IF(RIGHT(BR$39,2)>RIGHT($K96,2),AV96,0)) -> 0.534620098 | BS96: =+IF($K96="Ongoing",AW96,IF(RIGHT($K96,2)=RIGHT(BS$39,2),SUM($AV96:AW96),0)+IF(RIGHT(BS$39,2)>RIGHT($K96,2),AW96,0)) -> 0.3622855392 | BT96: =+IF($K96="Ongoing",AX96,IF(RIGHT($K96,2)=RIGHT(BT$39,2),SUM($AV96:AX96),0)+IF(RIGHT(BT$39,2)>RIGHT($K96,2),AX96,0)) -> 0.6112132353 | BU96: =+IF($K96="Ongoing",AY96,IF(RIGHT($K96,2)=RIGHT(BU$39,2),SUM($AV96:AY96),0)+IF(RIGHT(BU$39,2)>RIGHT($K96,2),AY96,0)) -> 0.2025 | BV96: =+IF($K96="Ongoing",AZ96,IF(RIGHT($K96,2)=RIGHT(BV$39,2),SUM($AV96:AZ96),0)+IF(RIGHT(BV$39,2)>RIGHT($K96,2),AZ96,0)) -> 0.7455 | BW96: =+IF($K96="Ongoing",BA96,IF(RIGHT($K96,2)=RIGHT(BW$39,2),SUM($AV96:BA96),0)+IF(RIGHT(BW$39,2)>RIGHT($K96,2),BA96,0)) -> 0.1005 | BX96: =+IF($K96="Ongoing",BB96,IF(RIGHT($K96,2)=RIGHT(BX$39,2),SUM($AV96:BB96),0)+IF(RIGHT(BX$39,2)>RIGHT($K96,2),BB96,0)) -> 0.656 | BY96: =+IF($K96="Ongoing",BC96,IF(RIGHT($K96,2)=RIGHT(BY$39,2),SUM($AV96:BC96),0)+IF(RIGHT(BY$39,2)>RIGHT($K96,2),BC96,0)) -> 0.6365 | BZ96: =+IF($K96="Ongoing",BD96,IF(RIGHT($K96,2)=RIGHT(BZ$39,2),SUM($AV96:BD96),0)+IF(RIGHT(BZ$39,2)>RIGHT($K96,2),BD96,0)) -> 0.9815 | CA96: =+IF($K96="Ongoing",BE96,IF(RIGHT($K96,2)=RIGHT(CA$39,2),SUM($AV96:BE96),0)+IF(RIGHT(CA$39,2)>RIGHT($K96,2),BE96,0)) -> 0.1645 | CC96: =+O96*KeyAssumptionsPriceControl_FO!X$15 -> 0.5469163603 | CD96: =+P96*KeyAssumptionsPriceControl_FO!Y$15 -> 0.3791423231 | CE96: =+Q96*KeyAssumptionsPriceControl_FO!Z$15 -> 0.6543643806 | CF96: =+R96*KeyAssumptionsPriceControl_FO!AA$15 -> 0.2217826469 | CG96: =+S96*KeyAssumptionsPriceControl_FO!AB$15 -> 0.8352679479 | CH96: =+T96*KeyAssumptionsPriceControl_FO!AC$15 -> 0.1151913489 | CI96: =+U96*KeyAssumptionsPriceControl_FO!AD$15 -> 0.7691893728 | CJ96: =+V96*KeyAssumptionsPriceControl_FO!AE$15 -> 0.7634902189 | CK96: =+W96*KeyAssumptionsPriceControl_FO!AF$15 -> 1.204400722 | CL96: =+X96*KeyAssumptionsPriceControl_FO!AG$15 -> 0.2065010382 | CN96: 0.06836454504 | CO96: 0.1841218805 | CP96: 0.3133102184 | CQ96: 0.4228285968 | CR96: 0.4865953762 | CS96: 0.4896454528 | CT96: 0.4710047051 | CU96: 0.5530712756 | CV96: 0.666926319 | CW96: 0.7244816269
C97: Depots | E97: Water | F97: Improvements / Compliance | G97: Corporate | H97: Other Capital expenditure | J97: Straight line | K97: 2020-21 | L97: 40 | M97: 40 | Q97: 0.01914828431 | AV97: 0 | AW97: 0 | AX97: 0.01914828431 | AY97: 0 | AZ97: 0 | BA97: 0 | BB97: 0 | BC97: 0 | BD97: 0 | BE97: 0 | BG97: 0 | BH97: 0 | BI97: 0.0002393535539 | BJ97: 0.0004787071078 | BK97: 0.0004787071078 | BL97: 0.0004787071078 | BM97: 0.0004787071078 | BN97: 0.0004787071078 | BO97: 0.0004787071078 | BP97: 0.0004787071078 | BR97: =+IF($K97="Ongoing",AV97,IF(RIGHT($K97,2)=RIGHT(BR$39,2),SUM($AV97:AV97),0)+IF(RIGHT(BR$39,2)>RIGHT($K97,2),AV97,0)) -> 0 | BS97: =+IF($K97="Ongoing",AW97,IF(RIGHT($K97,2)=RIGHT(BS$39,2),SUM($AV97:AW97),0)+IF(RIGHT(BS$39,2)>RIGHT($K97,2),AW97,0)) -> 0 | BT97: =+IF($K97="Ongoing",AX97,IF(RIGHT($K97,2)=RIGHT(BT$39,2),SUM($AV97:AX97),0)+IF(RIGHT(BT$39,2)>RIGHT($K97,2),AX97,0)) -> 0.01914828431 | BU97: =+IF($K97="Ongoing",AY97,IF(RIGHT($K97,2)=RIGHT(BU$39,2),SUM($AV97:AY97),0)+IF(RIGHT(BU$39,2)>RIGHT($K97,2),AY97,0)) -> 0 | BV97: =+IF($K97="Ongoing",AZ97,IF(RIGHT($K97,2)=RIGHT(BV$39,2),SUM($AV97:AZ97),0)+IF(RIGHT(BV$39,2)>RIGHT($K97,2),AZ97,0)) -> 0 | BW97: =+IF($K97="Ongoing",BA97,IF(RIGHT($K97,2)=RIGHT(BW$39,2),SUM($AV97:BA97),0)+IF(RIGHT(BW$39,2)>RIGHT($K97,2),BA97,0)) -> 0 | BX97: =+IF($K97="Ongoing",BB97,IF(RIGHT($K97,2)=RIGHT(BX$39,2),SUM($AV97:BB97),0)+IF(RIGHT(BX$39,2)>RIGHT($K97,2),BB97,0)) -> 0 | BY97: =+IF($K97="Ongoing",BC97,IF(RIGHT($K97,2)=RIGHT(BY$39,2),SUM($AV97:BC97),0)+IF(RIGHT(BY$39,2)>RIGHT($K97,2),BC97,0)) -> 0 | BZ97: =+IF($K97="Ongoing",BD97,IF(RIGHT($K97,2)=RIGHT(BZ$39,2),SUM($AV97:BD97),0)+IF(RIGHT(BZ$39,2)>RIGHT($K97,2),BD97,0)) -> 0 | CA97: =+IF($K97="Ongoing",BE97,IF(RIGHT($K97,2)=RIGHT(CA$39,2),SUM($AV97:BE97),0)+IF(RIGHT(CA$39,2)>RIGHT($K97,2),BE97,0)) -> 0 | CC97: =+O97*KeyAssumptionsPriceControl_FO!X$15 -> 0 | CD97: =+P97*KeyAssumptionsPriceControl_FO!Y$15 -> 0 | CE97: =+Q97*KeyAssumptionsPriceControl_FO!Z$15 -> 0.02050013724 | CF97: =+R97*KeyAssumptionsPriceControl_FO!AA$15 -> 0 | CG97: =+S97*KeyAssumptionsPriceControl_FO!AB$15 -> 0 | CH97: =+T97*KeyAssumptionsPriceControl_FO!AC$15 -> 0 | CI97: =+U97*KeyAssumptionsPriceControl_FO!AD$15 -> 0 | CJ97: =+V97*KeyAssumptionsPriceControl_FO!AE$15 -> 0 | CK97: =+W97*KeyAssumptionsPriceControl_FO!AF$15 -> 0 | CL97: =+X97*KeyAssumptionsPriceControl_FO!AG$15 -> 0 | CN97: 0 | CO97: 0 | CP97: 0.0002562517154 | CQ97: 0.0005125034309 | CR97: 0.0005125034309 | CS97: 0.0005125034309 | CT97: 0.0005125034309 | CU97: 0.0005125034309 | CV97: 0.0005125034309 | CW97: 0.0005125034309
C98: Depots | E98: Sewerage | F98: Improvements / Compliance | G98: Corporate | H98: Other Capital expenditure | J98: Straight line | K98: 2020-21 | L98: 40 | M98: 40 | Q98: 0.01914828431 | AV98: 0 | AW98: 0 | AX98: 0.01914828431 | AY98: 0 | AZ98: 0 | BA98: 0 | BB98: 0 | BC98: 0 | BD98: 0 | BE98: 0 | BG98: 0 | BH98: 0 | BI98: 0.0002393535539 | BJ98: 0.0004787071078 | BK98: 0.0004787071078 | BL98: 0.0004787071078 | BM98: 0.0004787071078 | BN98: 0.0004787071078 | BO98: 0.0004787071078 | BP98: 0.0004787071078 | BR98: =+IF($K98="Ongoing",AV98,IF(RIGHT($K98,2)=RIGHT(BR$39,2),SUM($AV98:AV98),0)+IF(RIGHT(BR$39,2)>RIGHT($K98,2),AV98,0)) -> 0 | BS98: =+IF($K98="Ongoing",AW98,IF(RIGHT($K98,2)=RIGHT(BS$39,2),SUM($AV98:AW98),0)+IF(RIGHT(BS$39,2)>RIGHT($K98,2),AW98,0)) -> 0 | BT98: =+IF($K98="Ongoing",AX98,IF(RIGHT($K98,2)=RIGHT(BT$39,2),SUM($AV98:AX98),0)+IF(RIGHT(BT$39,2)>RIGHT($K98,2),AX98,0)) -> 0.01914828431 | BU98: =+IF($K98="Ongoing",AY98,IF(RIGHT($K98,2)=RIGHT(BU$39,2),SUM($AV98:AY98),0)+IF(RIGHT(BU$39,2)>RIGHT($K98,2),AY98,0)) -> 0 | BV98: =+IF($K98="Ongoing",AZ98,IF(RIGHT($K98,2)=RIGHT(BV$39,2),SUM($AV98:AZ98),0)+IF(RIGHT(BV$39,2)>RIGHT($K98,2),AZ98,0)) -> 0 | BW98: =+IF($K98="Ongoing",BA98,IF(RIGHT($K98,2)=RIGHT(BW$39,2),SUM($AV98:BA98),0)+IF(RIGHT(BW$39,2)>RIGHT($K98,2),BA98,0)) -> 0 | BX98: =+IF($K98="Ongoing",BB98,IF(RIGHT($K98,2)=RIGHT(BX$39,2),SUM($AV98:BB98),0)+IF(RIGHT(BX$39,2)>RIGHT($K98,2),BB98,0)) -> 0 | BY98: =+IF($K98="Ongoing",BC98,IF(RIGHT($K98,2)=RIGHT(BY$39,2),SUM($AV98:BC98),0)+IF(RIGHT(BY$39,2)>RIGHT($K98,2),BC98,0)) -> 0 | BZ98: =+IF($K98="Ongoing",BD98,IF(RIGHT($K98,2)=RIGHT(BZ$39,2),SUM($AV98:BD98),0)+IF(RIGHT(BZ$39,2)>RIGHT($K98,2),BD98,0)) -> 0 | CA98: =+IF($K98="Ongoing",BE98,IF(RIGHT($K98,2)=RIGHT(CA$39,2),SUM($AV98:BE98),0)+IF(RIGHT(CA$39,2)>RIGHT($K98,2),BE98,0)) -> 0 | CC98: =+O98*KeyAssumptionsPriceControl_FO!X$15 -> 0 | CD98: =+P98*KeyAssumptionsPriceControl_FO!Y$15 -> 0 | CE98: =+Q98*KeyAssumptionsPriceControl_FO!Z$15 -> 0.02050013724 | CF98: =+R98*KeyAssumptionsPriceControl_FO!AA$15 -> 0 | CG98: =+S98*KeyAssumptionsPriceControl_FO!AB$15 -> 0 | CH98: =+T98*KeyAssumptionsPriceControl_FO!AC$15 -> 0 | CI98: =+U98*KeyAssumptionsPriceControl_FO!AD$15 -> 0 | CJ98: =+V98*KeyAssumptionsPriceControl_FO!AE$15 -> 0 | CK98: =+W98*KeyAssumptionsPriceControl_FO!AF$15 -> 0 | CL98: =+X98*KeyAssumptionsPriceControl_FO!AG$15 -> 0 | CN98: 0 | CO98: 0 | CP98: 0.0002562517154 | CQ98: 0.0005125034309 | CR98: 0.0005125034309 | CS98: 0.0005125034309 | CT98: 0.0005125034309 | CU98: 0.0005125034309 | CV98: 0.0005125034309 | CW98: 0.0005125034309
C99: Disinfection System | E99: Sewerage | F99: Renewals | G99: Treatment | H99: Other Capital expenditure | J99: Straight line | K99: 2022-23 | L99: 20 | M99: 20 | S99: 0.02553104575 | AV99: 0 | AW99: 0 | AX99: 0 | AY99: 0 | AZ99: 0.02553104575 | BA99: 0 | BB99: 0 | BC99: 0 | BD99: 0 | BE99: 0 | BG99: 0 | BH99: 0 | BI99: 0 | BJ99: 0 | BK99: 0.0006382761438 | BL99: 0.001276552288 | BM99: 0.001276552288 | BN99: 0.001276552288 | BO99: 0.001276552288 | BP99: 0.001276552288 | BR99: =+IF($K99="Ongoing",AV99,IF(RIGHT($K99,2)=RIGHT(BR$39,2),SUM($AV99:AV99),0)+IF(RIGHT(BR$39,2)>RIGHT($K99,2),AV99,0)) -> 0 | BS99: =+IF($K99="Ongoing",AW99,IF(RIGHT($K99,2)=RIGHT(BS$39,2),SUM($AV99:AW99),0)+IF(RIGHT(BS$39,2)>RIGHT($K99,2),AW99,0)) -> 0 | BT99: =+IF($K99="Ongoing",AX99,IF(RIGHT($K99,2)=RIGHT(BT$39,2),SUM($AV99:AX99),0)+IF(RIGHT(BT$39,2)>RIGHT($K99,2),AX99,0)) -> 0 | BU99: =+IF($K99="Ongoing",AY99,IF(RIGHT($K99,2)=RIGHT(BU$39,2),SUM($AV99:AY99),0)+IF(RIGHT(BU$39,2)>RIGHT($K99,2),AY99,0)) -> 0 | BV99: =+IF($K99="Ongoing",AZ99,IF(RIGHT($K99,2)=RIGHT(BV$39,2),SUM($AV99:AZ99),0)+IF(RIGHT(BV$39,2)>RIGHT($K99,2),AZ99,0)) -> 0.02553104575 | BW99: =+IF($K99="Ongoing",BA99,IF(RIGHT($K99,2)=RIGHT(BW$39,2),SUM($AV99:BA99),0)+IF(RIGHT(BW$39,2)>RIGHT($K99,2),BA99,0)) -> 0 | BX99: =+IF($K99="Ongoing",BB99,IF(RIGHT($K99,2)=RIGHT(BX$39,2),SUM($AV99:BB99),0)+IF(RIGHT(BX$39,2)>RIGHT($K99,2),BB99,0)) -> 0 | BY99: =+IF($K99="Ongoing",BC99,IF(RIGHT($K99,2)=RIGHT(BY$39,2),SUM($AV99:BC99),0)+IF(RIGHT(BY$39,2)>RIGHT($K99,2),BC99,0)) -> 0 | BZ99: =+IF($K99="Ongoing",BD99,IF(RIGHT($K99,2)=RIGHT(BZ$39,2),SUM($AV99:BD99),0)+IF(RIGHT(BZ$39,2)>RIGHT($K99,2),BD99,0)) -> 0 | CA99: =+IF($K99="Ongoing",BE99,IF(RIGHT($K99,2)=RIGHT(CA$39,2),SUM($AV99:BE99),0)+IF(RIGHT(CA$39,2)>RIGHT($K99,2),BE99,0)) -> 0 | CC99: =+O99*KeyAssumptionsPriceControl_FO!X$15 -> 0 | CD99: =+P99*KeyAssumptionsPriceControl_FO!Y$15 -> 0 | CE99: =+Q99*KeyAssumptionsPriceControl_FO!Z$15 -> 0 | CF99: =+R99*KeyAssumptionsPriceControl_FO!AA$15 -> 0 | CG99: =+S99*KeyAssumptionsPriceControl_FO!AB$15 -> 0.02860531749 | CH99: =+T99*KeyAssumptionsPriceControl_FO!AC$15 -> 0 | CI99: =+U99*KeyAssumptionsPriceControl_FO!AD$15 -> 0 | CJ99: =+V99*KeyAssumptionsPriceControl_FO!AE$15 -> 0 | CK99: =+W99*KeyAssumptionsPriceControl_FO!AF$15 -> 0 | CL99: =+X99*KeyAssumptionsPriceControl_FO!AG$15 -> 0 | CN99: 0 | CO99: 0 | CP99: 0 | CQ99: 0 | CR99: 0.0007151329374 | CS99: 0.001430265875 | CT99: 0.001430265875 | CU99: 0.001430265875 | CV99: 0.001430265875 | CW99: 0.001430265875
C100: Disinfection System | E100: Water | F100: Improvements / Compliance | G100: Treatment | H100: Other Capital expenditure | J100: Straight line | K100: 2022-23 | L100: 20 | M100: 20 | R100: 0.01085069444 | S100: 0.03191380719 | T100: 0.08297589869 | AV100: 0 | AW100: 0 | AX100: 0 | AY100: 0.01085069444 | AZ100: 0.03191380719 | BA100: 0.08297589869 | BB100: 0 | BC100: 0 | BD100: 0 | BE100: 0 | BG100: 0 | BH100: 0 | BI100: 0 | BJ100: 0 | BK100: 0.001069112541 | BL100: 0.004212622549 | BM100: 0.006287020016 | BN100: 0.006287020016 | BO100: 0.006287020016 | BP100: 0.006287020016 | BR100: =+IF($K100="Ongoing",AV100,IF(RIGHT($K100,2)=RIGHT(BR$39,2),SUM($AV100:AV100),0)+IF(RIGHT(BR$39,2)>RIGHT($K100,2),AV100,0)) -> 0 | BS100: =+IF($K100="Ongoing",AW100,IF(RIGHT($K100,2)=RIGHT(BS$39,2),SUM($AV100:AW100),0)+IF(RIGHT(BS$39,2)>RIGHT($K100,2),AW100,0)) -> 0 | BT100: =+IF($K100="Ongoing",AX100,IF(RIGHT($K100,2)=RIGHT(BT$39,2),SUM($AV100:AX100),0)+IF(RIGHT(BT$39,2)>RIGHT($K100,2),AX100,0)) -> 0 | BU100: =+IF($K100="Ongoing",AY100,IF(RIGHT($K100,2)=RIGHT(BU$39,2),SUM($AV100:AY100),0)+IF(RIGHT(BU$39,2)>RIGHT($K100,2),AY100,0)) -> 0 | BV100: =+IF($K100="Ongoing",AZ100,IF(RIGHT($K100,2)=RIGHT(BV$39,2),SUM($AV100:AZ100),0)+IF(RIGHT(BV$39,2)>RIGHT($K100,2),AZ100,0)) -> 0.04276450163 | BW100: =+IF($K100="Ongoing",BA100,IF(RIGHT($K100,2)=RIGHT(BW$39,2),SUM($AV100:BA100),0)+IF(RIGHT(BW$39,2)>RIGHT($K100,2),BA100,0)) -> 0.08297589869 | BX100: =+IF($K100="Ongoing",BB100,IF(RIGHT($K100,2)=RIGHT(BX$39,2),SUM($AV100:BB100),0)+IF(RIGHT(BX$39,2)>RIGHT($K100,2),BB100,0)) -> 0 | BY100: =+IF($K100="Ongoing",BC100,IF(RIGHT($K100,2)=RIGHT(BY$39,2),SUM($AV100:BC100),0)+IF(RIGHT(BY$39,2)>RIGHT($K100,2),BC100,0)) -> 0 | BZ100: =+IF($K100="Ongoing",BD100,IF(RIGHT($K100,2)=RIGHT(BZ$39,2),SUM($AV100:BD100),0)+IF(RIGHT(BZ$39,2)>RIGHT($K100,2),BD100,0)) -> 0 | CA100: =+IF($K100="Ongoing",BE100,IF(RIGHT($K100,2)=RIGHT(CA$39,2),SUM($AV100:BE100),0)+IF(RIGHT(CA$39,2)>RIGHT($K100,2),BE100,0)) -> 0 | CC100: =+O100*KeyAssumptionsPriceControl_FO!X$15 -> 0 | CD100: =+P100*KeyAssumptionsPriceControl_FO!Y$15 -> 0 | CE100: =+Q100*KeyAssumptionsPriceControl_FO!Z$15 -> 0 | CF100: =+R100*KeyAssumptionsPriceControl_FO!AA$15 -> 0.01188392956 | CG100: =+S100*KeyAssumptionsPriceControl_FO!AB$15 -> 0.03575664687 | CH100: =+T100*KeyAssumptionsPriceControl_FO!AC$15 -> 0.09510552934 | CI100: =+U100*KeyAssumptionsPriceControl_FO!AD$15 -> 0 | CJ100: =+V100*KeyAssumptionsPriceControl_FO!AE$15 -> 0 | CK100: =+W100*KeyAssumptionsPriceControl_FO!AF$15 -> 0 | CL100: =+X100*KeyAssumptionsPriceControl_FO!AG$15 -> 0 | CN100: 0 | CO100: 0 | CP100: 0 | CQ100: 0.0002970982389 | CR100: 0.001488112649 | CS100: 0.004759667055 | CT100: 0.007137305288 | CU100: 0.007137305288 | CV100: 0.007137305288 | CW100: 0.007137305288
C101: Disinfection System | E101: Water | F101: Renewals | G101: Treatment | H101: Other Capital expenditure | J101: Straight line | K101: Ongoing | L101: 20 | M101: 20 | O101: 0.04467933007 | P101: 0.04467933007 | Q101: 0.04467933007 | R101: 0.04467933007 | S101: 0.04467933007 | T101: 0.04467933007 | AV101: 0.04467933007 | AW101: 0.04467933007 | AX101: 0.04467933007 | AY101: 0.04467933007 | AZ101: 0.04467933007 | BA101: 0.04467933007 | BB101: 0 | BC101: 0 | BD101: 0 | BE101: 0 | BG101: 0.001116983252 | BH101: 0.003350949755 | BI101: 0.005584916258 | BJ101: 0.007818882761 | BK101: 0.01005284926 | BL101: 0.01228681577 | BM101: 0.01340379902 | BN101: 0.01340379902 | BO101: 0.01340379902 | BP101: 0.01340379902 | BR101: =+IF($K101="Ongoing",AV101,IF(RIGHT($K101,2)=RIGHT(BR$39,2),SUM($AV101:AV101),0)+IF(RIGHT(BR$39,2)>RIGHT($K101,2),AV101,0)) -> 0.04467933007 | BS101: =+IF($K101="Ongoing",AW101,IF(RIGHT($K101,2)=RIGHT(BS$39,2),SUM($AV101:AW101),0)+IF(RIGHT(BS$39,2)>RIGHT($K101,2),AW101,0)) -> 0.04467933007 | BT101: =+IF($K101="Ongoing",AX101,IF(RIGHT($K101,2)=RIGHT(BT$39,2),SUM($AV101:AX101),0)+IF(RIGHT(BT$39,2)>RIGHT($K101,2),AX101,0)) -> 0.04467933007 | BU101: =+IF($K101="Ongoing",AY101,IF(RIGHT($K101,2)=RIGHT(BU$39,2),SUM($AV101:AY101),0)+IF(RIGHT(BU$39,2)>RIGHT($K101,2),AY101,0)) -> 0.04467933007 | BV101: =+IF($K101="Ongoing",AZ101,IF(RIGHT($K101,2)=RIGHT(BV$39,2),SUM($AV101:AZ101),0)+IF(RIGHT(BV$39,2)>RIGHT($K101,2),AZ101,0)) -> 0.04467933007 | BW101: =+IF($K101="Ongoing",BA101,IF(RIGHT($K101,2)=RIGHT(BW$39,2),SUM($AV101:BA101),0)+IF(RIGHT(BW$39,2)>RIGHT($K101,2),BA101,0)) -> 0.04467933007 | BX101: =+IF($K101="Ongoing",BB101,IF(RIGHT($K101,2)=RIGHT(BX$39,2),SUM($AV101:BB101),0)+IF(RIGHT(BX$39,2)>RIGHT($K101,2),BB101,0)) -> 0 | BY101: =+IF($K101="Ongoing",BC101,IF(RIGHT($K101,2)=RIGHT(BY$39,2),SUM($AV101:BC101),0)+IF(RIGHT(BY$39,2)>RIGHT($K101,2),BC101,0)) -> 0 | BZ101: =+IF($K101="Ongoing",BD101,IF(RIGHT($K101,2)=RIGHT(BZ$39,2),SUM($AV101:BD101),0)+IF(RIGHT(BZ$39,2)>RIGHT($K101,2),BD101,0)) -> 0 | CA101: =+IF($K101="Ongoing",BE101,IF(RIGHT($K101,2)=RIGHT(CA$39,2),SUM($AV101:BE101),0)+IF(RIGHT(CA$39,2)>RIGHT($K101,2),BE101,0)) -> 0 | CC101: =+O101*KeyAssumptionsPriceControl_FO!X$15 -> 0.04570695466 | CD101: =+P101*KeyAssumptionsPriceControl_FO!Y$15 -> 0.04675821461 | CE101: =+Q101*KeyAssumptionsPriceControl_FO!Z$15 -> 0.04783365355 | CF101: =+R101*KeyAssumptionsPriceControl_FO!AA$15 -> 0.04893382758 | CG101: =+S101*KeyAssumptionsPriceControl_FO!AB$15 -> 0.05005930562 | CH101: =+T101*KeyAssumptionsPriceControl_FO!AC$15 -> 0.05121066965 | CI101: =+U101*KeyAssumptionsPriceControl_FO!AD$15 -> 0 | CJ101: =+V101*KeyAssumptionsPriceControl_FO!AE$15 -> 0 | CK101: =+W101*KeyAssumptionsPriceControl_FO!AF$15 -> 0 | CL101: =+X101*KeyAssumptionsPriceControl_FO!AG$15 -> 0 | CN101: 0.001142673866 | CO101: 0.003454303098 | CP101: 0.005819099802 | CQ101: 0.008238286831 | CR101: 0.01071311516 | CS101: 0.01324486454 | CT101: 0.01452513128 | CU101: 0.01452513128 | CV101: 0.01452513128 | CW101: 0.01452513128
C102: Distribution Network | E102: Sewerage | F102: Growth | G102: Pipelines/network | H102: Other Capital expenditure | J102: Straight line | K102: 2022-23 | L102: 80 | M102: 80 | R102: 0.06382761438 | S102: 0.510620915 | AV102: 0 | AW102: 0 | AX102: 0 | AY102: 0.06382761438 | AZ102: 0.510620915 | BA102: 0 | BB102: 0 | BC102: 0 | BD102: 0 | BE102: 0 | BG102: 0 | BH102: 0 | BI102: 0 | BJ102: 0 | BK102: 0.003590303309 | BL102: 0.007180606618 | BM102: 0.007180606618 | BN102: 0.007180606618 | BO102: 0.007180606618 | BP102: 0.007180606618 | BR102: =+IF($K102="Ongoing",AV102,IF(RIGHT($K102,2)=RIGHT(BR$39,2),SUM($AV102:AV102),0)+IF(RIGHT(BR$39,2)>RIGHT($K102,2),AV102,0)) -> 0 | BS102: =+IF($K102="Ongoing",AW102,IF(RIGHT($K102,2)=RIGHT(BS$39,2),SUM($AV102:AW102),0)+IF(RIGHT(BS$39,2)>RIGHT($K102,2),AW102,0)) -> 0 | BT102: =+IF($K102="Ongoing",AX102,IF(RIGHT($K102,2)=RIGHT(BT$39,2),SUM($AV102:AX102),0)+IF(RIGHT(BT$39,2)>RIGHT($K102,2),AX102,0)) -> 0 | BU102: =+IF($K102="Ongoing",AY102,IF(RIGHT($K102,2)=RIGHT(BU$39,2),SUM($AV102:AY102),0)+IF(RIGHT(BU$39,2)>RIGHT($K102,2),AY102,0)) -> 0 | BV102: =+IF($K102="Ongoing",AZ102,IF(RIGHT($K102,2)=RIGHT(BV$39,2),SUM($AV102:AZ102),0)+IF(RIGHT(BV$39,2)>RIGHT($K102,2),AZ102,0)) -> 0.5744485294 | BW102: =+IF($K102="Ongoing",BA102,IF(RIGHT($K102,2)=RIGHT(BW$39,2),SUM($AV102:BA102),0)+IF(RIGHT(BW$39,2)>RIGHT($K102,2),BA102,0)) -> 0 | BX102: =+IF($K102="Ongoing",BB102,IF(RIGHT($K102,2)=RIGHT(BX$39,2),SUM($AV102:BB102),0)+IF(RIGHT(BX$39,2)>RIGHT($K102,2),BB102,0)) -> 0 | BY102: =+IF($K102="Ongoing",BC102,IF(RIGHT($K102,2)=RIGHT(BY$39,2),SUM($AV102:BC102),0)+IF(RIGHT(BY$39,2)>RIGHT($K102,2),BC102,0)) -> 0 | BZ102: =+IF($K102="Ongoing",BD102,IF(RIGHT($K102,2)=RIGHT(BZ$39,2),SUM($AV102:BD102),0)+IF(RIGHT(BZ$39,2)>RIGHT($K102,2),BD102,0)) -> 0 | CA102: =+IF($K102="Ongoing",BE102,IF(RIGHT($K102,2)=RIGHT(CA$39,2),SUM($AV102:BE102),0)+IF(RIGHT(CA$39,2)>RIGHT($K102,2),BE102,0)) -> 0 | CC102: =+O102*KeyAssumptionsPriceControl_FO!X$15 -> 0 | CD102: =+P102*KeyAssumptionsPriceControl_FO!Y$15 -> 0 | CE102: =+Q102*KeyAssumptionsPriceControl_FO!Z$15 -> 0 | CF102: =+R102*KeyAssumptionsPriceControl_FO!AA$15 -> 0.06990546797 | CG102: =+S102*KeyAssumptionsPriceControl_FO!AB$15 -> 0.5721063499 | CH102: =+T102*KeyAssumptionsPriceControl_FO!AC$15 -> 0 | CI102: =+U102*KeyAssumptionsPriceControl_FO!AD$15 -> 0 | CJ102: =+V102*KeyAssumptionsPriceControl_FO!AE$15 -> 0 | CK102: =+W102*KeyAssumptionsPriceControl_FO!AF$15 -> 0 | CL102: =+X102*KeyAssumptionsPriceControl_FO!AG$15 -> 0 | CN102: 0 | CO102: 0 | CP102: 0 | CQ102: 0.0004369091748 | CR102: 0.004449483037 | CS102: 0.008025147723 | CT102: 0.008025147723 | CU102: 0.008025147723 | CV102: 0.008025147723 | CW102: 0.008025147723
C103: Electrical Equipment | E103: Sewerage | F103: Renewals | G103: Corporate | H103: Other Capital expenditure | J103: Straight line | K103: 2020-21 | L103: 15 | M103: 15 | P103: 0.1138684641 | Q103: 0.907373366 | AV103: 0 | AW103: 0.1138684641 | AX103: 0.907373366 | AY103: 0 | AZ103: 0 | BA103: 0 | BB103: 0 | BC103: 0 | BD103: 0 | BE103: 0 | BG103: 0 | BH103: 0 | BI103: 0.03404139434 | BJ103: 0.06808278867 | BK103: 0.06808278867 | BL103: 0.06808278867 | BM103: 0.06808278867 | BN103: 0.06808278867 | BO103: 0.06808278867 | BP103: 0.06808278867 | BR103: =+IF($K103="Ongoing",AV103,IF(RIGHT($K103,2)=RIGHT(BR$39,2),SUM($AV103:AV103),0)+IF(RIGHT(BR$39,2)>RIGHT($K103,2),AV103,0)) -> 0 | BS103: =+IF($K103="Ongoing",AW103,IF(RIGHT($K103,2)=RIGHT(BS$39,2),SUM($AV103:AW103),0)+IF(RIGHT(BS$39,2)>RIGHT($K103,2),AW103,0)) -> 0 | BT103: =+IF($K103="Ongoing",AX103,IF(RIGHT($K103,2)=RIGHT(BT$39,2),SUM($AV103:AX103),0)+IF(RIGHT(BT$39,2)>RIGHT($K103,2),AX103,0)) -> 1.02124183 | BU103: =+IF($K103="Ongoing",AY103,IF(RIGHT($K103,2)=RIGHT(BU$39,2),SUM($AV103:AY103),0)+IF(RIGHT(BU$39,2)>RIGHT($K103,2),AY103,0)) -> 0 | BV103: =+IF($K103="Ongoing",AZ103,IF(RIGHT($K103,2)=RIGHT(BV$39,2),SUM($AV103:AZ103),0)+IF(RIGHT(BV$39,2)>RIGHT($K103,2),AZ103,0)) -> 0 | BW103: =+IF($K103="Ongoing",BA103,IF(RIGHT($K103,2)=RIGHT(BW$39,2),SUM($AV103:BA103),0)+IF(RIGHT(BW$39,2)>RIGHT($K103,2),BA103,0)) -> 0 | BX103: =+IF($K103="Ongoing",BB103,IF(RIGHT($K103,2)=RIGHT(BX$39,2),SUM($AV103:BB103),0)+IF(RIGHT(BX$39,2)>RIGHT($K103,2),BB103,0)) -> 0 | BY103: =+IF($K103="Ongoing",BC103,IF(RIGHT($K103,2)=RIGHT(BY$39,2),SUM($AV103:BC103),0)+IF(RIGHT(BY$39,2)>RIGHT($K103,2),BC103,0)) -> 0 | BZ103: =+IF($K103="Ongoing",BD103,IF(RIGHT($K103,2)=RIGHT(BZ$39,2),SUM($AV103:BD103),0)+IF(RIGHT(BZ$39,2)>RIGHT($K103,2),BD103,0)) -> 0 | CA103: =+IF($K103="Ongoing",BE103,IF(RIGHT($K103,2)=RIGHT(CA$39,2),SUM($AV103:BE103),0)+IF(RIGHT(CA$39,2)>RIGHT($K103,2),BE103,0)) -> 0 | CC103: =+O103*KeyAssumptionsPriceControl_FO!X$15 -> 0 | CD103: =+P103*KeyAssumptionsPriceControl_FO!Y$15 -> 0.1191666498 | CE103: =+Q103*KeyAssumptionsPriceControl_FO!Z$15 -> 0.9714331698 | CF103: =+R103*KeyAssumptionsPriceControl_FO!AA$15 -> 0 | CG103: =+S103*KeyAssumptionsPriceControl_FO!AB$15 -> 0 | CH103: =+T103*KeyAssumptionsPriceControl_FO!AC$15 -> 0 | CI103: =+U103*KeyAssumptionsPriceControl_FO!AD$15 -> 0 | CJ103: =+V103*KeyAssumptionsPriceControl_FO!AE$15 -> 0 | CK103: =+W103*KeyAssumptionsPriceControl_FO!AF$15 -> 0 | CL103: =+X103*KeyAssumptionsPriceControl_FO!AG$15 -> 0 | CN103: 0 | CO103: 0.003972221661 | CP103: 0.04032554898 | CQ103: 0.07270665464 | CR103: 0.07270665464 | CS103: 0.07270665464 | CT103: 0.07270665464 | CU103: 0.07270665464 | CV103: 0.07270665464 | CW103: 0.07270665464
C104: Electrical Equipment | E104: Water | F104: Renewals | G104: Corporate | H104: Other Capital expenditure | J104: Straight line | K104: 2019-20 | L104: 15 | M104: 15 | O104: 0.1715686275 | P104: 0.5315563725 | R104: 0.006382761438 | AV104: 0.1715686275 | AW104: 0.5315563725 | AX104: 0 | AY104: 0.006382761438 | AZ104: 0 | BA104: 0 | BB104: 0 | BC104: 0 | BD104: 0 | BE104: 0 | BG104: 0 | BH104: 0.0234375 | BI104: 0.046875 | BJ104: 0.04708775871 | BK104: 0.04730051743 | BL104: 0.04730051743 | BM104: 0.04730051743 | BN104: 0.04730051743 | BO104: 0.04730051743 | BP104: 0.04730051743 | BR104: =+IF($K104="Ongoing",AV104,IF(RIGHT($K104,2)=RIGHT(BR$39,2),SUM($AV104:AV104),0)+IF(RIGHT(BR$39,2)>RIGHT($K104,2),AV104,0)) -> 0 | BS104: =+IF($K104="Ongoing",AW104,IF(RIGHT($K104,2)=RIGHT(BS$39,2),SUM($AV104:AW104),0)+IF(RIGHT(BS$39,2)>RIGHT($K104,2),AW104,0)) -> 0.703125 | BT104: =+IF($K104="Ongoing",AX104,IF(RIGHT($K104,2)=RIGHT(BT$39,2),SUM($AV104:AX104),0)+IF(RIGHT(BT$39,2)>RIGHT($K104,2),AX104,0)) -> 0 | BU104: =+IF($K104="Ongoing",AY104,IF(RIGHT($K104,2)=RIGHT(BU$39,2),SUM($AV104:AY104),0)+IF(RIGHT(BU$39,2)>RIGHT($K104,2),AY104,0)) -> 0.006382761438 | BV104: =+IF($K104="Ongoing",AZ104,IF(RIGHT($K104,2)=RIGHT(BV$39,2),SUM($AV104:AZ104),0)+IF(RIGHT(BV$39,2)>RIGHT($K104,2),AZ104,0)) -> 0 | BW104: =+IF($K104="Ongoing",BA104,IF(RIGHT($K104,2)=RIGHT(BW$39,2),SUM($AV104:BA104),0)+IF(RIGHT(BW$39,2)>RIGHT($K104,2),BA104,0)) -> 0 | BX104: =+IF($K104="Ongoing",BB104,IF(RIGHT($K104,2)=RIGHT(BX$39,2),SUM($AV104:BB104),0)+IF(RIGHT(BX$39,2)>RIGHT($K104,2),BB104,0)) -> 0 | BY104: =+IF($K104="Ongoing",BC104,IF(RIGHT($K104,2)=RIGHT(BY$39,2),SUM($AV104:BC104),0)+IF(RIGHT(BY$39,2)>RIGHT($K104,2),BC104,0)) -> 0 | BZ104: =+IF($K104="Ongoing",BD104,IF(RIGHT($K104,2)=RIGHT(BZ$39,2),SUM($AV104:BD104),0)+IF(RIGHT(BZ$39,2)>RIGHT($K104,2),BD104,0)) -> 0 | CA104: =+IF($K104="Ongoing",BE104,IF(RIGHT($K104,2)=RIGHT(CA$39,2),SUM($AV104:BE104),0)+IF(RIGHT(CA$39,2)>RIGHT($K104,2),BE104,0)) -> 0 | CC104: =+O104*KeyAssumptionsPriceControl_FO!X$15 -> 0.1755147059 | CD104: =+P104*KeyAssumptionsPriceControl_FO!Y$15 -> 0.556289159 | CE104: =+Q104*KeyAssumptionsPriceControl_FO!Z$15 -> 0 | CF104: =+R104*KeyAssumptionsPriceControl_FO!AA$15 -> 0.006990546797 | CG104: =+S104*KeyAssumptionsPriceControl_FO!AB$15 -> 0 | CH104: =+T104*KeyAssumptionsPriceControl_FO!AC$15 -> 0 | CI104: =+U104*KeyAssumptionsPriceControl_FO!AD$15 -> 0 | CJ104: =+V104*KeyAssumptionsPriceControl_FO!AE$15 -> 0 | CK104: =+W104*KeyAssumptionsPriceControl_FO!AF$15 -> 0 | CL104: =+X104*KeyAssumptionsPriceControl_FO!AG$15 -> 0 | CN104: 0.005850490196 | CO104: 0.03024395236 | CP104: 0.04878692433 | CQ104: 0.04901994255 | CR104: 0.04925296078 | CS104: 0.04925296078 | CT104: 0.04925296078 | CU104: 0.04925296078 | CV104: 0.04925296078 | CW104: 0.04925296078
C105: Feeder Mains | E105: Water | F105: Growth | G105: Pipelines/network | H105: Other Capital expenditure | J105: Straight line | K105: 2018-19 | L105: 100 | M105: 100 | O105: 0.06382761438 | Q105: 0.1123366013 | S105: 0.1276552288 | T105: 0.670189951 | AV105: 0.06382761438 | AW105: 0 | AX105: 0.1123366013 | AY105: 0 | AZ105: 0.1276552288 | BA105: 0.670189951 | BB105: 0 | BC105: 0 | BD105: 0 | BE105: 0 | BG105: 0.0003191380719 | BH105: 0.0006382761438 | BI105: 0.00119995915 | BJ105: 0.001761642157 | BK105: 0.002399918301 | BL105: 0.006389144199 | BM105: 0.009740093954 | BN105: 0.009740093954 | BO105: 0.009740093954 | BP105: 0.009740093954 | BR105: =+IF($K105="Ongoing",AV105,IF(RIGHT($K105,2)=RIGHT(BR$39,2),SUM($AV105:AV105),0)+IF(RIGHT(BR$39,2)>RIGHT($K105,2),AV105,0)) -> 0.06382761438 | BS105: =+IF($K105="Ongoing",AW105,IF(RIGHT($K105,2)=RIGHT(BS$39,2),SUM($AV105:AW105),0)+IF(RIGHT(BS$39,2)>RIGHT($K105,2),AW105,0)) -> 0 | BT105: =+IF($K105="Ongoing",AX105,IF(RIGHT($K105,2)=RIGHT(BT$39,2),SUM($AV105:AX105),0)+IF(RIGHT(BT$39,2)>RIGHT($K105,2),AX105,0)) -> 0.1123366013 | BU105: =+IF($K105="Ongoing",AY105,IF(RIGHT($K105,2)=RIGHT(BU$39,2),SUM($AV105:AY105),0)+IF(RIGHT(BU$39,2)>RIGHT($K105,2),AY105,0)) -> 0 | BV105: =+IF($K105="Ongoing",AZ105,IF(RIGHT($K105,2)=RIGHT(BV$39,2),SUM($AV105:AZ105),0)+IF(RIGHT(BV$39,2)>RIGHT($K105,2),AZ105,0)) -> 0.1276552288 | BW105: =+IF($K105="Ongoing",BA105,IF(RIGHT($K105,2)=RIGHT(BW$39,2),SUM($AV105:BA105),0)+IF(RIGHT(BW$39,2)>RIGHT($K105,2),BA105,0)) -> 0.670189951 | BX105: =+IF($K105="Ongoing",BB105,IF(RIGHT($K105,2)=RIGHT(BX$39,2),SUM($AV105:BB105),0)+IF(RIGHT(BX$39,2)>RIGHT($K105,2),BB105,0)) -> 0 | BY105: =+IF($K105="Ongoing",BC105,IF(RIGHT($K105,2)=RIGHT(BY$39,2),SUM($AV105:BC105),0)+IF(RIGHT(BY$39,2)>RIGHT($K105,2),BC105,0)) -> 0 | BZ105: =+IF($K105="Ongoing",BD105,IF(RIGHT($K105,2)=RIGHT(BZ$39,2),SUM($AV105:BD105),0)+IF(RIGHT(BZ$39,2)>RIGHT($K105,2),BD105,0)) -> 0 | CA105: =+IF($K105="Ongoing",BE105,IF(RIGHT($K105,2)=RIGHT(CA$39,2),SUM($AV105:BE105),0)+IF(RIGHT(CA$39,2)>RIGHT($K105,2),BE105,0)) -> 0 | CC105: =+O105*KeyAssumptionsPriceControl_FO!X$15 -> 0.06529564951 | CD105: =+P105*KeyAssumptionsPriceControl_FO!Y$15 -> 0 | CE105: =+Q105*KeyAssumptionsPriceControl_FO!Z$15 -> 0.1202674718 | CF105: =+R105*KeyAssumptionsPriceControl_FO!AA$15 -> 0 | CG105: =+S105*KeyAssumptionsPriceControl_FO!AB$15 -> 0.1430265875 | CH105: =+T105*KeyAssumptionsPriceControl_FO!AC$15 -> 0.7681600447 | CI105: =+U105*KeyAssumptionsPriceControl_FO!AD$15 -> 0 | CJ105: =+V105*KeyAssumptionsPriceControl_FO!AE$15 -> 0 | CK105: =+W105*KeyAssumptionsPriceControl_FO!AF$15 -> 0 | CL105: =+X105*KeyAssumptionsPriceControl_FO!AG$15 -> 0 | CN105: 0.0003264782475 | CO105: 0.0006529564951 | CP105: 0.001254293854 | CQ105: 0.001855631213 | CR105: 0.00257076415 | CS105: 0.007126697311 | CT105: 0.01096749753 | CU105: 0.01096749753 | CV105: 0.01096749753 | CW105: 0.01096749753
C106: Feeder Mains | E106: Water | F106: Improvements / Compliance | G106: Pipelines/network | H106: Other Capital expenditure | J106: Straight line | K106: 2019-20 | L106: 100 | M106: 100 | O106: 0.09957107843 | P106: 0.259356107 | R106: 0.259356107 | T106: 0.259356107 | V106: 0.259356107 | X106: 0.259356107 | AV106: 0.09957107843 | AW106: 0.259356107 | AX106: 0 | AY106: 0.259356107 | AZ106: 0 | BA106: 0.259356107 | BB106: 0 | BC106: 0.259356107 | BD106: 0 | BE106: 0.259356107 | BG106: 0 | BH106: 0.001794635927 | BI106: 0.003589271855 | BJ106: 0.00488605239 | BK106: 0.006182832925 | BL106: 0.00747961346 | BM106: 0.008776393995 | BN106: 0.01007317453 | BO106: 0.01136995507 | BP106: 0.0126667356 | BR106: =+IF($K106="Ongoing",AV106,IF(RIGHT($K106,2)=RIGHT(BR$39,2),SUM($AV106:AV106),0)+IF(RIGHT(BR$39,2)>RIGHT($K106,2),AV106,0)) -> 0 | BS106: =+IF($K106="Ongoing",AW106,IF(RIGHT($K106,2)=RIGHT(BS$39,2),SUM($AV106:AW106),0)+IF(RIGHT(BS$39,2)>RIGHT($K106,2),AW106,0)) -> 0.3589271855 | BT106: =+IF($K106="Ongoing",AX106,IF(RIGHT($K106,2)=RIGHT(BT$39,2),SUM($AV106:AX106),0)+IF(RIGHT(BT$39,2)>RIGHT($K106,2),AX106,0)) -> 0 | BU106: =+IF($K106="Ongoing",AY106,IF(RIGHT($K106,2)=RIGHT(BU$39,2),SUM($AV106:AY106),0)+IF(RIGHT(BU$39,2)>RIGHT($K106,2),AY106,0)) -> 0.259356107 | BV106: =+IF($K106="Ongoing",AZ106,IF(RIGHT($K106,2)=RIGHT(BV$39,2),SUM($AV106:AZ106),0)+IF(RIGHT(BV$39,2)>RIGHT($K106,2),AZ106,0)) -> 0 | BW106: =+IF($K106="Ongoing",BA106,IF(RIGHT($K106,2)=RIGHT(BW$39,2),SUM($AV106:BA106),0)+IF(RIGHT(BW$39,2)>RIGHT($K106,2),BA106,0)) -> 0.259356107 | BX106: =+IF($K106="Ongoing",BB106,IF(RIGHT($K106,2)=RIGHT(BX$39,2),SUM($AV106:BB106),0)+IF(RIGHT(BX$39,2)>RIGHT($K106,2),BB106,0)) -> 0 | BY106: =+IF($K106="Ongoing",BC106,IF(RIGHT($K106,2)=RIGHT(BY$39,2),SUM($AV106:BC106),0)+IF(RIGHT(BY$39,2)>RIGHT($K106,2),BC106,0)) -> 0.259356107 | BZ106: =+IF($K106="Ongoing",BD106,IF(RIGHT($K106,2)=RIGHT(BZ$39,2),SUM($AV106:BD106),0)+IF(RIGHT(BZ$39,2)>RIGHT($K106,2),BD106,0)) -> 0 | CA106: =+IF($K106="Ongoing",BE106,IF(RIGHT($K106,2)=RIGHT(CA$39,2),SUM($AV106:BE106),0)+IF(RIGHT(CA$39,2)>RIGHT($K106,2),BE106,0)) -> 0.259356107 | CC106: =+O106*KeyAssumptionsPriceControl_FO!X$15 -> 0.1018612132 | CD106: =+P106*KeyAssumptionsPriceControl_FO!Y$15 -> 0.2714236873 | CE106: =+Q106*KeyAssumptionsPriceControl_FO!Z$15 -> 0 | CF106: =+R106*KeyAssumptionsPriceControl_FO!AA$15 -> 0.2840527601 | CG106: =+S106*KeyAssumptionsPriceControl_FO!AB$15 -> 0 | CH106: =+T106*KeyAssumptionsPriceControl_FO!AC$15 -> 0.297269451 | CI106: =+U106*KeyAssumptionsPriceControl_FO!AD$15 -> 0 | CJ106: =+V106*KeyAssumptionsPriceControl_FO!AE$15 -> 0.3111011012 | CK106: =+W106*KeyAssumptionsPriceControl_FO!AF$15 -> 0 | CL106: =+X106*KeyAssumptionsPriceControl_FO!AG$15 -> 0.3255763244 | CN106: 0.0005093060662 | CO106: 0.002375730569 | CP106: 0.003732849006 | CQ106: 0.005153112806 | CR106: 0.006573376606 | CS106: 0.008059723861 | CT106: 0.009546071116 | CU106: 0.01110157662 | CV106: 0.01265708213 | CW106: 0.01428496375
C107: Flowmeter | E107: Sewerage | F107: Improvements / Compliance | G107: Pipelines/network | H107: Other Capital expenditure | J107: Straight line | K107: 2019-20 | L107: 5 | M107: 5 | P107: 0.1123366013 | AV107: 0 | AW107: 0.1123366013 | AX107: 0 | AY107: 0 | AZ107: 0 | BA107: 0 | BB107: 0 | BC107: 0 | BD107: 0 | BE107: 0 | BG107: =IF($L107=0,0, IF($L107<=0.5,BR107, IF($J107="straight line", IF((LEFT(BG$39,4)*1)-INT($L107)<LEFT($BG$39,4)*1,0,((OFFSET(BR107,0,-INT($L107+0.5),1,1))/$L107)*(IF($L107-INT($L107)>0.5,$L107-0.5-INT($L107),IF($L107-INT($L107)<=0.5,$L107-0.5-INT($L107)+1,0)))) +BR107/$L107*0.5, IF($J107="Declining Balance",-$BG$38,0)))) -> 0 | BH107: 0.01123366013 | BI107: 0.02246732026 | BJ107: 0.02246732026 | BK107: 0.02246732026 | BL107: 0.02246732026 | BM107: 0.01123366013 | BN107: 0 | BO107: 0 | BP107: 0 | BR107: =+IF($K107="Ongoing",AV107,IF(RIGHT($K107,2)=RIGHT(BR$39,2),SUM($AV107:AV107),0)+IF(RIGHT(BR$39,2)>RIGHT($K107,2),AV107,0)) -> 0 | BS107: =+IF($K107="Ongoing",AW107,IF(RIGHT($K107,2)=RIGHT(BS$39,2),SUM($AV107:AW107),0)+IF(RIGHT(BS$39,2)>RIGHT($K107,2),AW107,0)) -> 0.1123366013 | BT107: =+IF($K107="Ongoing",AX107,IF(RIGHT($K107,2)=RIGHT(BT$39,2),SUM($AV107:AX107),0)+IF(RIGHT(BT$39,2)>RIGHT($K107,2),AX107,0)) -> 0 | BU107: =+IF($K107="Ongoing",AY107,IF(RIGHT($K107,2)=RIGHT(BU$39,2),SUM($AV107:AY107),0)+IF(RIGHT(BU$39,2)>RIGHT($K107,2),AY107,0)) -> 0 | BV107: =+IF($K107="Ongoing",AZ107,IF(RIGHT($K107,2)=RIGHT(BV$39,2),SUM($AV107:AZ107),0)+IF(RIGHT(BV$39,2)>RIGHT($K107,2),AZ107,0)) -> 0 | BW107: =+IF($K107="Ongoing",BA107,IF(RIGHT($K107,2)=RIGHT(BW$39,2),SUM($AV107:BA107),0)+IF(RIGHT(BW$39,2)>RIGHT($K107,2),BA107,0)) -> 0 | BX107: =+IF($K107="Ongoing",BB107,IF(RIGHT($K107,2)=RIGHT(BX$39,2),SUM($AV107:BB107),0)+IF(RIGHT(BX$39,2)>RIGHT($K107,2),BB107,0)) -> 0 | BY107: =+IF($K107="Ongoing",BC107,IF(RIGHT($K107,2)=RIGHT(BY$39,2),SUM($AV107:BC107),0)+IF(RIGHT(BY$39,2)>RIGHT($K107,2),BC107,0)) -> 0 | BZ107: =+IF($K107="Ongoing",BD107,IF(RIGHT($K107,2)=RIGHT(BZ$39,2),SUM($AV107:BD107),0)+IF(RIGHT(BZ$39,2)>RIGHT($K107,2),BD107,0)) -> 0 | CA107: =+IF($K107="Ongoing",BE107,IF(RIGHT($K107,2)=RIGHT(CA$39,2),SUM($AV107:BE107),0)+IF(RIGHT(CA$39,2)>RIGHT($K107,2),BE107,0)) -> 0 | CC107: =+O107*KeyAssumptionsPriceControl_FO!X$15 -> 0 | CD107: =+P107*KeyAssumptionsPriceControl_FO!Y$15 -> 0.117563511 | CE107: =+Q107*KeyAssumptionsPriceControl_FO!Z$15 -> 0 | CF107: =+R107*KeyAssumptionsPriceControl_FO!AA$15 -> 0 | CG107: =+S107*KeyAssumptionsPriceControl_FO!AB$15 -> 0 | CH107: =+T107*KeyAssumptionsPriceControl_FO!AC$15 -> 0 | CI107: =+U107*KeyAssumptionsPriceControl_FO!AD$15 -> 0 | CJ107: =+V107*KeyAssumptionsPriceControl_FO!AE$15 -> 0 | CK107: =+W107*KeyAssumptionsPriceControl_FO!AF$15 -> 0 | CL107: =+X107*KeyAssumptionsPriceControl_FO!AG$15 -> 0 | CN107: =IF($M107=0,0, IF($M107<=0.5,CC107, IF($J107="straight line", IF((LEFT(CN$39,4)*1)-INT($M107)<LEFT($CN$39,4)*1,0,((OFFSET(CC107,0,-INT($M107+0.5),1,1))/$M107)*(IF($M107-INT($M107)>0.5,$M107-0.5-INT($M107),IF($M107-INT($M107)<=0.5,$M107-0.5-INT($M107)+1,0)))) +CC107/$M107*0.5, IF($J107="Declining Balance",-$CN$38,0)))) -> 0 | CO107: 0.0117563511 | CP107: 0.02351270221 | CQ107: 0.02351270221 | CR107: 0.02351270221 | CS107: 0.02351270221 | CT107: 0.0117563511 | CU107: 0 | CV107: 0 | CW107: 0
C108: Generator | E108: Sewerage | F108: Improvements / Compliance | G108: Pipelines/network | H108: Other Capital expenditure | J108: Straight line | K108: Ongoing | L108: 20 | M108: 20 | Q108: 0.102124183 | R108: 0.102124183 | S108: 0.1148897059 | T108: 0.102124183 | U108: 0.204248366 | V108: 0.204248366 | W108: 3.06372549 | X108: 3.06372549 | AV108: 0 | AW108: 0 | AX108: 0.102124183 | AY108: 0.102124183 | AZ108: 0.1148897059 | BA108: 0.102124183 | BB108: 0.204248366 | BC108: 0.204248366 | BD108: 3.06372549 | BE108: 3.06372549 | BG108: 0 | BH108: 0 | BI108: 0.002553104575 | BJ108: 0.007659313725 | BK108: 0.01308466095 | BL108: 0.01851000817 | BM108: 0.0261693219 | BN108: 0.0363817402 | BO108: 0.1180810866 | BP108: 0.2712673611 | BR108: =+IF($K108="Ongoing",AV108,IF(RIGHT($K108,2)=RIGHT(BR$39,2),SUM($AV108:AV108),0)+IF(RIGHT(BR$39,2)>RIGHT($K108,2),AV108,0)) -> 0 | BS108: =+IF($K108="Ongoing",AW108,IF(RIGHT($K108,2)=RIGHT(BS$39,2),SUM($AV108:AW108),0)+IF(RIGHT(BS$39,2)>RIGHT($K108,2),AW108,0)) -> 0 | BT108: =+IF($K108="Ongoing",AX108,IF(RIGHT($K108,2)=RIGHT(BT$39,2),SUM($AV108:AX108),0)+IF(RIGHT(BT$39,2)>RIGHT($K108,2),AX108,0)) -> 0.102124183 | BU108: =+IF($K108="Ongoing",AY108,IF(RIGHT($K108,2)=RIGHT(BU$39,2),SUM($AV108:AY108),0)+IF(RIGHT(BU$39,2)>RIGHT($K108,2),AY108,0)) -> 0.102124183 | BV108: =+IF($K108="Ongoing",AZ108,IF(RIGHT($K108,2)=RIGHT(BV$39,2),SUM($AV108:AZ108),0)+IF(RIGHT(BV$39,2)>RIGHT($K108,2),AZ108,0)) -> 0.1148897059 | BW108: =+IF($K108="Ongoing",BA108,IF(RIGHT($K108,2)=RIGHT(BW$39,2),SUM($AV108:BA108),0)+IF(RIGHT(BW$39,2)>RIGHT($K108,2),BA108,0)) -> 0.102124183 | BX108: =+IF($K108="Ongoing",BB108,IF(RIGHT($K108,2)=RIGHT(BX$39,2),SUM($AV108:BB108),0)+IF(RIGHT(BX$39,2)>RIGHT($K108,2),BB108,0)) -> 0.204248366 | BY108: =+IF($K108="Ongoing",BC108,IF(RIGHT($K108,2)=RIGHT(BY$39,2),SUM($AV108:BC108),0)+IF(RIGHT(BY$39,2)>RIGHT($K108,2),BC108,0)) -> 0.204248366 | BZ108: =+IF($K108="Ongoing",BD108,IF(RIGHT($K108,2)=RIGHT(BZ$39,2),SUM($AV108:BD108),0)+IF(RIGHT(BZ$39,2)>RIGHT($K108,2),BD108,0)) -> 3.06372549 | CA108: =+IF($K108="Ongoing",BE108,IF(RIGHT($K108,2)=RIGHT(CA$39,2),SUM($AV108:BE108),0)+IF(RIGHT(CA$39,2)>RIGHT($K108,2),BE108,0)) -> 3.06372549 | CC108: =+O108*KeyAssumptionsPriceControl_FO!X$15 -> 0 | CD108: =+P108*KeyAssumptionsPriceControl_FO!Y$15 -> 0 | CE108: =+Q108*KeyAssumptionsPriceControl_FO!Z$15 -> 0.1093340653 | CF108: =+R108*KeyAssumptionsPriceControl_FO!AA$15 -> 0.1118487488 | CG108: =+S108*KeyAssumptionsPriceControl_FO!AB$15 -> 0.1287239287 | CH108: =+T108*KeyAssumptionsPriceControl_FO!AC$15 -> 0.1170529592 | CI108: =+U108*KeyAssumptionsPriceControl_FO!AD$15 -> 0.2394903545 | CJ108: =+V108*KeyAssumptionsPriceControl_FO!AE$15 -> 0.2449986327 | CK108: =+W108*KeyAssumptionsPriceControl_FO!AF$15 -> 3.759504018 | CL108: =+X108*KeyAssumptionsPriceControl_FO!AG$15 -> 3.845972611 | CN108: 0 | CO108: 0 | CP108: 0.002733351631 | CQ108: 0.008262921982 | CR108: 0.01427723892 | CS108: 0.02042166112 | CT108: 0.02933524396 | CU108: 0.04144746864 | CV108: 0.1415600349 | CW108: 0.3316969506
C109: Generator | E109: Sewerage | F109: Renewals | G109: Pipelines/network | H109: Other Capital expenditure | J109: Straight line | K109: 2018-19 | L109: 20 | M109: 20 | O109: 0.0510620915 | AV109: 0.0510620915 | AW109: 0 | AX109: 0 | AY109: 0 | AZ109: 0 | BA109: 0 | BB109: 0 | BC109: 0 | BD109: 0 | BE109: 0 | BG109: 0.001276552288 | BH109: 0.002553104575 | BI109: 0.002553104575 | BJ109: 0.002553104575 | BK109: 0.002553104575 | BL109: 0.002553104575 | BM109: 0.002553104575 | BN109: 0.002553104575 | BO109: 0.002553104575 | BP109: 0.002553104575 | BR109: =+IF($K109="Ongoing",AV109,IF(RIGHT($K109,2)=RIGHT(BR$39,2),SUM($AV109:AV109),0)+IF(RIGHT(BR$39,2)>RIGHT($K109,2),AV109,0)) -> 0.0510620915 | BS109: =+IF($K109="Ongoing",AW109,IF(RIGHT($K109,2)=RIGHT(BS$39,2),SUM($AV109:AW109),0)+IF(RIGHT(BS$39,2)>RIGHT($K109,2),AW109,0)) -> 0 | BT109: =+IF($K109="Ongoing",AX109,IF(RIGHT($K109,2)=RIGHT(BT$39,2),SUM($AV109:AX109),0)+IF(RIGHT(BT$39,2)>RIGHT($K109,2),AX109,0)) -> 0 | BU109: =+IF($K109="Ongoing",AY109,IF(RIGHT($K109,2)=RIGHT(BU$39,2),SUM($AV109:AY109),0)+IF(RIGHT(BU$39,2)>RIGHT($K109,2),AY109,0)) -> 0 | BV109: =+IF($K109="Ongoing",AZ109,IF(RIGHT($K109,2)=RIGHT(BV$39,2),SUM($AV109:AZ109),0)+IF(RIGHT(BV$39,2)>RIGHT($K109,2),AZ109,0)) -> 0 | BW109: =+IF($K109="Ongoing",BA109,IF(RIGHT($K109,2)=RIGHT(BW$39,2),SUM($AV109:BA109),0)+IF(RIGHT(BW$39,2)>RIGHT($K109,2),BA109,0)) -> 0 | BX109: =+IF($K109="Ongoing",BB109,IF(RIGHT($K109,2)=RIGHT(BX$39,2),SUM($AV109:BB109),0)+IF(RIGHT(BX$39,2)>RIGHT($K109,2),BB109,0)) -> 0 | BY109: =+IF($K109="Ongoing",BC109,IF(RIGHT($K109,2)=RIGHT(BY$39,2),SUM($AV109:BC109),0)+IF(RIGHT(BY$39,2)>RIGHT($K109,2),BC109,0)) -> 0 | BZ109: =+IF($K109="Ongoing",BD109,IF(RIGHT($K109,2)=RIGHT(BZ$39,2),SUM($AV109:BD109),0)+IF(RIGHT(BZ$39,2)>RIGHT($K109,2),BD109,0)) -> 0 | CA109: =+IF($K109="Ongoing",BE109,IF(RIGHT($K109,2)=RIGHT(CA$39,2),SUM($AV109:BE109),0)+IF(RIGHT(CA$39,2)>RIGHT($K109,2),BE109,0)) -> 0 | CC109: =+O109*KeyAssumptionsPriceControl_FO!X$15 -> 0.05223651961 | CD109: =+P109*KeyAssumptionsPriceControl_FO!Y$15 -> 0 | CE109: =+Q109*KeyAssumptionsPriceControl_FO!Z$15 -> 0 | CF109: =+R109*KeyAssumptionsPriceControl_FO!AA$15 -> 0 | CG109: =+S109*KeyAssumptionsPriceControl_FO!AB$15 -> 0 | CH109: =+T109*KeyAssumptionsPriceControl_FO!AC$15 -> 0 | CI109: =+U109*KeyAssumptionsPriceControl_FO!AD$15 -> 0 | CJ109: =+V109*KeyAssumptionsPriceControl_FO!AE$15 -> 0 | CK109: =+W109*KeyAssumptionsPriceControl_FO!AF$15 -> 0 | CL109: =+X109*KeyAssumptionsPriceControl_FO!AG$15 -> 0 | CN109: 0.00130591299 | CO109: 0.00261182598 | CP109: 0.00261182598 | CQ109: 0.00261182598 | CR109: 0.00261182598 | CS109: 0.00261182598 | CT109: 0.00261182598 | CU109: 0.00261182598 | CV109: 0.00261182598 | CW109: 0.00261182598
C110: Generator | E110: Sewerage | F110: Renewals | G110: Treatment | H110: Other Capital expenditure | J110: Straight line | K110: 2022-23 | L110: 20 | M110: 20 | S110: 0.05744485294 | AV110: 0 | AW110: 0 | AX110: 0 | AY110: 0 | AZ110: =+S110-AD110-AO110 -> 0.05744485294 | BA110: 0 | BB110: 0 | BC110: 0 | BD110: 0 | BE110: 0 | BG110: 0 | BH110: 0 | BI110: 0 | BJ110: 0 | BK110: 0.001436121324 | BL110: 0.002872242647 | BM110: 0.002872242647 | BN110: 0.002872242647 | BO110: 0.002872242647 | BP110: 0.002872242647 | BR110: =+IF($K110="Ongoing",AV110,IF(RIGHT($K110,2)=RIGHT(BR$39,2),SUM($AV110:AV110),0)+IF(RIGHT(BR$39,2)>RIGHT($K110,2),AV110,0)) -> 0 | BS110: =+IF($K110="Ongoing",AW110,IF(RIGHT($K110,2)=RIGHT(BS$39,2),SUM($AV110:AW110),0)+IF(RIGHT(BS$39,2)>RIGHT($K110,2),AW110,0)) -> 0 | BT110: =+IF($K110="Ongoing",AX110,IF(RIGHT($K110,2)=RIGHT(BT$39,2),SUM($AV110:AX110),0)+IF(RIGHT(BT$39,2)>RIGHT($K110,2),AX110,0)) -> 0 | BU110: =+IF($K110="Ongoing",AY110,IF(RIGHT($K110,2)=RIGHT(BU$39,2),SUM($AV110:AY110),0)+IF(RIGHT(BU$39,2)>RIGHT($K110,2),AY110,0)) -> 0 | BV110: =+IF($K110="Ongoing",AZ110,IF(RIGHT($K110,2)=RIGHT(BV$39,2),SUM($AV110:AZ110),0)+IF(RIGHT(BV$39,2)>RIGHT($K110,2),AZ110,0)) -> 0.05744485294 | BW110: =+IF($K110="Ongoing",BA110,IF(RIGHT($K110,2)=RIGHT(BW$39,2),SUM($AV110:BA110),0)+IF(RIGHT(BW$39,2)>RIGHT($K110,2),BA110,0)) -> 0 | BX110: =+IF($K110="Ongoing",BB110,IF(RIGHT($K110,2)=RIGHT(BX$39,2),SUM($AV110:BB110),0)+IF(RIGHT(BX$39,2)>RIGHT($K110,2),BB110,0)) -> 0 | BY110: =+IF($K110="Ongoing",BC110,IF(RIGHT($K110,2)=RIGHT(BY$39,2),SUM($AV110:BC110),0)+IF(RIGHT(BY$39,2)>RIGHT($K110,2),BC110,0)) -> 0 | BZ110: =+IF($K110="Ongoing",BD110,IF(RIGHT($K110,2)=RIGHT(BZ$39,2),SUM($AV110:BD110),0)+IF(RIGHT(BZ$39,2)>RIGHT($K110,2),BD110,0)) -> 0 | CA110: =+IF($K110="Ongoing",BE110,IF(RIGHT($K110,2)=RIGHT(CA$39,2),SUM($AV110:BE110),0)+IF(RIGHT(CA$39,2)>RIGHT($K110,2),BE110,0)) -> 0 | CC110: =+O110*KeyAssumptionsPriceControl_FO!X$15 -> 0 | CD110: =+P110*KeyAssumptionsPriceControl_FO!Y$15 -> 0 | CE110: =+Q110*KeyAssumptionsPriceControl_FO!Z$15 -> 0 | CF110: =+R110*KeyAssumptionsPriceControl_FO!AA$15 -> 0 | CG110: =+S110*KeyAssumptionsPriceControl_FO!AB$15 -> 0.06436196436 | CH110: =+T110*KeyAssumptionsPriceControl_FO!AC$15 -> 0 | CI110: =+U110*KeyAssumptionsPriceControl_FO!AD$15 -> 0 | CJ110: =+V110*KeyAssumptionsPriceControl_FO!AE$15 -> 0 | CK110: =+W110*KeyAssumptionsPriceControl_FO!AF$15 -> 0 | CL110: =+X110*KeyAssumptionsPriceControl_FO!AG$15 -> 0 | CN110: 0 | CO110: 0 | CP110: 0 | CQ110: 0 | CR110: 0.001609049109 | CS110: 0.003218098218 | CT110: 0.003218098218 | CU110: 0.003218098218 | CV110: 0.003218098218 | CW110: 0.003218098218
C111: Instrumentation | E111: Water | F111: Renewals | G111: Corporate | H111: Other Capital expenditure | J111: Straight line | K111: Ongoing | L111: 15 | M111: 15 | O111: 0.06382761438 | P111: 0.06382761438 | Q111: 0.06382761438 | R111: 0.06382761438 | S111: 0.06382761438 | T111: 0.06382761438 | U111: 0.03191380719 | AV111: 0.06382761438 | AW111: 0.06382761438 | AX111: 0.06382761438 | AY111: 0.06382761438 | AZ111: 0.06382761438 | BA111: 0.06382761438 | BB111: 0.03191380719 | BC111: 0 | BD111: 0 | BE111: 0 | BG111: 0.002127587146 | BH111: 0.006382761438 | BI111: 0.01063793573 | BJ111: 0.01489311002 | BK111: 0.01914828431 | BL111: 0.02340345861 | BM111: 0.02659483932 | BN111: 0.0276586329 | BO111: 0.0276586329 | BP111: 0.0276586329 | BR111: =+IF($K111="Ongoing",AV111,IF(RIGHT($K111,2)=RIGHT(BR$39,2),SUM($AV111:AV111),0)+IF(RIGHT(BR$39,2)>RIGHT($K111,2),AV111,0)) -> 0.06382761438 | BS111: =+IF($K111="Ongoing",AW111,IF(RIGHT($K111,2)=RIGHT(BS$39,2),SUM($AV111:AW111),0)+IF(RIGHT(BS$39,2)>RIGHT($K111,2),AW111,0)) -> 0.06382761438 | BT111: =+IF($K111="Ongoing",AX111,IF(RIGHT($K111,2)=RIGHT(BT$39,2),SUM($AV111:AX111),0)+IF(RIGHT(BT$39,2)>RIGHT($K111,2),AX111,0)) -> 0.06382761438 | BU111: =+IF($K111="Ongoing",AY111,IF(RIGHT($K111,2)=RIGHT(BU$39,2),SUM($AV111:AY111),0)+IF(RIGHT(BU$39,2)>RIGHT($K111,2),AY111,0)) -> 0.06382761438 | BV111: =+IF($K111="Ongoing",AZ111,IF(RIGHT($K111,2)=RIGHT(BV$39,2),SUM($AV111:AZ111),0)+IF(RIGHT(BV$39,2)>RIGHT($K111,2),AZ111,0)) -> 0.06382761438 | BW111: =+IF($K111="Ongoing",BA111,IF(RIGHT($K111,2)=RIGHT(BW$39,2),SUM($AV111:BA111),0)+IF(RIGHT(BW$39,2)>RIGHT($K111,2),BA111,0)) -> 0.06382761438 | BX111: =+IF($K111="Ongoing",BB111,IF(RIGHT($K111,2)=RIGHT(BX$39,2),SUM($AV111:BB111),0)+IF(RIGHT(BX$39,2)>RIGHT($K111,2),BB111,0)) -> 0.03191380719 | BY111: =+IF($K111="Ongoing",BC111,IF(RIGHT($K111,2)=RIGHT(BY$39,2),SUM($AV111:BC111),0)+IF(RIGHT(BY$39,2)>RIGHT($K111,2),BC111,0)) -> 0 | BZ111: =+IF($K111="Ongoing",BD111,IF(RIGHT($K111,2)=RIGHT(BZ$39,2),SUM($AV111:BD111),0)+IF(RIGHT(BZ$39,2)>RIGHT($K111,2),BD111,0)) -> 0 | CA111: =+IF($K111="Ongoing",BE111,IF(RIGHT($K111,2)=RIGHT(CA$39,2),SUM($AV111:BE111),0)+IF(RIGHT(CA$39,2)>RIGHT($K111,2),BE111,0)) -> 0 | CC111: =+O111*KeyAssumptionsPriceControl_FO!X$15 -> 0.06529564951 | CD111: =+P111*KeyAssumptionsPriceControl_FO!Y$15 -> 0.06679744945 | CE111: =+Q111*KeyAssumptionsPriceControl_FO!Z$15 -> 0.06833379079 | CF111: =+R111*KeyAssumptionsPriceControl_FO!AA$15 -> 0.06990546797 | CG111: =+S111*KeyAssumptionsPriceControl_FO!AB$15 -> 0.07151329374 | CH111: =+T111*KeyAssumptionsPriceControl_FO!AC$15 -> 0.07315809949 | CI111: =+U111*KeyAssumptionsPriceControl_FO!AD$15 -> 0.03742036789 | CJ111: =+V111*KeyAssumptionsPriceControl_FO!AE$15 -> 0 | CK111: =+W111*KeyAssumptionsPriceControl_FO!AF$15 -> 0 | CL111: =+X111*KeyAssumptionsPriceControl_FO!AG$15 -> 0 | CN111: 0.00217652165 | CO111: 0.006579624949 | CP111: 0.01108399962 | CQ111: 0.01569197492 | CR111: 0.02040593364 | CS111: 0.02522831341 | CT111: 0.02891426233 | CU111: 0.03016160792 | CV111: 0.03016160792 | CW111: 0.03016160792
C112: Instrumentation | E112: Sewerage | F112: Renewals | G112: Corporate | H112: Other Capital expenditure | J112: Straight line | K112: Ongoing | L112: 15 | M112: 15 | O112: 0.06382761438 | P112: 0.06382761438 | Q112: 0.06382761438 | R112: 0.06382761438 | S112: 0.06382761438 | T112: 0.06382761438 | U112: 0.03191380719 | AV112: 0.06382761438 | AW112: 0.06382761438 | AX112: 0.06382761438 | AY112: 0.06382761438 | AZ112: 0.06382761438 | BA112: 0.06382761438 | BB112: 0.03191380719 | BC112: 0 | BD112: 0 | BE112: 0 | BG112: 0.002127587146 | BH112: 0.006382761438 | BI112: 0.01063793573 | BJ112: 0.01489311002 | BK112: 0.01914828431 | BL112: 0.02340345861 | BM112: 0.02659483932 | BN112: 0.0276586329 | BO112: 0.0276586329 | BP112: 0.0276586329 | BR112: =+IF($K112="Ongoing",AV112,IF(RIGHT($K112,2)=RIGHT(BR$39,2),SUM($AV112:AV112),0)+IF(RIGHT(BR$39,2)>RIGHT($K112,2),AV112,0)) -> 0.06382761438 | BS112: =+IF($K112="Ongoing",AW112,IF(RIGHT($K112,2)=RIGHT(BS$39,2),SUM($AV112:AW112),0)+IF(RIGHT(BS$39,2)>RIGHT($K112,2),AW112,0)) -> 0.06382761438 | BT112: =+IF($K112="Ongoing",AX112,IF(RIGHT($K112,2)=RIGHT(BT$39,2),SUM($AV112:AX112),0)+IF(RIGHT(BT$39,2)>RIGHT($K112,2),AX112,0)) -> 0.06382761438 | BU112: =+IF($K112="Ongoing",AY112,IF(RIGHT($K112,2)=RIGHT(BU$39,2),SUM($AV112:AY112),0)+IF(RIGHT(BU$39,2)>RIGHT($K112,2),AY112,0)) -> 0.06382761438 | BV112: =+IF($K112="Ongoing",AZ112,IF(RIGHT($K112,2)=RIGHT(BV$39,2),SUM($AV112:AZ112),0)+IF(RIGHT(BV$39,2)>RIGHT($K112,2),AZ112,0)) -> 0.06382761438 | BW112: =+IF($K112="Ongoing",BA112,IF(RIGHT($K112,2)=RIGHT(BW$39,2),SUM($AV112:BA112),0)+IF(RIGHT(BW$39,2)>RIGHT($K112,2),BA112,0)) -> 0.06382761438 | BX112: =+IF($K112="Ongoing",BB112,IF(RIGHT($K112,2)=RIGHT(BX$39,2),SUM($AV112:BB112),0)+IF(RIGHT(BX$39,2)>RIGHT($K112,2),BB112,0)) -> 0.03191380719 | BY112: =+IF($K112="Ongoing",BC112,IF(RIGHT($K112,2)=RIGHT(BY$39,2),SUM($AV112:BC112),0)+IF(RIGHT(BY$39,2)>RIGHT($K112,2),BC112,0)) -> 0 | BZ112: =+IF($K112="Ongoing",BD112,IF(RIGHT($K112,2)=RIGHT(BZ$39,2),SUM($AV112:BD112),0)+IF(RIGHT(BZ$39,2)>RIGHT($K112,2),BD112,0)) -> 0 | CA112: =+IF($K112="Ongoing",BE112,IF(RIGHT($K112,2)=RIGHT(CA$39,2),SUM($AV112:BE112),0)+IF(RIGHT(CA$39,2)>RIGHT($K112,2),BE112,0)) -> 0 | CC112: =+O112*KeyAssumptionsPriceControl_FO!X$15 -> 0.06529564951 | CD112: =+P112*KeyAssumptionsPriceControl_FO!Y$15 -> 0.06679744945 | CE112: =+Q112*KeyAssumptionsPriceControl_FO!Z$15 -> 0.06833379079 | CF112: =+R112*KeyAssumptionsPriceControl_FO!AA$15 -> 0.06990546797 | CG112: =+S112*KeyAssumptionsPriceControl_FO!AB$15 -> 0.07151329374 | CH112: =+T112*KeyAssumptionsPriceControl_FO!AC$15 -> 0.07315809949 | CI112: =+U112*KeyAssumptionsPriceControl_FO!AD$15 -> 0.03742036789 | CJ112: =+V112*KeyAssumptionsPriceControl_FO!AE$15 -> 0 | CK112: =+W112*KeyAssumptionsPriceControl_FO!AF$15 -> 0 | CL112: =+X112*KeyAssumptionsPriceControl_FO!AG$15 -> 0 | CN112: 0.00217652165 | CO112: 0.006579624949 | CP112: 0.01108399962 | CQ112: 0.01569197492 | CR112: 0.02040593364 | CS112: 0.02522831341 | CT112: 0.02891426233 | CU112: 0.03016160792 | CV112: 0.03016160792 | CW112: 0.03016160792
C113: Instrumentation | E113: Water | F113: Renewals | G113: Corporate | H113: Other Capital expenditure | J113: Straight line | K113: 2018-19 | L113: 15 | M113: 15 | O113: 0.2134395425 | AV113: 0.2134395425 | AW113: 0 | AX113: 0 | AY113: 0 | AZ113: 0 | BA113: 0 | BB113: 0 | BC113: 0 | BD113: 0 | BE113: 0 | BG113: 0.007114651416 | BH113: 0.01422930283 | BI113: 0.01422930283 | BJ113: 0.01422930283 | BK113: 0.01422930283 | BL113: 0.01422930283 | BM113: 0.01422930283 | BN113: 0.01422930283 | BO113: 0.01422930283 | BP113: 0.01422930283 | BR113: =+IF($K113="Ongoing",AV113,IF(RIGHT($K113,2)=RIGHT(BR$39,2),SUM($AV113:AV113),0)+IF(RIGHT(BR$39,2)>RIGHT($K113,2),AV113,0)) -> 0.2134395425 | BS113: =+IF($K113="Ongoing",AW113,IF(RIGHT($K113,2)=RIGHT(BS$39,2),SUM($AV113:AW113),0)+IF(RIGHT(BS$39,2)>RIGHT($K113,2),AW113,0)) -> 0 | BT113: =+IF($K113="Ongoing",AX113,IF(RIGHT($K113,2)=RIGHT(BT$39,2),SUM($AV113:AX113),0)+IF(RIGHT(BT$39,2)>RIGHT($K113,2),AX113,0)) -> 0 | BU113: =+IF($K113="Ongoing",AY113,IF(RIGHT($K113,2)=RIGHT(BU$39,2),SUM($AV113:AY113),0)+IF(RIGHT(BU$39,2)>RIGHT($K113,2),AY113,0)) -> 0 | BV113: =+IF($K113="Ongoing",AZ113,IF(RIGHT($K113,2)=RIGHT(BV$39,2),SUM($AV113:AZ113),0)+IF(RIGHT(BV$39,2)>RIGHT($K113,2),AZ113,0)) -> 0 | BW113: =+IF($K113="Ongoing",BA113,IF(RIGHT($K113,2)=RIGHT(BW$39,2),SUM($AV113:BA113),0)+IF(RIGHT(BW$39,2)>RIGHT($K113,2),BA113,0)) -> 0 | BX113: =+IF($K113="Ongoing",BB113,IF(RIGHT($K113,2)=RIGHT(BX$39,2),SUM($AV113:BB113),0)+IF(RIGHT(BX$39,2)>RIGHT($K113,2),BB113,0)) -> 0 | BY113: =+IF($K113="Ongoing",BC113,IF(RIGHT($K113,2)=RIGHT(BY$39,2),SUM($AV113:BC113),0)+IF(RIGHT(BY$39,2)>RIGHT($K113,2),BC113,0)) -> 0 | BZ113: =+IF($K113="Ongoing",BD113,IF(RIGHT($K113,2)=RIGHT(BZ$39,2),SUM($AV113:BD113),0)+IF(RIGHT(BZ$39,2)>RIGHT($K113,2),BD113,0)) -> 0 | CA113: =+IF($K113="Ongoing",BE113,IF(RIGHT($K113,2)=RIGHT(CA$39,2),SUM($AV113:BE113),0)+IF(RIGHT(CA$39,2)>RIGHT($K113,2),BE113,0)) -> 0 | CC113: =+O113*KeyAssumptionsPriceControl_FO!X$15 -> 0.218348652 | CD113: =+P113*KeyAssumptionsPriceControl_FO!Y$15 -> 0 | CE113: =+Q113*KeyAssumptionsPriceControl_FO!Z$15 -> 0 | CF113: =+R113*KeyAssumptionsPriceControl_FO!AA$15 -> 0 | CG113: =+S113*KeyAssumptionsPriceControl_FO!AB$15 -> 0 | CH113: =+T113*KeyAssumptionsPriceControl_FO!AC$15 -> 0 | CI113: =+U113*KeyAssumptionsPriceControl_FO!AD$15 -> 0 | CJ113: =+V113*KeyAssumptionsPriceControl_FO!AE$15 -> 0 | CK113: =+W113*KeyAssumptionsPriceControl_FO!AF$15 -> 0 | CL113: =+X113*KeyAssumptionsPriceControl_FO!AG$15 -> 0 | CN113: 0.007278288399 | CO113: 0.0145565768 | CP113: 0.0145565768 | CQ113: 0.0145565768 | CR113: 0.0145565768 | CS113: 0.0145565768 | CT113: 0.0145565768 | CU113: 0.0145565768 | CV113: 0.0145565768 | CW113: 0.0145565768
C114: Intangibles - Software | E114: Water | F114: Improvements / Compliance | G114: Corporate | H114: Other Capital expenditure | J114: Straight line | K114: Ongoing | L114: 4 | M114: 4 | O114: 0.09957107843 | P114: 0.1148897059 | Q114: 0.1404207516 | R114: 0.03829656863 | S114: 0.03829656863 | T114: 0.0065 | U114: 0.0065 | V114: 0.0065 | W114: 0.0065 | X114: 0.0065 | AV114: 0.09957107843 | AW114: 0.1148897059 | AX114: 0.1404207516 | AY114: 0.03829656863 | AZ114: 0.03829656863 | BA114: 0.0065 | BB114: 0.0065 | BC114: 0.0065 | BD114: 0.0065 | BE114: 0.0065 | BG114: 0.0124463848 | BH114: 0.03925398284 | BI114: 0.07116779003 | BJ114: 0.09350745507 | BK114: 0.09063521242 | BL114: 0.06942718546 | BM114: 0.03913837827 | BN114: 0.01842371324 | BO114: 0.01047457108 | BP114: 0.0065 | BR114: =+IF($K114="Ongoing",AV114,IF(RIGHT($K114,2)=RIGHT(BR$39,2),SUM($AV114:AV114),0)+IF(RIGHT(BR$39,2)>RIGHT($K114,2),AV114,0)) -> 0.09957107843 | BS114: =+IF($K114="Ongoing",AW114,IF(RIGHT($K114,2)=RIGHT(BS$39,2),SUM($AV114:AW114),0)+IF(RIGHT(BS$39,2)>RIGHT($K114,2),AW114,0)) -> 0.1148897059 | BT114: =+IF($K114="Ongoing",AX114,IF(RIGHT($K114,2)=RIGHT(BT$39,2),SUM($AV114:AX114),0)+IF(RIGHT(BT$39,2)>RIGHT($K114,2),AX114,0)) -> 0.1404207516 | BU114: =+IF($K114="Ongoing",AY114,IF(RIGHT($K114,2)=RIGHT(BU$39,2),SUM($AV114:AY114),0)+IF(RIGHT(BU$39,2)>RIGHT($K114,2),AY114,0)) -> 0.03829656863 | BV114: =+IF($K114="Ongoing",AZ114,IF(RIGHT($K114,2)=RIGHT(BV$39,2),SUM($AV114:AZ114),0)+IF(RIGHT(BV$39,2)>RIGHT($K114,2),AZ114,0)) -> 0.03829656863 | BW114: =+IF($K114="Ongoing",BA114,IF(RIGHT($K114,2)=RIGHT(BW$39,2),SUM($AV114:BA114),0)+IF(RIGHT(BW$39,2)>RIGHT($K114,2),BA114,0)) -> 0.0065 | BX114: =+IF($K114="Ongoing",BB114,IF(RIGHT($K114,2)=RIGHT(BX$39,2),SUM($AV114:BB114),0)+IF(RIGHT(BX$39,2)>RIGHT($K114,2),BB114,0)) -> 0.0065 | BY114: =+IF($K114="Ongoing",BC114,IF(RIGHT($K114,2)=RIGHT(BY$39,2),SUM($AV114:BC114),0)+IF(RIGHT(BY$39,2)>RIGHT($K114,2),BC114,0)) -> 0.0065 | BZ114: =+IF($K114="Ongoing",BD114,IF(RIGHT($K114,2)=RIGHT(BZ$39,2),SUM($AV114:BD114),0)+IF(RIGHT(BZ$39,2)>RIGHT($K114,2),BD114,0)) -> 0.0065 | CA114: =+IF($K114="Ongoing",BE114,IF(RIGHT($K114,2)=RIGHT(CA$39,2),SUM($AV114:BE114),0)+IF(RIGHT(CA$39,2)>RIGHT($K114,2),BE114,0)) -> 0.0065 | CC114: =+O114*KeyAssumptionsPriceControl_FO!X$15 -> 0.1018612132 | CD114: =+P114*KeyAssumptionsPriceControl_FO!Y$15 -> 0.120235409 | CE114: =+Q114*KeyAssumptionsPriceControl_FO!Z$15 -> 0.1503343397 | CF114: =+R114*KeyAssumptionsPriceControl_FO!AA$15 -> 0.04194328078 | CG114: =+S114*KeyAssumptionsPriceControl_FO!AB$15 -> 0.04290797624 | CH114: =+T114*KeyAssumptionsPriceControl_FO!AC$15 -> 0.007450186746 | CI114: =+U114*KeyAssumptionsPriceControl_FO!AD$15 -> 0.007621541042 | CJ114: =+V114*KeyAssumptionsPriceControl_FO!AE$15 -> 0.007796836486 | CK114: =+W114*KeyAssumptionsPriceControl_FO!AF$15 -> 0.007976163725 | CL114: =+X114*KeyAssumptionsPriceControl_FO!AG$15 -> 0.00815961549 | CN114: 0.01273265165 | CO114: 0.04049472943 | CP114: 0.07431594803 | CQ114: 0.09835065059 | CR114: 0.09622440606 | CS114: 0.07475709866 | CT114: 0.04281984604 | CU114: 0.02071244067 | CV114: 0.01207765856 | CW114: 0.007799860593
C115: Intangibles - Software | E115: Sewerage | F115: Improvements / Compliance | G115: Corporate | H115: Other Capital expenditure | J115: Straight line | K115: Ongoing | L115: 4 | M115: 4 | O115: 0.09957107843 | P115: 0.1148897059 | Q115: 0.1404207516 | R115: 0.03829656863 | S115: 0.03829656863 | T115: 0.0065 | U115: 0.0065 | V115: 0.0065 | W115: 0.0065 | X115: 0.0065 | AV115: 0.09957107843 | AW115: 0.1148897059 | AX115: 0.1404207516 | AY115: 0.03829656863 | AZ115: 0.03829656863 | BA115: 0.0065 | BB115: 0.0065 | BC115: 0.0065 | BD115: 0.0065 | BE115: 0.0065 | BG115: 0.0124463848 | BH115: 0.03925398284 | BI115: 0.07116779003 | BJ115: 0.09350745507 | BK115: 0.09063521242 | BL115: 0.06942718546 | BM115: 0.03913837827 | BN115: 0.01842371324 | BO115: 0.01047457108 | BP115: 0.0065 | BR115: =+IF($K115="Ongoing",AV115,IF(RIGHT($K115,2)=RIGHT(BR$39,2),SUM($AV115:AV115),0)+IF(RIGHT(BR$39,2)>RIGHT($K115,2),AV115,0)) -> 0.09957107843 | BS115: =+IF($K115="Ongoing",AW115,IF(RIGHT($K115,2)=RIGHT(BS$39,2),SUM($AV115:AW115),0)+IF(RIGHT(BS$39,2)>RIGHT($K115,2),AW115,0)) -> 0.1148897059 | BT115: =+IF($K115="Ongoing",AX115,IF(RIGHT($K115,2)=RIGHT(BT$39,2),SUM($AV115:AX115),0)+IF(RIGHT(BT$39,2)>RIGHT($K115,2),AX115,0)) -> 0.1404207516 | BU115: =+IF($K115="Ongoing",AY115,IF(RIGHT($K115,2)=RIGHT(BU$39,2),SUM($AV115:AY115),0)+IF(RIGHT(BU$39,2)>RIGHT($K115,2),AY115,0)) -> 0.03829656863 | BV115: =+IF($K115="Ongoing",AZ115,IF(RIGHT($K115,2)=RIGHT(BV$39,2),SUM($AV115:AZ115),0)+IF(RIGHT(BV$39,2)>RIGHT($K115,2),AZ115,0)) -> 0.03829656863 | BW115: =+IF($K115="Ongoing",BA115,IF(RIGHT($K115,2)=RIGHT(BW$39,2),SUM($AV115:BA115),0)+IF(RIGHT(BW$39,2)>RIGHT($K115,2),BA115,0)) -> 0.0065 | BX115: =+IF($K115="Ongoing",BB115,IF(RIGHT($K115,2)=RIGHT(BX$39,2),SUM($AV115:BB115),0)+IF(RIGHT(BX$39,2)>RIGHT($K115,2),BB115,0)) -> 0.0065 | BY115: =+IF($K115="Ongoing",BC115,IF(RIGHT($K115,2)=RIGHT(BY$39,2),SUM($AV115:BC115),0)+IF(RIGHT(BY$39,2)>RIGHT($K115,2),BC115,0)) -> 0.0065 | BZ115: =+IF($K115="Ongoing",BD115,IF(RIGHT($K115,2)=RIGHT(BZ$39,2),SUM($AV115:BD115),0)+IF(RIGHT(BZ$39,2)>RIGHT($K115,2),BD115,0)) -> 0.0065 | CA115: =+IF($K115="Ongoing",BE115,IF(RIGHT($K115,2)=RIGHT(CA$39,2),SUM($AV115:BE115),0)+IF(RIGHT(CA$39,2)>RIGHT($K115,2),BE115,0)) -> 0.0065 | CC115: =+O115*KeyAssumptionsPriceControl_FO!X$15 -> 0.1018612132 | CD115: =+P115*KeyAssumptionsPriceControl_FO!Y$15 -> 0.120235409 | CE115: =+Q115*KeyAssumptionsPriceControl_FO!Z$15 -> 0.1503343397 | CF115: =+R115*KeyAssumptionsPriceControl_FO!AA$15 -> 0.04194328078 | CG115: =+S115*KeyAssumptionsPriceControl_FO!AB$15 -> 0.04290797624 | CH115: =+T115*KeyAssumptionsPriceControl_FO!AC$15 -> 0.007450186746 | CI115: =+U115*KeyAssumptionsPriceControl_FO!AD$15 -> 0.007621541042 | CJ115: =+V115*KeyAssumptionsPriceControl_FO!AE$15 -> 0.007796836486 | CK115: =+W115*KeyAssumptionsPriceControl_FO!AF$15 -> 0.007976163725 | CL115: =+X115*KeyAssumptionsPriceControl_FO!AG$15 -> 0.00815961549 | CN115: 0.01273265165 | CO115: 0.04049472943 | CP115: 0.07431594803 | CQ115: 0.09835065059 | CR115: 0.09622440606 | CS115: 0.07475709866 | CT115: 0.04281984604 | CU115: 0.02071244067 | CV115: 0.01207765856 | CW115: 0.007799860593
C116: Irrigator | E116: Sewerage | F116: Improvements / Compliance | G116: Treatment | H116: Other Capital expenditure | J116: Straight line | K116: 2020-21 | L116: 20 | M116: 20 | Q116: 0.0510620915 | R116: 0.04467933007 | AV116: 0 | AW116: 0 | AX116: 0.0510620915 | AY116: 0.04467933007 | AZ116: 0 | BA116: 0 | BB116: 0 | BC116: 0 | BD116: 0 | BE116: 0 | BG116: 0 | BH116: 0 | BI116: 0.001276552288 | BJ116: 0.003670087827 | BK116: 0.004787071078 | BL116: 0.004787071078 | BM116: 0.004787071078 | BN116: 0.004787071078 | BO116: 0.004787071078 | BP116: 0.004787071078 | BR116: =+IF($K116="Ongoing",AV116,IF(RIGHT($K116,2)=RIGHT(BR$39,2),SUM($AV116:AV116),0)+IF(RIGHT(BR$39,2)>RIGHT($K116,2),AV116,0)) -> 0 | BS116: =+IF($K116="Ongoing",AW116,IF(RIGHT($K116,2)=RIGHT(BS$39,2),SUM($AV116:AW116),0)+IF(RIGHT(BS$39,2)>RIGHT($K116,2),AW116,0)) -> 0 | BT116: =+IF($K116="Ongoing",AX116,IF(RIGHT($K116,2)=RIGHT(BT$39,2),SUM($AV116:AX116),0)+IF(RIGHT(BT$39,2)>RIGHT($K116,2),AX116,0)) -> 0.0510620915 | BU116: =+IF($K116="Ongoing",AY116,IF(RIGHT($K116,2)=RIGHT(BU$39,2),SUM($AV116:AY116),0)+IF(RIGHT(BU$39,2)>RIGHT($K116,2),AY116,0)) -> 0.04467933007 | BV116: =+IF($K116="Ongoing",AZ116,IF(RIGHT($K116,2)=RIGHT(BV$39,2),SUM($AV116:AZ116),0)+IF(RIGHT(BV$39,2)>RIGHT($K116,2),AZ116,0)) -> 0 | BW116: =+IF($K116="Ongoing",BA116,IF(RIGHT($K116,2)=RIGHT(BW$39,2),SUM($AV116:BA116),0)+IF(RIGHT(BW$39,2)>RIGHT($K116,2),BA116,0)) -> 0 | BX116: =+IF($K116="Ongoing",BB116,IF(RIGHT($K116,2)=RIGHT(BX$39,2),SUM($AV116:BB116),0)+IF(RIGHT(BX$39,2)>RIGHT($K116,2),BB116,0)) -> 0 | BY116: =+IF($K116="Ongoing",BC116,IF(RIGHT($K116,2)=RIGHT(BY$39,2),SUM($AV116:BC116),0)+IF(RIGHT(BY$39,2)>RIGHT($K116,2),BC116,0)) -> 0 | BZ116: =+IF($K116="Ongoing",BD116,IF(RIGHT($K116,2)=RIGHT(BZ$39,2),SUM($AV116:BD116),0)+IF(RIGHT(BZ$39,2)>RIGHT($K116,2),BD116,0)) -> 0 | CA116: =+IF($K116="Ongoing",BE116,IF(RIGHT($K116,2)=RIGHT(CA$39,2),SUM($AV116:BE116),0)+IF(RIGHT(CA$39,2)>RIGHT($K116,2),BE116,0)) -> 0 | CC116: =+O116*KeyAssumptionsPriceControl_FO!X$15 -> 0 | CD116: =+P116*KeyAssumptionsPriceControl_FO!Y$15 -> 0 | CE116: =+Q116*KeyAssumptionsPriceControl_FO!Z$15 -> 0.05466703263 | CF116: =+R116*KeyAssumptionsPriceControl_FO!AA$15 -> 0.04893382758 | CG116: =+S116*KeyAssumptionsPriceControl_FO!AB$15 -> 0 | CH116: =+T116*KeyAssumptionsPriceControl_FO!AC$15 -> 0 | CI116: =+U116*KeyAssumptionsPriceControl_FO!AD$15 -> 0 | CJ116: =+V116*KeyAssumptionsPriceControl_FO!AE$15 -> 0 | CK116: =+W116*KeyAssumptionsPriceControl_FO!AF$15 -> 0 | CL116: =+X116*KeyAssumptionsPriceControl_FO!AG$15 -> 0 | CN116: 0 | CO116: 0 | CP116: 0.001366675816 | CQ116: 0.003956697321 | CR116: 0.005180043011 | CS116: 0.005180043011 | CT116: 0.005180043011 | CU116: 0.005180043011 | CV116: 0.005180043011 | CW116: 0.005180043011
C117: Irrigator | E117: Sewerage | F117: Renewals | G117: Treatment | H117: Other Capital expenditure | J117: Straight line | K117: 2020-21 | L117: 20 | M117: 20 | O117: 0.1940359477 | Q117: 0.2170138889 | R117: 0.2170138889 | S117: 0.4467933007 | AV117: 0.1940359477 | AW117: 0 | AX117: 0.2170138889 | AY117: 0.2170138889 | AZ117: 0.4467933007 | BA117: 0 | BB117: 0 | BC117: 0 | BD117: 0 | BE117: 0 | BG117: 0 | BH117: 0 | BI117: 0.01027624592 | BJ117: 0.02597783905 | BK117: 0.04257301879 | BL117: 0.05374285131 | BM117: 0.05374285131 | BN117: 0.05374285131 | BO117: 0.05374285131 | BP117: 0.05374285131 | BR117: =+IF($K117="Ongoing",AV117,IF(RIGHT($K117,2)=RIGHT(BR$39,2),SUM($AV117:AV117),0)+IF(RIGHT(BR$39,2)>RIGHT($K117,2),AV117,0)) -> 0 | BS117: =+IF($K117="Ongoing",AW117,IF(RIGHT($K117,2)=RIGHT(BS$39,2),SUM($AV117:AW117),0)+IF(RIGHT(BS$39,2)>RIGHT($K117,2),AW117,0)) -> 0 | BT117: =+IF($K117="Ongoing",AX117,IF(RIGHT($K117,2)=RIGHT(BT$39,2),SUM($AV117:AX117),0)+IF(RIGHT(BT$39,2)>RIGHT($K117,2),AX117,0)) -> 0.4110498366 | BU117: =+IF($K117="Ongoing",AY117,IF(RIGHT($K117,2)=RIGHT(BU$39,2),SUM($AV117:AY117),0)+IF(RIGHT(BU$39,2)>RIGHT($K117,2),AY117,0)) -> 0.2170138889 | BV117: =+IF($K117="Ongoing",AZ117,IF(RIGHT($K117,2)=RIGHT(BV$39,2),SUM($AV117:AZ117),0)+IF(RIGHT(BV$39,2)>RIGHT($K117,2),AZ117,0)) -> 0.4467933007 | BW117: =+IF($K117="Ongoing",BA117,IF(RIGHT($K117,2)=RIGHT(BW$39,2),SUM($AV117:BA117),0)+IF(RIGHT(BW$39,2)>RIGHT($K117,2),BA117,0)) -> 0 | BX117: =+IF($K117="Ongoing",BB117,IF(RIGHT($K117,2)=RIGHT(BX$39,2),SUM($AV117:BB117),0)+IF(RIGHT(BX$39,2)>RIGHT($K117,2),BB117,0)) -> 0 | BY117: =+IF($K117="Ongoing",BC117,IF(RIGHT($K117,2)=RIGHT(BY$39,2),SUM($AV117:BC117),0)+IF(RIGHT(BY$39,2)>RIGHT($K117,2),BC117,0)) -> 0 | BZ117: =+IF($K117="Ongoing",BD117,IF(RIGHT($K117,2)=RIGHT(BZ$39,2),SUM($AV117:BD117),0)+IF(RIGHT(BZ$39,2)>RIGHT($K117,2),BD117,0)) -> 0 | CA117: =+IF($K117="Ongoing",BE117,IF(RIGHT($K117,2)=RIGHT(CA$39,2),SUM($AV117:BE117),0)+IF(RIGHT(CA$39,2)>RIGHT($K117,2),BE117,0)) -> 0 | CC117: =+O117*KeyAssumptionsPriceControl_FO!X$15 -> 0.1984987745 | CD117: =+P117*KeyAssumptionsPriceControl_FO!Y$15 -> 0 | CE117: =+Q117*KeyAssumptionsPriceControl_FO!Z$15 -> 0.2323348887 | CF117: =+R117*KeyAssumptionsPriceControl_FO!AA$15 -> 0.2376785911 | CG117: =+S117*KeyAssumptionsPriceControl_FO!AB$15 -> 0.5005930562 | CH117: =+T117*KeyAssumptionsPriceControl_FO!AC$15 -> 0 | CI117: =+U117*KeyAssumptionsPriceControl_FO!AD$15 -> 0 | CJ117: =+V117*KeyAssumptionsPriceControl_FO!AE$15 -> 0 | CK117: =+W117*KeyAssumptionsPriceControl_FO!AF$15 -> 0 | CL117: =+X117*KeyAssumptionsPriceControl_FO!AG$15 -> 0 | CN117: 0.004962469363 | CO117: 0.009924938725 | CP117: 0.01573331094 | CQ117: 0.02748364794 | CR117: 0.04594043912 | CS117: 0.05845526552 | CT117: 0.05845526552 | CU117: 0.05845526552 | CV117: 0.05845526552 | CW117: 0.05845526552
C118: Lagoon | E118: Sewerage | F118: Renewals | G118: Treatment | H118: Other Capital expenditure | J118: Straight line | K118: 2022-23 | L118: 40 | M118: 40 | S118: 0.3758169935 | AV118: 0 | AW118: 0 | AX118: 0 | AY118: 0 | AZ118: 0.3758169935 | BA118: 0 | BB118: 0 | BC118: 0 | BD118: 0 | BE118: 0 | BG118: 0 | BH118: 0 | BI118: 0 | BJ118: 0 | BK118: 0.004697712418 | BL118: 0.009395424837 | BM118: 0.009395424837 | BN118: 0.009395424837 | BO118: 0.009395424837 | BP118: 0.009395424837 | BR118: =+IF($K118="Ongoing",AV118,IF(RIGHT($K118,2)=RIGHT(BR$39,2),SUM($AV118:AV118),0)+IF(RIGHT(BR$39,2)>RIGHT($K118,2),AV118,0)) -> 0 | BS118: =+IF($K118="Ongoing",AW118,IF(RIGHT($K118,2)=RIGHT(BS$39,2),SUM($AV118:AW118),0)+IF(RIGHT(BS$39,2)>RIGHT($K118,2),AW118,0)) -> 0 | BT118: =+IF($K118="Ongoing",AX118,IF(RIGHT($K118,2)=RIGHT(BT$39,2),SUM($AV118:AX118),0)+IF(RIGHT(BT$39,2)>RIGHT($K118,2),AX118,0)) -> 0 | BU118: =+IF($K118="Ongoing",AY118,IF(RIGHT($K118,2)=RIGHT(BU$39,2),SUM($AV118:AY118),0)+IF(RIGHT(BU$39,2)>RIGHT($K118,2),AY118,0)) -> 0 | BV118: =+IF($K118="Ongoing",AZ118,IF(RIGHT($K118,2)=RIGHT(BV$39,2),SUM($AV118:AZ118),0)+IF(RIGHT(BV$39,2)>RIGHT($K118,2),AZ118,0)) -> 0.3758169935 | BW118: =+IF($K118="Ongoing",BA118,IF(RIGHT($K118,2)=RIGHT(BW$39,2),SUM($AV118:BA118),0)+IF(RIGHT(BW$39,2)>RIGHT($K118,2),BA118,0)) -> 0 | BX118: =+IF($K118="Ongoing",BB118,IF(RIGHT($K118,2)=RIGHT(BX$39,2),SUM($AV118:BB118),0)+IF(RIGHT(BX$39,2)>RIGHT($K118,2),BB118,0)) -> 0 | BY118: =+IF($K118="Ongoing",BC118,IF(RIGHT($K118,2)=RIGHT(BY$39,2),SUM($AV118:BC118),0)+IF(RIGHT(BY$39,2)>RIGHT($K118,2),BC118,0)) -> 0 | BZ118: =+IF($K118="Ongoing",BD118,IF(RIGHT($K118,2)=RIGHT(BZ$39,2),SUM($AV118:BD118),0)+IF(RIGHT(BZ$39,2)>RIGHT($K118,2),BD118,0)) -> 0 | CA118: =+IF($K118="Ongoing",BE118,IF(RIGHT($K118,2)=RIGHT(CA$39,2),SUM($AV118:BE118),0)+IF(RIGHT(CA$39,2)>RIGHT($K118,2),BE118,0)) -> 0 | CC118: =+O118*KeyAssumptionsPriceControl_FO!X$15 -> 0 | CD118: =+P118*KeyAssumptionsPriceControl_FO!Y$15 -> 0 | CE118: =+Q118*KeyAssumptionsPriceControl_FO!Z$15 -> 0 | CF118: =+R118*KeyAssumptionsPriceControl_FO!AA$15 -> 0 | CG118: =+S118*KeyAssumptionsPriceControl_FO!AB$15 -> 0.4210702735 | CH118: =+T118*KeyAssumptionsPriceControl_FO!AC$15 -> 0 | CI118: =+U118*KeyAssumptionsPriceControl_FO!AD$15 -> 0 | CJ118: =+V118*KeyAssumptionsPriceControl_FO!AE$15 -> 0 | CK118: =+W118*KeyAssumptionsPriceControl_FO!AF$15 -> 0 | CL118: =+X118*KeyAssumptionsPriceControl_FO!AG$15 -> 0 | CN118: 0 | CO118: 0 | CP118: 0 | CQ118: 0 | CR118: 0.005263378419 | CS118: 0.01052675684 | CT118: 0.01052675684 | CU118: 0.01052675684 | CV118: 0.01052675684 | CW118: 0.01052675684
